Workbook

Sheet CAPA

Sheet CLIENTES (hidden)
B1: PREFEITURA MUNICIPAL DE POUSO ALEGRE
B2: PREFEITURA MUNICIPAL DE CACHOEIRA DE MINAS
B3: PREFEITURA MUNICIPAL DE ITAJUBÁ
B4: PREFEITURA MUNICIPAL DE SANTA RITA DO SAPUCAÍ
B5: RYZA
B6: FAPEPE
B7: PREFEITURA MUNICIPAL DE DELFIM MOREIRA
B8: PREFEITURA MUNICIPAL DE PIRANGUINHO

Sheet DADOS
B2: DATA | D2: 2025-01-27
B4: CLIENTE | E4: 1
B6: REVISÃO | D6: R00
B8: PROJETO | D8: CONSTRUÇÃO DA UBS CRISTAIS
B10: BDI TIPO 1 | D10: 0.2652
B12: BDI TIPO 2 | D12: -
B14: BANCOS DE DADOS | D14: SINAPI: 12/2024 Minas Gerais SETOP: 10/2024 Minas Gerais SICRO : 10/2024 Minas Gerais SUDECAP: 10/2024 Minas Gerais
B16: RESPONSÁVEL | D16: ALOISIO CAETANO FERREIRA
B18: CREA | D18: CREA - MG 97.132/D
B20: TIPO | D20: PROJETO EXECUTIVO

Sheet ORC
A3: 1000 | D3: A | E3: ADMINISTRAÇÃO DE OBRA | M3: =SUMIF(A:A,D3,M:M) -> 0 | N3: =SUMIF(A:A,D3,N:N) -> 0
D4: A.B | M4: =IFERROR(SUMIFS(M:M,A:A,LEFT(D4,SEARCH(".",D4)-1),B:B,RIGHT(D4,LEN(D4)-SEARCH(".",D4))),"") -> 0 | N4: =IFERROR(SUMIFS(N:N,A:A,LEFT(D4,SEARCH(".",D4)-1),B:B,RIGHT(D4,LEN(D4)-SEARCH(".",D4))),"") -> 0
D5: A.B.C | M5: =IFERROR(SUMIFS(M:M,A:A,LEFT(D5,SEARCH(".",D5)-1),B:B,LEFT(RIGHT(D5,LEN(D5)-SEARCH(".",D5)),SEARCH(".",RIGHT(D5,LEN(D5)-SEARCH(".",D5)))-1),C:C,RIGHT(D5,LEN(D5)-SEARCH(".",D5,SEARCH(".",D5)+1))),"") -> 0 | N5: =IFERROR(SUMIFS(N:N,A:A,LEFT(D5,SEARCH(".",D5)-1),B:B,LEFT(RIGHT(D5,LEN(D5)-SEARCH(".",D5)),SEARCH(".",RIGHT(D5,LEN(D5)-SEARCH(".",D5)))-1),C:C,RIGHT(D5,LEN(D5)-SEARCH(".",D5,SEARCH(".",D5)+1))),"") -> 0
A6: =IFERROR(LEFT(D6,SEARCH(".",D6)-1),"") -> a | B6: =IFERROR(LEFT(RIGHT(D6,LEN(D6)-SEARCH(".",D6)),SEARCH(".",RIGHT(D6,LEN(D6)-SEARCH(".",D6)))-1),"") -> a/a | C6: =IFERROR(IF(LEN(D6)-LEN(SUBSTITUTE(D6,".",""))<>3,"",MID(D6,SEARCH(".",D6,SEARCH(".",D6)+1)+1,LEN(D6)-SEARCH(".",D6,SEARCH(".",D6)+1)-(LEN(D6)-(SEARCH(".",D6,SEARCH(".",D6,SEARCH(".",D6)+1)+1)-1)))),"") ->  | D6: a.a/a.a.a/a.a.a.a | E6: =IF($G6="SINAPI",VLOOKUP($F6,DADOS_SINAPI,2,0),IF(G6="SETOP",VLOOKUP($F6,DADOS_SETOP,2,0),IF(G6="CPU",VLOOKUP($F6,DADOS_COMPOSICAO,2,0),IF(G6="SICRO",VLOOKUP($F6,DADOS_SICRO,2,0),IF(G6="SUDECAP",VLOOKUP(F6,DADOS_SUDECAP,2,0),IF(G6="COTAÇÃO",VLOOKUP($F6,DADOS_COTACAO,2,0),"")))))) ->  | H6: =IF(G6="SINAPI",VLOOKUP($F6,DADOS_SINAPI,3,0),IF(G6="SETOP",VLOOKUP($F6,DADOS_SETOP,3,0),IF(G6="CPU",VLOOKUP($F6,DADOS_COMPOSICAO,10,0),IF(G6="SICRO",VLOOKUP($F6,DADOS_SICRO,3,0),IF(G6="SUDECAP",VLOOKUP(F6,DADOS_SUDECAP,3,0),IF(G6="COTAÇÃO",VLOOKUP($F6,DADOS_COTACAO,9,0),"")))))) ->  | J6: =TRUNC(IF(G6="SINAPI",VLOOKUP($F6,DADOS_SINAPI,4,0),IF(G6="SETOP",VLOOKUP($F6,DADOS_SETOP,4,0),IF(G6="CPU",VLOOKUP($F6,DADOS_COMPOSICAO,13,0),IF(G6="SICRO",VLOOKUP($F6,DADOS_SICRO,4,0),IF(G6="SUDECAP",VLOOKUP(F6,DADOS_SUDECAP,4,0),IF(G6="COTAÇÃO",VLOOKUP(F6,DADOS_COTACAO,12,0),"")))))),2) ->  | K6: BDI 1 | L6: =TRUNC(J6*(1+$N$17),2) ->  | M6: =IFERROR(TRUNC(I6*J6,2),"") ->  | N6: =IFERROR(TRUNC(L6*I6,2),"") -> 
A7: =IFERROR(LEFT(D7,SEARCH(".",D7)-1),"") -> a | B7: =IFERROR(LEFT(RIGHT(D7,LEN(D7)-SEARCH(".",D7)),SEARCH(".",RIGHT(D7,LEN(D7)-SEARCH(".",D7)))-1),"") -> a/a | C7: =IFERROR(IF(LEN(D7)-LEN(SUBSTITUTE(D7,".",""))<>3,"",MID(D7,SEARCH(".",D7,SEARCH(".",D7)+1)+1,LEN(D7)-SEARCH(".",D7,SEARCH(".",D7)+1)-(LEN(D7)-(SEARCH(".",D7,SEARCH(".",D7,SEARCH(".",D7)+1)+1)-1)))),"") ->  | D7: a.a/a.a.a/a.a.a.a | E7: =VLOOKUP($F7,DADOS_COTACAO,2,0) ->  | G7: COTAÇÃO | H7: =VLOOKUP($F7,DADOS_COTACAO,9,0) ->  | J7: =TRUNC(VLOOKUP($F7,DADOS_COTACAO,12,0),2) ->  | K7: BDI 2 | L7: =TRUNC(J7*(1+$N$18),2) ->  | M7: =IFERROR(TRUNC(I7*J7,2),"") ->  | N7: =IFERROR(TRUNC(L7*I7,2),"") -> 
A8: 2000
E11: PLANILHA ORÇAMENTÁRIA | M11: Revisão: | N11: =DADOS!D6 -> R00 | O11: a
M12: Data: | N12: =DADOS!D2 -> 2025-01-27
D13: Projeto: | E13: =DADOS!D8 -> CONSTRUÇÃO DA UBS CRISTAIS | M13: Bancos:
D14: Responsável: | F14: Cliente: | M14: =DADOS!D14 -> SINAPI: 12/2024 Minas Gerais SETOP: 10/2024 Minas Gerais SICRO : 10/2024 Minas Gerais SUDECAP: 10/2024 Minas Gerais
M17: BDI 1: | N17: =DADOS!D10 -> 0.2652
M18: BDI 2: | N18: =DADOS!D12 -> -
D27: PLANILHA ORÇAMENTÁRIA | O27: a
D29: PREFEITURA: | E29: PREFEITURA MUNICIPAL DE POUSO ALEGRE | M29: FOLHA Nº: 1
D30: OBRA: CONSTRUÇÃO DA UBS CRISTAIS | M30: DATA:27/01/2025
D31: LOCAL: RUA ROBERTO SCODELER, BAIRRO BELLA ITÁLIA | K31: FORMA DE EXECUÇÃO
D32: REGIÃO/MÊS DE REFERÊNCIA: SINAPI: 12/2024 Minas Gerais SETOP: 10/2024 Minas Gerais SICRO : 10/2024 Minas Gerais SUDECAP: 10/2024 Minas Gerais | K32: ( ) DIRETA | M32: (X) | N32: INDIRETA
D33: PRAZO DE EXECUÇÃO: 12 MESES | M33: BDI 1: | N33: =DADOS!D10 -> 0.2652
D35: Item | E35: Descrição | F35: Código | G35: Banco | H35: Unidade | I35: Quantidade | J35: Valor Unitário | K35: BDI | L35: Valor Unit. com BDI | M35: Total | N35: Total com BDI
M36: =ROUND(I36*J36,2) -> 0 | N36: =ROUND(L36*I36,2) -> 0
A37: 1000 | D37: 1 | E37: ADMINISTRAÇÃO DE OBRA | M37: =SUMIF(A:A,D37,M:M) -> 98851.2 | N37: =SUMIF(A:A,D37,N:N) -> 125059.2
A38: =IFERROR(LEFT(D38,SEARCH(".",D38)-1),"") -> 1 | B38: =IFERROR(LEFT(RIGHT(D38,LEN(D38)-SEARCH(".",D38)),SEARCH(".",RIGHT(D38,LEN(D38)-SEARCH(".",D38)))-1),"") ->  | C38: =IFERROR(IF(LEN(D38)-LEN(SUBSTITUTE(D38,".",""))<>3,"",MID(D38,SEARCH(".",D38,SEARCH(".",D38)+1)+1,LEN(D38)-SEARCH(".",D38,SEARCH(".",D38)+1)-(LEN(D38)-(SEARCH(".",D38,SEARCH(".",D38,SEARCH(".",D38)+1)+1)-1)))),"") ->  | D38: 1.1 | E38: =IF($G38="SINAPI",VLOOKUP($F38,DADOS_SINAPI,2,0),IF(G38="SETOP",VLOOKUP($F38,DADOS_SETOP,2,0),IF(G38="CPU",VLOOKUP($F38,DADOS_COMPOSICAO,2,0),IF(G38="SICRO",VLOOKUP($F38,DADOS_SICRO,2,0),IF(G38="SUDECAP",VLOOKUP(F38,DADOS_SUDECAP,2,0),IF(G38="COTAÇÃO",VLOOKUP($F38,DADOS_COTACAO,2,0),"")))))) -> ENGENHEIRO CIVIL DE OBRA JUNIOR COM ENCARGOS COMPLEMENTARES | F38: 90777 | G38: SINAPI | H38: =IF(G38="SINAPI",VLOOKUP($F38,DADOS_SINAPI,3,0),IF(G38="SETOP",VLOOKUP($F38,DADOS_SETOP,3,0),IF(G38="CPU",VLOOKUP($F38,DADOS_COMPOSICAO,10,0),IF(G38="SICRO",VLOOKUP($F38,DADOS_SICRO,3,0),IF(G38="SUDECAP",VLOOKUP(F38,DADOS_SUDECAP,3,0),IF(G38="COTAÇÃO",VLOOKUP($F38,DADOS_COTACAO,9,0),"")))))) -> H | I38: =F43 -> 960 | J38: =TRUNC(IF(G38="SINAPI",VLOOKUP($F38,DADOS_SINAPI,4,0),IF(G38="SETOP",VLOOKUP($F38,DADOS_SETOP,4,0),IF(G38="CPU",VLOOKUP($F38,DADOS_COMPOSICAO,13,0),IF(G38="SICRO",VLOOKUP($F38,DADOS_SICRO,4,0),IF(G38="SUDECAP",VLOOKUP(F38,DADOS_SUDECAP,4,0),IF(G38="COTAÇÃO",VLOOKUP(F38,DADOS_COTACAO,12,0),"")))))),2) -> 102.97 | K38: BDI 1 | L38: =TRUNC(J38*(1+$N$17),2) -> 130.27 | M38: =IFERROR(TRUNC(I38*J38,2),"") -> 98851.2 | N38: =L38*I38 -> 125059.2
A39: 2000
A40: 2000 | E40: Horas | F40: 4
A41: 2000 | E41: Dias | F41: 20
A42: 2000 | E42: Meses | F42: 12
A43: 2000 | E43: Total | F43: =F40*F41*F42 -> 960 | G43: h
A44: 2000
A45: 1000 | D45: 2 | E45: CANTEIRO DE OBRA | M45: =SUMIF(A:A,D45,M:M) -> 64958.11 | N45: =SUMIF(A:A,D45,N:N) -> 82182.65
A46: =IFERROR(LEFT(D46,SEARCH(".",D46)-1),"") -> 2 | B46: =IFERROR(LEFT(RIGHT(D46,LEN(D46)-SEARCH(".",D46)),SEARCH(".",RIGHT(D46,LEN(D46)-SEARCH(".",D46)))-1),"") ->  | C46: =IFERROR(IF(LEN(D46)-LEN(SUBSTITUTE(D46,".",""))<>3,"",MID(D46,SEARCH(".",D46,SEARCH(".",D46)+1)+1,LEN(D46)-SEARCH(".",D46,SEARCH(".",D46)+1)-(LEN(D46)-(SEARCH(".",D46,SEARCH(".",D46,SEARCH(".",D46)+1)+1)-1)))),"") ->  | D46: 2.1 | E46: =IF($G46="SINAPI",VLOOKUP($F46,DADOS_SINAPI,2,0),IF(G46="SETOP",VLOOKUP($F46,DADOS_SETOP,2,0),IF(G46="CPU",VLOOKUP($F46,DADOS_COMPOSICAO,2,0),IF(G46="SICRO",VLOOKUP($F46,DADOS_SICRO,2,0),IF(G46="SUDECAP",VLOOKUP(F46,DADOS_SUDECAP,2,0),IF(G46="COTAÇÃO",VLOOKUP($F46,DADOS_COTACAO,2,0),"")))))) -> LOCAÇÃO DE CONTAINER COM ISOLAMENTO TÉRMICO, TIPO 3, PARA DEPÓSITO/FERRAMENTARIA DE OBRA, COM MEDIDAS REFERENCIAIS DE (6) METROS COMPRIMENTO, (2,3) METROS LARGURA E (2,5) METROS ALTURA ÚTIL INTERNA, INCLUSIVE LIGAÇÕES ELÉTRICAS INTERNAS, EXCLUSIVE MOBILIZAÇÃO/DESMOBILIZAÇÃO E LIGAÇÕES PROVISÓRIAS EXTERNAS | F46: ED-16350 | G46: SETOP | H46: =IF(G46="SINAPI",VLOOKUP($F46,DADOS_SINAPI,3,0),IF(G46="SETOP",VLOOKUP($F46,DADOS_SETOP,3,0),IF(G46="CPU",VLOOKUP($F46,DADOS_COMPOSICAO,10,0),IF(G46="SICRO",VLOOKUP($F46,DADOS_SICRO,3,0),IF(G46="SUDECAP",VLOOKUP(F46,DADOS_SUDECAP,3,0),IF(G46="COTAÇÃO",VLOOKUP($F46,DADOS_COTACAO,9,0),"")))))) -> mês | I46: =F48 -> 12 | J46: =TRUNC(IF(G46="SINAPI",VLOOKUP($F46,DADOS_SINAPI,4,0),IF(G46="SETOP",VLOOKUP($F46,DADOS_SETOP,4,0),IF(G46="CPU",VLOOKUP($F46,DADOS_COMPOSICAO,13,0),IF(G46="SICRO",VLOOKUP($F46,DADOS_SICRO,4,0),IF(G46="SUDECAP",VLOOKUP(F46,DADOS_SUDECAP,4,0),IF(G46="COTAÇÃO",VLOOKUP(F46,DADOS_COTACAO,12,0),"")))))),2) -> 801.86 | K46: BDI 1 | L46: =TRUNC(J46*(1+$N$17),2) -> 1014.51 | M46: =IFERROR(TRUNC(I46*J46,2),"") -> 9622.32 | N46: =L46*I46 -> 12174.12
A47: 2000
A48: 2000 | E48: Quantidade | F48: 12 | G48: meses
A49: 2000
A50: 2 | D50: 2.2 | E50: =IF($G50="SINAPI",VLOOKUP($F50,DADOS_SINAPI,2,0),IF(G50="SETOP",VLOOKUP($F50,DADOS_SETOP,2,0),IF(G50="CPU",VLOOKUP($F50,DADOS_COMPOSICAO,2,0),IF(G50="SICRO",VLOOKUP($F50,DADOS_SICRO,2,0),IF(G50="SUDECAP",VLOOKUP(F50,DADOS_SUDECAP,2,0),IF(G50="COTAÇÃO",VLOOKUP($F50,DADOS_COTACAO,2,0),"")))))) -> LIGAÇÕES PROVISÓRIAS PARA CONTAINER TIPO 3 (CORRESPONDENTE AO CÓDIGO ED-16350) | F50: ED-16358 | G50: SETOP | H50: un | I50: =F52 -> 1 | J50: 288.39 | K50: BDI 1 | L50: 364.87 | M50: 288.39 | N50: =L50*I50 -> 364.87
A51: 2000
A52: 2000 | E52: Quantidade | F52: 1 | G52: un
A53: 2000
A54: =IFERROR(LEFT(D54,SEARCH(".",D54)-1),"") -> 2 | B54: =IFERROR(LEFT(RIGHT(D54,LEN(D54)-SEARCH(".",D54)),SEARCH(".",RIGHT(D54,LEN(D54)-SEARCH(".",D54)))-1),"") ->  | C54: =IFERROR(IF(LEN(D54)-LEN(SUBSTITUTE(D54,".",""))<>3,"",MID(D54,SEARCH(".",D54,SEARCH(".",D54)+1)+1,LEN(D54)-SEARCH(".",D54,SEARCH(".",D54)+1)-(LEN(D54)-(SEARCH(".",D54,SEARCH(".",D54,SEARCH(".",D54)+1)+1)-1)))),"") ->  | D54: 2.3 | E54: =IF($G54="SINAPI",VLOOKUP($F54,DADOS_SINAPI,2,0),IF(G54="SETOP",VLOOKUP($F54,DADOS_SETOP,2,0),IF(G54="CPU",VLOOKUP($F54,DADOS_COMPOSICAO,2,0),IF(G54="SICRO",VLOOKUP($F54,DADOS_SICRO,2,0),IF(G54="SUDECAP",VLOOKUP(F54,DADOS_SUDECAP,2,0),IF(G54="COTAÇÃO",VLOOKUP($F54,DADOS_COTACAO,2,0),"")))))) -> LOCAÇÃO DE CONTAINER COM ISOLAMENTO TÉRMICO, TIPO 1, PARA ESCRITÓRIO DE OBRA, COM MEDIDAS REFERENCIAIS DE (6) METROS COMPRIMENTO, (2,3) METROS LARGURA E (2,5) METROS ALTURA ÚTIL INTERNA, INCLUSIVE AR CONDICIONADO E LIGAÇÕES ELÉTRICAS INTERNAS, EXCLUSIVE MOBILIZAÇÃO/DESMOBILIZAÇÃO E LIGAÇÕES PROVISÓRIAS EXTERNAS | F54: ED-16348 | G54: SETOP | H54: =IF(G54="SINAPI",VLOOKUP($F54,DADOS_SINAPI,3,0),IF(G54="SETOP",VLOOKUP($F54,DADOS_SETOP,3,0),IF(G54="CPU",VLOOKUP($F54,DADOS_COMPOSICAO,10,0),IF(G54="SICRO",VLOOKUP($F54,DADOS_SICRO,3,0),IF(G54="SUDECAP",VLOOKUP(F54,DADOS_SUDECAP,3,0),IF(G54="COTAÇÃO",VLOOKUP($F54,DADOS_COTACAO,9,0),"")))))) -> mês | I54: =F56 -> 12 | J54: =TRUNC(IF(G54="SINAPI",VLOOKUP($F54,DADOS_SINAPI,4,0),IF(G54="SETOP",VLOOKUP($F54,DADOS_SETOP,4,0),IF(G54="CPU",VLOOKUP($F54,DADOS_COMPOSICAO,13,0),IF(G54="SICRO",VLOOKUP($F54,DADOS_SICRO,4,0),IF(G54="SUDECAP",VLOOKUP(F54,DADOS_SUDECAP,4,0),IF(G54="COTAÇÃO",VLOOKUP(F54,DADOS_COTACAO,12,0),"")))))),2) -> 1433.79 | K54: BDI 1 | L54: =TRUNC(J54*(1+$N$17),2) -> 1814.03 | M54: =IFERROR(TRUNC(I54*J54,2),"") -> 17205.48 | N54: 21768.36
A55: 2000
A56: 2000 | E56: Quantidade | F56: 12 | G56: meses
A57: 2000
A58: =IFERROR(LEFT(D58,SEARCH(".",D58)-1),"") -> 2 | B58: =IFERROR(LEFT(RIGHT(D58,LEN(D58)-SEARCH(".",D58)),SEARCH(".",RIGHT(D58,LEN(D58)-SEARCH(".",D58)))-1),"") ->  | C58: =IFERROR(IF(LEN(D58)-LEN(SUBSTITUTE(D58,".",""))<>3,"",MID(D58,SEARCH(".",D58,SEARCH(".",D58)+1)+1,LEN(D58)-SEARCH(".",D58,SEARCH(".",D58)+1)-(LEN(D58)-(SEARCH(".",D58,SEARCH(".",D58,SEARCH(".",D58)+1)+1)-1)))),"") ->  | D58: 2.4 | E58: =IF($G58="SINAPI",VLOOKUP($F58,DADOS_SINAPI,2,0),IF(G58="SETOP",VLOOKUP($F58,DADOS_SETOP,2,0),IF(G58="CPU",VLOOKUP($F58,DADOS_COMPOSICAO,2,0),IF(G58="SICRO",VLOOKUP($F58,DADOS_SICRO,2,0),IF(G58="SUDECAP",VLOOKUP(F58,DADOS_SUDECAP,2,0),IF(G58="COTAÇÃO",VLOOKUP($F58,DADOS_COTACAO,2,0),"")))))) -> LIGAÇÕES PROVISÓRIAS PARA CONTAINER TIPO 1 (CORRESPONDENTE AO CÓDIGO ED-16348) | F58: ED-16356 | G58: SETOP | H58: =IF(G58="SINAPI",VLOOKUP($F58,DADOS_SINAPI,3,0),IF(G58="SETOP",VLOOKUP($F58,DADOS_SETOP,3,0),IF(G58="CPU",VLOOKUP($F58,DADOS_COMPOSICAO,10,0),IF(G58="SICRO",VLOOKUP($F58,DADOS_SICRO,3,0),IF(G58="SUDECAP",VLOOKUP(F58,DADOS_SUDECAP,3,0),IF(G58="COTAÇÃO",VLOOKUP($F58,DADOS_COTACAO,9,0),"")))))) -> un | I58: =F60 -> 1 | J58: =TRUNC(IF(G58="SINAPI",VLOOKUP($F58,DADOS_SINAPI,4,0),IF(G58="SETOP",VLOOKUP($F58,DADOS_SETOP,4,0),IF(G58="CPU",VLOOKUP($F58,DADOS_COMPOSICAO,13,0),IF(G58="SICRO",VLOOKUP($F58,DADOS_SICRO,4,0),IF(G58="SUDECAP",VLOOKUP(F58,DADOS_SUDECAP,4,0),IF(G58="COTAÇÃO",VLOOKUP(F58,DADOS_COTACAO,12,0),"")))))),2) -> 288.39 | K58: BDI 1 | L58: =TRUNC(J58*(1+$N$17),2) -> 364.87 | M58: =IFERROR(TRUNC(I58*J58,2),"") -> 288.39 | N58: 364.87
A59: 2000
A60: 2000 | E60: Quantidade | F60: 1 | G60: un
A61: 2000
A62: 2 | D62: 2.5 | E62: MOBILIZAÇÃO E DESMOBILIZAÇÃO DE CONTAINER, INCLUSIVE CARGA, DESCARGA E TRANSPORTE EM CAMINHÃO CARROCERIA COM GUINDAUTO (MUNCK), EXCLUSIVE LOCAÇÃO DO CONTAINER | F62: ED-50137 | G62: SETOP | H62: un | I62: =F64 -> 2 | J62: 1445.84 | K62: BDI 1 | L62: 1829.27 | M62: 2891.68 | N62: 3658.54
A63: 2000
A64: 2000 | E64: Quantidade | F64: 2 | G64: un
A65: 2000
A66: 2 | D66: 2.6 | E66: LOCAÇÃO DE BANHEIRO QUÍMICO, DIMENSÃO (110X120X230)CM, LINHA PADRÃO, CONTENDO UMA (1) PIA/HIGIENIZADOR DE MÃOS, INCLUSIVE MANUTENÇÃO E MOBILIZAÇÃO/DESMOBILIZAÇÃO | F66: ED-50155 | G66: SETOP | H66: mês | I66: =F70 -> 24 | J66: 900 | K66: BDI 1 | L66: 1138.68 | M66: 21600 | N66: 27328.32
A67: 2000
A68: 2000 | E68: Quantidade | F68: 2 | G68: un
A69: 2000 | E69: Tempo de obra | F69: =F48 -> 12 | G69: meses
A70: 2000 | E70: Total | F70: =F68*F69 -> 24 | G70: meses
A71: 2000
A72: 2 | D72: 2.7 | E72: LIGAÇÃO DE ÁGUA PROVISÓRIA PARA CANTEIRO, INCLUSIVE HIDRÔMETRO E CAVALETE PARA MEDIÇÃO DE ÁGUA - ENTRADA PRINCIPAL, EM AÇO GALVANIZADO DN 20MM (1/2") - PADRÃO CONCESSIONÁRIA | F72: ED-50150 | G72: SETOP | H72: un | I72: =F74 -> 1 | J72: 439.05 | K72: BDI 1 | L72: 555.48 | M72: 439.05 | N72: 555.48
A73: 2000
A74: 2000 | E74: Quantidade | F74: 1 | G74: un
A75: 2000
A76: 2 | D76: 2.8 | E76: LIGAÇÃO PROVISÓRIA COM ENTRADA DE ENERGIA AÉREA, PADRÃO CEMIG, CARGA INSTALADA DE 15,1KVA ATÉ 30KVA, TRIFÁSICO, COM SAÍDA SUBTERRÂNEA, INCLUSIVE POSTE, CAIXA PARA MEDIDOR, DISJUNTOR, BARRAMENTO, ATERRAMENTO E ACESSÓRIOS | F76: ED-50151 | G76: SETOP | H76: un | I76: =F78 -> 1 | J76: 1060.92 | K76: BDI 1 | L76: 1342.27 | M76: 1060.92 | N76: 1342.27
A77: 2000
A78: 2000 | E78: Quantidade | F78: 1 | G78: un
A79: 2000
A80: 2 | D80: 2.9 | E80: TAPUME FIXO DE PROTEÇÃO PARA FECHAMENTO DE OBRA EM TELHA METÁLICA GALVANIZADA, TIPO TRAPEZOIDAL, ESP. 0,5MM, COM MÓDULO NA DIMENSÃO DE (300X220)CM, COM REAPROVEITAMENTO, EXCLUSIVE PINTURA ESMALTE, INCLUSIVE PONTALETE E FIXAÇÃO | F80: ED-29823 | G80: SETOP | H80: m2 | I80: =F84 -> 209 | J80: 52.79 | K80: BDI 1 | L80: 66.78 | M80: 11033.11 | N80: 13957.02
A81: 2000
A82: 2000 | E82: Comprimento | F82: 95 | G82: m
A83: 2000 | E83: Altura | F83: 2.2 | G83: m
A84: 2000 | E84: Quantidade | F84: =F82*F83 -> 209 | G84: m²
A85: 2000
A86: 2 | D86: 2.10 | E86: REMOÇÃO DE TAPUME/ CHAPAS METÁLICAS E DE MADEIRA, DE FORMA MANUAL, SEM REAPROVEITAMENTO. AF_09/2023 | F86: 97637 | G86: SINAPI | H86: M2 | I86: =F88 -> 209 | J86: 2.53 | K86: BDI 1 | L86: 3.2 | M86: 528.77 | N86: 668.8
A87: 2000
A88: 2000 | E88: Área de tapume | F88: =F84 -> 209 | G88: m²
A89: 2000
A90: 1000 | D90: 3 | E90: SERVIÇOS PRELIMINARES | M90: =SUMIF(A:A,D90,M:M) -> 5321.84 | N90: =SUMIF(A:A,D90,N:N) -> 6733.11
A91: =IFERROR(LEFT(D91,SEARCH(".",D91)-1),"") -> 3 | B91: =IFERROR(LEFT(RIGHT(D91,LEN(D91)-SEARCH(".",D91)),SEARCH(".",RIGHT(D91,LEN(D91)-SEARCH(".",D91)))-1),"") ->  | C91: =IFERROR(IF(LEN(D91)-LEN(SUBSTITUTE(D91,".",""))<>3,"",MID(D91,SEARCH(".",D91,SEARCH(".",D91)+1)+1,LEN(D91)-SEARCH(".",D91,SEARCH(".",D91)+1)-(LEN(D91)-(SEARCH(".",D91,SEARCH(".",D91,SEARCH(".",D91)+1)+1)-1)))),"") ->  | D91: 3.1 | E91: =IF($G91="SINAPI",VLOOKUP($F91,DADOS_SINAPI,2,0),IF(G91="SETOP",VLOOKUP($F91,DADOS_SETOP,2,0),IF(G91="CPU",VLOOKUP($F91,DADOS_COMPOSICAO,2,0),IF(G91="SICRO",VLOOKUP($F91,DADOS_SICRO,2,0),IF(G91="SUDECAP",VLOOKUP(F91,DADOS_SUDECAP,2,0),IF(G91="COTAÇÃO",VLOOKUP($F91,DADOS_COTACAO,2,0),"")))))) -> FORNECIMENTO E COLOCAÇÃO DE PLACA DE OBRA EM CHAPA GALVANIZADA #26, ESP. 0,45MM, DIMENSÃO (3X1,5)M, PLOTADA COM ADESIVO VINÍLICO, AFIXADA COM REBITES 4,8X40MM, EM ESTRUTURA METÁLICA DE METALON 20X20MM, ESP. 1,25MM, INCLUSIVE SUPORTE EM EUCALIPTO AUTOCLAVADO PINTADO COM TINTA PVA DUAS (2) DEMÃOS | F91: ED-28427 | G91: SETOP | H91: =IF(G91="SINAPI",VLOOKUP($F91,DADOS_SINAPI,3,0),IF(G91="SETOP",VLOOKUP($F91,DADOS_SETOP,3,0),IF(G91="CPU",VLOOKUP($F91,DADOS_COMPOSICAO,10,0),IF(G91="SICRO",VLOOKUP($F91,DADOS_SICRO,3,0),IF(G91="SUDECAP",VLOOKUP(F91,DADOS_SUDECAP,3,0),IF(G91="COTAÇÃO",VLOOKUP($F91,DADOS_COTACAO,9,0),"")))))) -> un | I91: =F93 -> 1 | J91: =TRUNC(IF(G91="SINAPI",VLOOKUP($F91,DADOS_SINAPI,4,0),IF(G91="SETOP",VLOOKUP($F91,DADOS_SETOP,4,0),IF(G91="CPU",VLOOKUP($F91,DADOS_COMPOSICAO,13,0),IF(G91="SICRO",VLOOKUP($F91,DADOS_SICRO,4,0),IF(G91="SUDECAP",VLOOKUP(F91,DADOS_SUDECAP,4,0),IF(G91="COTAÇÃO",VLOOKUP(F91,DADOS_COTACAO,12,0),"")))))),2) -> 1201.64 | K91: BDI 1 | L91: =TRUNC(J91*(1+$N$17),2) -> 1520.31 | M91: =IFERROR(TRUNC(I91*J91,2),"") -> 1201.64 | N91: =L91*I91 -> 1520.31
A92: 2000
A93: 2000 | E93: Total | F93: 1 | G93: un
A94: 2000
A95: =IFERROR(LEFT(D95,SEARCH(".",D95)-1),"") -> 3 | B95: =IFERROR(LEFT(RIGHT(D95,LEN(D95)-SEARCH(".",D95)),SEARCH(".",RIGHT(D95,LEN(D95)-SEARCH(".",D95)))-1),"") ->  | C95: =IFERROR(IF(LEN(D95)-LEN(SUBSTITUTE(D95,".",""))<>3,"",MID(D95,SEARCH(".",D95,SEARCH(".",D95)+1)+1,LEN(D95)-SEARCH(".",D95,SEARCH(".",D95)+1)-(LEN(D95)-(SEARCH(".",D95,SEARCH(".",D95,SEARCH(".",D95)+1)+1)-1)))),"") ->  | D95: 3.2 | E95: =IF($G95="SINAPI",VLOOKUP($F95,DADOS_SINAPI,2,0),IF(G95="SETOP",VLOOKUP($F95,DADOS_SETOP,2,0),IF(G95="CPU",VLOOKUP($F95,DADOS_COMPOSICAO,2,0),IF(G95="SICRO",VLOOKUP($F95,DADOS_SICRO,2,0),IF(G95="SUDECAP",VLOOKUP(F95,DADOS_SUDECAP,2,0),IF(G95="COTAÇÃO",VLOOKUP($F95,DADOS_COTACAO,2,0),"")))))) -> LOCAÇÃO DE OBRA COM GABARITO DE TÁBUAS CORRIDAS PONTALETADAS A CADA 2,00M, REAPROVEITAMENTO (2X), INCLUSIVE ACOMPANHAMENTO DE EQUIPE TOPOGRÁFICA PARA MARCAÇÃO DE PONTO TOPOGRÁFICO | F95: ED-17989 | G95: SETOP | H95: =IF(G95="SINAPI",VLOOKUP($F95,DADOS_SINAPI,3,0),IF(G95="SETOP",VLOOKUP($F95,DADOS_SETOP,3,0),IF(G95="CPU",VLOOKUP($F95,DADOS_COMPOSICAO,10,0),IF(G95="SICRO",VLOOKUP($F95,DADOS_SICRO,3,0),IF(G95="SUDECAP",VLOOKUP(F95,DADOS_SUDECAP,3,0),IF(G95="COTAÇÃO",VLOOKUP($F95,DADOS_COTACAO,9,0),"")))))) -> m | I95: =F97 -> 90 | J95: =TRUNC(IF(G95="SINAPI",VLOOKUP($F95,DADOS_SINAPI,4,0),IF(G95="SETOP",VLOOKUP($F95,DADOS_SETOP,4,0),IF(G95="CPU",VLOOKUP($F95,DADOS_COMPOSICAO,13,0),IF(G95="SICRO",VLOOKUP($F95,DADOS_SICRO,4,0),IF(G95="SUDECAP",VLOOKUP(F95,DADOS_SUDECAP,4,0),IF(G95="COTAÇÃO",VLOOKUP(F95,DADOS_COTACAO,12,0),"")))))),2) -> 45.78 | K95: BDI 1 | L95: =TRUNC(J95*(1+$N$17),2) -> 57.92 | M95: =IFERROR(TRUNC(I95*J95,2),"") -> 4120.2 | N95: =L95*I95 -> 5212.8
A96: 2000
A97: 2000 | E97: Total | F97: 90 | G97: m
A98: 2000 | F98: 0
A99: 1000 | D99: 4 | E99: LIMPEZAS E DEMOLIÇÕES | M99: =SUMIF(A:A,D99,M:M) -> 3916.42 | N99: =SUMIF(A:A,D99,N:N) -> 4941.14
A100: =IFERROR(LEFT(D100,SEARCH(".",D100)-1),"") -> 4 | B100: =IFERROR(LEFT(RIGHT(D100,LEN(D100)-SEARCH(".",D100)),SEARCH(".",RIGHT(D100,LEN(D100)-SEARCH(".",D100)))-1),"") ->  | C100: =IFERROR(IF(LEN(D100)-LEN(SUBSTITUTE(D100,".",""))<>3,"",MID(D100,SEARCH(".",D100,SEARCH(".",D100)+1)+1,LEN(D100)-SEARCH(".",D100,SEARCH(".",D100)+1)-(LEN(D100)-(SEARCH(".",D100,SEARCH(".",D100,SEARCH(".",D100)+1)+1)-1)))),"") ->  | D100: 4.1 | E100: =IF($G100="SINAPI",VLOOKUP($F100,DADOS_SINAPI,2,0),IF(G100="SETOP",VLOOKUP($F100,DADOS_SETOP,2,0),IF(G100="CPU",VLOOKUP($F100,DADOS_COMPOSICAO,2,0),IF(G100="SICRO",VLOOKUP($F100,DADOS_SICRO,2,0),IF(G100="SUDECAP",VLOOKUP(F100,DADOS_SUDECAP,2,0),IF(G100="COTAÇÃO",VLOOKUP($F100,DADOS_COTACAO,2,0),"")))))) -> LIMPEZA MECANIZADA DE CAMADA VEGETAL, VEGETAÇÃO E PEQUENAS ÁRVORES (DIÂMETRO DE TRONCO MENOR QUE 0,20 M), COM TRATOR DE ESTEIRAS. AF_03/2024 | F100: 98525 | G100: SINAPI | H100: =IF(G100="SINAPI",VLOOKUP($F100,DADOS_SINAPI,3,0),IF(G100="SETOP",VLOOKUP($F100,DADOS_SETOP,3,0),IF(G100="CPU",VLOOKUP($F100,DADOS_COMPOSICAO,10,0),IF(G100="SICRO",VLOOKUP($F100,DADOS_SICRO,3,0),IF(G100="SUDECAP",VLOOKUP(F100,DADOS_SUDECAP,3,0),IF(G100="COTAÇÃO",VLOOKUP($F100,DADOS_COTACAO,9,0),"")))))) -> M2 | I100: =F102 -> 562.5 | J100: =TRUNC(IF(G100="SINAPI",VLOOKUP($F100,DADOS_SINAPI,4,0),IF(G100="SETOP",VLOOKUP($F100,DADOS_SETOP,4,0),IF(G100="CPU",VLOOKUP($F100,DADOS_COMPOSICAO,13,0),IF(G100="SICRO",VLOOKUP($F100,DADOS_SICRO,4,0),IF(G100="SUDECAP",VLOOKUP(F100,DADOS_SUDECAP,4,0),IF(G100="COTAÇÃO",VLOOKUP(F100,DADOS_COTACAO,12,0),"")))))),2) -> 0.66 | K100: BDI 1 | L100: =TRUNC(J100*(1+$N$17),2) -> 0.83 | M100: =IFERROR(TRUNC(I100*J100,2),"") -> 371.25 | N100: 466.88
A101: 2000
A102: 2000 | E102: Total | F102: 562.5 | G102: m²
A103: 2000
A104: =IFERROR(LEFT(D104,SEARCH(".",D104)-1),"") -> 4 | B104: =IFERROR(LEFT(RIGHT(D104,LEN(D104)-SEARCH(".",D104)),SEARCH(".",RIGHT(D104,LEN(D104)-SEARCH(".",D104)))-1),"") ->  | C104: =IFERROR(IF(LEN(D104)-LEN(SUBSTITUTE(D104,".",""))<>3,"",MID(D104,SEARCH(".",D104,SEARCH(".",D104)+1)+1,LEN(D104)-SEARCH(".",D104,SEARCH(".",D104)+1)-(LEN(D104)-(SEARCH(".",D104,SEARCH(".",D104,SEARCH(".",D104)+1)+1)-1)))),"") ->  | D104: 4.2 | E104: =IF($G104="SINAPI",VLOOKUP($F104,DADOS_SINAPI,2,0),IF(G104="SETOP",VLOOKUP($F104,DADOS_SETOP,2,0),IF(G104="CPU",VLOOKUP($F104,DADOS_COMPOSICAO,2,0),IF(G104="SICRO",VLOOKUP($F104,DADOS_SICRO,2,0),IF(G104="SUDECAP",VLOOKUP(F104,DADOS_SUDECAP,2,0),IF(G104="COTAÇÃO",VLOOKUP($F104,DADOS_COTACAO,2,0),"")))))) -> CARGA, MANOBRA E DESCARGA DE ENTULHO EM CAMINHÃO BASCULANTE 10 M³ - CARGA COM ESCAVADEIRA HIDRÁULICA (CAÇAMBA DE 0,80 M³ / 111 HP) E DESCARGA LIVRE (UNIDADE: M3). AF_07/2020 | F104: 100982 | G104: SINAPI | H104: =IF(G104="SINAPI",VLOOKUP($F104,DADOS_SINAPI,3,0),IF(G104="SETOP",VLOOKUP($F104,DADOS_SETOP,3,0),IF(G104="CPU",VLOOKUP($F104,DADOS_COMPOSICAO,10,0),IF(G104="SICRO",VLOOKUP($F104,DADOS_SICRO,3,0),IF(G104="SUDECAP",VLOOKUP(F104,DADOS_SUDECAP,3,0),IF(G104="COTAÇÃO",VLOOKUP($F104,DADOS_COTACAO,9,0),"")))))) -> M3 | I104: =F109 -> 109.69 | J104: =TRUNC(IF(G104="SINAPI",VLOOKUP($F104,DADOS_SINAPI,4,0),IF(G104="SETOP",VLOOKUP($F104,DADOS_SETOP,4,0),IF(G104="CPU",VLOOKUP($F104,DADOS_COMPOSICAO,13,0),IF(G104="SICRO",VLOOKUP($F104,DADOS_SICRO,4,0),IF(G104="SUDECAP",VLOOKUP(F104,DADOS_SUDECAP,4,0),IF(G104="COTAÇÃO",VLOOKUP(F104,DADOS_COTACAO,12,0),"")))))),2) -> 8.89 | K104: BDI 1 | L104: =TRUNC(J104*(1+$N$17),2) -> 11.24 | M104: =IFERROR(TRUNC(I104*J104,2),"") -> 975.14 | N104: 1232.92
A105: 2000
A106: 2000 | E106: Área de camada vegetal | F106: =F102 -> 562.5 | G106: m²
A107: 2000 | E107: Espessura | F107: 0.15 | G107: m
A108: 2000 | E108: Empolamento | F108: 1.3 | G108: -
A109: 2000 | E109: Total | F109: =ROUND((F106*F107*F108),2) -> 109.69 | G109: m²
A110: 2000
A111: =IFERROR(LEFT(D111,SEARCH(".",D111)-1),"") -> 4 | B111: =IFERROR(LEFT(RIGHT(D111,LEN(D111)-SEARCH(".",D111)),SEARCH(".",RIGHT(D111,LEN(D111)-SEARCH(".",D111)))-1),"") ->  | C111: =IFERROR(IF(LEN(D111)-LEN(SUBSTITUTE(D111,".",""))<>3,"",MID(D111,SEARCH(".",D111,SEARCH(".",D111)+1)+1,LEN(D111)-SEARCH(".",D111,SEARCH(".",D111)+1)-(LEN(D111)-(SEARCH(".",D111,SEARCH(".",D111,SEARCH(".",D111)+1)+1)-1)))),"") ->  | D111: 4.3 | E111: =IF($G111="SINAPI",VLOOKUP($F111,DADOS_SINAPI,2,0),IF(G111="SETOP",VLOOKUP($F111,DADOS_SETOP,2,0),IF(G111="CPU",VLOOKUP($F111,DADOS_COMPOSICAO,2,0),IF(G111="SICRO",VLOOKUP($F111,DADOS_SICRO,2,0),IF(G111="SUDECAP",VLOOKUP(F111,DADOS_SUDECAP,2,0),IF(G111="COTAÇÃO",VLOOKUP($F111,DADOS_COTACAO,2,0),"")))))) -> TRANSPORTE COM CAMINHÃO BASCULANTE DE 10 M³, EM VIA URBANA PAVIMENTADA, DMT ATÉ 30 KM (UNIDADE: M3XKM). AF_07/2020 | F111: 95875 | G111: SINAPI | H111: =IF(G111="SINAPI",VLOOKUP($F111,DADOS_SINAPI,3,0),IF(G111="SETOP",VLOOKUP($F111,DADOS_SETOP,3,0),IF(G111="CPU",VLOOKUP($F111,DADOS_COMPOSICAO,10,0),IF(G111="SICRO",VLOOKUP($F111,DADOS_SICRO,3,0),IF(G111="SUDECAP",VLOOKUP(F111,DADOS_SUDECAP,3,0),IF(G111="COTAÇÃO",VLOOKUP($F111,DADOS_COTACAO,9,0),"")))))) -> M3XKM | I111: =F115 -> 987.21 | J111: =TRUNC(IF(G111="SINAPI",VLOOKUP($F111,DADOS_SINAPI,4,0),IF(G111="SETOP",VLOOKUP($F111,DADOS_SETOP,4,0),IF(G111="CPU",VLOOKUP($F111,DADOS_COMPOSICAO,13,0),IF(G111="SICRO",VLOOKUP($F111,DADOS_SICRO,4,0),IF(G111="SUDECAP",VLOOKUP(F111,DADOS_SUDECAP,4,0),IF(G111="COTAÇÃO",VLOOKUP(F111,DADOS_COTACAO,12,0),"")))))),2) -> 2.45 | K111: BDI 1 | L111: =TRUNC(J111*(1+$N$17),2) -> 3.09 | M111: =IFERROR(TRUNC(I111*J111,2),"") -> 2418.66 | N111: 3050.48
A112: 2000
A113: 2000 | E113: Volume de carga | F113: =F109 -> 109.69 | G113: m³
A114: 2000 | E114: DMT (bota-fora de resíduos da construção civil) | F114: 9 | G114: km
A115: 2000 | E115: Total | F115: =F113*F114 -> 987.21 | G115: m³.km
A116: 2000
A117: =IFERROR(LEFT(D117,SEARCH(".",D117)-1),"") -> 4 | B117: =IFERROR(LEFT(RIGHT(D117,LEN(D117)-SEARCH(".",D117)),SEARCH(".",RIGHT(D117,LEN(D117)-SEARCH(".",D117)))-1),"") ->  | C117: =IFERROR(IF(LEN(D117)-LEN(SUBSTITUTE(D117,".",""))<>3,"",MID(D117,SEARCH(".",D117,SEARCH(".",D117)+1)+1,LEN(D117)-SEARCH(".",D117,SEARCH(".",D117)+1)-(LEN(D117)-(SEARCH(".",D117,SEARCH(".",D117,SEARCH(".",D117)+1)+1)-1)))),"") ->  | D117: 4.4 | E117: =IF($G117="SINAPI",VLOOKUP($F117,DADOS_SINAPI,2,0),IF(G117="SETOP",VLOOKUP($F117,DADOS_SETOP,2,0),IF(G117="CPU",VLOOKUP($F117,DADOS_COMPOSICAO,2,0),IF(G117="SICRO",VLOOKUP($F117,DADOS_SICRO,2,0),IF(G117="SUDECAP",VLOOKUP(F117,DADOS_SUDECAP,2,0),IF(G117="COTAÇÃO",VLOOKUP($F117,DADOS_COTACAO,2,0),"")))))) -> ESPALHAMENTO DE MATERIAL COM TRATOR DE ESTEIRAS. AF_09/2024 | F117: 100574 | G117: SINAPI | H117: =IF(G117="SINAPI",VLOOKUP($F117,DADOS_SINAPI,3,0),IF(G117="SETOP",VLOOKUP($F117,DADOS_SETOP,3,0),IF(G117="CPU",VLOOKUP($F117,DADOS_COMPOSICAO,10,0),IF(G117="SICRO",VLOOKUP($F117,DADOS_SICRO,3,0),IF(G117="SUDECAP",VLOOKUP(F117,DADOS_SUDECAP,3,0),IF(G117="COTAÇÃO",VLOOKUP($F117,DADOS_COTACAO,9,0),"")))))) -> M3 | I117: =F120 -> 109.69 | J117: =TRUNC(IF(G117="SINAPI",VLOOKUP($F117,DADOS_SINAPI,4,0),IF(G117="SETOP",VLOOKUP($F117,DADOS_SETOP,4,0),IF(G117="CPU",VLOOKUP($F117,DADOS_COMPOSICAO,13,0),IF(G117="SICRO",VLOOKUP($F117,DADOS_SICRO,4,0),IF(G117="SUDECAP",VLOOKUP(F117,DADOS_SUDECAP,4,0),IF(G117="COTAÇÃO",VLOOKUP(F117,DADOS_COTACAO,12,0),"")))))),2) -> 1.38 | K117: BDI 1 | L117: =TRUNC(J117*(1+$N$17),2) -> 1.74 | M117: =IFERROR(TRUNC(I117*J117,2),"") -> 151.37 | N117: 190.86
A118: 2000
A119: 2000 | E119: Volume de carga | F119: =F109 -> 109.69 | G119: m³
A120: 2000 | E120: Total | F120: =F119 -> 109.69 | G120: m³
A121: 2000
A122: 1000 | D122: 5 | E122: TERRAPLANAGEM | M122: =SUMIF(A:A,D122,M:M) -> 21460.44 | N122: =SUMIF(A:A,D122,N:N) -> 27108.95
D123: 5.1 | E123: LOCAÇÕES | M123: =IFERROR(SUMIFS(M:M,A:A,LEFT(D123,SEARCH(".",D123)-1),B:B,RIGHT(D123,LEN(D123)-SEARCH(".",D123))),"") -> 960.05 | N123: =IFERROR(SUMIFS(N:N,A:A,LEFT(D123,SEARCH(".",D123)-1),B:B,RIGHT(D123,LEN(D123)-SEARCH(".",D123))),"") -> 1214.59
A124: =IFERROR(LEFT(D124,SEARCH(".",D124)-1),"") -> 5 | B124: =IFERROR(LEFT(RIGHT(D124,LEN(D124)-SEARCH(".",D124)),SEARCH(".",RIGHT(D124,LEN(D124)-SEARCH(".",D124)))-1),"") -> 1 | C124: =IFERROR(IF(LEN(D124)-LEN(SUBSTITUTE(D124,".",""))<>3,"",MID(D124,SEARCH(".",D124,SEARCH(".",D124)+1)+1,LEN(D124)-SEARCH(".",D124,SEARCH(".",D124)+1)-(LEN(D124)-(SEARCH(".",D124,SEARCH(".",D124,SEARCH(".",D124)+1)+1)-1)))),"") ->  | D124: 5.1.1 | E124: =IF($G124="SINAPI",VLOOKUP($F124,DADOS_SINAPI,2,0),IF(G124="SETOP",VLOOKUP($F124,DADOS_SETOP,2,0),IF(G124="CPU",VLOOKUP($F124,DADOS_COMPOSICAO,2,0),IF(G124="SICRO",VLOOKUP($F124,DADOS_SICRO,2,0),IF(G124="SUDECAP",VLOOKUP(F124,DADOS_SUDECAP,2,0),IF(G124="COTAÇÃO",VLOOKUP($F124,DADOS_COTACAO,2,0),"")))))) -> LOCAÇÃO TOPOGRÁFICA PARA ATÉ VINTE (20) PONTOS REFERENCIAIS, INCLUSIVE ESTACA (PIQUETE) DE MARCAÇÃO | F124: ED-50274 | G124: SETOP | H124: =IF(G124="SINAPI",VLOOKUP($F124,DADOS_SINAPI,3,0),IF(G124="SETOP",VLOOKUP($F124,DADOS_SETOP,3,0),IF(G124="CPU",VLOOKUP($F124,DADOS_COMPOSICAO,10,0),IF(G124="SICRO",VLOOKUP($F124,DADOS_SICRO,3,0),IF(G124="SUDECAP",VLOOKUP(F124,DADOS_SUDECAP,3,0),IF(G124="COTAÇÃO",VLOOKUP($F124,DADOS_COTACAO,9,0),"")))))) -> un | I124: =F126 -> 13 | J124: =TRUNC(IF(G124="SINAPI",VLOOKUP($F124,DADOS_SINAPI,4,0),IF(G124="SETOP",VLOOKUP($F124,DADOS_SETOP,4,0),IF(G124="CPU",VLOOKUP($F124,DADOS_COMPOSICAO,13,0),IF(G124="SICRO",VLOOKUP($F124,DADOS_SICRO,4,0),IF(G124="SUDECAP",VLOOKUP(F124,DADOS_SUDECAP,4,0),IF(G124="COTAÇÃO",VLOOKUP(F124,DADOS_COTACAO,12,0),"")))))),2) -> 73.85 | K124: BDI 1 | L124: =TRUNC(J124*(1+$N$17),2) -> 93.43 | M124: =IFERROR(TRUNC(I124*J124,2),"") -> 960.05 | N124: =L124*I124 -> 1214.59
A125: 2000
A126: 2000 | E126: Total | F126: 13 | G126: un
A127: 2000
D128: 5.2 | E128: EXECUÇÃO DE CORTE E ATERRO | M128: =IFERROR(SUMIFS(M:M,A:A,LEFT(D128,SEARCH(".",D128)-1),B:B,RIGHT(D128,LEN(D128)-SEARCH(".",D128))),"") -> 7933.74 | N128: =IFERROR(SUMIFS(N:N,A:A,LEFT(D128,SEARCH(".",D128)-1),B:B,RIGHT(D128,LEN(D128)-SEARCH(".",D128))),"") -> 10032.91
A129: =IFERROR(LEFT(D129,SEARCH(".",D129)-1),"") -> 5 | B129: =IFERROR(LEFT(RIGHT(D129,LEN(D129)-SEARCH(".",D129)),SEARCH(".",RIGHT(D129,LEN(D129)-SEARCH(".",D129)))-1),"") -> 2 | C129: =IFERROR(IF(LEN(D129)-LEN(SUBSTITUTE(D129,".",""))<>3,"",MID(D129,SEARCH(".",D129,SEARCH(".",D129)+1)+1,LEN(D129)-SEARCH(".",D129,SEARCH(".",D129)+1)-(LEN(D129)-(SEARCH(".",D129,SEARCH(".",D129,SEARCH(".",D129)+1)+1)-1)))),"") ->  | D129: 5.2.1 | E129: =IF($G129="SINAPI",VLOOKUP($F129,DADOS_SINAPI,2,0),IF(G129="SETOP",VLOOKUP($F129,DADOS_SETOP,2,0),IF(G129="CPU",VLOOKUP($F129,DADOS_COMPOSICAO,2,0),IF(G129="SICRO",VLOOKUP($F129,DADOS_SICRO,2,0),IF(G129="SUDECAP",VLOOKUP(F129,DADOS_SUDECAP,2,0),IF(G129="COTAÇÃO",VLOOKUP($F129,DADOS_COTACAO,2,0),"")))))) -> ESCAVAÇÃO VERTICAL PARA INFRAESTRUTURA, COM CARGA, DESCARGA E TRANSPORTE DE SOLO DE 1ª CATEGORIA, COM ESCAVADEIRA HIDRÁULICA (CAÇAMBA: 0,8 M³ / 111HP), FROTA DE 3 CAMINHÕES BASCULANTES DE 10 M³, DMT ATÉ 1 KM E VELOCIDADE MÉDIA14 KM/H. AF_05/2020 | F129: 101266 | G129: SINAPI | H129: =IF(G129="SINAPI",VLOOKUP($F129,DADOS_SINAPI,3,0),IF(G129="SETOP",VLOOKUP($F129,DADOS_SETOP,3,0),IF(G129="CPU",VLOOKUP($F129,DADOS_COMPOSICAO,10,0),IF(G129="SICRO",VLOOKUP($F129,DADOS_SICRO,3,0),IF(G129="SUDECAP",VLOOKUP(F129,DADOS_SUDECAP,3,0),IF(G129="COTAÇÃO",VLOOKUP($F129,DADOS_COTACAO,9,0),"")))))) -> M3 | I129: =F132 -> 570.05 | J129: =TRUNC(IF(G129="SINAPI",VLOOKUP($F129,DADOS_SINAPI,4,0),IF(G129="SETOP",VLOOKUP($F129,DADOS_SETOP,4,0),IF(G129="CPU",VLOOKUP($F129,DADOS_COMPOSICAO,13,0),IF(G129="SICRO",VLOOKUP($F129,DADOS_SICRO,4,0),IF(G129="SUDECAP",VLOOKUP(F129,DADOS_SUDECAP,4,0),IF(G129="COTAÇÃO",VLOOKUP(F129,DADOS_COTACAO,12,0),"")))))),2) -> 11.23 | K129: BDI 1 | L129: =TRUNC(J129*(1+$N$17),2) -> 14.2 | M129: =IFERROR(TRUNC(I129*J129,2),"") -> 6401.66 | N129: =L129*I129 -> 8094.71
A130: 2000
A131: 2000 | E131: Volume de corte | F131: 570.05 | G131: m³
A132: 2000 | E132: Total | F132: =F131 -> 570.05 | G132: m³
A133: 2000
A134: =IFERROR(LEFT(D134,SEARCH(".",D134)-1),"") -> 5 | B134: =IFERROR(LEFT(RIGHT(D134,LEN(D134)-SEARCH(".",D134)),SEARCH(".",RIGHT(D134,LEN(D134)-SEARCH(".",D134)))-1),"") -> 2 | C134: =IFERROR(IF(LEN(D134)-LEN(SUBSTITUTE(D134,".",""))<>3,"",MID(D134,SEARCH(".",D134,SEARCH(".",D134)+1)+1,LEN(D134)-SEARCH(".",D134,SEARCH(".",D134)+1)-(LEN(D134)-(SEARCH(".",D134,SEARCH(".",D134,SEARCH(".",D134)+1)+1)-1)))),"") ->  | D134: 5.2.2 | E134: =IF($G134="SINAPI",VLOOKUP($F134,DADOS_SINAPI,2,0),IF(G134="SETOP",VLOOKUP($F134,DADOS_SETOP,2,0),IF(G134="CPU",VLOOKUP($F134,DADOS_COMPOSICAO,2,0),IF(G134="SICRO",VLOOKUP($F134,DADOS_SICRO,2,0),IF(G134="SUDECAP",VLOOKUP(F134,DADOS_SUDECAP,2,0),IF(G134="COTAÇÃO",VLOOKUP($F134,DADOS_COTACAO,2,0),"")))))) -> EXECUÇÃO E COMPACTAÇÃO DE CORPO DE ATERRO DE ATERRO (95% DE ENERGIA DO PROCTOR NORMAL) COM SOLO PREDOMINANTEMENTE ARGILOSO ESPESSURA 15 CM - EXCLUSIVE MATERIAL, ESCAVAÇÃO, CARGA E TRANSPORTE. AF_09/2024 | F134: 96385 | G134: SINAPI | H134: =IF(G134="SINAPI",VLOOKUP($F134,DADOS_SINAPI,3,0),IF(G134="SETOP",VLOOKUP($F134,DADOS_SETOP,3,0),IF(G134="CPU",VLOOKUP($F134,DADOS_COMPOSICAO,10,0),IF(G134="SICRO",VLOOKUP($F134,DADOS_SICRO,3,0),IF(G134="SUDECAP",VLOOKUP(F134,DADOS_SUDECAP,3,0),IF(G134="COTAÇÃO",VLOOKUP($F134,DADOS_COTACAO,9,0),"")))))) -> M3 | I134: =F137 -> 25.24 | J134: =TRUNC(IF(G134="SINAPI",VLOOKUP($F134,DADOS_SINAPI,4,0),IF(G134="SETOP",VLOOKUP($F134,DADOS_SETOP,4,0),IF(G134="CPU",VLOOKUP($F134,DADOS_COMPOSICAO,13,0),IF(G134="SICRO",VLOOKUP($F134,DADOS_SICRO,4,0),IF(G134="SUDECAP",VLOOKUP(F134,DADOS_SUDECAP,4,0),IF(G134="COTAÇÃO",VLOOKUP(F134,DADOS_COTACAO,12,0),"")))))),2) -> 11.67 | K134: BDI 1 | L134: =TRUNC(J134*(1+$N$17),2) -> 14.76 | M134: =IFERROR(TRUNC(I134*J134,2),"") -> 294.55 | N134: 372.54
A135: 2000
A136: 2000 | E136: Volume de aterro | F136: 25.24 | G136: m³
A137: 2000 | E137: Total | F137: =F136 -> 25.24 | G137: m³
A138: 2000
A139: =IFERROR(LEFT(D139,SEARCH(".",D139)-1),"") -> 5 | B139: =IFERROR(LEFT(RIGHT(D139,LEN(D139)-SEARCH(".",D139)),SEARCH(".",RIGHT(D139,LEN(D139)-SEARCH(".",D139)))-1),"") -> 2 | C139: =IFERROR(IF(LEN(D139)-LEN(SUBSTITUTE(D139,".",""))<>3,"",MID(D139,SEARCH(".",D139,SEARCH(".",D139)+1)+1,LEN(D139)-SEARCH(".",D139,SEARCH(".",D139)+1)-(LEN(D139)-(SEARCH(".",D139,SEARCH(".",D139,SEARCH(".",D139)+1)+1)-1)))),"") ->  | D139: 5.2.3 | E139: =IF($G139="SINAPI",VLOOKUP($F139,DADOS_SINAPI,2,0),IF(G139="SETOP",VLOOKUP($F139,DADOS_SETOP,2,0),IF(G139="CPU",VLOOKUP($F139,DADOS_COMPOSICAO,2,0),IF(G139="SICRO",VLOOKUP($F139,DADOS_SICRO,2,0),IF(G139="SUDECAP",VLOOKUP(F139,DADOS_SUDECAP,2,0),IF(G139="COTAÇÃO",VLOOKUP($F139,DADOS_COTACAO,2,0),"")))))) -> REATERRO MANUAL DE VALAS, COM COMPACTADOR DE SOLOS DE PERCUSSÃO. AF_08/2023 | F139: 93382 | G139: SINAPI | H139: =IF(G139="SINAPI",VLOOKUP($F139,DADOS_SINAPI,3,0),IF(G139="SETOP",VLOOKUP($F139,DADOS_SETOP,3,0),IF(G139="CPU",VLOOKUP($F139,DADOS_COMPOSICAO,10,0),IF(G139="SICRO",VLOOKUP($F139,DADOS_SICRO,3,0),IF(G139="SUDECAP",VLOOKUP(F139,DADOS_SUDECAP,3,0),IF(G139="COTAÇÃO",VLOOKUP($F139,DADOS_COTACAO,9,0),"")))))) -> M3 | I139: =F142 -> 51.35 | J139: =TRUNC(IF(G139="SINAPI",VLOOKUP($F139,DADOS_SINAPI,4,0),IF(G139="SETOP",VLOOKUP($F139,DADOS_SETOP,4,0),IF(G139="CPU",VLOOKUP($F139,DADOS_COMPOSICAO,13,0),IF(G139="SICRO",VLOOKUP($F139,DADOS_SICRO,4,0),IF(G139="SUDECAP",VLOOKUP(F139,DADOS_SUDECAP,4,0),IF(G139="COTAÇÃO",VLOOKUP(F139,DADOS_COTACAO,12,0),"")))))),2) -> 24.1 | K139: BDI 1 | L139: =TRUNC(J139*(1+$N$17),2) -> 30.49 | M139: =IFERROR(TRUNC(I139*J139,2),"") -> 1237.53 | N139: 1565.66
A140: 2000
A141: 2000 | E141: Volume de reaterro | F141: 51.35 | G141: m³
A142: 2000 | E142: Total | F142: =F141 -> 51.35 | G142: m³
A143: 2000
D144: 5.3 | E144: BOTA FORA DE SOLO | M144: =IFERROR(SUMIFS(M:M,A:A,LEFT(D144,SEARCH(".",D144)-1),B:B,RIGHT(D144,LEN(D144)-SEARCH(".",D144))),"") -> 12566.65 | N144: =IFERROR(SUMIFS(N:N,A:A,LEFT(D144,SEARCH(".",D144)-1),B:B,RIGHT(D144,LEN(D144)-SEARCH(".",D144))),"") -> 15861.45
A145: =IFERROR(LEFT(D145,SEARCH(".",D145)-1),"") -> 5 | B145: =IFERROR(LEFT(RIGHT(D145,LEN(D145)-SEARCH(".",D145)),SEARCH(".",RIGHT(D145,LEN(D145)-SEARCH(".",D145)))-1),"") -> 3 | C145: =IFERROR(IF(LEN(D145)-LEN(SUBSTITUTE(D145,".",""))<>3,"",MID(D145,SEARCH(".",D145,SEARCH(".",D145)+1)+1,LEN(D145)-SEARCH(".",D145,SEARCH(".",D145)+1)-(LEN(D145)-(SEARCH(".",D145,SEARCH(".",D145,SEARCH(".",D145)+1)+1)-1)))),"") ->  | D145: 5.3.1 | E145: =IF($G145="SINAPI",VLOOKUP($F145,DADOS_SINAPI,2,0),IF(G145="SETOP",VLOOKUP($F145,DADOS_SETOP,2,0),IF(G145="CPU",VLOOKUP($F145,DADOS_COMPOSICAO,2,0),IF(G145="SICRO",VLOOKUP($F145,DADOS_SICRO,2,0),IF(G145="SUDECAP",VLOOKUP(F145,DADOS_SUDECAP,2,0),IF(G145="COTAÇÃO",VLOOKUP($F145,DADOS_COTACAO,2,0),"")))))) -> CARGA, MANOBRA E DESCARGA DE SOLOS E MATERIAIS GRANULARES EM CAMINHÃO BASCULANTE 10 M³ - CARGA COM ESCAVADEIRA HIDRÁULICA (CAÇAMBA DE 1,20 M³ / 155 HP) E DESCARGA LIVRE (UNIDADE: M3). AF_07/2020 | F145: 100978 | G145: SINAPI | H145: =IF(G145="SINAPI",VLOOKUP($F145,DADOS_SINAPI,3,0),IF(G145="SETOP",VLOOKUP($F145,DADOS_SETOP,3,0),IF(G145="CPU",VLOOKUP($F145,DADOS_COMPOSICAO,10,0),IF(G145="SICRO",VLOOKUP($F145,DADOS_SICRO,3,0),IF(G145="SUDECAP",VLOOKUP(F145,DADOS_SUDECAP,3,0),IF(G145="COTAÇÃO",VLOOKUP($F145,DADOS_COTACAO,9,0),"")))))) -> M3 | I145: =F153 -> 704.6072222 | J145: =TRUNC(IF(G145="SINAPI",VLOOKUP($F145,DADOS_SINAPI,4,0),IF(G145="SETOP",VLOOKUP($F145,DADOS_SETOP,4,0),IF(G145="CPU",VLOOKUP($F145,DADOS_COMPOSICAO,13,0),IF(G145="SICRO",VLOOKUP($F145,DADOS_SICRO,4,0),IF(G145="SUDECAP",VLOOKUP(F145,DADOS_SUDECAP,4,0),IF(G145="COTAÇÃO",VLOOKUP(F145,DADOS_COTACAO,12,0),"")))))),2) -> 6.9 | K145: BDI 1 | L145: =TRUNC(J145*(1+$N$17),2) -> 8.72 | M145: =IFERROR(TRUNC(I145*J145,2),"") -> 4861.78 | N145: 6144.2
A146: 2000
A147: 2000 | E147: Volume de aterro | F147: =F137 -> 25.24 | G147: m³
A148: 2000 | E148: Coeficiente de contração | F148: 0.9 | G148: -
A149: 2000 | E149: Subtotal (volume de aterro) | F149: =F147/F148 -> 28.04444444 | G149: m³
A150: 2000 | E150: Volume de corte | F150: =F132 -> 570.05 | G150: m³
A151: 2000 | E151: Subtotal (volume de bota fora) | F151: =F150-F149 -> 542.0055556 | G151: m³
A152: 2000 | E152: Empolamento | F152: 1.3 | G152: -
A153: 2000 | E153: Total | F153: =F151*F152 -> 704.6072222 | G153: m³
A154: 2000
A155: =IFERROR(LEFT(D155,SEARCH(".",D155)-1),"") -> 5 | B155: =IFERROR(LEFT(RIGHT(D155,LEN(D155)-SEARCH(".",D155)),SEARCH(".",RIGHT(D155,LEN(D155)-SEARCH(".",D155)))-1),"") -> 3 | C155: =IFERROR(IF(LEN(D155)-LEN(SUBSTITUTE(D155,".",""))<>3,"",MID(D155,SEARCH(".",D155,SEARCH(".",D155)+1)+1,LEN(D155)-SEARCH(".",D155,SEARCH(".",D155)+1)-(LEN(D155)-(SEARCH(".",D155,SEARCH(".",D155,SEARCH(".",D155)+1)+1)-1)))),"") ->  | D155: 5.3.2 | E155: =IF($G155="SINAPI",VLOOKUP($F155,DADOS_SINAPI,2,0),IF(G155="SETOP",VLOOKUP($F155,DADOS_SETOP,2,0),IF(G155="CPU",VLOOKUP($F155,DADOS_COMPOSICAO,2,0),IF(G155="SICRO",VLOOKUP($F155,DADOS_SICRO,2,0),IF(G155="SUDECAP",VLOOKUP(F155,DADOS_SUDECAP,2,0),IF(G155="COTAÇÃO",VLOOKUP($F155,DADOS_COTACAO,2,0),"")))))) -> TRANSPORTE COM CAMINHÃO BASCULANTE DE 10 M³, EM VIA URBANA PAVIMENTADA, DMT ATÉ 30 KM (UNIDADE: M3XKM). AF_07/2020 | F155: 95875 | G155: SINAPI | H155: =IF(G155="SINAPI",VLOOKUP($F155,DADOS_SINAPI,3,0),IF(G155="SETOP",VLOOKUP($F155,DADOS_SETOP,3,0),IF(G155="CPU",VLOOKUP($F155,DADOS_COMPOSICAO,10,0),IF(G155="SICRO",VLOOKUP($F155,DADOS_SICRO,3,0),IF(G155="SUDECAP",VLOOKUP(F155,DADOS_SUDECAP,3,0),IF(G155="COTAÇÃO",VLOOKUP($F155,DADOS_COTACAO,9,0),"")))))) -> M3XKM | I155: =F159 -> 2747.968167 | J155: =TRUNC(IF(G155="SINAPI",VLOOKUP($F155,DADOS_SINAPI,4,0),IF(G155="SETOP",VLOOKUP($F155,DADOS_SETOP,4,0),IF(G155="CPU",VLOOKUP($F155,DADOS_COMPOSICAO,13,0),IF(G155="SICRO",VLOOKUP($F155,DADOS_SICRO,4,0),IF(G155="SUDECAP",VLOOKUP(F155,DADOS_SUDECAP,4,0),IF(G155="COTAÇÃO",VLOOKUP(F155,DADOS_COTACAO,12,0),"")))))),2) -> 2.45 | K155: BDI 1 | L155: =TRUNC(J155*(1+$N$17),2) -> 3.09 | M155: =IFERROR(TRUNC(I155*J155,2),"") -> 6732.52 | N155: 8491.23
A156: 2000
A157: 2000 | E157: Volume de carga | F157: =F153 -> 704.6072222 | G157: m³
A158: 2000 | E158: DMT (bota fora de solos) | F158: 3.9 | G158: km
A159: 2000 | E159: Total | F159: =F157*F158 -> 2747.968167 | G159: m³.km
A160: 2000
A161: =IFERROR(LEFT(D161,SEARCH(".",D161)-1),"") -> 5 | B161: =IFERROR(LEFT(RIGHT(D161,LEN(D161)-SEARCH(".",D161)),SEARCH(".",RIGHT(D161,LEN(D161)-SEARCH(".",D161)))-1),"") -> 3 | C161: =IFERROR(IF(LEN(D161)-LEN(SUBSTITUTE(D161,".",""))<>3,"",MID(D161,SEARCH(".",D161,SEARCH(".",D161)+1)+1,LEN(D161)-SEARCH(".",D161,SEARCH(".",D161)+1)-(LEN(D161)-(SEARCH(".",D161,SEARCH(".",D161,SEARCH(".",D161)+1)+1)-1)))),"") ->  | D161: 5.3.3 | E161: =IF($G161="SINAPI",VLOOKUP($F161,DADOS_SINAPI,2,0),IF(G161="SETOP",VLOOKUP($F161,DADOS_SETOP,2,0),IF(G161="CPU",VLOOKUP($F161,DADOS_COMPOSICAO,2,0),IF(G161="SICRO",VLOOKUP($F161,DADOS_SICRO,2,0),IF(G161="SUDECAP",VLOOKUP(F161,DADOS_SUDECAP,2,0),IF(G161="COTAÇÃO",VLOOKUP($F161,DADOS_COTACAO,2,0),"")))))) -> ESPALHAMENTO DE MATERIAL COM TRATOR DE ESTEIRAS. AF_09/2024 | F161: 100574 | G161: SINAPI | H161: =IF(G161="SINAPI",VLOOKUP($F161,DADOS_SINAPI,3,0),IF(G161="SETOP",VLOOKUP($F161,DADOS_SETOP,3,0),IF(G161="CPU",VLOOKUP($F161,DADOS_COMPOSICAO,10,0),IF(G161="SICRO",VLOOKUP($F161,DADOS_SICRO,3,0),IF(G161="SUDECAP",VLOOKUP(F161,DADOS_SUDECAP,3,0),IF(G161="COTAÇÃO",VLOOKUP($F161,DADOS_COTACAO,9,0),"")))))) -> M3 | I161: =F164 -> 704.6072222 | J161: =TRUNC(IF(G161="SINAPI",VLOOKUP($F161,DADOS_SINAPI,4,0),IF(G161="SETOP",VLOOKUP($F161,DADOS_SETOP,4,0),IF(G161="CPU",VLOOKUP($F161,DADOS_COMPOSICAO,13,0),IF(G161="SICRO",VLOOKUP($F161,DADOS_SICRO,4,0),IF(G161="SUDECAP",VLOOKUP(F161,DADOS_SUDECAP,4,0),IF(G161="COTAÇÃO",VLOOKUP(F161,DADOS_COTACAO,12,0),"")))))),2) -> 1.38 | K161: BDI 1 | L161: =TRUNC(J161*(1+$N$17),2) -> 1.74 | M161: =IFERROR(TRUNC(I161*J161,2),"") -> 972.35 | N161: 1226.02
A162: 2000
A163: 2000 | E163: Volume de carga | F163: =F153 -> 704.6072222 | G163: m³
A164: 2000 | E164: Total | F164: =F163 -> 704.6072222 | G164: m³
A165: 2000
A166: 1000 | D166: 6 | E166: ESTRUTURA | M166: =SUMIF(A:A,D166,M:M) -> 859567.61 | N166: =SUMIF(A:A,D166,N:N) -> 1087445.09
D167: 6.1 | E167: MOVIMENTAÇÃO DE TERRA | M167: =IFERROR(SUMIFS(M:M,A:A,LEFT(D167,SEARCH(".",D167)-1),B:B,RIGHT(D167,LEN(D167)-SEARCH(".",D167))),"") -> 10686.15 | N167: =IFERROR(SUMIFS(N:N,A:A,LEFT(D167,SEARCH(".",D167)-1),B:B,RIGHT(D167,LEN(D167)-SEARCH(".",D167))),"") -> 13515.04
A168: =IFERROR(LEFT(D168,SEARCH(".",D168)-1),"") -> 6 | B168: =IFERROR(LEFT(RIGHT(D168,LEN(D168)-SEARCH(".",D168)),SEARCH(".",RIGHT(D168,LEN(D168)-SEARCH(".",D168)))-1),"") -> 1 | C168: =IFERROR(IF(LEN(D168)-LEN(SUBSTITUTE(D168,".",""))<>3,"",MID(D168,SEARCH(".",D168,SEARCH(".",D168)+1)+1,LEN(D168)-SEARCH(".",D168,SEARCH(".",D168)+1)-(LEN(D168)-(SEARCH(".",D168,SEARCH(".",D168,SEARCH(".",D168)+1)+1)-1)))),"") ->  | D168: 6.1.1 | E168: =IF($G168="SINAPI",VLOOKUP($F168,DADOS_SINAPI,2,0),IF(G168="SETOP",VLOOKUP($F168,DADOS_SETOP,2,0),IF(G168="CPU",VLOOKUP($F168,DADOS_COMPOSICAO,2,0),IF(G168="SICRO",VLOOKUP($F168,DADOS_SICRO,2,0),IF(G168="SUDECAP",VLOOKUP(F168,DADOS_SUDECAP,2,0),IF(G168="COTAÇÃO",VLOOKUP($F168,DADOS_COTACAO,2,0),"")))))) -> ESCAVAÇÃO MECANIZADA PARA BLOCO DE COROAMENTO OU SAPATA COM RETROESCAVADEIRA (INCLUINDO ESCAVAÇÃO PARA COLOCAÇÃO DE FÔRMAS). AF_01/2024 | F168: 96521 | G168: SINAPI | H168: =IF(G168="SINAPI",VLOOKUP($F168,DADOS_SINAPI,3,0),IF(G168="SETOP",VLOOKUP($F168,DADOS_SETOP,3,0),IF(G168="CPU",VLOOKUP($F168,DADOS_COMPOSICAO,10,0),IF(G168="SICRO",VLOOKUP($F168,DADOS_SICRO,3,0),IF(G168="SUDECAP",VLOOKUP(F168,DADOS_SUDECAP,3,0),IF(G168="COTAÇÃO",VLOOKUP($F168,DADOS_COTACAO,9,0),"")))))) -> M3 | I168: =ROUND(F172,2) -> 62.7 | J168: =TRUNC(IF(G168="SINAPI",VLOOKUP($F168,DADOS_SINAPI,4,0),IF(G168="SETOP",VLOOKUP($F168,DADOS_SETOP,4,0),IF(G168="CPU",VLOOKUP($F168,DADOS_COMPOSICAO,13,0),IF(G168="SICRO",VLOOKUP($F168,DADOS_SICRO,4,0),IF(G168="SUDECAP",VLOOKUP(F168,DADOS_SUDECAP,4,0),IF(G168="COTAÇÃO",VLOOKUP(F168,DADOS_COTACAO,12,0),"")))))),2) -> 41.55 | K168: BDI 1 | L168: =TRUNC(J168*(1+$N$17),2) -> 52.56 | M168: =IFERROR(TRUNC(I168*J168,2),"") -> 2605.18 | N168: 3295.51
A169: 2000
A170: 2000 | E170: Área de escavação | F170: =57 -> 57 | G170: m²
A171: 2000 | E171: Prof. Média | F171: 1.1 | G171: m
A172: 2000 | E172: Total | F172: =F171*F170 -> 62.7 | G172: m³
A173: 2000
A174: =IFERROR(LEFT(D174,SEARCH(".",D174)-1),"") -> 6 | B174: =IFERROR(LEFT(RIGHT(D174,LEN(D174)-SEARCH(".",D174)),SEARCH(".",RIGHT(D174,LEN(D174)-SEARCH(".",D174)))-1),"") -> 1 | C174: =IFERROR(IF(LEN(D174)-LEN(SUBSTITUTE(D174,".",""))<>3,"",MID(D174,SEARCH(".",D174,SEARCH(".",D174)+1)+1,LEN(D174)-SEARCH(".",D174,SEARCH(".",D174)+1)-(LEN(D174)-(SEARCH(".",D174,SEARCH(".",D174,SEARCH(".",D174)+1)+1)-1)))),"") ->  | D174: 6.1.2 | E174: =IF($G174="SINAPI",VLOOKUP($F174,DADOS_SINAPI,2,0),IF(G174="SETOP",VLOOKUP($F174,DADOS_SETOP,2,0),IF(G174="CPU",VLOOKUP($F174,DADOS_COMPOSICAO,2,0),IF(G174="SICRO",VLOOKUP($F174,DADOS_SICRO,2,0),IF(G174="SUDECAP",VLOOKUP(F174,DADOS_SUDECAP,2,0),IF(G174="COTAÇÃO",VLOOKUP($F174,DADOS_COTACAO,2,0),"")))))) -> ESCAVAÇÃO MECANIZADA PARA VIGA BALDRAME OU SAPATA CORRIDA COM MINI-ESCAVADEIRA (INCLUINDO ESCAVAÇÃO PARA COLOCAÇÃO DE FÔRMAS). AF_01/2024 | F174: 96525 | G174: SINAPI | H174: =IF(G174="SINAPI",VLOOKUP($F174,DADOS_SINAPI,3,0),IF(G174="SETOP",VLOOKUP($F174,DADOS_SETOP,3,0),IF(G174="CPU",VLOOKUP($F174,DADOS_COMPOSICAO,10,0),IF(G174="SICRO",VLOOKUP($F174,DADOS_SICRO,3,0),IF(G174="SUDECAP",VLOOKUP(F174,DADOS_SUDECAP,3,0),IF(G174="COTAÇÃO",VLOOKUP($F174,DADOS_COTACAO,9,0),"")))))) -> M3 | I174: =ROUND(F179,2) -> 53.17 | J174: =TRUNC(IF(G174="SINAPI",VLOOKUP($F174,DADOS_SINAPI,4,0),IF(G174="SETOP",VLOOKUP($F174,DADOS_SETOP,4,0),IF(G174="CPU",VLOOKUP($F174,DADOS_COMPOSICAO,13,0),IF(G174="SICRO",VLOOKUP($F174,DADOS_SICRO,4,0),IF(G174="SUDECAP",VLOOKUP(F174,DADOS_SUDECAP,4,0),IF(G174="COTAÇÃO",VLOOKUP(F174,DADOS_COTACAO,12,0),"")))))),2) -> 53.13 | K174: BDI 1 | L174: =TRUNC(J174*(1+$N$17),2) -> 67.22 | M174: =IFERROR(TRUNC(I174*J174,2),"") -> 2824.92 | N174: 3574.09
A175: 2000
A176: 2000 | E176: Comprimento total | F176: 272.68 | G176: m
A177: 2000 | E177: Largura de escavação | F177: =0.19+0.2 -> 0.39 | G177: m
A178: 2000 | E178: Profundidade | F178: 0.5 | G178: m
A179: 2000 | E179: Total | F179: =F176*F177*F178 -> 53.1726 | G179: m³
A180: 2000
A181: =IFERROR(LEFT(D181,SEARCH(".",D181)-1),"") -> 6 | B181: =IFERROR(LEFT(RIGHT(D181,LEN(D181)-SEARCH(".",D181)),SEARCH(".",RIGHT(D181,LEN(D181)-SEARCH(".",D181)))-1),"") -> 1 | C181: =IFERROR(IF(LEN(D181)-LEN(SUBSTITUTE(D181,".",""))<>3,"",MID(D181,SEARCH(".",D181,SEARCH(".",D181)+1)+1,LEN(D181)-SEARCH(".",D181,SEARCH(".",D181)+1)-(LEN(D181)-(SEARCH(".",D181,SEARCH(".",D181,SEARCH(".",D181)+1)+1)-1)))),"") ->  | D181: 6.1.3 | E181: =IF($G181="SINAPI",VLOOKUP($F181,DADOS_SINAPI,2,0),IF(G181="SETOP",VLOOKUP($F181,DADOS_SETOP,2,0),IF(G181="CPU",VLOOKUP($F181,DADOS_COMPOSICAO,2,0),IF(G181="SICRO",VLOOKUP($F181,DADOS_SICRO,2,0),IF(G181="SUDECAP",VLOOKUP(F181,DADOS_SUDECAP,2,0),IF(G181="COTAÇÃO",VLOOKUP($F181,DADOS_COTACAO,2,0),"")))))) -> LASTRO DE CONCRETO MAGRO, APLICADO EM BLOCOS DE COROAMENTO OU SAPATAS. AF_01/2024 | F181: 96616 | G181: SINAPI | H181: =IF(G181="SINAPI",VLOOKUP($F181,DADOS_SINAPI,3,0),IF(G181="SETOP",VLOOKUP($F181,DADOS_SETOP,3,0),IF(G181="CPU",VLOOKUP($F181,DADOS_COMPOSICAO,10,0),IF(G181="SICRO",VLOOKUP($F181,DADOS_SICRO,3,0),IF(G181="SUDECAP",VLOOKUP(F181,DADOS_SUDECAP,3,0),IF(G181="COTAÇÃO",VLOOKUP($F181,DADOS_COTACAO,9,0),"")))))) -> M3 | I181: =ROUND(F183,2) -> 2.85 | J181: =TRUNC(IF(G181="SINAPI",VLOOKUP($F181,DADOS_SINAPI,4,0),IF(G181="SETOP",VLOOKUP($F181,DADOS_SETOP,4,0),IF(G181="CPU",VLOOKUP($F181,DADOS_COMPOSICAO,13,0),IF(G181="SICRO",VLOOKUP($F181,DADOS_SICRO,4,0),IF(G181="SUDECAP",VLOOKUP(F181,DADOS_SUDECAP,4,0),IF(G181="COTAÇÃO",VLOOKUP(F181,DADOS_COTACAO,12,0),"")))))),2) -> 797.68 | K181: BDI 1 | L181: =TRUNC(J181*(1+$N$17),2) -> 1009.22 | M181: =IFERROR(TRUNC(I181*J181,2),"") -> 2273.38 | N181: 2876.28
A182: 2000
A183: 2000 | E183: Total | F183: =F170*0.05 -> 2.85 | G183: m³
A184: 2000
A185: =IFERROR(LEFT(D185,SEARCH(".",D185)-1),"") -> 6 | B185: =IFERROR(LEFT(RIGHT(D185,LEN(D185)-SEARCH(".",D185)),SEARCH(".",RIGHT(D185,LEN(D185)-SEARCH(".",D185)))-1),"") -> 1 | C185: =IFERROR(IF(LEN(D185)-LEN(SUBSTITUTE(D185,".",""))<>3,"",MID(D185,SEARCH(".",D185,SEARCH(".",D185)+1)+1,LEN(D185)-SEARCH(".",D185,SEARCH(".",D185)+1)-(LEN(D185)-(SEARCH(".",D185,SEARCH(".",D185,SEARCH(".",D185)+1)+1)-1)))),"") ->  | D185: 6.1.4 | E185: =IF($G185="SINAPI",VLOOKUP($F185,DADOS_SINAPI,2,0),IF(G185="SETOP",VLOOKUP($F185,DADOS_SETOP,2,0),IF(G185="CPU",VLOOKUP($F185,DADOS_COMPOSICAO,2,0),IF(G185="SICRO",VLOOKUP($F185,DADOS_SICRO,2,0),IF(G185="SUDECAP",VLOOKUP(F185,DADOS_SUDECAP,2,0),IF(G185="COTAÇÃO",VLOOKUP($F185,DADOS_COTACAO,2,0),"")))))) -> REATERRO MANUAL DE VALAS, COM PLACA VIBRATÓRIA. AF_08/2023 | F185: 104737 | G185: SINAPI | H185: =IF(G185="SINAPI",VLOOKUP($F185,DADOS_SINAPI,3,0),IF(G185="SETOP",VLOOKUP($F185,DADOS_SETOP,3,0),IF(G185="CPU",VLOOKUP($F185,DADOS_COMPOSICAO,10,0),IF(G185="SICRO",VLOOKUP($F185,DADOS_SICRO,3,0),IF(G185="SUDECAP",VLOOKUP(F185,DADOS_SUDECAP,3,0),IF(G185="COTAÇÃO",VLOOKUP($F185,DADOS_COTACAO,9,0),"")))))) -> M3 | I185: =ROUND(F190,2) -> 94.79 | J185: =TRUNC(IF(G185="SINAPI",VLOOKUP($F185,DADOS_SINAPI,4,0),IF(G185="SETOP",VLOOKUP($F185,DADOS_SETOP,4,0),IF(G185="CPU",VLOOKUP($F185,DADOS_COMPOSICAO,13,0),IF(G185="SICRO",VLOOKUP($F185,DADOS_SICRO,4,0),IF(G185="SUDECAP",VLOOKUP(F185,DADOS_SUDECAP,4,0),IF(G185="COTAÇÃO",VLOOKUP(F185,DADOS_COTACAO,12,0),"")))))),2) -> 19.15 | K185: BDI 1 | L185: =TRUNC(J185*(1+$N$17),2) -> 24.22 | M185: =IFERROR(TRUNC(I185*J185,2),"") -> 1815.22 | N185: 2295.81
A186: 2000
A187: 2000 | E187: Volume escavado | F187: =F172+F179 -> 115.8726 | G187: m³
A188: 2000 | E188: Volume de concreto | F188: =F278+F315 -> 42.96 | G188: m³
A189: 2000 | E189: Empolamento | F189: 30 | G189: %
A190: 2000 | E190: Total | F190: =(F187-F188)*1.3 -> 94.78638 | G190: m³
A191: 2000
A192: =IFERROR(LEFT(D192,SEARCH(".",D192)-1),"") -> 6 | B192: =IFERROR(LEFT(RIGHT(D192,LEN(D192)-SEARCH(".",D192)),SEARCH(".",RIGHT(D192,LEN(D192)-SEARCH(".",D192)))-1),"") -> 1 | C192: =IFERROR(IF(LEN(D192)-LEN(SUBSTITUTE(D192,".",""))<>3,"",MID(D192,SEARCH(".",D192,SEARCH(".",D192)+1)+1,LEN(D192)-SEARCH(".",D192,SEARCH(".",D192)+1)-(LEN(D192)-(SEARCH(".",D192,SEARCH(".",D192,SEARCH(".",D192)+1)+1)-1)))),"") ->  | D192: 6.1.5 | E192: =IF($G192="SINAPI",VLOOKUP($F192,DADOS_SINAPI,2,0),IF(G192="SETOP",VLOOKUP($F192,DADOS_SETOP,2,0),IF(G192="CPU",VLOOKUP($F192,DADOS_COMPOSICAO,2,0),IF(G192="SICRO",VLOOKUP($F192,DADOS_SICRO,2,0),IF(G192="SUDECAP",VLOOKUP(F192,DADOS_SUDECAP,2,0),IF(G192="COTAÇÃO",VLOOKUP($F192,DADOS_COTACAO,2,0),"")))))) -> CARGA, MANOBRA E DESCARGA DE SOLOS E MATERIAIS GRANULARES EM CAMINHÃO BASCULANTE 6 M³ - CARGA COM ESCAVADEIRA HIDRÁULICA (CAÇAMBA DE 1,20 M³ / 155 HP) E DESCARGA LIVRE (UNIDADE: M3). AF_07/2020 | F192: 100977 | G192: SINAPI | H192: =IF(G192="SINAPI",VLOOKUP($F192,DADOS_SINAPI,3,0),IF(G192="SETOP",VLOOKUP($F192,DADOS_SETOP,3,0),IF(G192="CPU",VLOOKUP($F192,DADOS_COMPOSICAO,10,0),IF(G192="SICRO",VLOOKUP($F192,DADOS_SICRO,3,0),IF(G192="SUDECAP",VLOOKUP(F192,DADOS_SUDECAP,3,0),IF(G192="COTAÇÃO",VLOOKUP($F192,DADOS_COTACAO,9,0),"")))))) -> M3 | I192: =ROUND(F197,2) -> 55.85 | J192: =TRUNC(IF(G192="SINAPI",VLOOKUP($F192,DADOS_SINAPI,4,0),IF(G192="SETOP",VLOOKUP($F192,DADOS_SETOP,4,0),IF(G192="CPU",VLOOKUP($F192,DADOS_COMPOSICAO,13,0),IF(G192="SICRO",VLOOKUP($F192,DADOS_SICRO,4,0),IF(G192="SUDECAP",VLOOKUP(F192,DADOS_SUDECAP,4,0),IF(G192="COTAÇÃO",VLOOKUP(F192,DADOS_COTACAO,12,0),"")))))),2) -> 7.64 | K192: BDI 1 | L192: =TRUNC(J192*(1+$N$17),2) -> 9.66 | M192: =IFERROR(TRUNC(I192*J192,2),"") -> 426.69 | N192: 539.51
A193: 2000
A194: 2000 | E194: Volume escavado | F194: =F187 -> 115.8726 | G194: m³
A195: 2000 | E195: Volume de reaterro | F195: =F190 -> 94.78638 | G195: m³
A196: 2000 | E196: Empolamento | F196: 30 | G196: %
A197: 2000 | E197: Total | F197: =F194*1.3-F195 -> 55.848 | G197: m³
A198: 2000
A199: =IFERROR(LEFT(D199,SEARCH(".",D199)-1),"") -> 6 | B199: =IFERROR(LEFT(RIGHT(D199,LEN(D199)-SEARCH(".",D199)),SEARCH(".",RIGHT(D199,LEN(D199)-SEARCH(".",D199)))-1),"") -> 1 | C199: =IFERROR(IF(LEN(D199)-LEN(SUBSTITUTE(D199,".",""))<>3,"",MID(D199,SEARCH(".",D199,SEARCH(".",D199)+1)+1,LEN(D199)-SEARCH(".",D199,SEARCH(".",D199)+1)-(LEN(D199)-(SEARCH(".",D199,SEARCH(".",D199,SEARCH(".",D199)+1)+1)-1)))),"") ->  | D199: 6.1.6 | E199: =IF($G199="SINAPI",VLOOKUP($F199,DADOS_SINAPI,2,0),IF(G199="SETOP",VLOOKUP($F199,DADOS_SETOP,2,0),IF(G199="CPU",VLOOKUP($F199,DADOS_COMPOSICAO,2,0),IF(G199="SICRO",VLOOKUP($F199,DADOS_SICRO,2,0),IF(G199="SUDECAP",VLOOKUP(F199,DADOS_SUDECAP,2,0),IF(G199="COTAÇÃO",VLOOKUP($F199,DADOS_COTACAO,2,0),"")))))) -> TRANSPORTE COM CAMINHÃO BASCULANTE DE 10 M³, EM VIA URBANA PAVIMENTADA, DMT ATÉ 30 KM (UNIDADE: TXKM). AF_07/2020 | F199: 95878 | G199: SINAPI | H199: =IF(G199="SINAPI",VLOOKUP($F199,DADOS_SINAPI,3,0),IF(G199="SETOP",VLOOKUP($F199,DADOS_SETOP,3,0),IF(G199="CPU",VLOOKUP($F199,DADOS_COMPOSICAO,10,0),IF(G199="SICRO",VLOOKUP($F199,DADOS_SICRO,3,0),IF(G199="SUDECAP",VLOOKUP(F199,DADOS_SUDECAP,3,0),IF(G199="COTAÇÃO",VLOOKUP($F199,DADOS_COTACAO,9,0),"")))))) -> TXKM | I199: =ROUND(F203,2) -> 369.67 | J199: =TRUNC(IF(G199="SINAPI",VLOOKUP($F199,DADOS_SINAPI,4,0),IF(G199="SETOP",VLOOKUP($F199,DADOS_SETOP,4,0),IF(G199="CPU",VLOOKUP($F199,DADOS_COMPOSICAO,13,0),IF(G199="SICRO",VLOOKUP($F199,DADOS_SICRO,4,0),IF(G199="SUDECAP",VLOOKUP(F199,DADOS_SUDECAP,4,0),IF(G199="COTAÇÃO",VLOOKUP(F199,DADOS_COTACAO,12,0),"")))))),2) -> 1.65 | K199: BDI 1 | L199: =TRUNC(J199*(1+$N$17),2) -> 2.08 | M199: =IFERROR(TRUNC(I199*J199,2),"") -> 609.95 | N199: 768.91
A200: 2000
A201: 2000 | E201: Volume de transporte | F201: =F190 -> 94.78638 | G201: m³
A202: 2000 | E202: DMT | F202: 3.9 | G202: km
A203: 2000 | E203: Total | F203: =F201*F202 -> 369.666882 | G203: m³xkm
A204: 2000
A205: =IFERROR(LEFT(D205,SEARCH(".",D205)-1),"") -> 6 | B205: =IFERROR(LEFT(RIGHT(D205,LEN(D205)-SEARCH(".",D205)),SEARCH(".",RIGHT(D205,LEN(D205)-SEARCH(".",D205)))-1),"") -> 1 | C205: =IFERROR(IF(LEN(D205)-LEN(SUBSTITUTE(D205,".",""))<>3,"",MID(D205,SEARCH(".",D205,SEARCH(".",D205)+1)+1,LEN(D205)-SEARCH(".",D205,SEARCH(".",D205)+1)-(LEN(D205)-(SEARCH(".",D205,SEARCH(".",D205,SEARCH(".",D205)+1)+1)-1)))),"") ->  | D205: 6.1.7 | E205: =IF($G205="SINAPI",VLOOKUP($F205,DADOS_SINAPI,2,0),IF(G205="SETOP",VLOOKUP($F205,DADOS_SETOP,2,0),IF(G205="CPU",VLOOKUP($F205,DADOS_COMPOSICAO,2,0),IF(G205="SICRO",VLOOKUP($F205,DADOS_SICRO,2,0),IF(G205="SUDECAP",VLOOKUP(F205,DADOS_SUDECAP,2,0),IF(G205="COTAÇÃO",VLOOKUP($F205,DADOS_COTACAO,2,0),"")))))) -> ESPALHAMENTO DE MATERIAL COM TRATOR DE ESTEIRAS. AF_09/2024 | F205: 100574 | G205: SINAPI | H205: =IF(G205="SINAPI",VLOOKUP($F205,DADOS_SINAPI,3,0),IF(G205="SETOP",VLOOKUP($F205,DADOS_SETOP,3,0),IF(G205="CPU",VLOOKUP($F205,DADOS_COMPOSICAO,10,0),IF(G205="SICRO",VLOOKUP($F205,DADOS_SICRO,3,0),IF(G205="SUDECAP",VLOOKUP(F205,DADOS_SUDECAP,3,0),IF(G205="COTAÇÃO",VLOOKUP($F205,DADOS_COTACAO,9,0),"")))))) -> M3 | I205: =ROUND(F207,2) -> 94.79 | J205: =TRUNC(IF(G205="SINAPI",VLOOKUP($F205,DADOS_SINAPI,4,0),IF(G205="SETOP",VLOOKUP($F205,DADOS_SETOP,4,0),IF(G205="CPU",VLOOKUP($F205,DADOS_COMPOSICAO,13,0),IF(G205="SICRO",VLOOKUP($F205,DADOS_SICRO,4,0),IF(G205="SUDECAP",VLOOKUP(F205,DADOS_SUDECAP,4,0),IF(G205="COTAÇÃO",VLOOKUP(F205,DADOS_COTACAO,12,0),"")))))),2) -> 1.38 | K205: BDI 1 | L205: =TRUNC(J205*(1+$N$17),2) -> 1.74 | M205: =IFERROR(TRUNC(I205*J205,2),"") -> 130.81 | N205: 164.93
A206: 2000
A207: 2000 | E207: Total | F207: =F190 -> 94.78638 | G207: m³
A208: 2000
D209: 6.2 | E209: FUNDAÇÃO | M209: =IFERROR(SUMIFS(M:M,A:A,LEFT(D209,SEARCH(".",D209)-1),B:B,RIGHT(D209,LEN(D209)-SEARCH(".",D209))),"") -> 262225.21 | N209: =IFERROR(SUMIFS(N:N,A:A,LEFT(D209,SEARCH(".",D209)-1),B:B,RIGHT(D209,LEN(D209)-SEARCH(".",D209))),"") -> 331742.39
D210: 6.2.1 | E210: ESTACAS | M210: =IFERROR(SUMIFS(M:M,A:A,LEFT(D210,SEARCH(".",D210)-1),B:B,LEFT(RIGHT(D210,LEN(D210)-SEARCH(".",D210)),SEARCH(".",RIGHT(D210,LEN(D210)-SEARCH(".",D210)))-1),C:C,RIGHT(D210,LEN(D210)-SEARCH(".",D210,SEARCH(".",D210)+1))),"") -> 160845.57 | N210: =IFERROR(SUMIFS(N:N,A:A,LEFT(D210,SEARCH(".",D210)-1),B:B,LEFT(RIGHT(D210,LEN(D210)-SEARCH(".",D210)),SEARCH(".",RIGHT(D210,LEN(D210)-SEARCH(".",D210)))-1),C:C,RIGHT(D210,LEN(D210)-SEARCH(".",D210,SEARCH(".",D210)+1))),"") -> 203487.38
A211: =IFERROR(LEFT(D211,SEARCH(".",D211)-1),"") -> 6 | B211: =IFERROR(LEFT(RIGHT(D211,LEN(D211)-SEARCH(".",D211)),SEARCH(".",RIGHT(D211,LEN(D211)-SEARCH(".",D211)))-1),"") -> 2 | C211: =IFERROR(IF(LEN(D211)-LEN(SUBSTITUTE(D211,".",""))<>3,"",MID(D211,SEARCH(".",D211,SEARCH(".",D211)+1)+1,LEN(D211)-SEARCH(".",D211,SEARCH(".",D211)+1)-(LEN(D211)-(SEARCH(".",D211,SEARCH(".",D211,SEARCH(".",D211)+1)+1)-1)))),"") -> 1 | D211: 6.2.1.1 | E211: =IF($G211="SINAPI",VLOOKUP($F211,DADOS_SINAPI,2,0),IF(G211="SETOP",VLOOKUP($F211,DADOS_SETOP,2,0),IF(G211="CPU",VLOOKUP($F211,DADOS_COMPOSICAO,2,0),IF(G211="SICRO",VLOOKUP($F211,DADOS_SICRO,2,0),IF(G211="SUDECAP",VLOOKUP(F211,DADOS_SUDECAP,2,0),IF(G211="COTAÇÃO",VLOOKUP($F211,DADOS_COTACAO,2,0),"")))))) -> MOBILIZAÇÃO E DESMOBILIZAÇÃO DE EQUIPAMENTO PARA ESTACA TIPO TRADO ROTATIVO (CUSTO FIXO), INCLUSIVE CARGA E DESCARGA, EXCLUSIVE TRANSPORTE EM QUILÔMETRO RODADO (CUSTO VARIÁVEL) | F211: ED-29817 | G211: SETOP | H211: =IF(G211="SINAPI",VLOOKUP($F211,DADOS_SINAPI,3,0),IF(G211="SETOP",VLOOKUP($F211,DADOS_SETOP,3,0),IF(G211="CPU",VLOOKUP($F211,DADOS_COMPOSICAO,10,0),IF(G211="SICRO",VLOOKUP($F211,DADOS_SICRO,3,0),IF(G211="SUDECAP",VLOOKUP(F211,DADOS_SUDECAP,3,0),IF(G211="COTAÇÃO",VLOOKUP($F211,DADOS_COTACAO,9,0),"")))))) -> un | I211: =ROUND(F213,2) -> 1 | J211: =TRUNC(IF(G211="SINAPI",VLOOKUP($F211,DADOS_SINAPI,4,0),IF(G211="SETOP",VLOOKUP($F211,DADOS_SETOP,4,0),IF(G211="CPU",VLOOKUP($F211,DADOS_COMPOSICAO,13,0),IF(G211="SICRO",VLOOKUP($F211,DADOS_SICRO,4,0),IF(G211="SUDECAP",VLOOKUP(F211,DADOS_SUDECAP,4,0),IF(G211="COTAÇÃO",VLOOKUP(F211,DADOS_COTACAO,12,0),"")))))),2) -> 3607.9 | K211: BDI 1 | L211: =TRUNC(J211*(1+$N$17),2) -> 4564.71 | M211: =IFERROR(TRUNC(I211*J211,2),"") -> 3607.9 | N211: =L211*I211 -> 4564.71
A212: 2000
A213: 2000 | E213: Total | F213: 1 | G213: un
A214: 2000
A215: 6 | B215: 2 | C215: 1 | D215: 6.2.1.2 | E215: MOBILIZAÇÃO E DESMOBILIZAÇÃO DE EQUIPAMENTO PARA ESTACA TIPO TRADO ROTATIVO (CUSTO VARIÁVEL), EXCLUSIVE CUSTO FIXO DE TRANSPORTE | F215: ED-29818 | G215: SETOP | H215: km | I215: =ROUND(F217,2) -> 50 | J215: 20.66 | K215: BDI 1 | L215: 26.13 | M215: 1033 | N215: =L215*I215 -> 1306.5
A216: 2000
... 2262 more rows

Sheet ABC
A2: CURVA ABC DE SERVIÇOS | H2: Revisão: | I2: =DADOS!D6 -> R00
H3: Data: | I3: =DADOS!D2 -> 2025-01-27
A4: Projeto: | C4: Responsável: | D4: Cliente: | H4: Bancos:
A5: =DADOS!D8 -> CONSTRUÇÃO DA UBS CRISTAIS | H5: =DADOS!D14 -> SINAPI: 12/2024 Minas Gerais SETOP: 10/2024 Minas Gerais SICRO : 10/2024 Minas Gerais SUDECAP: 10/2024 Minas Gerais
H8: BDI 1: | I8: =DADOS!D10 -> 0.2652
H9: BDI 2: | I9: =DADOS!D12 -> -
A18: CURVA ABC DE SERVIÇOS
A19: PREFEITURA: PREFEITURA MUNICIPAL DE POUSO ALEGRE | H19: FOLHA Nº: 3
A20: OBRA: CONSTRUÇÃO DA UBS CRISTAIS | H20: DATA:27/01/2025
A21: LOCAL: RUA ROBERTO SCODELER, BAIRRO BELLA ITÁLIA | F21: FORMA DE EXECUÇÃO
A22: REGIÃO/MÊS DE REFERÊNCIA: SINAPI: 12/2024 Minas Gerais SETOP: 10/2024 Minas Gerais SICRO : 10/2024 Minas Gerais SUDECAP: 10/2024 Minas Gerais | F22: ( ) DIRETA | H22: (X) INDIRETA
A23: PRAZO DE EXECUÇÃO: 12 MESES | H23: BDI 1: | I23: =DADOS!D10 -> 0.2652
A24: Código | B24: Banco | C24: Descrição | D24: Unidade | E24: Quantidade | F24: Valor Unitário | G24: Total | H24: Peso (%) | I24: Peso Acumulado (%)
A26: 92453 | B26: SINAPI | C26: MONTAGEM E DESMONTAGEM DE FÔRMA DE VIGA, ESCORAMENTO COM GARFO DE MADEIRA, PÉ-DIREITO DUPLO, EM CHAPA DE MADEIRA RESINADA, 4 UTILIZAÇÕES. AF_09/2020 | D26: M2 | E26: 694.36 | F26: 295.99 | G26: 205523.62 | H26: 0.06625206858 | I26: 0.06625206858
A27: EST-001 | B27: CPU | C27: ESTACA HÉLICE CONTÍNUA, DIÂMETRO DE 30 CM, INCLUSO CONCRETO FCK=30MPA E ARMADURA MÍNIMA (EXCLUSIVE BOMBEAMENTO, MOBILIZAÇÃO E DESMOBILIZAÇÃO). | D27: M | E27: 984 | F27: 162.13 | G27: 159535.92 | H27: 0.0514275912 | I27: 0.1176796598
A28: EST-005 | B28: CPU | C28: LAJE TRELIÇADA H=17 CM - INCLUSO MONTAGEM E FORNECIMENTO DOS MATERIAIS, EXCETO CONCRETAGEM | D28: M2 | E28: 915.57 | F28: 147.47 | G28: 135019.11 | H28: 0.04352441503 | I28: 0.1612040748
A29: 90777 | B29: SINAPI | C29: ENGENHEIRO CIVIL DE OBRA JUNIOR COM ENCARGOS COMPLEMENTARES | D29: H | E29: 960 | F29: 130.27 | G29: 125059.2 | H29: 0.04031376391 | I29: 0.2015178387
A30: 103318 | B30: SINAPI | C30: ALVENARIA DE VEDAÇÃO DE BLOCOS VAZADOS DE CONCRETO DE 14X19X39 CM (ESPESSURA 14 CM) E ARGAMASSA DE ASSENTAMENTO COM PREPARO EM BETONEIRA. AF_12/2021 | D30: M2 | E30: 952.14 | F30: 122.8 | G30: 116922.79 | H30: 0.03769093159 | I30: 0.2392087703
A31: EST-007 | B31: CPU | C31: CONCRETAGEM DE VIGAS E LAJES, FCK=30 MPA, PARA LAJES PREMOLDADAS COM USO DE BOMBA - LANÇAMENTO, ADENSAMENTO E ACABAMENTO. | D31: M3 | E31: 108.29 | F31: 983.64 | G31: 106518.38 | H31: 0.03433699259 | I31: 0.2735457629
A32: ED-49664 | B32: SETOP | C32: FORNECIMENTO DE ESTRUTURA METÁLICA EM PERFIL LAMINADO, INCLUSIVE FABRICAÇÃO, TRANSPORTE, MONTAGEM E APLICAÇÃO DE FUNDO PREPARADOR ANTICORROSIVO EM SUPERFÍCIE METÁLICA, UMA (1) DEMÃO | D32: Kg | E32: 3615.7 | F32: 28.31 | G32: 102360.47 | H32: 0.03299665935 | I32: 0.3065424222
A33: 87797 | B33: SINAPI | C33: EMBOÇO OU MASSA ÚNICA EM ARGAMASSA TRAÇO 1:2:8, PREPARO MECÂNICO COM BETONEIRA 400 L, APLICADA MANUALMENTE EM PANOS CEGOS DE FACHADA (SEM PRESENÇA DE VÃOS), ESPESSURA DE 35 MM. AF_08/2022 | D33: M2 | E33: 1201.46 | F33: 67.49 | G33: 81086.54 | H33: 0.02613884968 | I33: 0.3326812719
A34: 87529 | B34: SINAPI | C34: MASSA ÚNICA, EM ARGAMASSA TRAÇO 1:2:8, PREPARO MECÂNICO, APLICADA MANUALMENTE EM PAREDES INTERNAS DE AMBIENTES COM ÁREA ENTRE 5M² E 10M², E = 17,5MM, COM TALISCAS. AF_03/2024 | D34: M2 | E34: 1190.08 | F34: 44 | G34: 52363.52 | H34: 0.0168797704 | I34: 0.3495610423
A35: 98562 | B35: SINAPI | C35: IMPERMEABILIZAÇÃO DE SUPERFÍCIE COM ARGAMASSA DE CIMENTO E AREIA, COM ADITIVO IMPERMEABILIZANTE, E = 1,5CM. AF_09/2023 | D35: M2 | E35: 870.49 | F35: 58.36 | G35: 50801.79 | H35: 0.01637633511 | I35: 0.3659373774
A36: 92425 | B36: SINAPI | C36: MONTAGEM E DESMONTAGEM DE FÔRMA DE PILARES RETANGULARES E ESTRUTURAS SIMILARES, PÉ-DIREITO DUPLO, EM CHAPA DE MADEIRA COMPENSADA RESINADA, 6 UTILIZAÇÕES. AF_09/2020 | D36: M2 | E36: 447.72 | F36: 103.27 | G36: 46236.04 | H36: 0.01490453162 | I36: 0.3808419091
A37: 103320 | B37: SINAPI | C37: ALVENARIA DE VEDAÇÃO DE BLOCOS VAZADOS DE CONCRETO DE 19X19X39 CM (ESPESSURA 19 CM) E ARGAMASSA DE ASSENTAMENTO COM PREPARO EM BETONEIRA. AF_12/2021 | D37: M2 | E37: 309.61 | F37: 148.11 | G37: 45856.34 | H37: 0.0147821325 | I37: 0.3956240416
A38: 96557 | B38: SINAPI | C38: CONCRETAGEM DE BLOCO DE COROAMENTO OU VIGA BALDRAME, FCK 30 MPA, COM USO DE BOMBA - LANÇAMENTO, ADENSAMENTO E ACABAMENTO. AF_01/2024 | D38: M3 | E38: 42.96 | F38: 1041.18 | G38: 44729.09 | H38: 0.01441875507 | I38: 0.4100427966
A39: 92762 | B39: SINAPI | C39: ARMAÇÃO DE PILAR OU VIGA DE ESTRUTURA CONVENCIONAL DE CONCRETO ARMADO UTILIZANDO AÇO CA-50 DE 10,0 MM - MONTAGEM. AF_06/2022 | D39: KG | E39: 3236.1 | F39: 13.51 | G39: 43719.71 | H39: 0.01409337392 | I39: 0.4241361705
A40: ED-50754 | B40: SETOP | C40: REVESTIMENTO COM PORCELANATO APLICADO EM PISO, ACABAMENTO POLÍDO, AMBIENTE INTERNO, PADRÃO EXTRA, BORDA RETIFICADA, DIMENSÃO DA PEÇA (60X60)CM, ASSENTAMENTO COM ARGAMASSA INDUSTRIALIZADA, INCLUSIVE REJUNTAMENTO | D40: m2 | E40: 347.19 | F40: 121.24 | G40: 42093.32 | H40: 0.01356909499 | I40: 0.4377052655
A41: ED-48428 | B41: SETOP | C41: COBERTURA EM TELHA METÁLICA GALVANIZADA TRAPEZOIDAL, TIPO SIMPLES, ESP. 0,50MM, ACABAMENTO NATURAL, INCLUSIVE ACESSÓRIOS PARA FIXAÇÃO, FORNECIMENTO E INSTALAÇÃO | D41: m2 | E41: 318.35 | F41: 116.43 | G41: 37065.49 | H41: 0.01194833657 | I41: 0.4496536021
A42: 90844 | B42: SINAPI | C42: KIT DE PORTA DE MADEIRA PARA PINTURA, SEMI-OCA (LEVE OU MÉDIA), PADRÃO MÉDIO, 90X210CM, ESPESSURA DE 3,5CM, ITENS INCLUSOS: DOBRADIÇAS, MONTAGEM E INSTALAÇÃO DO BATENTE, FECHADURA COM EXECUÇÃO DO FURO - FORNECIMENTO E INSTALAÇÃO. AF_12/2019 | D42: UN | E42: 25 | F42: 1379.29 | G42: 34482.25 | H42: 0.01111560993 | I42: 0.460769212
A43: 92759 | B43: SINAPI | C43: ARMAÇÃO DE PILAR OU VIGA DE ESTRUTURA CONVENCIONAL DE CONCRETO ARMADO UTILIZANDO AÇO CA-60 DE 5,0 MM - MONTAGEM. AF_06/2022 | D43: KG | E43: 1920.1 | F43: 16.9 | G43: 32449.69 | H43: 0.01046039909 | I43: 0.4712296111
A44: ED-19638 | B44: SETOP | C44: CIMBRAMENTO PARA LAJE PRÉ-MOLDADA COM ESCORAMENTO METÁLICO, TIPO "B", ALTURA DE (311 ATÉ 450)CM, INCLUSIVE DESCARGA, MONTAGEM, DESMONTAGEM E CARGA | D44: m2xmês | E44: 1019.62 | F44: 30.45 | G44: 31047.43 | H44: 0.01000837014 | I44: 0.4812379813
A45: 96130 | B45: SINAPI | C45: APLICAÇÃO MANUAL DE MASSA ACRÍLICA EM PAREDES EXTERNAS DE CASAS, UMA DEMÃO. AF_03/2024 | D45: M2 | E45: 1343.63 | F45: 22.6 | G45: 30366.04 | H45: 0.009788719002 | I45: 0.4910267003
A46: ARQ-008 | B46: CPU | C46: PISO EM CONCRETO, USINADO CONVENCIONAL, ACABAMENTO POLIDO EM NÍVEL ZERO, ESP. 5CM, INCLUSIVE FORNECIMENTO, LANÇAMENTO, ADENSAMENTO | D46: M2 | E46: 232.9 | F46: 127.5 | G46: 29694.75 | H46: 0.009572323674 | I46: 0.5005990239
A47: ED-19519 | B47: SETOP | C47: ELETROCALHA PERFURADA (100X50)MM EM CHAPA DE AÇO GALVANIZADO #18, COM TRATAMENTO PRÉ-ZINCADO, INCLUSIVE TAMPA DE ENCAIXE, FIXAÇÃO SUPERIOR, CONEXÕES E ACESSÓRIOS | D47: m | E47: 257.4 | F47: 106.51 | G47: 27415.67 | H47: 0.008837645274 | I47: 0.5094366692
A48: ED-9917 | B48: SETOP | C48: PINTURA EPÓXI EM PAREDE, DUAS (2) DEMÃOS, EXCLUSIVE SELADOR ACRÍLICO E MASSA ACRÍLICA/CORRIDA (PVA) | D48: m2 | E48: 888.45 | F48: 30.82 | G48: 27382.03 | H48: 0.008826801169 | I48: 0.5182634704
A49: ED-50155 | B49: SETOP | C49: LOCAÇÃO DE BANHEIRO QUÍMICO, DIMENSÃO (110X120X230)CM, LINHA PADRÃO, CONTENDO UMA (1) PIA/HIGIENIZADOR DE MÃOS, INCLUSIVE MANUTENÇÃO E MOBILIZAÇÃO/DESMOBILIZAÇÃO | D49: mês | E49: 24 | F49: 1138.68 | G49: 27328.32 | H49: 0.008809487351 | I49: 0.5270729577
A50: 95579 | B50: SINAPI | C50: MONTAGEM DE ARMADURA DE ESTACAS, DIÂMETRO = 16,0 MM. AF_09/2021_PS | D50: KG | E50: 2540.03 | F50: 10.55 | G50: 26797.32 | H50: 0.008638315549 | I50: 0.5357112733
A51: ED-9081 | B51: SETOP | C51: REVESTIMENTO COM CERÂMICA APLICADO EM PAREDE, ACABAMENTO ESMALTADO, AMBIENTE INTERNO/EXTERNO, PADRÃO EXTRA, DIMENSÃO DA PEÇA ATÉ 2025 CM2, PEI III, ASSENTAMENTO COM ARGAMASSA INDUSTRIALIZADA, INCLUSIVE REJUNTAMENTO | D51: m2 | E51: 323.05 | F51: 82.35 | G51: 26603.17 | H51: 0.008575729851 | I51: 0.5442870031
A52: 95626 | B52: SINAPI | C52: APLICAÇÃO MANUAL DE TINTA LÁTEX ACRÍLICA EM PAREDE EXTERNAS DE CASAS, DUAS DEMÃOS. AF_03/2024 | D52: M2 | E52: 1343.63 | F52: 18.97 | G52: 25488.66 | H52: 0.008216459258 | I52: 0.5525034624
A53: EST-003 | B53: CPU | C53: CONCRETAGEM DE PILARES, FCK = 30 MPA, COM USO DE BOMBA - LANÇAMENTO, ADENSAMENTO E ACABAMENTO. | D53: M3 | E53: 26.07 | F53: 959.65 | G53: 25018.08 | H53: 0.008064764292 | I53: 0.5605682267
A54: ED-9075 | B54: SETOP | C54: FORNECIMENTO DE ANDAIME METÁLICO PARA FACHADA (LOCAÇÃO), INCLUSIVE PISO METÁLICO E SAPATAS, EXCLUSIVE MONTAGEM E DESMONTAGEM | D54: m2xmês | E54: 1440 | F54: 17.08 | G54: 24595.2 | H54: 0.007928445777 | I54: 0.5684966725
A55: LOU-002 | B55: CPU | C55: BANCADA EM AÇO INOX COM RODABANCA | D55: M2 | E55: 9.86 | F55: 2459.89 | G55: 24254.52 | H55: 0.007818625043 | I55: 0.5763152975
A56: COT-ARQ-008 | B56: COTAÇÃO | C56: JANELA ESQUADRIA MAXIM-AR 2,00 X 1,00 M - PINTURA PRETA E VIDRO TEMPERADO FUME 6MM | D56: UN | E56: 11 | F56: 2183.43 | G56: 24017.73 | H56: 0.007742294024 | I56: 0.5840575915
A57: ED-48245 | B57: SETOP | C57: MONTAGEM E DESMONTAGEM DE ANDAIME METÁLICO PARA FACHADA COM PISO METÁLICO, INCLUSIVE RODAPÉ/GUARDA-CORPO EM MADEIRA, EXCLUSIVE FORNECIMENTO DO ANDAIME | D57: m2 | E57: 1419.75 | F57: 16.33 | G57: 23184.52 | H57: 0.007473702579 | I57: 0.5915312941
A58: ED-50497 | B58: SETOP | C58: PINTURA ESMALTE BASE SOLVENTE EM ESTRUTURA METÁLICA, DUAS (2) DEMÃOS, INCLUSIVE UMA (1) DEMÃO FUNDO ANTICORROSIVO | D58: m2 | E58: 484.76 | F58: 47.19 | G58: 22875.82 | H58: 0.007374190837 | I58: 0.5989054849
A59: ED-16348 | B59: SETOP | C59: LOCAÇÃO DE CONTAINER COM ISOLAMENTO TÉRMICO, TIPO 1, PARA ESCRITÓRIO DE OBRA, COM MEDIDAS REFERENCIAIS DE (6) METROS COMPRIMENTO, (2,3) METROS LARGURA E (2,5) METROS ALTURA ÚTIL INTERNA, INCLUSIVE AR CONDICIONADO E LIGAÇÕES ELÉTRICAS INTERNAS, EXCLUSIVE MOBILIZAÇÃO/DESMOBILIZAÇÃO E LIGAÇÕES PROVISÓRIAS EXTERNAS | D59: mês | E59: 12 | F59: 1814.03 | G59: 21768.36 | H59: 0.007017192863 | I59: 0.6059226778
A60: 103245 | B60: SINAPI | C60: AR CONDICIONADO SPLIT ON/OFF, HI-WALL (PAREDE), 9000 BTUS/H, CICLO FRIO - FORNECIMENTO E INSTALAÇÃO. AF_11/2021_PE | D60: UN | E60: 8 | F60: 2593.39 | G60: 20747.12 | H60: 0.006687988548 | I60: 0.6126106664
A61: ED-13338 | B61: SETOP | C61: LUMINÁRIA COMERCIAL CHANFRADA DE SOBREPOR COMPLETA, PARA DUAS (2) LÂMPADAS TUBULARES LED 2X18W-ØT8, TEMPERATURA DA COR 6500K, FORNECIMENTO E INSTALAÇÃO, INCLUSIVE BASE E LÂMPADAS | D61: un | E61: 89 | F61: 219.47 | G61: 19532.83 | H61: 0.006296553129 | I61: 0.6189072195
A62: ED-50478 | B62: SETOP | C62: EMASSAMENTO EM PAREDE COM MASSA CORRIDA (PVA), DUAS (2) DEMÃOS, INCLUSIVE LIXAMENTO PARA PINTURA | D62: m2 | E62: 888.45 | F62: 21.97 | G62: 19519.25 | H62: 0.006292175515 | I62: 0.625199395
A63: 91835 | B63: SINAPI | C63: ELETRODUTO FLEXÍVEL CORRUGADO REFORÇADO, PVC, DN 25 MM (3/4"), PARA CIRCUITOS TERMINAIS, INSTALADO EM FORRO - FORNECIMENTO E INSTALAÇÃO. AF_03/2023_PA | D63: M | E63: 832.1 | F63: 22.98 | G63: 19121.66 | H63: 0.006164009419 | I63: 0.6313634044
A64: 94229 | B64: SINAPI | C64: CALHA EM CHAPA DE AÇO GALVANIZADO NÚMERO 24, DESENVOLVIMENTO DE 100 CM, INCLUSO TRANSPORTE VERTICAL. AF_07/2019 | D64: M | E64: 80.45 | F64: 232.36 | G64: 18693.36 | H64: 0.006025943727 | I64: 0.6373893481
A65: 100874 | B65: SINAPI | C65: PUXADOR PARA PCD, FIXADO NA PORTA - FORNECIMENTO E INSTALAÇÃO. AF_01/2020 | D65: UN | E65: 44 | F65: 423.58 | G65: 18637.52 | H65: 0.006007943287 | I65: 0.6433972914
A66: 96113 | B66: SINAPI | C66: FORRO EM PLACAS DE GESSO, PARA AMBIENTES COMERCIAIS. AF_08/2023_PS | D66: M2 | E66: 332.1 | F66: 55.64 | G66: 18478.04 | H66: 0.005956533722 | I66: 0.6493538252
A67: 87779 | B67: SINAPI | C67: EMBOÇO OU MASSA ÚNICA EM ARGAMASSA TRAÇO 1:2:8, PREPARO MECÂNICO COM BETONEIRA 400 L, APLICADA MANUALMENTE EM PANOS DE FACHADA COM PRESENÇA DE VÃOS, ESPESSURA DE 35 MM. AF_08/2022 | D67: M2 | E67: 218.29 | F67: 84.12 | G67: 18362.55 | H67: 0.005919304661 | I67: 0.6552731298
A68: 21141 | B68: SINAPI | C68: TELA DE ACO SOLDADA NERVURADA, CA-60, Q-92, (1,48 KG/M2), DIAMETRO DO FIO = 4,2 MM, LARGURA = 2,45 X 60 M DE COMPRIMENTO, ESPACAMENTO DA MALHA = 15 X 15 CM | D68: M2 | E68: 1019.62 | F68: 17.99 | G68: 18342.96 | H68: 0.005912989679 | I68: 0.6611861195
A69: 96536 | B69: SINAPI | C69: FABRICAÇÃO, MONTAGEM E DESMONTAGEM DE FÔRMA PARA VIGA BALDRAME, EM MADEIRA SERRADA, E=25 MM, 4 UTILIZAÇÕES. AF_01/2024 | D69: M2 | E69: 233.7 | F69: 78.23 | G69: 18282.35 | H69: 0.005893451594 | I69: 0.6670795711
A70: 87244 | B70: SINAPI | C70: REVESTIMENTO CERÂMICO PARA PAREDES EXTERNAS EM PASTILHAS DE PORCELANA 5 X 5 CM (PLACAS DE 30 X 30 CM), ALINHADAS A PRUMO. AF_02/2023 | D70: M2 | E70: 54.7 | F70: 319.56 | G70: 17479.93 | H70: 0.005634785535 | I70: 0.6727143566
A71: 93202 | B71: SINAPI | C71: FIXAÇÃO (ENCUNHAMENTO) DE ALVENARIA DE VEDAÇÃO COM TIJOLO MACIÇO. AF_03/2024 | D71: M | E71: 539.2 | F71: 32.13 | G71: 17324.5 | H71: 0.005584681518 | I71: 0.6782990381
A72: 13.38.29 | B72: SUDECAP | C72: GRADIL NYLOFOR H=2.03 M INCLUSIVE POSTE OU EQUIVALENTE | D72: M | E72: 43 | F72: 399.66 | G72: 17185.38 | H72: 0.00553983515 | I72: 0.6838388733
A73: 103261 | B73: SINAPI | C73: AR CONDICIONADO SPLIT INVERTER, PISO TETO, 36000 BTU/H, CICLO FRIO - FORNECIMENTO E INSTALAÇÃO. AF_11/2021_PSE | D73: UN | E73: 1 | F73: 17126.48 | G73: 17126.48 | H73: 0.005520848297 | I73: 0.6893597216
A74: 94995 | B74: SINAPI | C74: EXECUÇÃO DE PASSEIO (CALÇADA) OU PISO DE CONCRETO COM CONCRETO MOLDADO IN LOCO, USINADO, ACABAMENTO CONVENCIONAL, ESPESSURA 8 CM, ARMADO. AF_08/2022 | D74: M2 | E74: 129.97 | F74: 127.21 | G74: 16533.49 | H74: 0.005329693557 | I74: 0.6946894151
A75: 100327 | B75: SINAPI | C75: RUFO EXTERNO/INTERNO EM CHAPA DE AÇO GALVANIZADO NÚMERO 26, CORTE DE 33 CM, INCLUSO IÇAMENTO. AF_07/2019 | D75: M | E75: 206.81 | F75: 79.69 | G75: 16480.69 | H75: 0.005312673084 | I75: 0.7000020882
A76: 101979 | B76: SINAPI | C76: CHAPIM (RUFO CAPA) EM AÇO GALVANIZADO, CORTE 33. AF_11/2020 | D76: M | E76: 293.55 | F76: 54.09 | G76: 15878.12 | H76: 0.005118430159 | I76: 0.7051205184
A77: 102176 | B77: SINAPI | C77: INSTALAÇÃO DE VIDRO LAMINADO, E = 8 MM (4+4), ENCAIXADO EM PERFIL U. AF_01/2021_PS | D77: M2 | E77: 17.05 | F77: 889.86 | G77: 15172.11 | H77: 0.004890842581 | I77: 0.710011361
A78: 91926 | B78: SINAPI | C78: CABO DE COBRE FLEXÍVEL ISOLADO, 2,5 MM², ANTI-CHAMA 450/750 V, PARA CIRCUITOS TERMINAIS - FORNECIMENTO E INSTALAÇÃO. AF_03/2023 | D78: M | E78: 2737.7 | F78: 5.27 | G78: 14427.68 | H78: 0.00465087003 | I78: 0.714662231
A79: 87630 | B79: SINAPI | C79: CONTRAPISO EM ARGAMASSA TRAÇO 1:4 (CIMENTO E AREIA), PREPARO MECÂNICO COM BETONEIRA 400 L, APLICADO EM ÁREAS SECAS SOBRE LAJE, ADERIDO, ACABAMENTO NÃO REFORÇADO, ESPESSURA 3CM. AF_07/2021 | D79: M2 | E79: 282.68 | F79: 50.12 | G79: 14167.92 | H79: 0.004567134461 | I79: 0.7192293655
A80: ED-29823 | B80: SETOP | C80: TAPUME FIXO DE PROTEÇÃO PARA FECHAMENTO DE OBRA EM TELHA METÁLICA GALVANIZADA, TIPO TRAPEZOIDAL, ESP. 0,5MM, COM MÓDULO NA DIMENSÃO DE (300X220)CM, COM REAPROVEITAMENTO, EXCLUSIVE PINTURA ESMALTE, INCLUSIVE PONTALETE E FIXAÇÃO | D80: m2 | E80: 209 | F80: 66.78 | G80: 13957.02 | H80: 0.004499149276 | I80: 0.7237285147
A81: 105033 | B81: SINAPI | C81: CINTA DE AMARRAÇÃO DE ALVENARIA MOLDADA IN LOCO COM UTILIZAÇÃO DE BLOCOS CANALETA, ESPESSURA DE *15* CM. AF_03/2024 | D81: M | E81: 188.48 | F81: 70.3 | G81: 13250.14 | H81: 0.004271281247 | I81: 0.727999796
A82: 96534 | B82: SINAPI | C82: FABRICAÇÃO, MONTAGEM E DESMONTAGEM DE FÔRMA PARA BLOCO DE COROAMENTO, EM MADEIRA SERRADA, E=25 MM, 4 UTILIZAÇÕES. AF_01/2024 | D82: M2 | E82: 147.45 | F82: 89.79 | G82: 13239.54 | H82: 0.004267864258 | I82: 0.7322676602
A83: 92763 | B83: SINAPI | C83: ARMAÇÃO DE PILAR OU VIGA DE ESTRUTURA CONVENCIONAL DE CONCRETO ARMADO UTILIZANDO AÇO CA-50 DE 12,5 MM - MONTAGEM. AF_06/2022 | D83: KG | E83: 1086.8 | F83: 11.34 | G83: 12324.31 | H83: 0.003972833056 | I83: 0.7362404933
A84: ED-16350 | B84: SETOP | C84: LOCAÇÃO DE CONTAINER COM ISOLAMENTO TÉRMICO, TIPO 3, PARA DEPÓSITO/FERRAMENTARIA DE OBRA, COM MEDIDAS REFERENCIAIS DE (6) METROS COMPRIMENTO, (2,3) METROS LARGURA E (2,5) METROS ALTURA ÚTIL INTERNA, INCLUSIVE LIGAÇÕES ELÉTRICAS INTERNAS, EXCLUSIVE MOBILIZAÇÃO/DESMOBILIZAÇÃO E LIGAÇÕES PROVISÓRIAS EXTERNAS | D84: mês | E84: 12 | F84: 1014.51 | G84: 12174.12 | H84: 0.003924418191 | I84: 0.7401649115
A85: 105025 | B85: SINAPI | C85: VERGA MOLDADA IN LOCO COM UTILIZAÇÃO DE BLOCOS CANALETA, ESPESSURA DE *15* CM. AF_03/2024 | D85: M | E85: 161.4 | F85: 73.14 | G85: 11804.8 | H85: 0.003805365141 | I85: 0.7439702766
A86: 89578 | B86: SINAPI | C86: TUBO PVC, SÉRIE R, ÁGUA PLUVIAL, DN 100 MM, FORNECIDO E INSTALADO EM CONDUTORES VERTICAIS DE ÁGUAS PLUVIAIS. AF_06/2022 | D86: M | E86: 283.93 | F86: 41.18 | G86: 11692.24 | H86: 0.003769080587 | I86: 0.7477393572
A87: ED-9076 | B87: SETOP | C87: FORNECIMENTO DE ANDAIME METÁLICO TUBULAR TIPO TORRE (LOCAÇÃO), INCLUSIVE RODÍZIOS, EXCLUSIVE MONTAGEM E DESMONTAGEM | D87: mxmês | E87: 420 | F87: 27.83 | G87: 11688.6 | H87: 0.003767907206 | I87: 0.7515072644
A88: 95875 | B88: SINAPI | C88: TRANSPORTE COM CAMINHÃO BASCULANTE DE 10 M³, EM VIA URBANA PAVIMENTADA, DMT ATÉ 30 KM (UNIDADE: M3XKM). AF_07/2020 | D88: M3XKM | E88: 3735.178167 | F88: 3.09 | G88: 11541.71 | H88: 0.003720556121 | I88: 0.7552278205
A89: 93358 | B89: SINAPI | C89: ESCAVAÇÃO MANUAL DE VALA. AF_09/2024 | D89: M3 | E89: 122.15 | F89: 93.83 | G89: 11461.34 | H89: 0.003694648253 | I89: 0.7589224688
A90: LOU-003 | B90: CPU | C90: EXPURGO HOSPITALAR COM SIFÃO, TRITURADOR - FORNECIMENTO E INSTALAÇÃO | D90: UN | E90: 1 | F90: 11404.53 | G90: 11404.53 | H90: 0.003676335127 | I90: 0.7625988039
A91: COT-ARQ-010 | B91: COTAÇÃO | C91: JANELA ESQUADRIA MAXIM-AR 2,50 X 1,00 M - PINTURA PRETA E VIDRO TEMPERADO FUME 6MM | D91: UN | E91: 4 | F91: 2837.84 | G91: 11351.36 | H91: 0.003659195382 | I91: 0.7662579993
A92: 91933 | B92: SINAPI | C92: CABO DE COBRE FLEXÍVEL ISOLADO, 10 MM², ANTI-CHAMA 0,6/1,0 KV, PARA CIRCUITOS TERMINAIS - FORNECIMENTO E INSTALAÇÃO. AF_03/2023 | D92: M | E92: 567.7 | F92: 19.92 | G92: 11308.58 | H92: 0.00364540493 | I92: 0.7699034042
A93: 103247 | B93: SINAPI | C93: AR CONDICIONADO SPLIT INVERTER, HI-WALL (PAREDE), 12000 BTU/H, CICLO FRIO - FORNECIMENTO E INSTALAÇÃO. AF_11/2021_PE | D93: UN | E93: 3 | F93: 3666.48 | G93: 10999.44 | H93: 0.003545751351 | I93: 0.7734491556
A94: 98557 | B94: SINAPI | C94: IMPERMEABILIZAÇÃO DE SUPERFÍCIE COM EMULSÃO ASFÁLTICA, 2 DEMÃOS. AF_09/2023 | D94: M2 | E94: 217.81 | F94: 50.4 | G94: 10977.62 | H94: 0.003538717511 | I94: 0.7769878731
A95: COT-ELE-002 | B95: COTAÇÃO | C95: GERADOR MONOFÁSICO 5500 VA | D95: 1 | E95: 1 | F95: 10469.27 | G95: 10469.27 | H95: 0.003374847105 | I95: 0.7803627202
A96: 92990 | B96: SINAPI | C96: CABO DE COBRE FLEXÍVEL ISOLADO, 70 MM², ANTI-CHAMA 0,6/1,0 KV, PARA REDE ENTERRADA DE DISTRIBUIÇÃO DE ENERGIA ELÉTRICA - FORNECIMENTO E INSTALAÇÃO. AF_12/2021 | D96: M | E96: 103.48 | F96: 96.77 | G96: 10013.76 | H96: 0.003228010066 | I96: 0.7835907303
A97: 104921 | B97: SINAPI | C97: ARMAÇÃO DE BLOCO, SAPATA ISOLADA, VIGA BALDRAME E SAPATA CORRIDA UTILIZANDO AÇO CA-50 DE 16 MM - MONTAGEM. AF_01/2024 | D97: KG | E97: 799.4 | F97: 12.36 | G97: 9880.58 | H97: 0.003185078502 | I97: 0.7867758088
A98: 98546 | B98: SINAPI | C98: IMPERMEABILIZAÇÃO DE SUPERFÍCIE COM MANTA ASFÁLTICA, UMA CAMADA, INCLUSIVE APLICAÇÃO DE PRIMER ASFÁLTICO, E=4MM. AF_09/2023 | D98: M2 | E98: 71.7 | F98: 137.76 | G98: 9877.39 | H98: 0.003184050182 | I98: 0.789959859
A99: 87894 | B99: SINAPI | C99: CHAPISCO APLICADO EM ALVENARIA (SEM PRESENÇA DE VÃOS) E ESTRUTURAS DE CONCRETO DE FACHADA, COM COLHER DE PEDREIRO. ARGAMASSA TRAÇO 1:3 COM PREPARO EM BETONEIRA 400L. AF_10/2022 | D99: M2 | E99: 1201.46 | F99: 8.13 | G99: 9767.87 | H99: 0.003148745595 | I99: 0.7931086045
A100: EST-004 | B100: CPU | C100: LAJE TRELIÇADA H=13 CM - INCLUSO MONTAGEM E FORNECIMENTO DOS MATERIAIS, EXCETO CONCRETAGEM | D100: M2 | E100: 75.41 | F100: 128.49 | G100: 9689.43 | H100: 0.003123459877 | I100: 0.7962320644
A101: ED-13935 | B101: SETOP | C101: CABO DE COBRE NU #50 MM2 - 7 FIOSX3,00MM, PARA ELEMENTOS DE CAPTAÇÃO/ANEL DE CINTAMENTO (SPDA), INCLUSIVE PRESILHA DE FIXAÇÃO | D101: m | E101: 124.8 | F101: 75.39 | G101: 9408.67 | H101: 0.003032954801 | I101: 0.7992650192
A102: 100854 | B102: SINAPI | C102: TORNEIRA CROMADA DE MESA PARA LAVATÓRIO COM SENSOR DE PRESENCA. AF_01/2020 | D102: UN | E102: 4 | F102: 2348.54 | G102: 9394.16 | H102: 0.003028277395 | I102: 0.8022932966
A103: ARQ-007 | B103: CPU | C103: RODAPÉ COM REVESTIMENTO EM PORCELANATO 60X60 COM BORDA RETIFICADA E ACABAMENTO POLIDO, ALTURA 10 CM. | D103: M | E103: 337.1 | F103: 27.42 | G103: 9243.28 | H103: 0.002979640104 | I103: 0.8052729367
A104: EST-008 | B104: CPU | C104: ALVENARIA DE BLOCOS DE CONCRETO ESTRUTURAL 19 X 19 X 39 CM (ESPESSURA 19 CM), FBK = 14 MPA, UTILIZANDO PALHETA. | D104: M2 | E104: 54.06 | F104: 169.39 | G104: 9157.22 | H104: 0.002951898022 | I104: 0.8082248347
A105: 96544 | B105: SINAPI | C105: ARMAÇÃO DE BLOCO UTILIZANDO AÇO CA-50 DE 6,3 MM - MONTAGEM. AF_01/2024 | D105: KG | E105: 416.7 | F105: 21.33 | G105: 8888.21 | H105: 0.002865180647 | I105: 0.8110900154
A106: COT-ARQ-003 | B106: COTAÇÃO | C106: JANELA ESQUADRIA MAXIM-AR 0,70 X 0,70 M - PINTURA PRETA E VIDRO TEMPERADO FUME 6MM | D106: UN | E106: 12 | F106: 737.61 | G106: 8851.32 | H106: 0.00285328888 | I106: 0.8139433043
A107: 92769 | B107: SINAPI | C107: ARMAÇÃO DE LAJE DE ESTRUTURA CONVENCIONAL DE CONCRETO ARMADO UTILIZANDO AÇO CA-50 DE 6,3 MM - MONTAGEM. AF_06/2022 | D107: KG | E107: 564.1 | F107: 15.42 | G107: 8698.42 | H107: 0.002804000427 | I107: 0.8167473047
A108: 88415 | B108: SINAPI | C108: APLICAÇÃO MANUAL DE FUNDO SELADOR ACRÍLICO EM PAREDES EXTERNAS DE CASAS. AF_03/2024 | D108: M2 | E108: 1343.63 | F108: 6.46 | G108: 8679.85 | H108: 0.00279801425 | I108: 0.819545319
A109: ED-20586 | B109: SETOP | C109: ENTRADA DE ENERGIA AÉREA, TIPO C6, PADRÃO CEMIG, CARGA INSTALADA DE 47,1KVA ATÉ 57KVA, TRIFÁSICO, COM SAÍDA SUBTERRÂNEA, INCLUSIVE POSTE, CAIXA PARA MEDIDOR, DISJUNTOR, BARRAMENTO, ATERRAMENTO E ACESSÓRIOS | D109: un | E109: 1 | F109: 8434.07 | G109: 8434.07 | H109: 0.002718785237 | I109: 0.8222641042
A110: 92760 | B110: SINAPI | C110: ARMAÇÃO DE PILAR OU VIGA DE ESTRUTURA CONVENCIONAL DE CONCRETO ARMADO UTILIZANDO AÇO CA-50 DE 6,3 MM - MONTAGEM. AF_06/2022 | D110: KG | E110: 512.8 | F110: 16.01 | G110: 8209.93 | H110: 0.00264653204 | I110: 0.8249106362
A111: 101266 | B111: SINAPI | C111: ESCAVAÇÃO VERTICAL PARA INFRAESTRUTURA, COM CARGA, DESCARGA E TRANSPORTE DE SOLO DE 1ª CATEGORIA, COM ESCAVADEIRA HIDRÁULICA (CAÇAMBA: 0,8 M³ / 111HP), FROTA DE 3 CAMINHÕES BASCULANTES DE 10 M³, DMT ATÉ 1 KM E VELOCIDADE MÉDIA14 KM/H. AF_05/2020 | D111: M3 | E111: 570.05 | F111: 14.2 | G111: 8094.71 | H111: 0.002609390016 | I111: 0.8275200262
A112: ED-50283 | B112: SETOP | C112: LAVATÓRIO DE LOUÇA BRANCA SEM COLUNA, TAMANHO MÉDIO, INCLUSIVE ACESSÓRIOS DE FIXAÇÃO, VÁLVULA DE ESCOAMENTO DE METAL COM ACABAMENTO CROMADO, SIFÃO DE METAL TIPO COPO COM ACABAMENTO CROMADO, FORNECIMENTO, INSTALAÇÃO E REJUNTAMENTO, EXCLUSIVE TORNEIRA E ENGATE FLEXÍVEL | D112: U | E112: 13 | F112: 584.93 | G112: 7604.09 | H112: 0.002451235007 | I112: 0.8299712613
A113: 88488 | B113: SINAPI | C113: PINTURA LÁTEX ACRÍLICA PREMIUM, APLICAÇÃO MANUAL EM TETO, DUAS DEMÃOS. AF_04/2023 | D113: M2 | E113: 404.04 | F113: 18.52 | G113: 7482.82 | H113: 0.00241214272 | I113: 0.832383404
A114: COT-ARQ-004 | B114: COTAÇÃO | C114: JANELA ESQUADRIA MAXIM-AR 0,70 X 0,90 M - PINTURA PRETA E VIDRO TEMPERADO FUME 6MM | D114: UN | E114: 4 | F114: 1857.31 | G114: 7429.24 | H114: 0.002394870808 | I114: 0.8347782748
A115: 103253 | B115: SINAPI | C115: AR CONDICIONADO SPLIT INVERTER, HI-WALL (PAREDE), 24000 BTU/H, CICLO FRIO - FORNECIMENTO E INSTALAÇÃO. AF_11/2021_PE | D115: UN | E115: 1 | F115: 7297.05 | G115: 7297.05 | H115: 0.002352258378 | I115: 0.8371305332
A116: COT-DAD-006 | B116: COTAÇÃO | C116: CAMERA POE | D116: UN | E116: 10 | F116: 691.95 | G116: 6919.5 | H116: 0.002230552325 | I116: 0.8393610855
A117: COT-DAD-004 | B117: COTAÇÃO | C117: SWITCH GIGABIT 48 PORTAS POE | D117: UN | E117: 1 | F117: 6811.57 | G117: 6811.57 | H117: 0.002195760287 | I117: 0.8415568458
A118: ED-48533 | B118: SETOP | C118: DIVISÓRIA EM GRANITO CINZA ANDORINHA, ESP. 3CM, INCLUSIVE INSTALAÇÃO, FERRAGENS EM LATÃO CROMADO E ACESSÓRIOS | D118: m2 | E118: 8.04 | F118: 829.61 | G118: 6670.06 | H118: 0.002150143485 | I118: 0.8437069893
A119: 92770 | B119: SINAPI | C119: ARMAÇÃO DE LAJE DE ESTRUTURA CONVENCIONAL DE CONCRETO ARMADO UTILIZANDO AÇO CA-50 DE 8,0 MM - MONTAGEM. AF_06/2022 | D119: KG | E119: 444.6 | F119: 14.51 | G119: 6451.15 | H119: 0.002079576217 | I119: 0.8457865655
A120: EST-006 | B120: CPU | C120: LAJE TRELIÇADA H=21 CM - INCLUSO MONTAGEM E FORNECIMENTO DOS MATERIAIS, EXCETO CONCRETAGEM | D120: M2 | E120: 28.64 | F120: 224.64 | G120: 6433.69 | H120: 0.002073947856 | I120: 0.8478605133
A121: 90843 | B121: SINAPI | C121: KIT DE PORTA DE MADEIRA PARA PINTURA, SEMI-OCA (LEVE OU MÉDIA), PADRÃO MÉDIO, 80X210CM, ESPESSURA DE 3,5CM, ITENS INCLUSOS: DOBRADIÇAS, MONTAGEM E INSTALAÇÃO DO BATENTE, FECHADURA COM EXECUÇÃO DO FURO - FORNECIMENTO E INSTALAÇÃO. AF_12/2019 | D121: UN | E121: 5 | F121: 1284.05 | G121: 6420.25 | H121: 0.002069615372 | I121: 0.8499301287
A122: 87879 | B122: SINAPI | C122: CHAPISCO APLICADO EM ALVENARIAS E ESTRUTURAS DE CONCRETO INTERNAS, COM COLHER DE PEDREIRO. ARGAMASSA TRAÇO 1:3 COM PREPARO EM BETONEIRA 400L. AF_10/2022 | D122: M2 | E122: 1190.08 | F122: 5.35 | G122: 6366.93 | H122: 0.002052427273 | I122: 0.851982556
A123: ED-50998 | B123: SETOP | C123: PEITORIL DE GRANITO, NA COR CINZA ANDORINHA, COM PINGADEIRA, ESP. 3CM, ACABAMENTO POLIDO, ASSENTAMENTO COM ARGAMASSA INDUSTRIALIZADA, INCLUSIVE REJUNTAMENTO | D123: m2 | E123: 13.018 | F123: 483.45 | G123: 6294.52 | H123: 0.002029085371 | I123: 0.8540116413
A124: ARQ-001 | B124: CPU | C124: PORTA DE ALUMÍNIO DE ABRIR COM LAMBRI, FIXAÇÃO COM PARAFUSOS - FORNECIMENTO E INSTALAÇÃO. | D124: M2 | E124: 7.6 | F124: 824.37 | G124: 6265.21 | H124: 0.002019637074 | I124: 0.8560312784
A125: 95584 | B125: SINAPI | C125: MONTAGEM DE ARMADURA TRANSVERSAL DE ESTACAS DE SEÇÃO CIRCULAR, DIÂMETRO = 6,30 MM. AF_09/2021_PS | D125: KG | E125: 365.2 | F125: 16.87 | G125: 6160.92 | H125: 0.001986018416 | I125: 0.8580172968
A126: 100978 | B126: SINAPI | C126: CARGA, MANOBRA E DESCARGA DE SOLOS E MATERIAIS GRANULARES EM CAMINHÃO BASCULANTE 10 M³ - CARGA COM ESCAVADEIRA HIDRÁULICA (CAÇAMBA DE 1,20 M³ / 155 HP) E DESCARGA LIVRE (UNIDADE: M3). AF_07/2020 | D126: M3 | E126: 704.6072222 | F126: 8.72 | G126: 6144.2 | H126: 0.0019806286 | I126: 0.8599979254
A127: ED-9077 | B127: SETOP | C127: MONTAGEM E DESMONTAGEM DE ANDAIME METÁLICO TUBULAR TIPO TORRE, EXCLUSIVE FORNECIMENTO DO ANDAIME | D127: m | E127: 539.2 | F127: 11.39 | G127: 6141.49 | H127: 0.001979755011 | I127: 0.8619776804
A128: COT-ARQ-001 | B128: COTAÇÃO | C128: PORTAS VAI E VEM EM ABS, 150 X 210 CM, COM VISOR - FORNECIMENTO E INSTALAÇÃO | D128: UN | E128: 1 | F128: 5859.45 | G128: 5859.45 | H128: 0.001888837318 | I128: 0.8638665178
A129: 104919 | B129: SINAPI | C129: ARMAÇÃO DE SAPATA ISOLADA, VIGA BALDRAME E SAPATA CORRIDA UTILIZANDO AÇO CA-50 DE 10 MM - MONTAGEM. AF_01/2024 | D129: KG | E129: 373.3 | F129: 15.43 | G129: 5760.02 | H129: 0.001856785318 | I129: 0.8657233031
A130: 92761 | B130: SINAPI | C130: ARMAÇÃO DE PILAR OU VIGA DE ESTRUTURA CONVENCIONAL DE CONCRETO ARMADO UTILIZANDO AÇO CA-50 DE 8,0 MM - MONTAGEM. AF_06/2022 | D130: KG | E130: 372.9 | F130: 15.09 | G130: 5627.06 | H130: 0.001813924672 | I130: 0.8675372278
A131: ARQ-003 | B131: CPU | C131: PORTA EM ALUMÍNIO COMPLETA, DIMENSÃO (2,20 X 2,10 M), COM DUAS FOLHAS MÓVEIS, LINHA 25/SUPREMA, ACABAMENTO ANODIZADO PRETO, INCLUSIVE PERFIS, VIDRO FUME LAMINADO 6MM, FERRAGENS E INSTALAÇÃO | D131: UN | E131: 1 | F131: 5552.68 | G131: 5552.68 | H131: 0.001789947725 | I131: 0.8693271755
A132: 104916 | B132: SINAPI | C132: ARMAÇÃO DE SAPATA ISOLADA, VIGA BALDRAME E SAPATA CORRIDA UTILIZANDO AÇO CA-60 DE 5 MM - MONTAGEM. AF_01/2024 | D132: KG | E132: 278.3 | F132: 19.9 | G132: 5538.17 | H132: 0.001785270319 | I132: 0.8711124458
A133: 105031 | B133: SINAPI | C133: CONTRAVERGA MOLDADA IN LOCO COM UTILIZAÇÃO DE BLOCOS CANALETA, ESPESSURA DE *15* CM. AF_03/2024 | D133: M | E133: 92.8 | F133: 59.09 | G133: 5483.55 | H133: 0.001767663155 | I133: 0.872880109
A134: 86936 | B134: SINAPI | C134: CUBA DE EMBUTIR DE AÇO INOXIDÁVEL MÉDIA, INCLUSO VÁLVULA TIPO AMERICANA E SIFÃO TIPO GARRAFA EM METAL CROMADO - FORNECIMENTO E INSTALAÇÃO. AF_01/2020 | D134: UN | E134: 8 | F134: 683.94 | G134: 5471.52 | H134: 0.001763785195 | I134: 0.8746438942
A135: COT-ARQ-009 | B135: COTAÇÃO | C135: JANELA ESQUADRIA MAXIM-AR 2,20 X 1,20 M - PINTURA PRETA E VIDRO TEMPERADO FUME 6MM | D135: UN | E135: 2 | F135: 2712.07 | G135: 5424.14 | H135: 0.0017485119 | I135: 0.8763924061
A136: ACE-003 | B136: CPU | C136: PISO TATIL ALERTA OU DIRECIONAL, DE BORRACHA, COLORIDO, 25 X 25 CM, E = 5 MM, PARA COLA - FORNECIMENTO E INSTALAÇÃO | D136: M2 | E136: 16.6875 | F136: 324.34 | G136: 5413.23 | H136: 0.00174499498 | I136: 0.878137401
A137: 96546 | B137: SINAPI | C137: ARMAÇÃO DE BLOCO UTILIZANDO AÇO CA-50 DE 10 MM - MONTAGEM. AF_01/2024 | D137: KG | E137: 318.3 | F137: 16.9 | G137: 5379.27 | H137: 0.001734047721 | I137: 0.8798714488
A138: 103250 | B138: SINAPI | C138: AR CONDICIONADO SPLIT INVERTER, HI-WALL (PAREDE), 18000 BTU/H, CICLO FRIO - FORNECIMENTO E INSTALAÇÃO. AF_11/2021_PE | D138: UN | E138: 1 | F138: 5342.21 | G138: 5342.21 | H138: 0.001722101154 | I138: 0.8815935499
A139: ED-17989 | B139: SETOP | C139: LOCAÇÃO DE OBRA COM GABARITO DE TÁBUAS CORRIDAS PONTALETADAS A CADA 2,00M, REAPROVEITAMENTO (2X), INCLUSIVE ACOMPANHAMENTO DE EQUIPE TOPOGRÁFICA PARA MARCAÇÃO DE PONTO TOPOGRÁFICO | D139: m | E139: 90 | F139: 57.92 | G139: 5212.8 | H139: 0.001680384878 | I139: 0.8832739348
A140: 89356 | B140: SINAPI | C140: TUBO, PVC, SOLDÁVEL, DE 25MM, INSTALADO EM RAMAL OU SUB-RAMAL DE ÁGUA - FORNECIMENTO E INSTALAÇÃO. AF_06/2022 | D140: M | E140: 191.41 | F140: 27.15 | G140: 5196.78 | H140: 0.001675220712 | I140: 0.8849491555
A141: 89987 | B141: SINAPI | C141: REGISTRO DE GAVETA BRUTO, LATÃO, ROSCÁVEL, 3/4", COM ACABAMENTO E CANOPLA CROMADOS - FORNECIMENTO E INSTALAÇÃO. AF_08/2021 | D141: UN | E141: 31 | F141: 163.95 | G141: 5082.45 | H141: 0.001638365585 | I141: 0.8865875211
A142: ED-50329 | B142: SETOP | C142: TORNEIRA METÁLICA PARA LAVATÓRIO, FECHAMENTO AUTOMÁTICO, ACABAMENTO CROMADO, COM AREJADOR, APLICAÇÃO DE MESA, INCLUSIVE ENGATE FLEXÍVEL METÁLICO, FORNECIMENTO E INSTALAÇÃO | D142: un | E142: 18 | F142: 277.62 | G142: 4997.16 | H142: 0.001610871719 | I142: 0.8881983928
A143: ED-29455 | B143: SETOP | C143: ASSENTAMENTO DE ESQUADRIA DE ALUMÍNIO, INCLUSIVE FIXAÇÃO DO CONTRAMARCO, EXCLUSIVE FORNECIMENTO DA ESQUADRIA | D143: m² | E143: 51.24 | F143: 97.33 | G143: 4987.19 | H143: 0.001607657815 | I143: 0.8898060506
A144: COT-ARQ-011 | B144: COTAÇÃO | C144: LETREIRO - FORNECIMENTO E INSTALAÇÃO | D144: UN | E144: 1 | F144: 4934.28 | G144: 4934.28 | H144: 0.001590601883 | I144: 0.8913966525
A145: 86938 | B145: SINAPI | C145: CUBA DE EMBUTIR OVAL EM LOUÇA BRANCA, 35 X 50CM OU EQUIVALENTE, INCLUSO VÁLVULA E SIFÃO TIPO GARRAFA EM METAL CROMADO - FORNECIMENTO E INSTALAÇÃO. AF_01/2020 | D145: UN | E145: 8 | F145: 606.78 | G145: 4854.24 | H145: 0.001564800393 | I145: 0.8929614529
A146: 88485 | B146: SINAPI | C146: FUNDO SELADOR ACRÍLICO, APLICAÇÃO MANUAL EM PAREDE, UMA DEMÃO. AF_04/2023 | D146: M2 | E146: 888.45 | F146: 5.22 | G146: 4637.71 | H146: 0.001495000336 | I146: 0.8944564532
A147: ED-29817 | B147: SETOP | C147: MOBILIZAÇÃO E DESMOBILIZAÇÃO DE EQUIPAMENTO PARA ESTACA TIPO TRADO ROTATIVO (CUSTO FIXO), INCLUSIVE CARGA E DESCARGA, EXCLUSIVE TRANSPORTE EM QUILÔMETRO RODADO (CUSTO VARIÁVEL) | D147: un | E147: 1 | F147: 4564.71 | G147: 4564.71 | H147: 0.001471468243 | I147: 0.8959279215
A148: 90466 | B148: SINAPI | C148: CHUMBAMENTO LINEAR EM ALVENARIA PARA RAMAIS/DISTRIBUIÇÃO DE INSTALAÇÕES HIDRÁULICAS COM DIÂMETROS MENORES OU IGUAIS A 40 MM. AF_09/2023 | D148: M | E148: 254.84 | F148: 17.71 | G148: 4513.22 | H148: 0.001454870058 | I148: 0.8973827915
A149: ED-51017 | B149: SETOP | C149: ATERRAMENTO COMPLETO PARA PARA-RAIOS, COM HASTE DE COBRE DE ALTA CAMADA, TIPO COPPERWELD, DIÂMETRO DE 3/4", COMPRIMENTO DE 240CM, EXCLUSIVE CABO, INCLUSIVE CAIXA DE INSPEÇÃO COM TAMPA EM FERRO FUNDIDO E GRAMPO PARA HASTE | D149: un | E149: 3 | F149: 1422.8 | G149: 4268.4 | H149: 0.001375950509 | I149: 0.898758742
A150: 86932 | B150: SINAPI | C150: VASO SANITÁRIO SIFONADO COM CAIXA ACOPLADA LOUÇA BRANCA - PADRÃO MÉDIO, INCLUSO ENGATE FLEXÍVEL EM METAL CROMADO, 1/2 X 40CM - FORNECIMENTO E INSTALAÇÃO. AF_01/2020 | D150: UN | E150: 6 | F150: 704.75 | G150: 4228.5 | H150: 0.001363088447 | I150: 0.9001218305
A151: 98680 | B151: SINAPI | C151: PISO CIMENTADO, TRAÇO 1:3 (CIMENTO E AREIA), ACABAMENTO LISO, ESPESSURA 3,0 CM, PREPARO MECÂNICO DA ARGAMASSA. AF_09/2020 | D151: M2 | E151: 68.18 | F151: 61.77 | G151: 4211.48 | H151: 0.001357601923 | I151: 0.9014794324
A152: ED-50493 | B152: SETOP | C152: PINTURA ESMALTE BASE SOLVENTE EM ESQUADRIA DE MADEIRA, DUAS (2) DEMÃOS, INCLUSIVE UMA (1) DEMÃO DE FUNDO NIVELADOR, EXCLUSIVE MASSA A ÓLEO | D152: m2 | E152: 111.3 | F152: 37.75 | G152: 4201.58 | H152: 0.001354410584 | I152: 0.902833843
A153: 104737 | B153: SINAPI | C153: REATERRO MANUAL DE VALAS, COM PLACA VIBRATÓRIA. AF_08/2023 | D153: M3 | E153: 172.47 | F153: 24.22 | G153: 4177.22 | H153: 0.001346557957 | I153: 0.9041804009
A154: 92868 | B154: SINAPI | C154: CAIXA RETANGULAR 4" X 2" MÉDIA (1,30 M DO PISO), METÁLICA, INSTALADA EM PAREDE - FORNECIMENTO E INSTALAÇÃO. AF_03/2023 | D154: UN | E154: 207 | F154: 19.95 | G154: 4129.65 | H154: 0.001331223414 | I154: 0.9055116244
A155: 87745 | B155: SINAPI | C155: CONTRAPISO EM ARGAMASSA TRAÇO 1:4 (CIMENTO E AREIA), PREPARO MECÂNICO COM BETONEIRA 400 L, APLICADO EM ÁREAS MOLHADAS SOBRE LAJE, ADERIDO, ACABAMENTO NÃO REFORÇADO, ESPESSURA 3CM. AF_07/2021 | D155: M2 | E155: 64.51 | F155: 63.95 | G155: 4125.41 | H155: 0.001329856618 | I155: 0.906841481
A156: 101880 | B156: SINAPI | C156: QUADRO DE DISTRIBUIÇÃO DE ENERGIA EM CHAPA DE AÇO GALVANIZADO, DE EMBUTIR, COM BARRAMENTO TRIFÁSICO, PARA 30 DISJUNTORES DIN 150A - FORNECIMENTO E INSTALAÇÃO. AF_10/2020 | D156: UN | E156: 5 | F156: 824.05 | G156: 4120.25 | H156: 0.001328193254 | I156: 0.9081696742
A157: ED-50266 | B157: SETOP | C157: LIMPEZA FINAL PARA ENTREGA DA OBRA | D157: m2 | E157: 443.56 | F157: 8.84 | G157: 3921.07 | H157: 0.001263986098 | I157: 0.9094336603
A158: 98295 | B158: SINAPI | C158: CABO ELETRÔNICO CATEGORIA 5E, INSTALADO EM EDIFICAÇÃO INSTITUCIONAL - FORNECIMENTO E INSTALAÇÃO. AF_11/2019 | D158: M | E158: 594.9 | F158: 6.55 | G158: 3896.6 | H158: 0.001256098012 | I158: 0.9106897583
A159: 91924 | B159: SINAPI | C159: CABO DE COBRE FLEXÍVEL ISOLADO, 1,5 MM², ANTI-CHAMA 450/750 V, PARA CIRCUITOS TERMINAIS - FORNECIMENTO E INSTALAÇÃO. AF_03/2023 | D159: M | E159: 1070.8 | F159: 3.6 | G159: 3854.88 | H159: 0.001242649259 | I159: 0.9119324076
A160: COT-DAD-001 | B160: COTAÇÃO | C160: NVR 16 PORTAS | D160: UN | E160: 1 | F160: 3741.17 | G160: 3741.17 | H160: 0.001205993994 | I160: 0.9131384016
A161: ED-48700 | B161: SETOP | C161: ATERRAMENTO COM HASTE DE COBRE, TIPO COPPERWELD, DIÂMETRO DE 5/8", COMPRIMENTO DE 240CM, EXCLUSIVE CABO E CAIXA PARA ATERRAMENTO, INCLUSIVE GRAMPO PARA HASTE E INSTALAÇÃO | D161: un | E161: 12 | F161: 307.25 | G161: 3687 | H161: 0.001188531892 | I161: 0.9143269335
A162: ED-50137 | B162: SETOP | C162: MOBILIZAÇÃO E DESMOBILIZAÇÃO DE CONTAINER, INCLUSIVE CARGA, DESCARGA E TRANSPORTE EM CAMINHÃO CARROCERIA COM GUINDAUTO (MUNCK), EXCLUSIVE LOCAÇÃO DO CONTAINER | D162: un | E162: 2 | F162: 1829.27 | G162: 3658.54 | H162: 0.001179357599 | I162: 0.9155062911
A163: 105126 | B163: SINAPI | C163: INSTALAÇÃO DE CONCERTINA SIMPLES, ESPIRAL DE 300 MM. AF_03/2024 | D163: M | E163: 95 | F163: 37.98 | G163: 3608.1 | H163: 0.001163097889 | I163: 0.916669389
A164: 96525 | B164: SINAPI | C164: ESCAVAÇÃO MECANIZADA PARA VIGA BALDRAME OU SAPATA CORRIDA COM MINI-ESCAVADEIRA (INCLUINDO ESCAVAÇÃO PARA COLOCAÇÃO DE FÔRMAS). AF_01/2024 | D164: M3 | E164: 53.17 | F164: 67.22 | G164: 3574.09 | H164: 0.001152134513 | I164: 0.9178215235
A165: 90282 | B165: SINAPI | C165: GRAUTE FGK=15 MPA; TRAÇO 1:2,2:2,5:0,3 (EM MASSA SECA DE CIMENTO/ AREIA GROSSA/ BRITA 0/ ADITIVO) - PREPARO MECÂNICO COM BETONEIRA 400 L. AF_09/2021 | D165: M3 | E165: 5.14 | F165: 670.97 | G165: 3448.79 | H165: 0.001111743125 | I165: 0.9189332666
A166: ED-51003 | B166: SETOP | C166: SOLEIRA DE GRANITO, NA COR CINZA ANDORINHA, ESP. 3CM, ACABAMENTO POLIDO, ASSENTAMENTO COM ARGAMASSA INDUSTRIALIZADA, INCLUSIVE REJUNTAMENTO | D166: m2 | E166: 7.87 | F166: 433.07 | G166: 3408.26 | H166: 0.001098677978 | I166: 0.9200319446
A167: COT-DAD-005 | B167: COTAÇÃO | C167: ACCESS POINT | D167: UN | E167: 3 | F167: 1134.68 | G167: 3404.04 | H167: 0.00109731763 | I167: 0.9211292622
A168: 91996 | B168: SINAPI | C168: TOMADA MÉDIA DE EMBUTIR (1 MÓDULO), 2P+T 10 A, INCLUINDO SUPORTE E PLACA - FORNECIMENTO E INSTALAÇÃO. AF_03/2023 | D168: UN | E168: 83 | F168: 40.99 | G168: 3402.17 | H168: 0.001096714821 | I168: 0.922225977
A169: ED-50943 | B169: SETOP | C169: CORRIMÃO DUPLO EM TUBO DE AÇO INOX D = 1 1/2" FIXADO EM ALVENARIA | D169: m | E169: 6 | F169: 551.45 | G169: 3308.7 | H169: 0.001066584071 | I169: 0.9232925611
A170: 96521 | B170: SINAPI | C170: ESCAVAÇÃO MECANIZADA PARA BLOCO DE COROAMENTO OU SAPATA COM RETROESCAVADEIRA (INCLUINDO ESCAVAÇÃO PARA COLOCAÇÃO DE FÔRMAS). AF_01/2024 | D170: M3 | E170: 62.7 | F170: 52.56 | G170: 3295.51 | H170: 0.001062332176 | I170: 0.9243548933
A171: 94651 | B171: SINAPI | C171: TUBO, PVC, SOLDÁVEL, DE 50MM, INSTALADO EM RESERVAÇÃO PREDIAL DE ÁGUA - FORNECIMENTO E INSTALAÇÃO. AF_04/2024 | D171: M | E171: 124.35 | F171: 26.5 | G171: 3295.27 | H171: 0.00106225481 | I171: 0.9254171481
A172: 89714 | B172: SINAPI | C172: TUBO PVC, SERIE NORMAL, ESGOTO PREDIAL, DN 100 MM, FORNECIDO E INSTALADO EM RAMAL DE DESCARGA OU RAMAL DE ESGOTO SANITÁRIO. AF_08/2022 | D172: M | E172: 72.34 | F172: 45.02 | G172: 3256.75 | H172: 0.001049837602 | I172: 0.9264669857
A173: ED-48189 | B173: SETOP | C173: SABONETEIRA PLASTICA TIPO DISPENSER PARA SABONETE LIQUIDO COM RESERVATORIO 1500 ML | D173: U | E173: 29 | F173: 111.04 | G173: 3220.16 | H173: 0.001038042543 | I173: 0.9275050282
A174: ED-13287 | B174: SETOP | C174: CAMADA DE REGULARIZAÇÃO COM ARGAMASSA, TRAÇO 1:3 (CIMENTO E AREIA), ESP. 20MM, APLICAÇÃO MANUAL, INCLUSIVE ARGAMASSA COM PREPARO MECANIZADO | D174: m2 | E174: 71.7 | F174: 44.35 | G174: 3179.9 | H174: 0.001025064432 | I174: 0.9285300927
A175: ED-48343 | B175: SETOP | C175: BANCADA EM GRANITO CINZA ANDORINHA E = 3 CM, APOIADA EM CONSOLE DE METALON 20 X 30 MM | D175: m2 | E175: 6.63 | F175: 476.05 | G175: 3156.21 | H175: 0.001017427785 | I175: 0.9295475205
A176: 92764 | B176: SINAPI | C176: ARMAÇÃO DE PILAR OU VIGA DE ESTRUTURA CONVENCIONAL DE CONCRETO ARMADO UTILIZANDO AÇO CA-50 DE 16,0 MM - MONTAGEM. AF_06/2022 | D176: KG | E176: 285.5 | F176: 10.99 | G176: 3137.65 | H176: 0.00101144483 | I176: 0.9305589653
A177: ACE-004 | B177: CPU | C177: PISO TATIL DE ALERTA OU DIRECIONAL, DE BORRACHA, PRETO, 25 X 25 CM, E = 12 MM, PARA ARGAMASSA - FORNECIMENTO E INSTALAÇÃO | D177: M2 | E177: 4.75 | F177: 655.63 | G177: 3114.24 | H177: 0.001003898443 | I177: 0.9315628637
A178: COT-ACE-001 | B178: COTAÇÃO | C178: CHAPA DE PROTEÇÃO IMPACTO PARA PORTA 40X80 | D178: UN | E178: 12 | F178: 259.15 | G178: 3109.8 | H178: 0.001002467176 | I178: 0.9325653309
A179: ALV-001 | B179: CPU | C179: CORRIMÃO DUPLO EM TUBO DE AÇO INOX D = 1 1/2" FIXADO EM PISO | D179: M | E179: 5.52 | F179: 544.51 | G179: 3005.7 | H179: 0.0009689097658 | I179: 0.9335342407
A180: 104920 | B180: SINAPI | C180: ARMAÇÃO DE BLOCO, SAPATA ISOLADA, VIGA BALDRAME E SAPATA CORRIDA UTILIZANDO AÇO CA-50 DE 12,5 MM - MONTAGEM. AF_01/2024 | D180: KG | E180: 224.9 | F180: 13.09 | G180: 2943.94 | H180: 0.0009490009701 | I180: 0.9344832416
A181: 96543 | B181: SINAPI | C181: ARMAÇÃO DE BLOCO UTILIZANDO AÇO CA-60 DE 5 MM - MONTAGEM. AF_01/2024 | D181: KG | E181: 122.4 | F181: 23.58 | G181: 2886.19 | H181: 0.0009303848278 | I181: 0.9354136265
A182: ED-51019 | B182: SETOP | C182: BARRA CHATA DE ALUMÍNIO 7/8" X 1/8" X 3M | D182: U | E182: 82 | F182: 35.09 | G182: 2877.38 | H182: 0.0009275448587 | I182: 0.9363411713
A183: 96616 | B183: SINAPI | C183: LASTRO DE CONCRETO MAGRO, APLICADO EM BLOCOS DE COROAMENTO OU SAPATAS. AF_01/2024 | D183: M3 | E183: 2.85 | F183: 1009.22 | G183: 2876.28 | H183: 0.0009271902655 | I183: 0.9372683616
A184: ED-50986 | B184: SETOP | C184: PORTÃO EM TUBO DE AÇO GALVANIZADO COM COSTURA, DIÂMETRO DE 1.1/2" (38,1MM), ESP. 2MM, COM TELA QUADRICULADA ONDULADA, TRAMA DE 1/2" (12,70MM), FIO 12 (2,77MM), EXCLUSIVE CADEADO E PINTURA | D184: m2 | E184: 4.2 | F184: 682.99 | G184: 2868.56 | H184: 0.0009247016661 | I184: 0.9381930633
A185: ED-49197 | B185: SETOP | C185: CAIXA DE INSPEÇÃO EM CONCRETO, TIPO "ZA" PASSEIO, PADRÃO CEMIG, DIMENSÃO (28X28)CM, ALTURA 40CM, COM TAMPA E ARO ARTICULADO EM FERRO FUNDIDO, INCLUSIVE ESCAVAÇÃO, APILOAMENTO, LASTRO DE BRITA, REATERRO E TRANSPORTE COM RETIRADA DO MATERIAL ESCAVADO (EM CAÇAMBA) | D185: un | E185: 11 | F185: 253.67 | G185: 2790.37 | H185: 0.0008994965376 | I185: 0.9390925598
A186: COT-ARQ-007 | B186: COTAÇÃO | C186: JANELA ESQUADRIA MAXIM-AR 1,60 X 0,70 M - PINTURA PRETA E VIDRO TEMPERADO FUME 6MM | D186: UN | E186: 2 | F186: 1382.19 | G186: 2764.38 | H186: 0.0008911184677 | I186: 0.9399836783
A187: 102610 | B187: SINAPI | C187: CAIXA D´ÁGUA EM POLIETILENO, 3000 LITROS - FORNECIMENTO E INSTALAÇÃO. AF_06/2021 | D187: UN | E187: 1 | F187: 2762.43 | G187: 2762.43 | H187: 0.0008904898707 | I187: 0.9408741681
A188: 91845 | B188: SINAPI | C188: ELETRODUTO FLEXÍVEL CORRUGADO REFORÇADO, PVC, DN 25 MM (3/4"), PARA CIRCUITOS TERMINAIS, INSTALADO EM LAJE - FORNECIMENTO E INSTALAÇÃO. AF_03/2023 | D188: M | E188: 257.4 | F188: 10.52 | G188: 2707.85 | H188: 0.0008728956015 | I188: 0.9417470637
A189: COT-ARQ-006 | B189: COTAÇÃO | C189: JANELA ESQUADRIA MAXIM-AR 1,60 X 0,60 M - PINTURA PRETA E VIDRO TEMPERADO FUME 6MM | D189: UN | E189: 2 | F189: 1284.25 | G189: 2568.5 | H189: 0.0008279750918 | I189: 0.9425750388
A190: 88484 | B190: SINAPI | C190: FUNDO SELADOR ACRÍLICO, APLICAÇÃO MANUAL EM TETO, UMA DEMÃO. AF_04/2023 | D190: M2 | E190: 404.04 | F190: 6.31 | G190: 2549.49 | H190: 0.0008218470768 | I190: 0.9433968859
A191: COT-SPDA-002 | B191: COTAÇÃO | C191: CONECTOR ATERRINSERT | D191: UN | E191: 30 | F191: 84.76 | G191: 2542.8 | H191: 0.0008196905055 | I191: 0.9442165764
A192: 92771 | B192: SINAPI | C192: ARMAÇÃO DE LAJE DE ESTRUTURA CONVENCIONAL DE CONCRETO ARMADO UTILIZANDO AÇO CA-50 DE 10,0 MM - MONTAGEM. AF_06/2022 | D192: KG | E192: 193.2 | F192: 12.96 | G192: 2503.87 | H192: 0.0008071411303 | I192: 0.9450237175
A193: 93660 | B193: SINAPI | C193: DISJUNTOR BIPOLAR TIPO DIN, CORRENTE NOMINAL DE 10A - FORNECIMENTO E INSTALAÇÃO. AF_10/2020 | D193: UN | E193: 23 | F193: 108.45 | G193: 2494.35 | H193: 0.0008040722874 | I193: 0.9458277898
A194: 97328 | B194: SINAPI | C194: TUBO EM COBRE FLEXÍVEL, DN 3/8", COM ISOLAMENTO, INSTALADO EM RAMAL DE ALIMENTAÇÃO DE AR CONDICIONADO COM CONDENSADORA INDIVIDUAL - FORNECIMENTO E INSTALAÇÃO. AF_12/2015 | D194: M | E194: 40.7 | F194: 58.45 | G194: 2378.92 | H194: 0.0007668625678 | I194: 0.9465946524
A195: 101881 | B195: SINAPI | C195: QUADRO DE DISTRIBUIÇÃO DE ENERGIA EM CHAPA DE AÇO GALVANIZADO, DE EMBUTIR, COM BARRAMENTO TRIFÁSICO, PARA 40 DISJUNTORES DIN 100A - FORNECIMENTO E INSTALAÇÃO. AF_10/2020 | D195: UN | E195: 2 | F195: 1183.82 | G195: 2367.64 | H195: 0.0007632263758 | I195: 0.9473578788
A196: 89865 | B196: SINAPI | C196: TUBO, PVC, SOLDÁVEL, DE 25MM, INSTALADO EM DRENO DE AR-CONDICIONADO - FORNECIMENTO E INSTALAÇÃO. AF_08/2022 | D196: M | E196: 119 | F196: 19.87 | G196: 2364.53 | H196: 0.0007622238442 | I196: 0.9481201026
A197: 86919 | B197: SINAPI | C197: TANQUE DE LOUÇA BRANCA COM COLUNA, 30L OU EQUIVALENTE, INCLUSO SIFÃO FLEXÍVEL EM PVC, VÁLVULA METÁLICA E TORNEIRA DE METAL CROMADO PADRÃO MÉDIO - FORNECIMENTO E INSTALAÇÃO. AF_01/2020 | D197: UN | E197: 2 | F197: 1172.27 | G197: 2344.54 | H197: 0.0007557799189 | I197: 0.9488758825
A198: 89712 | B198: SINAPI | C198: TUBO PVC, SERIE NORMAL, ESGOTO PREDIAL, DN 50 MM, FORNECIDO E INSTALADO EM RAMAL DE DESCARGA OU RAMAL DE ESGOTO SANITÁRIO. AF_08/2022 | D198: M | E198: 72.21 | F198: 32.33 | G198: 2334.55 | H198: 0.0007525595681 | I198: 0.9496284421
A199: ED-51121 | B199: SETOP | C199: REATERRO MANUAL DE VALA, INCLUSIVE ESPALHAMENTO E COMPACTAÇÃO MECANIZADA COM PLACA VIBRATÓRIA | D199: m3 | E199: 44.47 | F199: 52.01 | G199: 2312.88 | H199: 0.0007455740823 | I199: 0.9503740162
A200: 90443 | B200: SINAPI | C200: RASGO LINEAR MANUAL EM ALVENARIA, PARA RAMAIS/ DISTRIBUIÇÃO DE INSTALAÇÕES HIDRÁULICAS, DIÂMETROS MENORES OU IGUAIS A 40 MM. AF_09/2023 | D200: M | E200: 254.84 | F200: 8.94 | G200: 2278.27 | H200: 0.0007344172912 | I200: 0.9511084335
A201: COT-CLI-001 | B201: COTAÇÃO | C201: CABO PP TETRAPOLAR, 4X2,5MM², 1KV | D201: M | E201: 57.6 | F201: 38.57 | G201: 2221.63 | H201: 0.0007161589656 | I201: 0.9518245924
A202: ED-51021 | B202: SETOP | C202: RE-BAR 8MM X 4M COM 3 CLIPS PARA EMENDA 8-10MM | D202: U | E202: 31 | F202: 70.99 | G202: 2200.69 | H202: 0.0007094088008 | I202: 0.9525340012
A203: ED-2552 | B203: SETOP | C203: LAVATÓRIO DE CANTO DE LOUÇA BRANCA SEM COLUNA, TAMANHO PEQUENO, INCLUSIVE ACESSÓRIOS DE FIXAÇÃO COM PARAFUSO CASTELO, VÁLVULA DE ESCOAMENTO DE METAL COM ACABAMENTO CROMADO, SIFÃO DE METAL TIPO COPO COM ACABAMENTO CROMADO, FORNECIMENTO, INSTALAÇÃO E REJUNTAMENTO, EXCLUSIVE TORNEIRA E ENGATE FLEXÍVEL | D203: un | E203: 3 | F203: 732.95 | G203: 2198.85 | H203: 0.0007088156631 | I203: 0.9532428169
A204: 96545 | B204: SINAPI | C204: ARMAÇÃO DE BLOCO UTILIZANDO AÇO CA-50 DE 8 MM - MONTAGEM. AF_01/2024 | D204: KG | E204: 113.9 | F204: 19.28 | G204: 2195.99 | H204: 0.0007078937208 | I204: 0.9539507106
A205: 89584 | B205: SINAPI | C205: JOELHO 90 GRAUS, PVC, SERIE R, ÁGUA PLUVIAL, DN 100 MM, JUNTA ELÁSTICA, FORNECIDO E INSTALADO EM CONDUTORES VERTICAIS DE ÁGUAS PLUVIAIS. AF_06/2022 | D205: UN | E205: 42 | F205: 52.27 | G205: 2195.34 | H205: 0.0007076841885 | I205: 0.9546583948
A206: 87905 | B206: SINAPI | C206: CHAPISCO APLICADO EM ALVENARIA (COM PRESENÇA DE VÃOS) E ESTRUTURAS DE CONCRETO DE FACHADA, COM COLHER DE PEDREIRO. ARGAMASSA TRAÇO 1:3 COM PREPARO EM BETONEIRA 400L. AF_10/2022 | D206: M2 | E206: 218.29 | F206: 9.43 | G206: 2058.47 | H206: 0.0006635631253 | I206: 0.9553219579
A207: 92004 | B207: SINAPI | C207: TOMADA MÉDIA DE EMBUTIR (2 MÓDULOS), 2P+T 10 A, INCLUINDO SUPORTE E PLACA - FORNECIMENTO E INSTALAÇÃO. AF_03/2023 | D207: UN | E207: 31 | F207: 65.47 | G207: 2029.57 | H207: 0.0006542469952 | I207: 0.9559762049
A208: 91936 | B208: SINAPI | C208: CAIXA OCTOGONAL 4" X 4", PVC, INSTALADA EM LAJE - FORNECIMENTO E INSTALAÇÃO. AF_03/2023 | D208: UN | E208: 89 | F208: 22.5 | G208: 2002.5 | H208: 0.0006455207792 | I208: 0.9566217257
A209: 10.47.07 | B209: SUDECAP | C209: BEBEDOURO INDUSTRIAL 50L | D209: UN | E209: 1 | F209: 1993.27 | G209: 1993.27 | H209: 0.00064254542 | I209: 0.9572642711
A210: 96622 | B210: SINAPI | C210: LASTRO COM MATERIAL GRANULAR, APLICADO EM PISOS OU LAJES SOBRE SOLO, ESPESSURA DE *5 CM*. AF_01/2024 | D210: M3 | E210: 6.4985 | F210: 304.76 | G210: 1980.94 | H210: 0.0006385707527 | I210: 0.9579028419
A211: ED-48182 | B211: SETOP | C211: DISPENSER EM PLÁSTICO PARA PAPEL TOALHA 2 OU 3 FOLHAS | D211: U | E211: 22 | F211: 89.5 | G211: 1969 | H211: 0.0006347218048 | I211: 0.9585375637
A212: ED-15752 | B212: SETOP | C212: CONJUNTO DE UMA (1) TOMADA DE DADOS (CONECTOR RJ45 CAT.6E), COM PLACA 4"X2" DE UM (1) POSTO, INCLUSIVE FORNECIMENTO, INSTALAÇÃO, SUPORTE, MÓDULO E PLACA | D212: un | E212: 23 | F212: 85.42 | G212: 1964.66 | H212: 0.0006333227735 | I212: 0.9591708865
... 211 more rows

Sheet Auxiliar_ABC (hidden)
A1: 92453 | B1: SINAPI | C1: MONTAGEM E DESMONTAGEM DE FÔRMA DE VIGA, ESCORAMENTO COM GARFO DE MADEIRA, PÉ-DIREITO DUPLO, EM CHAPA DE MADEIRA RESINADA, 4 UTILIZAÇÕES. AF_09/2020 | D1: M2 | E1: 694.36 | F1: 295.99 | G1: 205523.62 | H1: 0.06625206858 | I1: 0.06625206858 | R1: QUANTIDADE TOTAL | V1: VALOR TOTAL | W1: % | X1: =W1 -> %
A2: EST-001 | B2: CPU | C2: ESTACA HÉLICE CONTÍNUA, DIÂMETRO DE 30 CM, INCLUSO CONCRETO FCK=30MPA E ARMADURA MÍNIMA (EXCLUSIVE BOMBEAMENTO, MOBILIZAÇÃO E DESMOBILIZAÇÃO). | D2: M | E2: 984 | F2: 162.13 | G2: 159535.92 | H2: 0.0514275912 | I2: 0.1176796598 | R2: =SUMIF(ORC!$F:$F,O2,ORC!$I:$I) -> 0 | V2: =SUMIF(ORC!$F:$F,O2,ORC!$N:$N) -> 0 | W2: =V2/SUM($I:$I) -> 0 | X2: =W2+X1 -> 
A3: EST-005 | B3: CPU | C3: LAJE TRELIÇADA H=17 CM - INCLUSO MONTAGEM E FORNECIMENTO DOS MATERIAIS, EXCETO CONCRETAGEM | D3: M2 | E3: 915.57 | F3: 147.47 | G3: 135019.11 | H3: 0.04352441503 | I3: 0.1612040748
A4: 90777 | B4: SINAPI | C4: ENGENHEIRO CIVIL DE OBRA JUNIOR COM ENCARGOS COMPLEMENTARES | D4: H | E4: 960 | F4: 130.27 | G4: 125059.2 | H4: 0.04031376391 | I4: 0.2015178387
A5: 103318 | B5: SINAPI | C5: ALVENARIA DE VEDAÇÃO DE BLOCOS VAZADOS DE CONCRETO DE 14X19X39 CM (ESPESSURA 14 CM) E ARGAMASSA DE ASSENTAMENTO COM PREPARO EM BETONEIRA. AF_12/2021 | D5: M2 | E5: 952.14 | F5: 122.8 | G5: 116922.79 | H5: 0.03769093159 | I5: 0.2392087703
A6: EST-007 | B6: CPU | C6: CONCRETAGEM DE VIGAS E LAJES, FCK=30 MPA, PARA LAJES PREMOLDADAS COM USO DE BOMBA - LANÇAMENTO, ADENSAMENTO E ACABAMENTO. | D6: M3 | E6: 108.29 | F6: 983.64 | G6: 106518.38 | H6: 0.03433699259 | I6: 0.2735457629
A7: ED-49664 | B7: SETOP | C7: FORNECIMENTO DE ESTRUTURA METÁLICA EM PERFIL LAMINADO, INCLUSIVE FABRICAÇÃO, TRANSPORTE, MONTAGEM E APLICAÇÃO DE FUNDO PREPARADOR ANTICORROSIVO EM SUPERFÍCIE METÁLICA, UMA (1) DEMÃO | D7: Kg | E7: 3615.7 | F7: 28.31 | G7: 102360.47 | H7: 0.03299665935 | I7: 0.3065424222
A8: 87797 | B8: SINAPI | C8: EMBOÇO OU MASSA ÚNICA EM ARGAMASSA TRAÇO 1:2:8, PREPARO MECÂNICO COM BETONEIRA 400 L, APLICADA MANUALMENTE EM PANOS CEGOS DE FACHADA (SEM PRESENÇA DE VÃOS), ESPESSURA DE 35 MM. AF_08/2022 | D8: M2 | E8: 1201.46 | F8: 67.49 | G8: 81086.54 | H8: 0.02613884968 | I8: 0.3326812719
A9: 87529 | B9: SINAPI | C9: MASSA ÚNICA, EM ARGAMASSA TRAÇO 1:2:8, PREPARO MECÂNICO, APLICADA MANUALMENTE EM PAREDES INTERNAS DE AMBIENTES COM ÁREA ENTRE 5M² E 10M², E = 17,5MM, COM TALISCAS. AF_03/2024 | D9: M2 | E9: 1190.08 | F9: 44 | G9: 52363.52 | H9: 0.0168797704 | I9: 0.3495610423
A10: 98562 | B10: SINAPI | C10: IMPERMEABILIZAÇÃO DE SUPERFÍCIE COM ARGAMASSA DE CIMENTO E AREIA, COM ADITIVO IMPERMEABILIZANTE, E = 1,5CM. AF_09/2023 | D10: M2 | E10: 870.49 | F10: 58.36 | G10: 50801.79 | H10: 0.01637633511 | I10: 0.3659373774
A11: 92425 | B11: SINAPI | C11: MONTAGEM E DESMONTAGEM DE FÔRMA DE PILARES RETANGULARES E ESTRUTURAS SIMILARES, PÉ-DIREITO DUPLO, EM CHAPA DE MADEIRA COMPENSADA RESINADA, 6 UTILIZAÇÕES. AF_09/2020 | D11: M2 | E11: 447.72 | F11: 103.27 | G11: 46236.04 | H11: 0.01490453162 | I11: 0.3808419091
A12: 103320 | B12: SINAPI | C12: ALVENARIA DE VEDAÇÃO DE BLOCOS VAZADOS DE CONCRETO DE 19X19X39 CM (ESPESSURA 19 CM) E ARGAMASSA DE ASSENTAMENTO COM PREPARO EM BETONEIRA. AF_12/2021 | D12: M2 | E12: 309.61 | F12: 148.11 | G12: 45856.34 | H12: 0.0147821325 | I12: 0.3956240416
A13: 96557 | B13: SINAPI | C13: CONCRETAGEM DE BLOCO DE COROAMENTO OU VIGA BALDRAME, FCK 30 MPA, COM USO DE BOMBA - LANÇAMENTO, ADENSAMENTO E ACABAMENTO. AF_01/2024 | D13: M3 | E13: 42.96 | F13: 1041.18 | G13: 44729.09 | H13: 0.01441875507 | I13: 0.4100427966
A14: 92762 | B14: SINAPI | C14: ARMAÇÃO DE PILAR OU VIGA DE ESTRUTURA CONVENCIONAL DE CONCRETO ARMADO UTILIZANDO AÇO CA-50 DE 10,0 MM - MONTAGEM. AF_06/2022 | D14: KG | E14: 3236.1 | F14: 13.51 | G14: 43719.71 | H14: 0.01409337392 | I14: 0.4241361705
A15: ED-50754 | B15: SETOP | C15: REVESTIMENTO COM PORCELANATO APLICADO EM PISO, ACABAMENTO POLÍDO, AMBIENTE INTERNO, PADRÃO EXTRA, BORDA RETIFICADA, DIMENSÃO DA PEÇA (60X60)CM, ASSENTAMENTO COM ARGAMASSA INDUSTRIALIZADA, INCLUSIVE REJUNTAMENTO | D15: m2 | E15: 347.19 | F15: 121.24 | G15: 42093.32 | H15: 0.01356909499 | I15: 0.4377052655
A16: ED-48428 | B16: SETOP | C16: COBERTURA EM TELHA METÁLICA GALVANIZADA TRAPEZOIDAL, TIPO SIMPLES, ESP. 0,50MM, ACABAMENTO NATURAL, INCLUSIVE ACESSÓRIOS PARA FIXAÇÃO, FORNECIMENTO E INSTALAÇÃO | D16: m2 | E16: 318.35 | F16: 116.43 | G16: 37065.49 | H16: 0.01194833657 | I16: 0.4496536021
A17: 90844 | B17: SINAPI | C17: KIT DE PORTA DE MADEIRA PARA PINTURA, SEMI-OCA (LEVE OU MÉDIA), PADRÃO MÉDIO, 90X210CM, ESPESSURA DE 3,5CM, ITENS INCLUSOS: DOBRADIÇAS, MONTAGEM E INSTALAÇÃO DO BATENTE, FECHADURA COM EXECUÇÃO DO FURO - FORNECIMENTO E INSTALAÇÃO. AF_12/2019 | D17: UN | E17: 25 | F17: 1379.29 | G17: 34482.25 | H17: 0.01111560993 | I17: 0.460769212
A18: 92759 | B18: SINAPI | C18: ARMAÇÃO DE PILAR OU VIGA DE ESTRUTURA CONVENCIONAL DE CONCRETO ARMADO UTILIZANDO AÇO CA-60 DE 5,0 MM - MONTAGEM. AF_06/2022 | D18: KG | E18: 1920.1 | F18: 16.9 | G18: 32449.69 | H18: 0.01046039909 | I18: 0.4712296111
A19: ED-19638 | B19: SETOP | C19: CIMBRAMENTO PARA LAJE PRÉ-MOLDADA COM ESCORAMENTO METÁLICO, TIPO "B", ALTURA DE (311 ATÉ 450)CM, INCLUSIVE DESCARGA, MONTAGEM, DESMONTAGEM E CARGA | D19: m2xmês | E19: 1019.62 | F19: 30.45 | G19: 31047.43 | H19: 0.01000837014 | I19: 0.4812379813
A20: 96130 | B20: SINAPI | C20: APLICAÇÃO MANUAL DE MASSA ACRÍLICA EM PAREDES EXTERNAS DE CASAS, UMA DEMÃO. AF_03/2024 | D20: M2 | E20: 1343.63 | F20: 22.6 | G20: 30366.04 | H20: 0.009788719002 | I20: 0.4910267003
A21: ARQ-008 | B21: CPU | C21: PISO EM CONCRETO, USINADO CONVENCIONAL, ACABAMENTO POLIDO EM NÍVEL ZERO, ESP. 5CM, INCLUSIVE FORNECIMENTO, LANÇAMENTO, ADENSAMENTO | D21: M2 | E21: 232.9 | F21: 127.5 | G21: 29694.75 | H21: 0.009572323674 | I21: 0.5005990239
A22: ED-19519 | B22: SETOP | C22: ELETROCALHA PERFURADA (100X50)MM EM CHAPA DE AÇO GALVANIZADO #18, COM TRATAMENTO PRÉ-ZINCADO, INCLUSIVE TAMPA DE ENCAIXE, FIXAÇÃO SUPERIOR, CONEXÕES E ACESSÓRIOS | D22: m | E22: 257.4 | F22: 106.51 | G22: 27415.67 | H22: 0.008837645274 | I22: 0.5094366692
A23: ED-9917 | B23: SETOP | C23: PINTURA EPÓXI EM PAREDE, DUAS (2) DEMÃOS, EXCLUSIVE SELADOR ACRÍLICO E MASSA ACRÍLICA/CORRIDA (PVA) | D23: m2 | E23: 888.45 | F23: 30.82 | G23: 27382.03 | H23: 0.008826801169 | I23: 0.5182634704
A24: ED-50155 | B24: SETOP | C24: LOCAÇÃO DE BANHEIRO QUÍMICO, DIMENSÃO (110X120X230)CM, LINHA PADRÃO, CONTENDO UMA (1) PIA/HIGIENIZADOR DE MÃOS, INCLUSIVE MANUTENÇÃO E MOBILIZAÇÃO/DESMOBILIZAÇÃO | D24: mês | E24: 24 | F24: 1138.68 | G24: 27328.32 | H24: 0.008809487351 | I24: 0.5270729577
A25: 95579 | B25: SINAPI | C25: MONTAGEM DE ARMADURA DE ESTACAS, DIÂMETRO = 16,0 MM. AF_09/2021_PS | D25: KG | E25: 2540.03 | F25: 10.55 | G25: 26797.32 | H25: 0.008638315549 | I25: 0.5357112733
A26: ED-9081 | B26: SETOP | C26: REVESTIMENTO COM CERÂMICA APLICADO EM PAREDE, ACABAMENTO ESMALTADO, AMBIENTE INTERNO/EXTERNO, PADRÃO EXTRA, DIMENSÃO DA PEÇA ATÉ 2025 CM2, PEI III, ASSENTAMENTO COM ARGAMASSA INDUSTRIALIZADA, INCLUSIVE REJUNTAMENTO | D26: m2 | E26: 323.05 | F26: 82.35 | G26: 26603.17 | H26: 0.008575729851 | I26: 0.5442870031
A27: 95626 | B27: SINAPI | C27: APLICAÇÃO MANUAL DE TINTA LÁTEX ACRÍLICA EM PAREDE EXTERNAS DE CASAS, DUAS DEMÃOS. AF_03/2024 | D27: M2 | E27: 1343.63 | F27: 18.97 | G27: 25488.66 | H27: 0.008216459258 | I27: 0.5525034624
A28: EST-003 | B28: CPU | C28: CONCRETAGEM DE PILARES, FCK = 30 MPA, COM USO DE BOMBA - LANÇAMENTO, ADENSAMENTO E ACABAMENTO. | D28: M3 | E28: 26.07 | F28: 959.65 | G28: 25018.08 | H28: 0.008064764292 | I28: 0.5605682267
A29: ED-9075 | B29: SETOP | C29: FORNECIMENTO DE ANDAIME METÁLICO PARA FACHADA (LOCAÇÃO), INCLUSIVE PISO METÁLICO E SAPATAS, EXCLUSIVE MONTAGEM E DESMONTAGEM | D29: m2xmês | E29: 1440 | F29: 17.08 | G29: 24595.2 | H29: 0.007928445777 | I29: 0.5684966725
A30: LOU-002 | B30: CPU | C30: BANCADA EM AÇO INOX COM RODABANCA | D30: M2 | E30: 9.86 | F30: 2459.89 | G30: 24254.52 | H30: 0.007818625043 | I30: 0.5763152975
A31: COT-ARQ-008 | B31: COTAÇÃO | C31: JANELA ESQUADRIA MAXIM-AR 2,00 X 1,00 M - PINTURA PRETA E VIDRO TEMPERADO FUME 6MM | D31: UN | E31: 11 | F31: 2183.43 | G31: 24017.73 | H31: 0.007742294024 | I31: 0.5840575915
A32: ED-48245 | B32: SETOP | C32: MONTAGEM E DESMONTAGEM DE ANDAIME METÁLICO PARA FACHADA COM PISO METÁLICO, INCLUSIVE RODAPÉ/GUARDA-CORPO EM MADEIRA, EXCLUSIVE FORNECIMENTO DO ANDAIME | D32: m2 | E32: 1419.75 | F32: 16.33 | G32: 23184.52 | H32: 0.007473702579 | I32: 0.5915312941
A33: ED-50497 | B33: SETOP | C33: PINTURA ESMALTE BASE SOLVENTE EM ESTRUTURA METÁLICA, DUAS (2) DEMÃOS, INCLUSIVE UMA (1) DEMÃO FUNDO ANTICORROSIVO | D33: m2 | E33: 484.76 | F33: 47.19 | G33: 22875.82 | H33: 0.007374190837 | I33: 0.5989054849
A34: ED-16348 | B34: SETOP | C34: LOCAÇÃO DE CONTAINER COM ISOLAMENTO TÉRMICO, TIPO 1, PARA ESCRITÓRIO DE OBRA, COM MEDIDAS REFERENCIAIS DE (6) METROS COMPRIMENTO, (2,3) METROS LARGURA E (2,5) METROS ALTURA ÚTIL INTERNA, INCLUSIVE AR CONDICIONADO E LIGAÇÕES ELÉTRICAS INTERNAS, EXCLUSIVE MOBILIZAÇÃO/DESMOBILIZAÇÃO E LIGAÇÕES PROVISÓRIAS EXTERNAS | D34: mês | E34: 12 | F34: 1814.03 | G34: 21768.36 | H34: 0.007017192863 | I34: 0.6059226778
A35: 103245 | B35: SINAPI | C35: AR CONDICIONADO SPLIT ON/OFF, HI-WALL (PAREDE), 9000 BTUS/H, CICLO FRIO - FORNECIMENTO E INSTALAÇÃO. AF_11/2021_PE | D35: UN | E35: 8 | F35: 2593.39 | G35: 20747.12 | H35: 0.006687988548 | I35: 0.6126106664
A36: ED-13338 | B36: SETOP | C36: LUMINÁRIA COMERCIAL CHANFRADA DE SOBREPOR COMPLETA, PARA DUAS (2) LÂMPADAS TUBULARES LED 2X18W-ØT8, TEMPERATURA DA COR 6500K, FORNECIMENTO E INSTALAÇÃO, INCLUSIVE BASE E LÂMPADAS | D36: un | E36: 89 | F36: 219.47 | G36: 19532.83 | H36: 0.006296553129 | I36: 0.6189072195
A37: ED-50478 | B37: SETOP | C37: EMASSAMENTO EM PAREDE COM MASSA CORRIDA (PVA), DUAS (2) DEMÃOS, INCLUSIVE LIXAMENTO PARA PINTURA | D37: m2 | E37: 888.45 | F37: 21.97 | G37: 19519.25 | H37: 0.006292175515 | I37: 0.625199395
A38: 91835 | B38: SINAPI | C38: ELETRODUTO FLEXÍVEL CORRUGADO REFORÇADO, PVC, DN 25 MM (3/4"), PARA CIRCUITOS TERMINAIS, INSTALADO EM FORRO - FORNECIMENTO E INSTALAÇÃO. AF_03/2023_PA | D38: M | E38: 832.1 | F38: 22.98 | G38: 19121.66 | H38: 0.006164009419 | I38: 0.6313634044
A39: 94229 | B39: SINAPI | C39: CALHA EM CHAPA DE AÇO GALVANIZADO NÚMERO 24, DESENVOLVIMENTO DE 100 CM, INCLUSO TRANSPORTE VERTICAL. AF_07/2019 | D39: M | E39: 80.45 | F39: 232.36 | G39: 18693.36 | H39: 0.006025943727 | I39: 0.6373893481
A40: 100874 | B40: SINAPI | C40: PUXADOR PARA PCD, FIXADO NA PORTA - FORNECIMENTO E INSTALAÇÃO. AF_01/2020 | D40: UN | E40: 44 | F40: 423.58 | G40: 18637.52 | H40: 0.006007943287 | I40: 0.6433972914
A41: 96113 | B41: SINAPI | C41: FORRO EM PLACAS DE GESSO, PARA AMBIENTES COMERCIAIS. AF_08/2023_PS | D41: M2 | E41: 332.1 | F41: 55.64 | G41: 18478.04 | H41: 0.005956533722 | I41: 0.6493538252
A42: 87779 | B42: SINAPI | C42: EMBOÇO OU MASSA ÚNICA EM ARGAMASSA TRAÇO 1:2:8, PREPARO MECÂNICO COM BETONEIRA 400 L, APLICADA MANUALMENTE EM PANOS DE FACHADA COM PRESENÇA DE VÃOS, ESPESSURA DE 35 MM. AF_08/2022 | D42: M2 | E42: 218.29 | F42: 84.12 | G42: 18362.55 | H42: 0.005919304661 | I42: 0.6552731298
A43: 21141 | B43: SINAPI | C43: TELA DE ACO SOLDADA NERVURADA, CA-60, Q-92, (1,48 KG/M2), DIAMETRO DO FIO = 4,2 MM, LARGURA = 2,45 X 60 M DE COMPRIMENTO, ESPACAMENTO DA MALHA = 15 X 15 CM | D43: M2 | E43: 1019.62 | F43: 17.99 | G43: 18342.96 | H43: 0.005912989679 | I43: 0.6611861195
A44: 96536 | B44: SINAPI | C44: FABRICAÇÃO, MONTAGEM E DESMONTAGEM DE FÔRMA PARA VIGA BALDRAME, EM MADEIRA SERRADA, E=25 MM, 4 UTILIZAÇÕES. AF_01/2024 | D44: M2 | E44: 233.7 | F44: 78.23 | G44: 18282.35 | H44: 0.005893451594 | I44: 0.6670795711
A45: 87244 | B45: SINAPI | C45: REVESTIMENTO CERÂMICO PARA PAREDES EXTERNAS EM PASTILHAS DE PORCELANA 5 X 5 CM (PLACAS DE 30 X 30 CM), ALINHADAS A PRUMO. AF_02/2023 | D45: M2 | E45: 54.7 | F45: 319.56 | G45: 17479.93 | H45: 0.005634785535 | I45: 0.6727143566
A46: 93202 | B46: SINAPI | C46: FIXAÇÃO (ENCUNHAMENTO) DE ALVENARIA DE VEDAÇÃO COM TIJOLO MACIÇO. AF_03/2024 | D46: M | E46: 539.2 | F46: 32.13 | G46: 17324.5 | H46: 0.005584681518 | I46: 0.6782990381
A47: 13.38.29 | B47: SUDECAP | C47: GRADIL NYLOFOR H=2.03 M INCLUSIVE POSTE OU EQUIVALENTE | D47: M | E47: 43 | F47: 399.66 | G47: 17185.38 | H47: 0.00553983515 | I47: 0.6838388733
A48: 103261 | B48: SINAPI | C48: AR CONDICIONADO SPLIT INVERTER, PISO TETO, 36000 BTU/H, CICLO FRIO - FORNECIMENTO E INSTALAÇÃO. AF_11/2021_PSE | D48: UN | E48: 1 | F48: 17126.48 | G48: 17126.48 | H48: 0.005520848297 | I48: 0.6893597216
A49: 94995 | B49: SINAPI | C49: EXECUÇÃO DE PASSEIO (CALÇADA) OU PISO DE CONCRETO COM CONCRETO MOLDADO IN LOCO, USINADO, ACABAMENTO CONVENCIONAL, ESPESSURA 8 CM, ARMADO. AF_08/2022 | D49: M2 | E49: 129.97 | F49: 127.21 | G49: 16533.49 | H49: 0.005329693557 | I49: 0.6946894151
A50: 100327 | B50: SINAPI | C50: RUFO EXTERNO/INTERNO EM CHAPA DE AÇO GALVANIZADO NÚMERO 26, CORTE DE 33 CM, INCLUSO IÇAMENTO. AF_07/2019 | D50: M | E50: 206.81 | F50: 79.69 | G50: 16480.69 | H50: 0.005312673084 | I50: 0.7000020882
A51: 101979 | B51: SINAPI | C51: CHAPIM (RUFO CAPA) EM AÇO GALVANIZADO, CORTE 33. AF_11/2020 | D51: M | E51: 293.55 | F51: 54.09 | G51: 15878.12 | H51: 0.005118430159 | I51: 0.7051205184
A52: 102176 | B52: SINAPI | C52: INSTALAÇÃO DE VIDRO LAMINADO, E = 8 MM (4+4), ENCAIXADO EM PERFIL U. AF_01/2021_PS | D52: M2 | E52: 17.05 | F52: 889.86 | G52: 15172.11 | H52: 0.004890842581 | I52: 0.710011361
A53: 91926 | B53: SINAPI | C53: CABO DE COBRE FLEXÍVEL ISOLADO, 2,5 MM², ANTI-CHAMA 450/750 V, PARA CIRCUITOS TERMINAIS - FORNECIMENTO E INSTALAÇÃO. AF_03/2023 | D53: M | E53: 2737.7 | F53: 5.27 | G53: 14427.68 | H53: 0.00465087003 | I53: 0.714662231
A54: 87630 | B54: SINAPI | C54: CONTRAPISO EM ARGAMASSA TRAÇO 1:4 (CIMENTO E AREIA), PREPARO MECÂNICO COM BETONEIRA 400 L, APLICADO EM ÁREAS SECAS SOBRE LAJE, ADERIDO, ACABAMENTO NÃO REFORÇADO, ESPESSURA 3CM. AF_07/2021 | D54: M2 | E54: 282.68 | F54: 50.12 | G54: 14167.92 | H54: 0.004567134461 | I54: 0.7192293655
A55: ED-29823 | B55: SETOP | C55: TAPUME FIXO DE PROTEÇÃO PARA FECHAMENTO DE OBRA EM TELHA METÁLICA GALVANIZADA, TIPO TRAPEZOIDAL, ESP. 0,5MM, COM MÓDULO NA DIMENSÃO DE (300X220)CM, COM REAPROVEITAMENTO, EXCLUSIVE PINTURA ESMALTE, INCLUSIVE PONTALETE E FIXAÇÃO | D55: m2 | E55: 209 | F55: 66.78 | G55: 13957.02 | H55: 0.004499149276 | I55: 0.7237285147
A56: 105033 | B56: SINAPI | C56: CINTA DE AMARRAÇÃO DE ALVENARIA MOLDADA IN LOCO COM UTILIZAÇÃO DE BLOCOS CANALETA, ESPESSURA DE *15* CM. AF_03/2024 | D56: M | E56: 188.48 | F56: 70.3 | G56: 13250.14 | H56: 0.004271281247 | I56: 0.727999796
A57: 96534 | B57: SINAPI | C57: FABRICAÇÃO, MONTAGEM E DESMONTAGEM DE FÔRMA PARA BLOCO DE COROAMENTO, EM MADEIRA SERRADA, E=25 MM, 4 UTILIZAÇÕES. AF_01/2024 | D57: M2 | E57: 147.45 | F57: 89.79 | G57: 13239.54 | H57: 0.004267864258 | I57: 0.7322676602
A58: 92763 | B58: SINAPI | C58: ARMAÇÃO DE PILAR OU VIGA DE ESTRUTURA CONVENCIONAL DE CONCRETO ARMADO UTILIZANDO AÇO CA-50 DE 12,5 MM - MONTAGEM. AF_06/2022 | D58: KG | E58: 1086.8 | F58: 11.34 | G58: 12324.31 | H58: 0.003972833056 | I58: 0.7362404933
A59: ED-16350 | B59: SETOP | C59: LOCAÇÃO DE CONTAINER COM ISOLAMENTO TÉRMICO, TIPO 3, PARA DEPÓSITO/FERRAMENTARIA DE OBRA, COM MEDIDAS REFERENCIAIS DE (6) METROS COMPRIMENTO, (2,3) METROS LARGURA E (2,5) METROS ALTURA ÚTIL INTERNA, INCLUSIVE LIGAÇÕES ELÉTRICAS INTERNAS, EXCLUSIVE MOBILIZAÇÃO/DESMOBILIZAÇÃO E LIGAÇÕES PROVISÓRIAS EXTERNAS | D59: mês | E59: 12 | F59: 1014.51 | G59: 12174.12 | H59: 0.003924418191 | I59: 0.7401649115
A60: 105025 | B60: SINAPI | C60: VERGA MOLDADA IN LOCO COM UTILIZAÇÃO DE BLOCOS CANALETA, ESPESSURA DE *15* CM. AF_03/2024 | D60: M | E60: 161.4 | F60: 73.14 | G60: 11804.8 | H60: 0.003805365141 | I60: 0.7439702766
A61: 89578 | B61: SINAPI | C61: TUBO PVC, SÉRIE R, ÁGUA PLUVIAL, DN 100 MM, FORNECIDO E INSTALADO EM CONDUTORES VERTICAIS DE ÁGUAS PLUVIAIS. AF_06/2022 | D61: M | E61: 283.93 | F61: 41.18 | G61: 11692.24 | H61: 0.003769080587 | I61: 0.7477393572
A62: ED-9076 | B62: SETOP | C62: FORNECIMENTO DE ANDAIME METÁLICO TUBULAR TIPO TORRE (LOCAÇÃO), INCLUSIVE RODÍZIOS, EXCLUSIVE MONTAGEM E DESMONTAGEM | D62: mxmês | E62: 420 | F62: 27.83 | G62: 11688.6 | H62: 0.003767907206 | I62: 0.7515072644
A63: 95875 | B63: SINAPI | C63: TRANSPORTE COM CAMINHÃO BASCULANTE DE 10 M³, EM VIA URBANA PAVIMENTADA, DMT ATÉ 30 KM (UNIDADE: M3XKM). AF_07/2020 | D63: M3XKM | E63: 3735.178167 | F63: 3.09 | G63: 11541.71 | H63: 0.003720556121 | I63: 0.7552278205
A64: 93358 | B64: SINAPI | C64: ESCAVAÇÃO MANUAL DE VALA. AF_09/2024 | D64: M3 | E64: 122.15 | F64: 93.83 | G64: 11461.34 | H64: 0.003694648253 | I64: 0.7589224688
A65: LOU-003 | B65: CPU | C65: EXPURGO HOSPITALAR COM SIFÃO, TRITURADOR - FORNECIMENTO E INSTALAÇÃO | D65: UN | E65: 1 | F65: 11404.53 | G65: 11404.53 | H65: 0.003676335127 | I65: 0.7625988039
A66: COT-ARQ-010 | B66: COTAÇÃO | C66: JANELA ESQUADRIA MAXIM-AR 2,50 X 1,00 M - PINTURA PRETA E VIDRO TEMPERADO FUME 6MM | D66: UN | E66: 4 | F66: 2837.84 | G66: 11351.36 | H66: 0.003659195382 | I66: 0.7662579993
A67: 91933 | B67: SINAPI | C67: CABO DE COBRE FLEXÍVEL ISOLADO, 10 MM², ANTI-CHAMA 0,6/1,0 KV, PARA CIRCUITOS TERMINAIS - FORNECIMENTO E INSTALAÇÃO. AF_03/2023 | D67: M | E67: 567.7 | F67: 19.92 | G67: 11308.58 | H67: 0.00364540493 | I67: 0.7699034042
A68: 103247 | B68: SINAPI | C68: AR CONDICIONADO SPLIT INVERTER, HI-WALL (PAREDE), 12000 BTU/H, CICLO FRIO - FORNECIMENTO E INSTALAÇÃO. AF_11/2021_PE | D68: UN | E68: 3 | F68: 3666.48 | G68: 10999.44 | H68: 0.003545751351 | I68: 0.7734491556
A69: 98557 | B69: SINAPI | C69: IMPERMEABILIZAÇÃO DE SUPERFÍCIE COM EMULSÃO ASFÁLTICA, 2 DEMÃOS. AF_09/2023 | D69: M2 | E69: 217.81 | F69: 50.4 | G69: 10977.62 | H69: 0.003538717511 | I69: 0.7769878731
A70: COT-ELE-002 | B70: COTAÇÃO | C70: GERADOR MONOFÁSICO 5500 VA | D70: 1 | E70: 1 | F70: 10469.27 | G70: 10469.27 | H70: 0.003374847105 | I70: 0.7803627202
A71: 92990 | B71: SINAPI | C71: CABO DE COBRE FLEXÍVEL ISOLADO, 70 MM², ANTI-CHAMA 0,6/1,0 KV, PARA REDE ENTERRADA DE DISTRIBUIÇÃO DE ENERGIA ELÉTRICA - FORNECIMENTO E INSTALAÇÃO. AF_12/2021 | D71: M | E71: 103.48 | F71: 96.77 | G71: 10013.76 | H71: 0.003228010066 | I71: 0.7835907303
A72: 104921 | B72: SINAPI | C72: ARMAÇÃO DE BLOCO, SAPATA ISOLADA, VIGA BALDRAME E SAPATA CORRIDA UTILIZANDO AÇO CA-50 DE 16 MM - MONTAGEM. AF_01/2024 | D72: KG | E72: 799.4 | F72: 12.36 | G72: 9880.58 | H72: 0.003185078502 | I72: 0.7867758088
A73: 98546 | B73: SINAPI | C73: IMPERMEABILIZAÇÃO DE SUPERFÍCIE COM MANTA ASFÁLTICA, UMA CAMADA, INCLUSIVE APLICAÇÃO DE PRIMER ASFÁLTICO, E=4MM. AF_09/2023 | D73: M2 | E73: 71.7 | F73: 137.76 | G73: 9877.39 | H73: 0.003184050182 | I73: 0.789959859
A74: 87894 | B74: SINAPI | C74: CHAPISCO APLICADO EM ALVENARIA (SEM PRESENÇA DE VÃOS) E ESTRUTURAS DE CONCRETO DE FACHADA, COM COLHER DE PEDREIRO. ARGAMASSA TRAÇO 1:3 COM PREPARO EM BETONEIRA 400L. AF_10/2022 | D74: M2 | E74: 1201.46 | F74: 8.13 | G74: 9767.87 | H74: 0.003148745595 | I74: 0.7931086045
A75: EST-004 | B75: CPU | C75: LAJE TRELIÇADA H=13 CM - INCLUSO MONTAGEM E FORNECIMENTO DOS MATERIAIS, EXCETO CONCRETAGEM | D75: M2 | E75: 75.41 | F75: 128.49 | G75: 9689.43 | H75: 0.003123459877 | I75: 0.7962320644
A76: ED-13935 | B76: SETOP | C76: CABO DE COBRE NU #50 MM2 - 7 FIOSX3,00MM, PARA ELEMENTOS DE CAPTAÇÃO/ANEL DE CINTAMENTO (SPDA), INCLUSIVE PRESILHA DE FIXAÇÃO | D76: m | E76: 124.8 | F76: 75.39 | G76: 9408.67 | H76: 0.003032954801 | I76: 0.7992650192
A77: 100854 | B77: SINAPI | C77: TORNEIRA CROMADA DE MESA PARA LAVATÓRIO COM SENSOR DE PRESENCA. AF_01/2020 | D77: UN | E77: 4 | F77: 2348.54 | G77: 9394.16 | H77: 0.003028277395 | I77: 0.8022932966
A78: ARQ-007 | B78: CPU | C78: RODAPÉ COM REVESTIMENTO EM PORCELANATO 60X60 COM BORDA RETIFICADA E ACABAMENTO POLIDO, ALTURA 10 CM. | D78: M | E78: 337.1 | F78: 27.42 | G78: 9243.28 | H78: 0.002979640104 | I78: 0.8052729367
A79: EST-008 | B79: CPU | C79: ALVENARIA DE BLOCOS DE CONCRETO ESTRUTURAL 19 X 19 X 39 CM (ESPESSURA 19 CM), FBK = 14 MPA, UTILIZANDO PALHETA. | D79: M2 | E79: 54.06 | F79: 169.39 | G79: 9157.22 | H79: 0.002951898022 | I79: 0.8082248347
A80: 96544 | B80: SINAPI | C80: ARMAÇÃO DE BLOCO UTILIZANDO AÇO CA-50 DE 6,3 MM - MONTAGEM. AF_01/2024 | D80: KG | E80: 416.7 | F80: 21.33 | G80: 8888.21 | H80: 0.002865180647 | I80: 0.8110900154
A81: COT-ARQ-003 | B81: COTAÇÃO | C81: JANELA ESQUADRIA MAXIM-AR 0,70 X 0,70 M - PINTURA PRETA E VIDRO TEMPERADO FUME 6MM | D81: UN | E81: 12 | F81: 737.61 | G81: 8851.32 | H81: 0.00285328888 | I81: 0.8139433043
A82: 92769 | B82: SINAPI | C82: ARMAÇÃO DE LAJE DE ESTRUTURA CONVENCIONAL DE CONCRETO ARMADO UTILIZANDO AÇO CA-50 DE 6,3 MM - MONTAGEM. AF_06/2022 | D82: KG | E82: 564.1 | F82: 15.42 | G82: 8698.42 | H82: 0.002804000427 | I82: 0.8167473047
A83: 88415 | B83: SINAPI | C83: APLICAÇÃO MANUAL DE FUNDO SELADOR ACRÍLICO EM PAREDES EXTERNAS DE CASAS. AF_03/2024 | D83: M2 | E83: 1343.63 | F83: 6.46 | G83: 8679.85 | H83: 0.00279801425 | I83: 0.819545319
A84: ED-20586 | B84: SETOP | C84: ENTRADA DE ENERGIA AÉREA, TIPO C6, PADRÃO CEMIG, CARGA INSTALADA DE 47,1KVA ATÉ 57KVA, TRIFÁSICO, COM SAÍDA SUBTERRÂNEA, INCLUSIVE POSTE, CAIXA PARA MEDIDOR, DISJUNTOR, BARRAMENTO, ATERRAMENTO E ACESSÓRIOS | D84: un | E84: 1 | F84: 8434.07 | G84: 8434.07 | H84: 0.002718785237 | I84: 0.8222641042
A85: 92760 | B85: SINAPI | C85: ARMAÇÃO DE PILAR OU VIGA DE ESTRUTURA CONVENCIONAL DE CONCRETO ARMADO UTILIZANDO AÇO CA-50 DE 6,3 MM - MONTAGEM. AF_06/2022 | D85: KG | E85: 512.8 | F85: 16.01 | G85: 8209.93 | H85: 0.00264653204 | I85: 0.8249106362
A86: 101266 | B86: SINAPI | C86: ESCAVAÇÃO VERTICAL PARA INFRAESTRUTURA, COM CARGA, DESCARGA E TRANSPORTE DE SOLO DE 1ª CATEGORIA, COM ESCAVADEIRA HIDRÁULICA (CAÇAMBA: 0,8 M³ / 111HP), FROTA DE 3 CAMINHÕES BASCULANTES DE 10 M³, DMT ATÉ 1 KM E VELOCIDADE MÉDIA14 KM/H. AF_05/2020 | D86: M3 | E86: 570.05 | F86: 14.2 | G86: 8094.71 | H86: 0.002609390016 | I86: 0.8275200262
A87: ED-50283 | B87: SETOP | C87: LAVATÓRIO DE LOUÇA BRANCA SEM COLUNA, TAMANHO MÉDIO, INCLUSIVE ACESSÓRIOS DE FIXAÇÃO, VÁLVULA DE ESCOAMENTO DE METAL COM ACABAMENTO CROMADO, SIFÃO DE METAL TIPO COPO COM ACABAMENTO CROMADO, FORNECIMENTO, INSTALAÇÃO E REJUNTAMENTO, EXCLUSIVE TORNEIRA E ENGATE FLEXÍVEL | D87: U | E87: 13 | F87: 584.93 | G87: 7604.09 | H87: 0.002451235007 | I87: 0.8299712613
A88: 88488 | B88: SINAPI | C88: PINTURA LÁTEX ACRÍLICA PREMIUM, APLICAÇÃO MANUAL EM TETO, DUAS DEMÃOS. AF_04/2023 | D88: M2 | E88: 404.04 | F88: 18.52 | G88: 7482.82 | H88: 0.00241214272 | I88: 0.832383404
A89: COT-ARQ-004 | B89: COTAÇÃO | C89: JANELA ESQUADRIA MAXIM-AR 0,70 X 0,90 M - PINTURA PRETA E VIDRO TEMPERADO FUME 6MM | D89: UN | E89: 4 | F89: 1857.31 | G89: 7429.24 | H89: 0.002394870808 | I89: 0.8347782748
A90: 103253 | B90: SINAPI | C90: AR CONDICIONADO SPLIT INVERTER, HI-WALL (PAREDE), 24000 BTU/H, CICLO FRIO - FORNECIMENTO E INSTALAÇÃO. AF_11/2021_PE | D90: UN | E90: 1 | F90: 7297.05 | G90: 7297.05 | H90: 0.002352258378 | I90: 0.8371305332
A91: COT-DAD-006 | B91: COTAÇÃO | C91: CAMERA POE | D91: UN | E91: 10 | F91: 691.95 | G91: 6919.5 | H91: 0.002230552325 | I91: 0.8393610855
A92: COT-DAD-004 | B92: COTAÇÃO | C92: SWITCH GIGABIT 48 PORTAS POE | D92: UN | E92: 1 | F92: 6811.57 | G92: 6811.57 | H92: 0.002195760287 | I92: 0.8415568458
A93: ED-48533 | B93: SETOP | C93: DIVISÓRIA EM GRANITO CINZA ANDORINHA, ESP. 3CM, INCLUSIVE INSTALAÇÃO, FERRAGENS EM LATÃO CROMADO E ACESSÓRIOS | D93: m2 | E93: 8.04 | F93: 829.61 | G93: 6670.06 | H93: 0.002150143485 | I93: 0.8437069893
A94: 92770 | B94: SINAPI | C94: ARMAÇÃO DE LAJE DE ESTRUTURA CONVENCIONAL DE CONCRETO ARMADO UTILIZANDO AÇO CA-50 DE 8,0 MM - MONTAGEM. AF_06/2022 | D94: KG | E94: 444.6 | F94: 14.51 | G94: 6451.15 | H94: 0.002079576217 | I94: 0.8457865655
A95: EST-006 | B95: CPU | C95: LAJE TRELIÇADA H=21 CM - INCLUSO MONTAGEM E FORNECIMENTO DOS MATERIAIS, EXCETO CONCRETAGEM | D95: M2 | E95: 28.64 | F95: 224.64 | G95: 6433.69 | H95: 0.002073947856 | I95: 0.8478605133
A96: 90843 | B96: SINAPI | C96: KIT DE PORTA DE MADEIRA PARA PINTURA, SEMI-OCA (LEVE OU MÉDIA), PADRÃO MÉDIO, 80X210CM, ESPESSURA DE 3,5CM, ITENS INCLUSOS: DOBRADIÇAS, MONTAGEM E INSTALAÇÃO DO BATENTE, FECHADURA COM EXECUÇÃO DO FURO - FORNECIMENTO E INSTALAÇÃO. AF_12/2019 | D96: UN | E96: 5 | F96: 1284.05 | G96: 6420.25 | H96: 0.002069615372 | I96: 0.8499301287
A97: 87879 | B97: SINAPI | C97: CHAPISCO APLICADO EM ALVENARIAS E ESTRUTURAS DE CONCRETO INTERNAS, COM COLHER DE PEDREIRO. ARGAMASSA TRAÇO 1:3 COM PREPARO EM BETONEIRA 400L. AF_10/2022 | D97: M2 | E97: 1190.08 | F97: 5.35 | G97: 6366.93 | H97: 0.002052427273 | I97: 0.851982556
A98: ED-50998 | B98: SETOP | C98: PEITORIL DE GRANITO, NA COR CINZA ANDORINHA, COM PINGADEIRA, ESP. 3CM, ACABAMENTO POLIDO, ASSENTAMENTO COM ARGAMASSA INDUSTRIALIZADA, INCLUSIVE REJUNTAMENTO | D98: m2 | E98: 13.018 | F98: 483.45 | G98: 6294.52 | H98: 0.002029085371 | I98: 0.8540116413
A99: ARQ-001 | B99: CPU | C99: PORTA DE ALUMÍNIO DE ABRIR COM LAMBRI, FIXAÇÃO COM PARAFUSOS - FORNECIMENTO E INSTALAÇÃO. | D99: M2 | E99: 7.6 | F99: 824.37 | G99: 6265.21 | H99: 0.002019637074 | I99: 0.8560312784
A100: 95584 | B100: SINAPI | C100: MONTAGEM DE ARMADURA TRANSVERSAL DE ESTACAS DE SEÇÃO CIRCULAR, DIÂMETRO = 6,30 MM. AF_09/2021_PS | D100: KG | E100: 365.2 | F100: 16.87 | G100: 6160.92 | H100: 0.001986018416 | I100: 0.8580172968
A101: 100978 | B101: SINAPI | C101: CARGA, MANOBRA E DESCARGA DE SOLOS E MATERIAIS GRANULARES EM CAMINHÃO BASCULANTE 10 M³ - CARGA COM ESCAVADEIRA HIDRÁULICA (CAÇAMBA DE 1,20 M³ / 155 HP) E DESCARGA LIVRE (UNIDADE: M3). AF_07/2020 | D101: M3 | E101: 704.6072222 | F101: 8.72 | G101: 6144.2 | H101: 0.0019806286 | I101: 0.8599979254
A102: ED-9077 | B102: SETOP | C102: MONTAGEM E DESMONTAGEM DE ANDAIME METÁLICO TUBULAR TIPO TORRE, EXCLUSIVE FORNECIMENTO DO ANDAIME | D102: m | E102: 539.2 | F102: 11.39 | G102: 6141.49 | H102: 0.001979755011 | I102: 0.8619776804
A103: COT-ARQ-001 | B103: COTAÇÃO | C103: PORTAS VAI E VEM EM ABS, 150 X 210 CM, COM VISOR - FORNECIMENTO E INSTALAÇÃO | D103: UN | E103: 1 | F103: 5859.45 | G103: 5859.45 | H103: 0.001888837318 | I103: 0.8638665178
A104: 104919 | B104: SINAPI | C104: ARMAÇÃO DE SAPATA ISOLADA, VIGA BALDRAME E SAPATA CORRIDA UTILIZANDO AÇO CA-50 DE 10 MM - MONTAGEM. AF_01/2024 | D104: KG | E104: 373.3 | F104: 15.43 | G104: 5760.02 | H104: 0.001856785318 | I104: 0.8657233031
A105: 92761 | B105: SINAPI | C105: ARMAÇÃO DE PILAR OU VIGA DE ESTRUTURA CONVENCIONAL DE CONCRETO ARMADO UTILIZANDO AÇO CA-50 DE 8,0 MM - MONTAGEM. AF_06/2022 | D105: KG | E105: 372.9 | F105: 15.09 | G105: 5627.06 | H105: 0.001813924672 | I105: 0.8675372278
A106: ARQ-003 | B106: CPU | C106: PORTA EM ALUMÍNIO COMPLETA, DIMENSÃO (2,20 X 2,10 M), COM DUAS FOLHAS MÓVEIS, LINHA 25/SUPREMA, ACABAMENTO ANODIZADO PRETO, INCLUSIVE PERFIS, VIDRO FUME LAMINADO 6MM, FERRAGENS E INSTALAÇÃO | D106: UN | E106: 1 | F106: 5552.68 | G106: 5552.68 | H106: 0.001789947725 | I106: 0.8693271755
A107: 104916 | B107: SINAPI | C107: ARMAÇÃO DE SAPATA ISOLADA, VIGA BALDRAME E SAPATA CORRIDA UTILIZANDO AÇO CA-60 DE 5 MM - MONTAGEM. AF_01/2024 | D107: KG | E107: 278.3 | F107: 19.9 | G107: 5538.17 | H107: 0.001785270319 | I107: 0.8711124458
A108: 105031 | B108: SINAPI | C108: CONTRAVERGA MOLDADA IN LOCO COM UTILIZAÇÃO DE BLOCOS CANALETA, ESPESSURA DE *15* CM. AF_03/2024 | D108: M | E108: 92.8 | F108: 59.09 | G108: 5483.55 | H108: 0.001767663155 | I108: 0.872880109
A109: 86936 | B109: SINAPI | C109: CUBA DE EMBUTIR DE AÇO INOXIDÁVEL MÉDIA, INCLUSO VÁLVULA TIPO AMERICANA E SIFÃO TIPO GARRAFA EM METAL CROMADO - FORNECIMENTO E INSTALAÇÃO. AF_01/2020 | D109: UN | E109: 8 | F109: 683.94 | G109: 5471.52 | H109: 0.001763785195 | I109: 0.8746438942
A110: COT-ARQ-009 | B110: COTAÇÃO | C110: JANELA ESQUADRIA MAXIM-AR 2,20 X 1,20 M - PINTURA PRETA E VIDRO TEMPERADO FUME 6MM | D110: UN | E110: 2 | F110: 2712.07 | G110: 5424.14 | H110: 0.0017485119 | I110: 0.8763924061
A111: ACE-003 | B111: CPU | C111: PISO TATIL ALERTA OU DIRECIONAL, DE BORRACHA, COLORIDO, 25 X 25 CM, E = 5 MM, PARA COLA - FORNECIMENTO E INSTALAÇÃO | D111: M2 | E111: 16.6875 | F111: 324.34 | G111: 5413.23 | H111: 0.00174499498 | I111: 0.878137401
A112: 96546 | B112: SINAPI | C112: ARMAÇÃO DE BLOCO UTILIZANDO AÇO CA-50 DE 10 MM - MONTAGEM. AF_01/2024 | D112: KG | E112: 318.3 | F112: 16.9 | G112: 5379.27 | H112: 0.001734047721 | I112: 0.8798714488
A113: 103250 | B113: SINAPI | C113: AR CONDICIONADO SPLIT INVERTER, HI-WALL (PAREDE), 18000 BTU/H, CICLO FRIO - FORNECIMENTO E INSTALAÇÃO. AF_11/2021_PE | D113: UN | E113: 1 | F113: 5342.21 | G113: 5342.21 | H113: 0.001722101154 | I113: 0.8815935499
A114: ED-17989 | B114: SETOP | C114: LOCAÇÃO DE OBRA COM GABARITO DE TÁBUAS CORRIDAS PONTALETADAS A CADA 2,00M, REAPROVEITAMENTO (2X), INCLUSIVE ACOMPANHAMENTO DE EQUIPE TOPOGRÁFICA PARA MARCAÇÃO DE PONTO TOPOGRÁFICO | D114: m | E114: 90 | F114: 57.92 | G114: 5212.8 | H114: 0.001680384878 | I114: 0.8832739348
A115: 89356 | B115: SINAPI | C115: TUBO, PVC, SOLDÁVEL, DE 25MM, INSTALADO EM RAMAL OU SUB-RAMAL DE ÁGUA - FORNECIMENTO E INSTALAÇÃO. AF_06/2022 | D115: M | E115: 191.41 | F115: 27.15 | G115: 5196.78 | H115: 0.001675220712 | I115: 0.8849491555
A116: 89987 | B116: SINAPI | C116: REGISTRO DE GAVETA BRUTO, LATÃO, ROSCÁVEL, 3/4", COM ACABAMENTO E CANOPLA CROMADOS - FORNECIMENTO E INSTALAÇÃO. AF_08/2021 | D116: UN | E116: 31 | F116: 163.95 | G116: 5082.45 | H116: 0.001638365585 | I116: 0.8865875211
A117: ED-50329 | B117: SETOP | C117: TORNEIRA METÁLICA PARA LAVATÓRIO, FECHAMENTO AUTOMÁTICO, ACABAMENTO CROMADO, COM AREJADOR, APLICAÇÃO DE MESA, INCLUSIVE ENGATE FLEXÍVEL METÁLICO, FORNECIMENTO E INSTALAÇÃO | D117: un | E117: 18 | F117: 277.62 | G117: 4997.16 | H117: 0.001610871719 | I117: 0.8881983928
A118: ED-29455 | B118: SETOP | C118: ASSENTAMENTO DE ESQUADRIA DE ALUMÍNIO, INCLUSIVE FIXAÇÃO DO CONTRAMARCO, EXCLUSIVE FORNECIMENTO DA ESQUADRIA | D118: m² | E118: 51.24 | F118: 97.33 | G118: 4987.19 | H118: 0.001607657815 | I118: 0.8898060506
A119: COT-ARQ-011 | B119: COTAÇÃO | C119: LETREIRO - FORNECIMENTO E INSTALAÇÃO | D119: UN | E119: 1 | F119: 4934.28 | G119: 4934.28 | H119: 0.001590601883 | I119: 0.8913966525
A120: 86938 | B120: SINAPI | C120: CUBA DE EMBUTIR OVAL EM LOUÇA BRANCA, 35 X 50CM OU EQUIVALENTE, INCLUSO VÁLVULA E SIFÃO TIPO GARRAFA EM METAL CROMADO - FORNECIMENTO E INSTALAÇÃO. AF_01/2020 | D120: UN | E120: 8 | F120: 606.78 | G120: 4854.24 | H120: 0.001564800393 | I120: 0.8929614529
A121: 88485 | B121: SINAPI | C121: FUNDO SELADOR ACRÍLICO, APLICAÇÃO MANUAL EM PAREDE, UMA DEMÃO. AF_04/2023 | D121: M2 | E121: 888.45 | F121: 5.22 | G121: 4637.71 | H121: 0.001495000336 | I121: 0.8944564532
A122: ED-29817 | B122: SETOP | C122: MOBILIZAÇÃO E DESMOBILIZAÇÃO DE EQUIPAMENTO PARA ESTACA TIPO TRADO ROTATIVO (CUSTO FIXO), INCLUSIVE CARGA E DESCARGA, EXCLUSIVE TRANSPORTE EM QUILÔMETRO RODADO (CUSTO VARIÁVEL) | D122: un | E122: 1 | F122: 4564.71 | G122: 4564.71 | H122: 0.001471468243 | I122: 0.8959279215
A123: 90466 | B123: SINAPI | C123: CHUMBAMENTO LINEAR EM ALVENARIA PARA RAMAIS/DISTRIBUIÇÃO DE INSTALAÇÕES HIDRÁULICAS COM DIÂMETROS MENORES OU IGUAIS A 40 MM. AF_09/2023 | D123: M | E123: 254.84 | F123: 17.71 | G123: 4513.22 | H123: 0.001454870058 | I123: 0.8973827915
A124: ED-51017 | B124: SETOP | C124: ATERRAMENTO COMPLETO PARA PARA-RAIOS, COM HASTE DE COBRE DE ALTA CAMADA, TIPO COPPERWELD, DIÂMETRO DE 3/4", COMPRIMENTO DE 240CM, EXCLUSIVE CABO, INCLUSIVE CAIXA DE INSPEÇÃO COM TAMPA EM FERRO FUNDIDO E GRAMPO PARA HASTE | D124: un | E124: 3 | F124: 1422.8 | G124: 4268.4 | H124: 0.001375950509 | I124: 0.898758742
A125: 86932 | B125: SINAPI | C125: VASO SANITÁRIO SIFONADO COM CAIXA ACOPLADA LOUÇA BRANCA - PADRÃO MÉDIO, INCLUSO ENGATE FLEXÍVEL EM METAL CROMADO, 1/2 X 40CM - FORNECIMENTO E INSTALAÇÃO. AF_01/2020 | D125: UN | E125: 6 | F125: 704.75 | G125: 4228.5 | H125: 0.001363088447 | I125: 0.9001218305
A126: 98680 | B126: SINAPI | C126: PISO CIMENTADO, TRAÇO 1:3 (CIMENTO E AREIA), ACABAMENTO LISO, ESPESSURA 3,0 CM, PREPARO MECÂNICO DA ARGAMASSA. AF_09/2020 | D126: M2 | E126: 68.18 | F126: 61.77 | G126: 4211.48 | H126: 0.001357601923 | I126: 0.9014794324
A127: ED-50493 | B127: SETOP | C127: PINTURA ESMALTE BASE SOLVENTE EM ESQUADRIA DE MADEIRA, DUAS (2) DEMÃOS, INCLUSIVE UMA (1) DEMÃO DE FUNDO NIVELADOR, EXCLUSIVE MASSA A ÓLEO | D127: m2 | E127: 111.3 | F127: 37.75 | G127: 4201.58 | H127: 0.001354410584 | I127: 0.902833843
A128: 104737 | B128: SINAPI | C128: REATERRO MANUAL DE VALAS, COM PLACA VIBRATÓRIA. AF_08/2023 | D128: M3 | E128: 172.47 | F128: 24.22 | G128: 4177.22 | H128: 0.001346557957 | I128: 0.9041804009
A129: 92868 | B129: SINAPI | C129: CAIXA RETANGULAR 4" X 2" MÉDIA (1,30 M DO PISO), METÁLICA, INSTALADA EM PAREDE - FORNECIMENTO E INSTALAÇÃO. AF_03/2023 | D129: UN | E129: 207 | F129: 19.95 | G129: 4129.65 | H129: 0.001331223414 | I129: 0.9055116244
A130: 87745 | B130: SINAPI | C130: CONTRAPISO EM ARGAMASSA TRAÇO 1:4 (CIMENTO E AREIA), PREPARO MECÂNICO COM BETONEIRA 400 L, APLICADO EM ÁREAS MOLHADAS SOBRE LAJE, ADERIDO, ACABAMENTO NÃO REFORÇADO, ESPESSURA 3CM. AF_07/2021 | D130: M2 | E130: 64.51 | F130: 63.95 | G130: 4125.41 | H130: 0.001329856618 | I130: 0.906841481
A131: 101880 | B131: SINAPI | C131: QUADRO DE DISTRIBUIÇÃO DE ENERGIA EM CHAPA DE AÇO GALVANIZADO, DE EMBUTIR, COM BARRAMENTO TRIFÁSICO, PARA 30 DISJUNTORES DIN 150A - FORNECIMENTO E INSTALAÇÃO. AF_10/2020 | D131: UN | E131: 5 | F131: 824.05 | G131: 4120.25 | H131: 0.001328193254 | I131: 0.9081696742
A132: ED-50266 | B132: SETOP | C132: LIMPEZA FINAL PARA ENTREGA DA OBRA | D132: m2 | E132: 443.56 | F132: 8.84 | G132: 3921.07 | H132: 0.001263986098 | I132: 0.9094336603
A133: 98295 | B133: SINAPI | C133: CABO ELETRÔNICO CATEGORIA 5E, INSTALADO EM EDIFICAÇÃO INSTITUCIONAL - FORNECIMENTO E INSTALAÇÃO. AF_11/2019 | D133: M | E133: 594.9 | F133: 6.55 | G133: 3896.6 | H133: 0.001256098012 | I133: 0.9106897583
A134: 91924 | B134: SINAPI | C134: CABO DE COBRE FLEXÍVEL ISOLADO, 1,5 MM², ANTI-CHAMA 450/750 V, PARA CIRCUITOS TERMINAIS - FORNECIMENTO E INSTALAÇÃO. AF_03/2023 | D134: M | E134: 1070.8 | F134: 3.6 | G134: 3854.88 | H134: 0.001242649259 | I134: 0.9119324076
A135: COT-DAD-001 | B135: COTAÇÃO | C135: NVR 16 PORTAS | D135: UN | E135: 1 | F135: 3741.17 | G135: 3741.17 | H135: 0.001205993994 | I135: 0.9131384016
A136: ED-48700 | B136: SETOP | C136: ATERRAMENTO COM HASTE DE COBRE, TIPO COPPERWELD, DIÂMETRO DE 5/8", COMPRIMENTO DE 240CM, EXCLUSIVE CABO E CAIXA PARA ATERRAMENTO, INCLUSIVE GRAMPO PARA HASTE E INSTALAÇÃO | D136: un | E136: 12 | F136: 307.25 | G136: 3687 | H136: 0.001188531892 | I136: 0.9143269335
A137: ED-50137 | B137: SETOP | C137: MOBILIZAÇÃO E DESMOBILIZAÇÃO DE CONTAINER, INCLUSIVE CARGA, DESCARGA E TRANSPORTE EM CAMINHÃO CARROCERIA COM GUINDAUTO (MUNCK), EXCLUSIVE LOCAÇÃO DO CONTAINER | D137: un | E137: 2 | F137: 1829.27 | G137: 3658.54 | H137: 0.001179357599 | I137: 0.9155062911
A138: 105126 | B138: SINAPI | C138: INSTALAÇÃO DE CONCERTINA SIMPLES, ESPIRAL DE 300 MM. AF_03/2024 | D138: M | E138: 95 | F138: 37.98 | G138: 3608.1 | H138: 0.001163097889 | I138: 0.916669389
A139: 96525 | B139: SINAPI | C139: ESCAVAÇÃO MECANIZADA PARA VIGA BALDRAME OU SAPATA CORRIDA COM MINI-ESCAVADEIRA (INCLUINDO ESCAVAÇÃO PARA COLOCAÇÃO DE FÔRMAS). AF_01/2024 | D139: M3 | E139: 53.17 | F139: 67.22 | G139: 3574.09 | H139: 0.001152134513 | I139: 0.9178215235
A140: 90282 | B140: SINAPI | C140: GRAUTE FGK=15 MPA; TRAÇO 1:2,2:2,5:0,3 (EM MASSA SECA DE CIMENTO/ AREIA GROSSA/ BRITA 0/ ADITIVO) - PREPARO MECÂNICO COM BETONEIRA 400 L. AF_09/2021 | D140: M3 | E140: 5.14 | F140: 670.97 | G140: 3448.79 | H140: 0.001111743125 | I140: 0.9189332666
A141: ED-51003 | B141: SETOP | C141: SOLEIRA DE GRANITO, NA COR CINZA ANDORINHA, ESP. 3CM, ACABAMENTO POLIDO, ASSENTAMENTO COM ARGAMASSA INDUSTRIALIZADA, INCLUSIVE REJUNTAMENTO | D141: m2 | E141: 7.87 | F141: 433.07 | G141: 3408.26 | H141: 0.001098677978 | I141: 0.9200319446
A142: COT-DAD-005 | B142: COTAÇÃO | C142: ACCESS POINT | D142: UN | E142: 3 | F142: 1134.68 | G142: 3404.04 | H142: 0.00109731763 | I142: 0.9211292622
A143: 91996 | B143: SINAPI | C143: TOMADA MÉDIA DE EMBUTIR (1 MÓDULO), 2P+T 10 A, INCLUINDO SUPORTE E PLACA - FORNECIMENTO E INSTALAÇÃO. AF_03/2023 | D143: UN | E143: 83 | F143: 40.99 | G143: 3402.17 | H143: 0.001096714821 | I143: 0.922225977
A144: ED-50943 | B144: SETOP | C144: CORRIMÃO DUPLO EM TUBO DE AÇO INOX D = 1 1/2" FIXADO EM ALVENARIA | D144: m | E144: 6 | F144: 551.45 | G144: 3308.7 | H144: 0.001066584071 | I144: 0.9232925611
A145: 96521 | B145: SINAPI | C145: ESCAVAÇÃO MECANIZADA PARA BLOCO DE COROAMENTO OU SAPATA COM RETROESCAVADEIRA (INCLUINDO ESCAVAÇÃO PARA COLOCAÇÃO DE FÔRMAS). AF_01/2024 | D145: M3 | E145: 62.7 | F145: 52.56 | G145: 3295.51 | H145: 0.001062332176 | I145: 0.9243548933
A146: 94651 | B146: SINAPI | C146: TUBO, PVC, SOLDÁVEL, DE 50MM, INSTALADO EM RESERVAÇÃO PREDIAL DE ÁGUA - FORNECIMENTO E INSTALAÇÃO. AF_04/2024 | D146: M | E146: 124.35 | F146: 26.5 | G146: 3295.27 | H146: 0.00106225481 | I146: 0.9254171481
A147: 89714 | B147: SINAPI | C147: TUBO PVC, SERIE NORMAL, ESGOTO PREDIAL, DN 100 MM, FORNECIDO E INSTALADO EM RAMAL DE DESCARGA OU RAMAL DE ESGOTO SANITÁRIO. AF_08/2022 | D147: M | E147: 72.34 | F147: 45.02 | G147: 3256.75 | H147: 0.001049837602 | I147: 0.9264669857
A148: ED-48189 | B148: SETOP | C148: SABONETEIRA PLASTICA TIPO DISPENSER PARA SABONETE LIQUIDO COM RESERVATORIO 1500 ML | D148: U | E148: 29 | F148: 111.04 | G148: 3220.16 | H148: 0.001038042543 | I148: 0.9275050282
A149: ED-13287 | B149: SETOP | C149: CAMADA DE REGULARIZAÇÃO COM ARGAMASSA, TRAÇO 1:3 (CIMENTO E AREIA), ESP. 20MM, APLICAÇÃO MANUAL, INCLUSIVE ARGAMASSA COM PREPARO MECANIZADO | D149: m2 | E149: 71.7 | F149: 44.35 | G149: 3179.9 | H149: 0.001025064432 | I149: 0.9285300927
A150: ED-48343 | B150: SETOP | C150: BANCADA EM GRANITO CINZA ANDORINHA E = 3 CM, APOIADA EM CONSOLE DE METALON 20 X 30 MM | D150: m2 | E150: 6.63 | F150: 476.05 | G150: 3156.21 | H150: 0.001017427785 | I150: 0.9295475205
A151: 92764 | B151: SINAPI | C151: ARMAÇÃO DE PILAR OU VIGA DE ESTRUTURA CONVENCIONAL DE CONCRETO ARMADO UTILIZANDO AÇO CA-50 DE 16,0 MM - MONTAGEM. AF_06/2022 | D151: KG | E151: 285.5 | F151: 10.99 | G151: 3137.65 | H151: 0.00101144483 | I151: 0.9305589653
A152: ACE-004 | B152: CPU | C152: PISO TATIL DE ALERTA OU DIRECIONAL, DE BORRACHA, PRETO, 25 X 25 CM, E = 12 MM, PARA ARGAMASSA - FORNECIMENTO E INSTALAÇÃO | D152: M2 | E152: 4.75 | F152: 655.63 | G152: 3114.24 | H152: 0.001003898443 | I152: 0.9315628637
A153: COT-ACE-001 | B153: COTAÇÃO | C153: CHAPA DE PROTEÇÃO IMPACTO PARA PORTA 40X80 | D153: UN | E153: 12 | F153: 259.15 | G153: 3109.8 | H153: 0.001002467176 | I153: 0.9325653309
A154: ALV-001 | B154: CPU | C154: CORRIMÃO DUPLO EM TUBO DE AÇO INOX D = 1 1/2" FIXADO EM PISO | D154: M | E154: 5.52 | F154: 544.51 | G154: 3005.7 | H154: 0.0009689097658 | I154: 0.9335342407
A155: 104920 | B155: SINAPI | C155: ARMAÇÃO DE BLOCO, SAPATA ISOLADA, VIGA BALDRAME E SAPATA CORRIDA UTILIZANDO AÇO CA-50 DE 12,5 MM - MONTAGEM. AF_01/2024 | D155: KG | E155: 224.9 | F155: 13.09 | G155: 2943.94 | H155: 0.0009490009701 | I155: 0.9344832416
A156: 96543 | B156: SINAPI | C156: ARMAÇÃO DE BLOCO UTILIZANDO AÇO CA-60 DE 5 MM - MONTAGEM. AF_01/2024 | D156: KG | E156: 122.4 | F156: 23.58 | G156: 2886.19 | H156: 0.0009303848278 | I156: 0.9354136265
A157: ED-51019 | B157: SETOP | C157: BARRA CHATA DE ALUMÍNIO 7/8" X 1/8" X 3M | D157: U | E157: 82 | F157: 35.09 | G157: 2877.38 | H157: 0.0009275448587 | I157: 0.9363411713
A158: 96616 | B158: SINAPI | C158: LASTRO DE CONCRETO MAGRO, APLICADO EM BLOCOS DE COROAMENTO OU SAPATAS. AF_01/2024 | D158: M3 | E158: 2.85 | F158: 1009.22 | G158: 2876.28 | H158: 0.0009271902655 | I158: 0.9372683616
A159: ED-50986 | B159: SETOP | C159: PORTÃO EM TUBO DE AÇO GALVANIZADO COM COSTURA, DIÂMETRO DE 1.1/2" (38,1MM), ESP. 2MM, COM TELA QUADRICULADA ONDULADA, TRAMA DE 1/2" (12,70MM), FIO 12 (2,77MM), EXCLUSIVE CADEADO E PINTURA | D159: m2 | E159: 4.2 | F159: 682.99 | G159: 2868.56 | H159: 0.0009247016661 | I159: 0.9381930633
A160: ED-49197 | B160: SETOP | C160: CAIXA DE INSPEÇÃO EM CONCRETO, TIPO "ZA" PASSEIO, PADRÃO CEMIG, DIMENSÃO (28X28)CM, ALTURA 40CM, COM TAMPA E ARO ARTICULADO EM FERRO FUNDIDO, INCLUSIVE ESCAVAÇÃO, APILOAMENTO, LASTRO DE BRITA, REATERRO E TRANSPORTE COM RETIRADA DO MATERIAL ESCAVADO (EM CAÇAMBA) | D160: un | E160: 11 | F160: 253.67 | G160: 2790.37 | H160: 0.0008994965376 | I160: 0.9390925598
A161: COT-ARQ-007 | B161: COTAÇÃO | C161: JANELA ESQUADRIA MAXIM-AR 1,60 X 0,70 M - PINTURA PRETA E VIDRO TEMPERADO FUME 6MM | D161: UN | E161: 2 | F161: 1382.19 | G161: 2764.38 | H161: 0.0008911184677 | I161: 0.9399836783
A162: 102610 | B162: SINAPI | C162: CAIXA D´ÁGUA EM POLIETILENO, 3000 LITROS - FORNECIMENTO E INSTALAÇÃO. AF_06/2021 | D162: UN | E162: 1 | F162: 2762.43 | G162: 2762.43 | H162: 0.0008904898707 | I162: 0.9408741681
A163: 91845 | B163: SINAPI | C163: ELETRODUTO FLEXÍVEL CORRUGADO REFORÇADO, PVC, DN 25 MM (3/4"), PARA CIRCUITOS TERMINAIS, INSTALADO EM LAJE - FORNECIMENTO E INSTALAÇÃO. AF_03/2023 | D163: M | E163: 257.4 | F163: 10.52 | G163: 2707.85 | H163: 0.0008728956015 | I163: 0.9417470637
A164: COT-ARQ-006 | B164: COTAÇÃO | C164: JANELA ESQUADRIA MAXIM-AR 1,60 X 0,60 M - PINTURA PRETA E VIDRO TEMPERADO FUME 6MM | D164: UN | E164: 2 | F164: 1284.25 | G164: 2568.5 | H164: 0.0008279750918 | I164: 0.9425750388
A165: 88484 | B165: SINAPI | C165: FUNDO SELADOR ACRÍLICO, APLICAÇÃO MANUAL EM TETO, UMA DEMÃO. AF_04/2023 | D165: M2 | E165: 404.04 | F165: 6.31 | G165: 2549.49 | H165: 0.0008218470768 | I165: 0.9433968859
A166: COT-SPDA-002 | B166: COTAÇÃO | C166: CONECTOR ATERRINSERT | D166: UN | E166: 30 | F166: 84.76 | G166: 2542.8 | H166: 0.0008196905055 | I166: 0.9442165764
A167: 92771 | B167: SINAPI | C167: ARMAÇÃO DE LAJE DE ESTRUTURA CONVENCIONAL DE CONCRETO ARMADO UTILIZANDO AÇO CA-50 DE 10,0 MM - MONTAGEM. AF_06/2022 | D167: KG | E167: 193.2 | F167: 12.96 | G167: 2503.87 | H167: 0.0008071411303 | I167: 0.9450237175
A168: 93660 | B168: SINAPI | C168: DISJUNTOR BIPOLAR TIPO DIN, CORRENTE NOMINAL DE 10A - FORNECIMENTO E INSTALAÇÃO. AF_10/2020 | D168: UN | E168: 23 | F168: 108.45 | G168: 2494.35 | H168: 0.0008040722874 | I168: 0.9458277898
A169: 97328 | B169: SINAPI | C169: TUBO EM COBRE FLEXÍVEL, DN 3/8", COM ISOLAMENTO, INSTALADO EM RAMAL DE ALIMENTAÇÃO DE AR CONDICIONADO COM CONDENSADORA INDIVIDUAL - FORNECIMENTO E INSTALAÇÃO. AF_12/2015 | D169: M | E169: 40.7 | F169: 58.45 | G169: 2378.92 | H169: 0.0007668625678 | I169: 0.9465946524
A170: 101881 | B170: SINAPI | C170: QUADRO DE DISTRIBUIÇÃO DE ENERGIA EM CHAPA DE AÇO GALVANIZADO, DE EMBUTIR, COM BARRAMENTO TRIFÁSICO, PARA 40 DISJUNTORES DIN 100A - FORNECIMENTO E INSTALAÇÃO. AF_10/2020 | D170: UN | E170: 2 | F170: 1183.82 | G170: 2367.64 | H170: 0.0007632263758 | I170: 0.9473578788
A171: 89865 | B171: SINAPI | C171: TUBO, PVC, SOLDÁVEL, DE 25MM, INSTALADO EM DRENO DE AR-CONDICIONADO - FORNECIMENTO E INSTALAÇÃO. AF_08/2022 | D171: M | E171: 119 | F171: 19.87 | G171: 2364.53 | H171: 0.0007622238442 | I171: 0.9481201026
A172: 86919 | B172: SINAPI | C172: TANQUE DE LOUÇA BRANCA COM COLUNA, 30L OU EQUIVALENTE, INCLUSO SIFÃO FLEXÍVEL EM PVC, VÁLVULA METÁLICA E TORNEIRA DE METAL CROMADO PADRÃO MÉDIO - FORNECIMENTO E INSTALAÇÃO. AF_01/2020 | D172: UN | E172: 2 | F172: 1172.27 | G172: 2344.54 | H172: 0.0007557799189 | I172: 0.9488758825
A173: 89712 | B173: SINAPI | C173: TUBO PVC, SERIE NORMAL, ESGOTO PREDIAL, DN 50 MM, FORNECIDO E INSTALADO EM RAMAL DE DESCARGA OU RAMAL DE ESGOTO SANITÁRIO. AF_08/2022 | D173: M | E173: 72.21 | F173: 32.33 | G173: 2334.55 | H173: 0.0007525595681 | I173: 0.9496284421
A174: ED-51121 | B174: SETOP | C174: REATERRO MANUAL DE VALA, INCLUSIVE ESPALHAMENTO E COMPACTAÇÃO MECANIZADA COM PLACA VIBRATÓRIA | D174: m3 | E174: 44.47 | F174: 52.01 | G174: 2312.88 | H174: 0.0007455740823 | I174: 0.9503740162
A175: 90443 | B175: SINAPI | C175: RASGO LINEAR MANUAL EM ALVENARIA, PARA RAMAIS/ DISTRIBUIÇÃO DE INSTALAÇÕES HIDRÁULICAS, DIÂMETROS MENORES OU IGUAIS A 40 MM. AF_09/2023 | D175: M | E175: 254.84 | F175: 8.94 | G175: 2278.27 | H175: 0.0007344172912 | I175: 0.9511084335
A176: COT-CLI-001 | B176: COTAÇÃO | C176: CABO PP TETRAPOLAR, 4X2,5MM², 1KV | D176: M | E176: 57.6 | F176: 38.57 | G176: 2221.63 | H176: 0.0007161589656 | I176: 0.9518245924
A177: ED-51021 | B177: SETOP | C177: RE-BAR 8MM X 4M COM 3 CLIPS PARA EMENDA 8-10MM | D177: U | E177: 31 | F177: 70.99 | G177: 2200.69 | H177: 0.0007094088008 | I177: 0.9525340012
A178: ED-2552 | B178: SETOP | C178: LAVATÓRIO DE CANTO DE LOUÇA BRANCA SEM COLUNA, TAMANHO PEQUENO, INCLUSIVE ACESSÓRIOS DE FIXAÇÃO COM PARAFUSO CASTELO, VÁLVULA DE ESCOAMENTO DE METAL COM ACABAMENTO CROMADO, SIFÃO DE METAL TIPO COPO COM ACABAMENTO CROMADO, FORNECIMENTO, INSTALAÇÃO E REJUNTAMENTO, EXCLUSIVE TORNEIRA E ENGATE FLEXÍVEL | D178: un | E178: 3 | F178: 732.95 | G178: 2198.85 | H178: 0.0007088156631 | I178: 0.9532428169
A179: 96545 | B179: SINAPI | C179: ARMAÇÃO DE BLOCO UTILIZANDO AÇO CA-50 DE 8 MM - MONTAGEM. AF_01/2024 | D179: KG | E179: 113.9 | F179: 19.28 | G179: 2195.99 | H179: 0.0007078937208 | I179: 0.9539507106
A180: 89584 | B180: SINAPI | C180: JOELHO 90 GRAUS, PVC, SERIE R, ÁGUA PLUVIAL, DN 100 MM, JUNTA ELÁSTICA, FORNECIDO E INSTALADO EM CONDUTORES VERTICAIS DE ÁGUAS PLUVIAIS. AF_06/2022 | D180: UN | E180: 42 | F180: 52.27 | G180: 2195.34 | H180: 0.0007076841885 | I180: 0.9546583948
A181: 87905 | B181: SINAPI | C181: CHAPISCO APLICADO EM ALVENARIA (COM PRESENÇA DE VÃOS) E ESTRUTURAS DE CONCRETO DE FACHADA, COM COLHER DE PEDREIRO. ARGAMASSA TRAÇO 1:3 COM PREPARO EM BETONEIRA 400L. AF_10/2022 | D181: M2 | E181: 218.29 | F181: 9.43 | G181: 2058.47 | H181: 0.0006635631253 | I181: 0.9553219579
A182: 92004 | B182: SINAPI | C182: TOMADA MÉDIA DE EMBUTIR (2 MÓDULOS), 2P+T 10 A, INCLUINDO SUPORTE E PLACA - FORNECIMENTO E INSTALAÇÃO. AF_03/2023 | D182: UN | E182: 31 | F182: 65.47 | G182: 2029.57 | H182: 0.0006542469952 | I182: 0.9559762049
A183: 91936 | B183: SINAPI | C183: CAIXA OCTOGONAL 4" X 4", PVC, INSTALADA EM LAJE - FORNECIMENTO E INSTALAÇÃO. AF_03/2023 | D183: UN | E183: 89 | F183: 22.5 | G183: 2002.5 | H183: 0.0006455207792 | I183: 0.9566217257
A184: 10.47.07 | B184: SUDECAP | C184: BEBEDOURO INDUSTRIAL 50L | D184: UN | E184: 1 | F184: 1993.27 | G184: 1993.27 | H184: 0.00064254542 | I184: 0.9572642711
A185: 96622 | B185: SINAPI | C185: LASTRO COM MATERIAL GRANULAR, APLICADO EM PISOS OU LAJES SOBRE SOLO, ESPESSURA DE *5 CM*. AF_01/2024 | D185: M3 | E185: 6.4985 | F185: 304.76 | G185: 1980.94 | H185: 0.0006385707527 | I185: 0.9579028419
A186: ED-48182 | B186: SETOP | C186: DISPENSER EM PLÁSTICO PARA PAPEL TOALHA 2 OU 3 FOLHAS | D186: U | E186: 22 | F186: 89.5 | G186: 1969 | H186: 0.0006347218048 | I186: 0.9585375637
A187: ED-15752 | B187: SETOP | C187: CONJUNTO DE UMA (1) TOMADA DE DADOS (CONECTOR RJ45 CAT.6E), COM PLACA 4"X2" DE UM (1) POSTO, INCLUSIVE FORNECIMENTO, INSTALAÇÃO, SUPORTE, MÓDULO E PLACA | D187: un | E187: 23 | F187: 85.42 | G187: 1964.66 | H187: 0.0006333227735 | I187: 0.9591708865
A188: 92917 | B188: SINAPI | C188: ARMAÇÃO DE ESTRUTURAS DIVERSAS DE CONCRETO ARMADO, EXCETO VIGAS, PILARES, LAJES E FUNDAÇÕES, UTILIZANDO AÇO CA-50 DE 8,0 MM - MONTAGEM. AF_06/2022 | D188: KG | E188: 117.45 | F188: 16.72 | G188: 1963.76 | H188: 0.0006330326518 | I188: 0.9598039191
A189: ED-49889 | B189: SETOP | C189: CAIXA DE ESGOTO DE INSPEÇÃO/PASSAGEM EM ALVENARIA (60X60X100CM), REVESTIMENTO EM ARGAMASSA COM ADITIVO IMPERMEABILIZANTE, COM TAMPA DE CONCRETO, INCLUSIVE ESCAVAÇÃO, REATERRO E TRANSPORTE COM RETIRADA DO MATERIAL ESCAVADO (EM CAÇAMBA) | D189: un | E189: 2 | F189: 959.81 | G189: 1919.62 | H189: 0.0006188037943 | I189: 0.9604227229
A190: 95601 | B190: SINAPI | C190: ARRASAMENTO MECANICO DE ESTACA DE CONCRETO ARMADO, DIAMETROS DE ATÉ 40 CM. AF_05/2021 | D190: UN | E190: 95 | F190: 20.07 | G190: 1906.65 | H190: 0.0006146228183 | I190: 0.9610373457
A191: EST-002 | B191: CPU | C191: ESTACA BROCA DE CONCRETO, DIÂMETRO DE 20CM, ESCAVAÇÃO MANUAL COM TRADO CONCHA, EXCETO ARMADURA | D191: M | E191: 32.5 | F191: 58.19 | G191: 1891.18 | H191: 0.0006096359487 | I191: 0.9616469817
A192: 104918 | B192: SINAPI | C192: ARMAÇÃO DE SAPATA ISOLADA, VIGA BALDRAME E SAPATA CORRIDA UTILIZANDO AÇO CA-50 DE 8 MM - MONTAGEM. AF_01/2024 | D192: KG | E192: 109.5 | F192: 17.25 | G192: 1888.88 | H192: 0.0006088945265 | I192: 0.9622558762
A193: ED-48374 | B193: SETOP | C193: PATCH PANEL 48 POSIÇÕES, CATEGORIA COM GUIA TRASEIRO | D193: cj | E193: 1 | F193: 1836.64 | G193: 1836.64 | H193: 0.0005920545737 | I193: 0.9628479308
A194: ED-50324 | B194: SETOP | C194: TORNEIRA METÁLICA PARA PIA, BICA MÓVEL, ABERTURA 1/4 DE VOLTA, ACABAMENTO CROMADO, COM AREJADOR, APLICAÇÃO DE MESA, INCLUSIVE ENGATE FLEXÍVEL METÁLICO, FORNECIMENTO E INSTALAÇÃO | D194: un | E194: 8 | F194: 229.02 | G194: 1832.16 | H194: 0.0005906104124 | I194: 0.9634385412
A195: ACE-005 | B195: CPU | C195: PLACA TÁTIL BRAILLE EM ACRÍLICO 30X10 CM (ATÉ 3 PALAVRAS) - FORNECIMENTO E INSTALAÇÃO | D195: UN | E195: 29 | F195: 61.67 | G195: 1788.43 | H195: 0.0005765137214 | I195: 0.9640150549
A196: 87414 | B196: SINAPI | C196: APLICAÇÃO MANUAL DE GESSO DESEMPENADO (SEM TALISCAS) EM TETO DE AMBIENTES DE ÁREA MAIOR QUE 10M², ESPESSURA DE 1,0CM. AF_03/2023 | D196: M2 | E196: 54.82 | F196: 32.45 | G196: 1778.91 | H196: 0.0005734448786 | I196: 0.9645884998
A197: SPDA-002 | B197: CPU | C197: INSTALAÇÃO CONECTOR ATERRINSERT | D197: UN | E197: 30 | F197: 59.08 | G197: 1772.4 | H197: 0.0005713463316 | I197: 0.9651598461
A198: ED-13345 | B198: SETOP | C198: LUMINÁRIA ARANDELA TIPO MEIA-LUA COMPLETA, DIÂMETRO 25 CM, PARA UMA (1) LÂMPADA LED, POTÊNCIA 15W, BULBO A65, FORNECIMENTO E INSTALAÇÃO, INCLUSIVE BASE E LÂMPADA | D198: un | E198: 19 | F198: 92.34 | G198: 1754.46 | H198: 0.0005655632391 | I198: 0.9657254094
A199: ARQ-004 | B199: CPU | C199: PORTA PIVOTANTE DE VIDRO JATEADO, 2 FOLHAS DE 70X210 CM, ESPESSURA DE 6MM, INCLUSIVE ACESSÓRIOS. | D199: UN | E199: 1 | F199: 1705.43 | G199: 1705.43 | H199: 0.0005497580537 | I199: 0.9662751674
A200: 97327 | B200: SINAPI | C200: TUBO EM COBRE FLEXÍVEL, DN 1/4", COM ISOLAMENTO, INSTALADO EM RAMAL DE ALIMENTAÇÃO DE AR CONDICIONADO COM CONDENSADORA INDIVIDUAL FORNECIMENTO E INSTALAÇÃO. AF_12/2015 | D200: M | E200: 47.9 | F200: 34.66 | G200: 1660.21 | H200: 0.0005351810501 | I200: 0.9668103485
... 193 more rows

Sheet Auxiliar_ABC2 (hidden)
A1: 1 | D1: 1.1 | E1: ENGENHEIRO CIVIL DE OBRA JUNIOR COM ENCARGOS COMPLEMENTARES | F1: 90777 | G1: SINAPI | H1: H | I1: 960 | J1: 102.97 | K1: BDI 1 | L1: 130.27 | M1: 98851.2 | N1: 125059.2
A2: 2 | D2: 2.1 | E2: LOCAÇÃO DE CONTAINER COM ISOLAMENTO TÉRMICO, TIPO 3, PARA DEPÓSITO/FERRAMENTARIA DE OBRA, COM MEDIDAS REFERENCIAIS DE (6) METROS COMPRIMENTO, (2,3) METROS LARGURA E (2,5) METROS ALTURA ÚTIL INTERNA, INCLUSIVE LIGAÇÕES ELÉTRICAS INTERNAS, EXCLUSIVE MOBILIZAÇÃO/DESMOBILIZAÇÃO E LIGAÇÕES PROVISÓRIAS EXTERNAS | F2: ED-16350 | G2: SETOP | H2: mês | I2: 12 | J2: 801.86 | K2: BDI 1 | L2: 1014.51 | M2: 9622.32 | N2: 12174.12
A3: 2 | D3: 2.2 | E3: LIGAÇÕES PROVISÓRIAS PARA CONTAINER TIPO 3 (CORRESPONDENTE AO CÓDIGO ED-16350) | F3: ED-16358 | G3: SETOP | H3: un | I3: 1 | J3: 288.39 | K3: BDI 1 | L3: 364.87 | M3: 288.39 | N3: 364.87
A4: 2 | D4: 2.3 | E4: LOCAÇÃO DE CONTAINER COM ISOLAMENTO TÉRMICO, TIPO 1, PARA ESCRITÓRIO DE OBRA, COM MEDIDAS REFERENCIAIS DE (6) METROS COMPRIMENTO, (2,3) METROS LARGURA E (2,5) METROS ALTURA ÚTIL INTERNA, INCLUSIVE AR CONDICIONADO E LIGAÇÕES ELÉTRICAS INTERNAS, EXCLUSIVE MOBILIZAÇÃO/DESMOBILIZAÇÃO E LIGAÇÕES PROVISÓRIAS EXTERNAS | F4: ED-16348 | G4: SETOP | H4: mês | I4: 12 | J4: 1433.79 | K4: BDI 1 | L4: 1814.03 | M4: 17205.48 | N4: 21768.36
A5: 2 | D5: 2.4 | E5: LIGAÇÕES PROVISÓRIAS PARA CONTAINER TIPO 1 (CORRESPONDENTE AO CÓDIGO ED-16348) | F5: ED-16356 | G5: SETOP | H5: un | I5: 1 | J5: 288.39 | K5: BDI 1 | L5: 364.87 | M5: 288.39 | N5: 364.87
A6: 2 | D6: 2.5 | E6: MOBILIZAÇÃO E DESMOBILIZAÇÃO DE CONTAINER, INCLUSIVE CARGA, DESCARGA E TRANSPORTE EM CAMINHÃO CARROCERIA COM GUINDAUTO (MUNCK), EXCLUSIVE LOCAÇÃO DO CONTAINER | F6: ED-50137 | G6: SETOP | H6: un | I6: 2 | J6: 1445.84 | K6: BDI 1 | L6: 1829.27 | M6: 2891.68 | N6: 3658.54
A7: 2 | D7: 2.6 | E7: LOCAÇÃO DE BANHEIRO QUÍMICO, DIMENSÃO (110X120X230)CM, LINHA PADRÃO, CONTENDO UMA (1) PIA/HIGIENIZADOR DE MÃOS, INCLUSIVE MANUTENÇÃO E MOBILIZAÇÃO/DESMOBILIZAÇÃO | F7: ED-50155 | G7: SETOP | H7: mês | I7: 24 | J7: 900 | K7: BDI 1 | L7: 1138.68 | M7: 21600 | N7: 27328.32
A8: 2 | D8: 2.7 | E8: LIGAÇÃO DE ÁGUA PROVISÓRIA PARA CANTEIRO, INCLUSIVE HIDRÔMETRO E CAVALETE PARA MEDIÇÃO DE ÁGUA - ENTRADA PRINCIPAL, EM AÇO GALVANIZADO DN 20MM (1/2") - PADRÃO CONCESSIONÁRIA | F8: ED-50150 | G8: SETOP | H8: un | I8: 1 | J8: 439.05 | K8: BDI 1 | L8: 555.48 | M8: 439.05 | N8: 555.48
A9: 2 | D9: 2.8 | E9: LIGAÇÃO PROVISÓRIA COM ENTRADA DE ENERGIA AÉREA, PADRÃO CEMIG, CARGA INSTALADA DE 15,1KVA ATÉ 30KVA, TRIFÁSICO, COM SAÍDA SUBTERRÂNEA, INCLUSIVE POSTE, CAIXA PARA MEDIDOR, DISJUNTOR, BARRAMENTO, ATERRAMENTO E ACESSÓRIOS | F9: ED-50151 | G9: SETOP | H9: un | I9: 1 | J9: 1060.92 | K9: BDI 1 | L9: 1342.27 | M9: 1060.92 | N9: 1342.27
A10: 2 | D10: 2.9 | E10: TAPUME FIXO DE PROTEÇÃO PARA FECHAMENTO DE OBRA EM TELHA METÁLICA GALVANIZADA, TIPO TRAPEZOIDAL, ESP. 0,5MM, COM MÓDULO NA DIMENSÃO DE (300X220)CM, COM REAPROVEITAMENTO, EXCLUSIVE PINTURA ESMALTE, INCLUSIVE PONTALETE E FIXAÇÃO | F10: ED-29823 | G10: SETOP | H10: m2 | I10: 209 | J10: 52.79 | K10: BDI 1 | L10: 66.78 | M10: 11033.11 | N10: 13957.02
A11: 2 | D11: 2.10 | E11: REMOÇÃO DE TAPUME/ CHAPAS METÁLICAS E DE MADEIRA, DE FORMA MANUAL, SEM REAPROVEITAMENTO. AF_09/2023 | F11: 97637 | G11: SINAPI | H11: M2 | I11: 209 | J11: 2.53 | K11: BDI 1 | L11: 3.2 | M11: 528.77 | N11: 668.8
A12: 3 | D12: 3.1 | E12: FORNECIMENTO E COLOCAÇÃO DE PLACA DE OBRA EM CHAPA GALVANIZADA #26, ESP. 0,45MM, DIMENSÃO (3X1,5)M, PLOTADA COM ADESIVO VINÍLICO, AFIXADA COM REBITES 4,8X40MM, EM ESTRUTURA METÁLICA DE METALON 20X20MM, ESP. 1,25MM, INCLUSIVE SUPORTE EM EUCALIPTO AUTOCLAVADO PINTADO COM TINTA PVA DUAS (2) DEMÃOS | F12: ED-28427 | G12: SETOP | H12: un | I12: 1 | J12: 1201.64 | K12: BDI 1 | L12: 1520.31 | M12: 1201.64 | N12: 1520.31
A13: 3 | D13: 3.2 | E13: LOCAÇÃO DE OBRA COM GABARITO DE TÁBUAS CORRIDAS PONTALETADAS A CADA 2,00M, REAPROVEITAMENTO (2X), INCLUSIVE ACOMPANHAMENTO DE EQUIPE TOPOGRÁFICA PARA MARCAÇÃO DE PONTO TOPOGRÁFICO | F13: ED-17989 | G13: SETOP | H13: m | I13: 90 | J13: 45.78 | K13: BDI 1 | L13: 57.92 | M13: 4120.2 | N13: 5212.8
A14: 4 | D14: 4.1 | E14: LIMPEZA MECANIZADA DE CAMADA VEGETAL, VEGETAÇÃO E PEQUENAS ÁRVORES (DIÂMETRO DE TRONCO MENOR QUE 0,20 M), COM TRATOR DE ESTEIRAS. AF_03/2024 | F14: 98525 | G14: SINAPI | H14: M2 | I14: 562.5 | J14: 0.66 | K14: BDI 1 | L14: 0.83 | M14: 371.25 | N14: 466.88
A15: 4 | D15: 4.2 | E15: CARGA, MANOBRA E DESCARGA DE ENTULHO EM CAMINHÃO BASCULANTE 10 M³ - CARGA COM ESCAVADEIRA HIDRÁULICA (CAÇAMBA DE 0,80 M³ / 111 HP) E DESCARGA LIVRE (UNIDADE: M3). AF_07/2020 | F15: 100982 | G15: SINAPI | H15: M3 | I15: 109.69 | J15: 8.89 | K15: BDI 1 | L15: 11.24 | M15: 975.14 | N15: 1232.92
A16: 4 | D16: 4.3 | E16: TRANSPORTE COM CAMINHÃO BASCULANTE DE 10 M³, EM VIA URBANA PAVIMENTADA, DMT ATÉ 30 KM (UNIDADE: M3XKM). AF_07/2020 | F16: 95875 | G16: SINAPI | H16: M3XKM | I16: 987.21 | J16: 2.45 | K16: BDI 1 | L16: 3.09 | M16: 2418.66 | N16: 3050.48
A17: 4 | D17: 4.4 | E17: ESPALHAMENTO DE MATERIAL COM TRATOR DE ESTEIRAS. AF_09/2024 | F17: 100574 | G17: SINAPI | H17: M3 | I17: 109.69 | J17: 1.38 | K17: BDI 1 | L17: 1.74 | M17: 151.37 | N17: 190.86
A18: 5 | B18: 1 | D18: 5.1.1 | E18: LOCAÇÃO TOPOGRÁFICA PARA ATÉ VINTE (20) PONTOS REFERENCIAIS, INCLUSIVE ESTACA (PIQUETE) DE MARCAÇÃO | F18: ED-50274 | G18: SETOP | H18: un | I18: 13 | J18: 73.85 | K18: BDI 1 | L18: 93.43 | M18: 960.05 | N18: 1214.59
A19: 5 | B19: 2 | D19: 5.2.1 | E19: ESCAVAÇÃO VERTICAL PARA INFRAESTRUTURA, COM CARGA, DESCARGA E TRANSPORTE DE SOLO DE 1ª CATEGORIA, COM ESCAVADEIRA HIDRÁULICA (CAÇAMBA: 0,8 M³ / 111HP), FROTA DE 3 CAMINHÕES BASCULANTES DE 10 M³, DMT ATÉ 1 KM E VELOCIDADE MÉDIA14 KM/H. AF_05/2020 | F19: 101266 | G19: SINAPI | H19: M3 | I19: 570.05 | J19: 11.23 | K19: BDI 1 | L19: 14.2 | M19: 6401.66 | N19: 8094.71
A20: 5 | B20: 2 | D20: 5.2.2 | E20: EXECUÇÃO E COMPACTAÇÃO DE CORPO DE ATERRO DE ATERRO (95% DE ENERGIA DO PROCTOR NORMAL) COM SOLO PREDOMINANTEMENTE ARGILOSO ESPESSURA 15 CM - EXCLUSIVE MATERIAL, ESCAVAÇÃO, CARGA E TRANSPORTE. AF_09/2024 | F20: 96385 | G20: SINAPI | H20: M3 | I20: 25.24 | J20: 11.67 | K20: BDI 1 | L20: 14.76 | M20: 294.55 | N20: 372.54
A21: 5 | B21: 2 | D21: 5.2.3 | E21: REATERRO MANUAL DE VALAS, COM COMPACTADOR DE SOLOS DE PERCUSSÃO. AF_08/2023 | F21: 93382 | G21: SINAPI | H21: M3 | I21: 51.35 | J21: 24.1 | K21: BDI 1 | L21: 30.49 | M21: 1237.53 | N21: 1565.66
A22: 5 | B22: 3 | D22: 5.3.1 | E22: CARGA, MANOBRA E DESCARGA DE SOLOS E MATERIAIS GRANULARES EM CAMINHÃO BASCULANTE 10 M³ - CARGA COM ESCAVADEIRA HIDRÁULICA (CAÇAMBA DE 1,20 M³ / 155 HP) E DESCARGA LIVRE (UNIDADE: M3). AF_07/2020 | F22: 100978 | G22: SINAPI | H22: M3 | I22: 704.6072222 | J22: 6.9 | K22: BDI 1 | L22: 8.72 | M22: 4861.78 | N22: 6144.2
A23: 5 | B23: 3 | D23: 5.3.2 | E23: TRANSPORTE COM CAMINHÃO BASCULANTE DE 10 M³, EM VIA URBANA PAVIMENTADA, DMT ATÉ 30 KM (UNIDADE: M3XKM). AF_07/2020 | F23: 95875 | G23: SINAPI | H23: M3XKM | I23: 2747.968167 | J23: 2.45 | K23: BDI 1 | L23: 3.09 | M23: 6732.52 | N23: 8491.23
A24: 5 | B24: 3 | D24: 5.3.3 | E24: ESPALHAMENTO DE MATERIAL COM TRATOR DE ESTEIRAS. AF_09/2024 | F24: 100574 | G24: SINAPI | H24: M3 | I24: 704.6072222 | J24: 1.38 | K24: BDI 1 | L24: 1.74 | M24: 972.35 | N24: 1226.02
A25: 6 | B25: 1 | D25: 6.1.1 | E25: ESCAVAÇÃO MECANIZADA PARA BLOCO DE COROAMENTO OU SAPATA COM RETROESCAVADEIRA (INCLUINDO ESCAVAÇÃO PARA COLOCAÇÃO DE FÔRMAS). AF_01/2024 | F25: 96521 | G25: SINAPI | H25: M3 | I25: 62.7 | J25: 41.55 | K25: BDI 1 | L25: 52.56 | M25: 2605.18 | N25: 3295.51
A26: 6 | B26: 1 | D26: 6.1.2 | E26: ESCAVAÇÃO MECANIZADA PARA VIGA BALDRAME OU SAPATA CORRIDA COM MINI-ESCAVADEIRA (INCLUINDO ESCAVAÇÃO PARA COLOCAÇÃO DE FÔRMAS). AF_01/2024 | F26: 96525 | G26: SINAPI | H26: M3 | I26: 53.17 | J26: 53.13 | K26: BDI 1 | L26: 67.22 | M26: 2824.92 | N26: 3574.09
A27: 6 | B27: 1 | D27: 6.1.3 | E27: LASTRO DE CONCRETO MAGRO, APLICADO EM BLOCOS DE COROAMENTO OU SAPATAS. AF_01/2024 | F27: 96616 | G27: SINAPI | H27: M3 | I27: 2.85 | J27: 797.68 | K27: BDI 1 | L27: 1009.22 | M27: 2273.38 | N27: 2876.28
A28: 6 | B28: 1 | D28: 6.1.4 | E28: REATERRO MANUAL DE VALAS, COM PLACA VIBRATÓRIA. AF_08/2023 | F28: 104737 | G28: SINAPI | H28: M3 | I28: 94.79 | J28: 19.15 | K28: BDI 1 | L28: 24.22 | M28: 1815.22 | N28: 2295.81
A29: 6 | B29: 1 | D29: 6.1.5 | E29: CARGA, MANOBRA E DESCARGA DE SOLOS E MATERIAIS GRANULARES EM CAMINHÃO BASCULANTE 6 M³ - CARGA COM ESCAVADEIRA HIDRÁULICA (CAÇAMBA DE 1,20 M³ / 155 HP) E DESCARGA LIVRE (UNIDADE: M3). AF_07/2020 | F29: 100977 | G29: SINAPI | H29: M3 | I29: 55.85 | J29: 7.64 | K29: BDI 1 | L29: 9.66 | M29: 426.69 | N29: 539.51
A30: 6 | B30: 1 | D30: 6.1.6 | E30: TRANSPORTE COM CAMINHÃO BASCULANTE DE 10 M³, EM VIA URBANA PAVIMENTADA, DMT ATÉ 30 KM (UNIDADE: TXKM). AF_07/2020 | F30: 95878 | G30: SINAPI | H30: TXKM | I30: 369.67 | J30: 1.65 | K30: BDI 1 | L30: 2.08 | M30: 609.95 | N30: 768.91
A31: 6 | B31: 1 | D31: 6.1.7 | E31: ESPALHAMENTO DE MATERIAL COM TRATOR DE ESTEIRAS. AF_09/2024 | F31: 100574 | G31: SINAPI | H31: M3 | I31: 94.79 | J31: 1.38 | K31: BDI 1 | L31: 1.74 | M31: 130.81 | N31: 164.93
A32: 6 | B32: 2 | C32: 1 | D32: 6.2.1.1 | E32: MOBILIZAÇÃO E DESMOBILIZAÇÃO DE EQUIPAMENTO PARA ESTACA TIPO TRADO ROTATIVO (CUSTO FIXO), INCLUSIVE CARGA E DESCARGA, EXCLUSIVE TRANSPORTE EM QUILÔMETRO RODADO (CUSTO VARIÁVEL) | F32: ED-29817 | G32: SETOP | H32: un | I32: 1 | J32: 3607.9 | K32: BDI 1 | L32: 4564.71 | M32: 3607.9 | N32: 4564.71
A33: 6 | B33: 2 | C33: 1 | D33: 6.2.1.2 | E33: MOBILIZAÇÃO E DESMOBILIZAÇÃO DE EQUIPAMENTO PARA ESTACA TIPO TRADO ROTATIVO (CUSTO VARIÁVEL), EXCLUSIVE CUSTO FIXO DE TRANSPORTE | F33: ED-29818 | G33: SETOP | H33: km | I33: 50 | J33: 20.66 | K33: BDI 1 | L33: 26.13 | M33: 1033 | N33: 1306.5
A34: 6 | B34: 2 | C34: 1 | D34: 6.2.1.3 | E34: MONTAGEM DE ARMADURA TRANSVERSAL DE ESTACAS DE SEÇÃO CIRCULAR, DIÂMETRO = 5,0 MM. AF_09/2021_PS | F34: 95583 | G34: SINAPI | H34: KG | I34: 11 | J34: 15.03 | K34: BDI 1 | L34: 19.01 | M34: 165.33 | N34: 209.11
A35: 6 | B35: 2 | C35: 1 | D35: 6.2.1.4 | E35: MONTAGEM DE ARMADURA TRANSVERSAL DE ESTACAS DE SEÇÃO CIRCULAR, DIÂMETRO = 6,30 MM. AF_09/2021_PS | F35: 95584 | G35: SINAPI | H35: KG | I35: 365.2 | J35: 13.34 | K35: BDI 1 | L35: 16.87 | M35: 4871.76 | N35: 6160.92
A36: 6 | B36: 2 | C36: 1 | D36: 6.2.1.5 | E36: MONTAGEM DE ARMADURA DE ESTACAS, DIÂMETRO = 10,0 MM. AF_09/2021_PS | F36: 95577 | G36: SINAPI | H36: KG | I36: 85.25 | J36: 10.34 | K36: BDI 1 | L36: 13.08 | M36: 881.48 | N36: 1115.07
A37: 6 | B37: 2 | C37: 1 | D37: 6.2.1.6 | E37: MONTAGEM DE ARMADURA DE ESTACAS, DIÂMETRO = 16,0 MM. AF_09/2021_PS | F37: 95579 | G37: SINAPI | H37: KG | I37: 2540.03 | J37: 8.34 | K37: BDI 1 | L37: 10.55 | M37: 21183.85 | N37: 26797.32
A38: 6 | B38: 2 | C38: 1 | D38: 6.2.1.7 | E38: ARRASAMENTO MECANICO DE ESTACA DE CONCRETO ARMADO, DIAMETROS DE ATÉ 40 CM. AF_05/2021 | F38: 95601 | G38: SINAPI | H38: UN | I38: 95 | J38: 15.87 | K38: BDI 1 | L38: 20.07 | M38: 1507.65 | N38: 1906.65
A39: 6 | B39: 2 | C39: 1 | D39: 6.2.1.8 | E39: ESTACA HÉLICE CONTÍNUA, DIÂMETRO DE 30 CM, INCLUSO CONCRETO FCK=30MPA E ARMADURA MÍNIMA (EXCLUSIVE BOMBEAMENTO, MOBILIZAÇÃO E DESMOBILIZAÇÃO). | F39: EST-001 | G39: CPU | H39: M | I39: 984 | J39: 128.15 | K39: BDI 1 | L39: 162.13 | M39: 126099.6 | N39: 159535.92
A40: 6 | B40: 2 | C40: 1 | D40: 6.2.1.9 | E40: ESTACA BROCA DE CONCRETO, DIÂMETRO DE 20CM, ESCAVAÇÃO MANUAL COM TRADO CONCHA, EXCETO ARMADURA | F40: EST-002 | G40: CPU | H40: M | I40: 32.5 | J40: 46 | K40: BDI 1 | L40: 58.19 | M40: 1495 | N40: 1891.18
A41: 6 | B41: 2 | C41: 2 | D41: 6.2.2.1 | E41: FABRICAÇÃO, MONTAGEM E DESMONTAGEM DE FÔRMA PARA BLOCO DE COROAMENTO, EM MADEIRA SERRADA, E=25 MM, 4 UTILIZAÇÕES. AF_01/2024 | F41: 96534 | G41: SINAPI | H41: M2 | I41: 147.45 | J41: 70.97 | K41: BDI 1 | L41: 89.79 | M41: 10464.52 | N41: 13239.54
A42: 6 | B42: 2 | C42: 2 | D42: 6.2.2.2 | E42: ARMAÇÃO DE BLOCO UTILIZANDO AÇO CA-60 DE 5 MM - MONTAGEM. AF_01/2024 | F42: 96543 | G42: SINAPI | H42: KG | I42: 122.4 | J42: 18.64 | K42: BDI 1 | L42: 23.58 | M42: 2281.53 | N42: 2886.19
A43: 6 | B43: 2 | C43: 2 | D43: 6.2.2.3 | E43: ARMAÇÃO DE BLOCO UTILIZANDO AÇO CA-50 DE 6,3 MM - MONTAGEM. AF_01/2024 | F43: 96544 | G43: SINAPI | H43: KG | I43: 416.7 | J43: 16.86 | K43: BDI 1 | L43: 21.33 | M43: 7025.56 | N43: 8888.21
A44: 6 | B44: 2 | C44: 2 | D44: 6.2.2.4 | E44: ARMAÇÃO DE BLOCO UTILIZANDO AÇO CA-50 DE 8 MM - MONTAGEM. AF_01/2024 | F44: 96545 | G44: SINAPI | H44: KG | I44: 113.9 | J44: 15.24 | K44: BDI 1 | L44: 19.28 | M44: 1735.83 | N44: 2195.99
A45: 6 | B45: 2 | C45: 2 | D45: 6.2.2.5 | E45: ARMAÇÃO DE BLOCO UTILIZANDO AÇO CA-50 DE 10 MM - MONTAGEM. AF_01/2024 | F45: 96546 | G45: SINAPI | H45: KG | I45: 318.3 | J45: 13.36 | K45: BDI 1 | L45: 16.9 | M45: 4252.48 | N45: 5379.27
A46: 6 | B46: 2 | C46: 2 | D46: 6.2.2.6 | E46: ARMAÇÃO DE BLOCO, SAPATA ISOLADA, VIGA BALDRAME E SAPATA CORRIDA UTILIZANDO AÇO CA-50 DE 12,5 MM - MONTAGEM. AF_01/2024 | F46: 104920 | G46: SINAPI | H46: KG | I46: 103.6 | J46: 10.35 | K46: BDI 1 | L46: 13.09 | M46: 1072.26 | N46: 1356.12
A47: 6 | B47: 2 | C47: 2 | D47: 6.2.2.7 | E47: ARMAÇÃO DE BLOCO, SAPATA ISOLADA, VIGA BALDRAME E SAPATA CORRIDA UTILIZANDO AÇO CA-50 DE 16 MM - MONTAGEM. AF_01/2024 | F47: 104921 | G47: SINAPI | H47: KG | I47: 293.4 | J47: 9.77 | K47: BDI 1 | L47: 12.36 | M47: 2866.51 | N47: 3626.42
A48: 6 | B48: 2 | C48: 2 | D48: 6.2.2.8 | E48: CONCRETAGEM DE BLOCO DE COROAMENTO OU VIGA BALDRAME, FCK 30 MPA, COM USO DE BOMBA - LANÇAMENTO, ADENSAMENTO E ACABAMENTO. AF_01/2024 | F48: 96557 | G48: SINAPI | H48: M3 | I48: 24.86 | J48: 822.94 | K48: BDI 1 | L48: 1041.18 | M48: 20458.28 | N48: 25883.73
A49: 6 | B49: 2 | C49: 3 | D49: 6.2.3.1 | E49: FABRICAÇÃO, MONTAGEM E DESMONTAGEM DE FÔRMA PARA VIGA BALDRAME, EM MADEIRA SERRADA, E=25 MM, 4 UTILIZAÇÕES. AF_01/2024 | F49: 96536 | G49: SINAPI | H49: M2 | I49: 233.7 | J49: 61.84 | K49: BDI 1 | L49: 78.23 | M49: 14452 | N49: 18282.35
A50: 6 | B50: 2 | C50: 3 | D50: 6.2.3.2 | E50: IMPERMEABILIZAÇÃO DE SUPERFÍCIE COM EMULSÃO ASFÁLTICA, 2 DEMÃOS. AF_09/2023 | F50: 98557 | G50: SINAPI | H50: M2 | I50: 116.85 | J50: 39.84 | K50: BDI 1 | L50: 50.4 | M50: 4655.3 | N50: 5889.24
A51: 6 | B51: 2 | C51: 3 | D51: 6.2.3.3 | E51: ARMAÇÃO DE SAPATA ISOLADA, VIGA BALDRAME E SAPATA CORRIDA UTILIZANDO AÇO CA-60 DE 5 MM - MONTAGEM. AF_01/2024 | F51: 104916 | G51: SINAPI | H51: KG | I51: 278.3 | J51: 15.73 | K51: BDI 1 | L51: 19.9 | M51: 4377.65 | N51: 5538.17
A52: 6 | B52: 2 | C52: 3 | D52: 6.2.3.4 | E52: ARMAÇÃO DE SAPATA ISOLADA, VIGA BALDRAME E SAPATA CORRIDA UTILIZANDO AÇO CA-50 DE 6,3 MM - MONTAGEM. AF_01/2024 | F52: 104917 | G52: SINAPI | H52: KG | I52: 40.6 | J52: 14.67 | K52: BDI 1 | L52: 18.56 | M52: 595.6 | N52: 753.54
A53: 6 | B53: 2 | C53: 3 | D53: 6.2.3.5 | E53: ARMAÇÃO DE SAPATA ISOLADA, VIGA BALDRAME E SAPATA CORRIDA UTILIZANDO AÇO CA-50 DE 8 MM - MONTAGEM. AF_01/2024 | F53: 104918 | G53: SINAPI | H53: KG | I53: 109.5 | J53: 13.64 | K53: BDI 1 | L53: 17.25 | M53: 1493.58 | N53: 1888.88
A54: 6 | B54: 2 | C54: 3 | D54: 6.2.3.6 | E54: ARMAÇÃO DE SAPATA ISOLADA, VIGA BALDRAME E SAPATA CORRIDA UTILIZANDO AÇO CA-50 DE 10 MM - MONTAGEM. AF_01/2024 | F54: 104919 | G54: SINAPI | H54: KG | I54: 373.3 | J54: 12.2 | K54: BDI 1 | L54: 15.43 | M54: 4554.26 | N54: 5760.02
A55: 6 | B55: 2 | C55: 3 | D55: 6.2.3.7 | E55: ARMAÇÃO DE BLOCO, SAPATA ISOLADA, VIGA BALDRAME E SAPATA CORRIDA UTILIZANDO AÇO CA-50 DE 12,5 MM - MONTAGEM. AF_01/2024 | F55: 104920 | G55: SINAPI | H55: KG | I55: 121.3 | J55: 10.35 | K55: BDI 1 | L55: 13.09 | M55: 1255.45 | N55: 1587.82
A56: 6 | B56: 2 | C56: 3 | D56: 6.2.3.8 | E56: ARMAÇÃO DE BLOCO, SAPATA ISOLADA, VIGA BALDRAME E SAPATA CORRIDA UTILIZANDO AÇO CA-50 DE 16 MM - MONTAGEM. AF_01/2024 | F56: 104921 | G56: SINAPI | H56: KG | I56: 506 | J56: 9.77 | K56: BDI 1 | L56: 12.36 | M56: 4943.62 | N56: 6254.16
A57: 6 | B57: 2 | C57: 3 | D57: 6.2.3.9 | E57: CONCRETAGEM DE BLOCO DE COROAMENTO OU VIGA BALDRAME, FCK 30 MPA, COM USO DE BOMBA - LANÇAMENTO, ADENSAMENTO E ACABAMENTO. AF_01/2024 | F57: 96557 | G57: SINAPI | H57: M3 | I57: 18.1 | J57: 822.94 | K57: BDI 1 | L57: 1041.18 | M57: 14895.21 | N57: 18845.36
A58: 6 | B58: 3 | C58: 1 | D58: 6.3.1.1 | E58: MONTAGEM E DESMONTAGEM DE FÔRMA DE VIGA, ESCORAMENTO COM GARFO DE MADEIRA, PÉ-DIREITO DUPLO, EM CHAPA DE MADEIRA RESINADA, 4 UTILIZAÇÕES. AF_09/2020 | F58: 92453 | G58: SINAPI | H58: M2 | I58: 694.36 | J58: 233.95 | K58: BDI 1 | L58: 295.99 | M58: 162445.52 | N58: 205523.62
A59: 6 | B59: 3 | C59: 1 | D59: 6.3.1.2 | E59: ARMAÇÃO DE PILAR OU VIGA DE ESTRUTURA CONVENCIONAL DE CONCRETO ARMADO UTILIZANDO AÇO CA-60 DE 5,0 MM - MONTAGEM. AF_06/2022 | F59: 92759 | G59: SINAPI | H59: KG | I59: 1099.3 | J59: 13.36 | K59: BDI 1 | L59: 16.9 | M59: 14686.64 | N59: 18578.17
A60: 6 | B60: 3 | C60: 1 | D60: 6.3.1.3 | E60: ARMAÇÃO DE PILAR OU VIGA DE ESTRUTURA CONVENCIONAL DE CONCRETO ARMADO UTILIZANDO AÇO CA-50 DE 6,3 MM - MONTAGEM. AF_06/2022 | F60: 92760 | G60: SINAPI | H60: KG | I60: 512.8 | J60: 12.66 | K60: BDI 1 | L60: 16.01 | M60: 6492.04 | N60: 8209.93
A61: 6 | B61: 3 | C61: 1 | D61: 6.3.1.4 | E61: ARMAÇÃO DE PILAR OU VIGA DE ESTRUTURA CONVENCIONAL DE CONCRETO ARMADO UTILIZANDO AÇO CA-50 DE 8,0 MM - MONTAGEM. AF_06/2022 | F61: 92761 | G61: SINAPI | H61: KG | I61: 372.9 | J61: 11.93 | K61: BDI 1 | L61: 15.09 | M61: 4448.69 | N61: 5627.06
A62: 6 | B62: 3 | C62: 1 | D62: 6.3.1.5 | E62: ARMAÇÃO DE PILAR OU VIGA DE ESTRUTURA CONVENCIONAL DE CONCRETO ARMADO UTILIZANDO AÇO CA-50 DE 10,0 MM - MONTAGEM. AF_06/2022 | F62: 92762 | G62: SINAPI | H62: KG | I62: 1588.8 | J62: 10.68 | K62: BDI 1 | L62: 13.51 | M62: 16968.38 | N62: 21464.69
A63: 6 | B63: 3 | C63: 1 | D63: 6.3.1.6 | E63: ARMAÇÃO DE PILAR OU VIGA DE ESTRUTURA CONVENCIONAL DE CONCRETO ARMADO UTILIZANDO AÇO CA-50 DE 12,5 MM - MONTAGEM. AF_06/2022 | F63: 92763 | G63: SINAPI | H63: KG | I63: 956.1 | J63: 8.97 | K63: BDI 1 | L63: 11.34 | M63: 8576.21 | N63: 10842.17
A64: 6 | B64: 3 | C64: 1 | D64: 6.3.1.7 | E64: ARMAÇÃO DE PILAR OU VIGA DE ESTRUTURA CONVENCIONAL DE CONCRETO ARMADO UTILIZANDO AÇO CA-50 DE 16,0 MM - MONTAGEM. AF_06/2022 | F64: 92764 | G64: SINAPI | H64: KG | I64: 285.5 | J64: 8.69 | K64: BDI 1 | L64: 10.99 | M64: 2480.99 | N64: 3137.65
A65: 6 | B65: 3 | C65: 1 | D65: 6.3.1.8 | E65: ARMAÇÃO DE PILAR OU VIGA DE ESTRUTURA CONVENCIONAL DE CONCRETO ARMADO UTILIZANDO AÇO CA-50 DE 20,0 MM - MONTAGEM. AF_06/2022 | F65: 92765 | G65: SINAPI | H65: KG | I65: 126.7 | J65: 9.92 | K65: BDI 1 | L65: 12.55 | M65: 1256.86 | N65: 1590.09
A66: 6 | B66: 3 | C66: 1 | D66: 6.3.1.9 | E66: CONCRETAGEM DE VIGAS E LAJES, FCK=30 MPA, PARA LAJES PREMOLDADAS COM USO DE BOMBA - LANÇAMENTO, ADENSAMENTO E ACABAMENTO. | F66: EST-007 | G66: CPU | H66: M3 | I66: 64.51 | J66: 777.46 | K66: BDI 1 | L66: 983.64 | M66: 50153.94 | N66: 63454.62
A67: 6 | B67: 3 | C67: 2 | D67: 6.3.2.1 | E67: LAJE TRELIÇADA H=13 CM - INCLUSO MONTAGEM E FORNECIMENTO DOS MATERIAIS, EXCETO CONCRETAGEM | F67: EST-004 | G67: CPU | H67: M2 | I67: 75.41 | J67: 101.56 | K67: BDI 1 | L67: 128.49 | M67: 7658.63 | N67: 9689.43
A68: 6 | B68: 3 | C68: 2 | D68: 6.3.2.2 | E68: LAJE TRELIÇADA H=17 CM - INCLUSO MONTAGEM E FORNECIMENTO DOS MATERIAIS, EXCETO CONCRETAGEM | F68: EST-005 | G68: CPU | H68: M2 | I68: 915.57 | J68: 116.56 | K68: BDI 1 | L68: 147.47 | M68: 106718.83 | N68: 135019.11
A69: 6 | B69: 3 | C69: 2 | D69: 6.3.2.3 | E69: LAJE TRELIÇADA H=21 CM - INCLUSO MONTAGEM E FORNECIMENTO DOS MATERIAIS, EXCETO CONCRETAGEM | F69: EST-006 | G69: CPU | H69: M2 | I69: 28.64 | J69: 177.56 | K69: BDI 1 | L69: 224.64 | M69: 5085.31 | N69: 6433.69
A70: 6 | B70: 3 | C70: 2 | D70: 6.3.2.4 | E70: TELA DE ACO SOLDADA NERVURADA, CA-60, Q-92, (1,48 KG/M2), DIAMETRO DO FIO = 4,2 MM, LARGURA = 2,45 X 60 M DE COMPRIMENTO, ESPACAMENTO DA MALHA = 15 X 15 CM | F70: 21141 | G70: SINAPI | H70: M2 | I70: 1019.62 | J70: 14.22 | K70: BDI 1 | L70: 17.99 | M70: 14498.99 | N70: 18342.96
A71: 6 | B71: 3 | C71: 2 | D71: 6.3.2.5 | E71: ARMAÇÃO DE LAJE DE ESTRUTURA CONVENCIONAL DE CONCRETO ARMADO UTILIZANDO AÇO CA-50 DE 6,3 MM - MONTAGEM. AF_06/2022 | F71: 92769 | G71: SINAPI | H71: KG | I71: 564.1 | J71: 12.19 | K71: BDI 1 | L71: 15.42 | M71: 6876.37 | N71: 8698.42
A72: 6 | B72: 3 | C72: 2 | D72: 6.3.2.6 | E72: ARMAÇÃO DE LAJE DE ESTRUTURA CONVENCIONAL DE CONCRETO ARMADO UTILIZANDO AÇO CA-50 DE 8,0 MM - MONTAGEM. AF_06/2022 | F72: 92770 | G72: SINAPI | H72: KG | I72: 444.6 | J72: 11.47 | K72: BDI 1 | L72: 14.51 | M72: 5099.56 | N72: 6451.15
A73: 6 | B73: 3 | C73: 2 | D73: 6.3.2.7 | E73: ARMAÇÃO DE LAJE DE ESTRUTURA CONVENCIONAL DE CONCRETO ARMADO UTILIZANDO AÇO CA-50 DE 10,0 MM - MONTAGEM. AF_06/2022 | F73: 92771 | G73: SINAPI | H73: KG | I73: 193.2 | J73: 10.25 | K73: BDI 1 | L73: 12.96 | M73: 1980.3 | N73: 2503.87
A74: 6 | B74: 3 | C74: 2 | D74: 6.3.2.8 | E74: ARMAÇÃO DE LAJE DE ESTRUTURA CONVENCIONAL DE CONCRETO ARMADO UTILIZANDO AÇO CA-50 DE 12,5 MM - MONTAGEM. AF_06/2022 | F74: 92772 | G74: SINAPI | H74: KG | I74: 67.9 | J74: 8.6 | K74: BDI 1 | L74: 10.88 | M74: 583.94 | N74: 738.75
A75: 6 | B75: 3 | C75: 2 | D75: 6.3.2.9 | E75: CIMBRAMENTO PARA LAJE PRÉ-MOLDADA COM ESCORAMENTO METÁLICO, TIPO "B", ALTURA DE (311 ATÉ 450)CM, INCLUSIVE DESCARGA, MONTAGEM, DESMONTAGEM E CARGA | F75: ED-19638 | G75: SETOP | H75: m2xmês | I75: 1019.62 | J75: 24.07 | K75: BDI 1 | L75: 30.45 | M75: 24542.25 | N75: 31047.43
A76: 6 | B76: 3 | C76: 2 | D76: 6.3.2.10 | E76: CONCRETAGEM DE VIGAS E LAJES, FCK=30 MPA, PARA LAJES PREMOLDADAS COM USO DE BOMBA - LANÇAMENTO, ADENSAMENTO E ACABAMENTO. | F76: EST-007 | G76: CPU | H76: M3 | I76: 43.78 | J76: 777.46 | K76: BDI 1 | L76: 983.64 | M76: 34037.19 | N76: 43063.76
A77: 6 | B77: 3 | C77: 3 | D77: 6.3.3.1 | E77: CINTA DE AMARRAÇÃO DE ALVENARIA MOLDADA IN LOCO COM UTILIZAÇÃO DE BLOCOS CANALETA, ESPESSURA DE *15* CM. AF_03/2024 | F77: 105033 | G77: SINAPI | H77: M | I77: 188.48 | J77: 55.57 | K77: BDI 1 | L77: 70.3 | M77: 10473.83 | N77: 13250.14
A78: 6 | B78: 3 | C78: 4 | D78: 6.3.4.1 | E78: MONTAGEM E DESMONTAGEM DE FÔRMA DE PILARES RETANGULARES E ESTRUTURAS SIMILARES, PÉ-DIREITO DUPLO, EM CHAPA DE MADEIRA COMPENSADA RESINADA, 6 UTILIZAÇÕES. AF_09/2020 | F78: 92425 | G78: SINAPI | H78: M2 | I78: 447.72 | J78: 81.63 | K78: BDI 1 | L78: 103.27 | M78: 36547.38 | N78: 46236.04
A79: 6 | B79: 3 | C79: 4 | D79: 6.3.4.2 | E79: ARMAÇÃO DE PILAR OU VIGA DE ESTRUTURA CONVENCIONAL DE CONCRETO ARMADO UTILIZANDO AÇO CA-60 DE 5,0 MM - MONTAGEM. AF_06/2022 | F79: 92759 | G79: SINAPI | H79: KG | I79: 820.8 | J79: 13.36 | K79: BDI 1 | L79: 16.9 | M79: 10965.88 | N79: 13871.52
A80: 6 | B80: 3 | C80: 4 | D80: 6.3.4.3 | E80: ARMAÇÃO DE PILAR OU VIGA DE ESTRUTURA CONVENCIONAL DE CONCRETO ARMADO UTILIZANDO AÇO CA-50 DE 10,0 MM - MONTAGEM. AF_06/2022 | F80: 92762 | G80: SINAPI | H80: KG | I80: 1647.3 | J80: 10.68 | K80: BDI 1 | L80: 13.51 | M80: 17593.16 | N80: 22255.02
A81: 6 | B81: 3 | C81: 4 | D81: 6.3.4.4 | E81: ARMAÇÃO DE PILAR OU VIGA DE ESTRUTURA CONVENCIONAL DE CONCRETO ARMADO UTILIZANDO AÇO CA-50 DE 12,5 MM - MONTAGEM. AF_06/2022 | F81: 92763 | G81: SINAPI | H81: KG | I81: 130.7 | J81: 8.97 | K81: BDI 1 | L81: 11.34 | M81: 1172.37 | N81: 1482.14
A82: 6 | B82: 3 | C82: 4 | D82: 6.3.4.5 | E82: CONCRETAGEM DE PILARES, FCK = 30 MPA, COM USO DE BOMBA - LANÇAMENTO, ADENSAMENTO E ACABAMENTO. | F82: EST-003 | G82: CPU | H82: M3 | I82: 26.07 | J82: 758.5 | K82: BDI 1 | L82: 959.65 | M82: 19774.09 | N82: 25018.08
A83: 6 | B83: 3 | C83: 6 | D83: 6.3.6.1 | E83: ALVENARIA DE BLOCOS DE CONCRETO ESTRUTURAL 19 X 19 X 39 CM (ESPESSURA 19 CM), FBK = 14 MPA, UTILIZANDO PALHETA. | F83: EST-008 | G83: CPU | H83: M2 | I83: 54.06 | J83: 133.89 | K83: BDI 1 | L83: 169.39 | M83: 7238.09 | N83: 9157.22
A84: 6 | B84: 3 | C84: 6 | D84: 6.3.6.2 | E84: GRAUTE FGK=15 MPA; TRAÇO 1:2,2:2,5:0,3 (EM MASSA SECA DE CIMENTO/ AREIA GROSSA/ BRITA 0/ ADITIVO) - PREPARO MECÂNICO COM BETONEIRA 400 L. AF_09/2021 | F84: 90282 | G84: SINAPI | H84: M3 | I84: 5.14 | J84: 530.33 | K84: BDI 1 | L84: 670.97 | M84: 2725.89 | N84: 3448.79
A85: 6 | B85: 3 | C85: 6 | D85: 6.3.6.3 | E85: ARMAÇÃO DE ESTRUTURAS DIVERSAS DE CONCRETO ARMADO, EXCETO VIGAS, PILARES, LAJES E FUNDAÇÕES, UTILIZANDO AÇO CA-50 DE 8,0 MM - MONTAGEM. AF_06/2022 | F85: 92917 | G85: SINAPI | H85: KG | I85: 117.45 | J85: 13.22 | K85: BDI 1 | L85: 16.72 | M85: 1552.68 | N85: 1963.76
A86: 6 | B86: 3 | C86: 6 | D86: 6.3.6.4 | E86: IMPERMEABILIZAÇÃO DE SUPERFÍCIE COM EMULSÃO ASFÁLTICA, 2 DEMÃOS. AF_09/2023 | F86: 98557 | G86: SINAPI | H86: M2 | I86: 100.96 | J86: 39.84 | K86: BDI 1 | L86: 50.4 | M86: 4022.24 | N86: 5088.38
A87: 7 | B87: 1 | D87: 7.1.1 | E87: ALVENARIA DE VEDAÇÃO DE BLOCOS VAZADOS DE CONCRETO DE 9X19X39 CM (ESPESSURA 9 CM) E ARGAMASSA DE ASSENTAMENTO COM PREPARO EM BETONEIRA. AF_12/2021 | F87: 103316 | G87: SINAPI | H87: M2 | I87: 16.44 | J87: 74.95 | K87: BDI 1 | L87: 94.82 | M87: 1232.17 | N87: 1558.84
A88: 7 | B88: 1 | D88: 7.1.2 | E88: ALVENARIA DE VEDAÇÃO DE BLOCOS VAZADOS DE CONCRETO DE 14X19X39 CM (ESPESSURA 14 CM) E ARGAMASSA DE ASSENTAMENTO COM PREPARO EM BETONEIRA. AF_12/2021 | F88: 103318 | G88: SINAPI | H88: M2 | I88: 952.14 | J88: 97.06 | K88: BDI 1 | L88: 122.8 | M88: 92414.7 | N88: 116922.79
A89: 7 | B89: 1 | D89: 7.1.3 | E89: ALVENARIA DE VEDAÇÃO DE BLOCOS VAZADOS DE CONCRETO DE 19X19X39 CM (ESPESSURA 19 CM) E ARGAMASSA DE ASSENTAMENTO COM PREPARO EM BETONEIRA. AF_12/2021 | F89: 103320 | G89: SINAPI | H89: M2 | I89: 309.61 | J89: 117.07 | K89: BDI 1 | L89: 148.11 | M89: 36246.04 | N89: 45856.34
A90: 7 | B90: 1 | D90: 7.1.4 | E90: GRADIL NYLOFOR H=2.03 M INCLUSIVE POSTE OU EQUIVALENTE | F90: 13.38.29 | G90: SUDECAP | H90: M | I90: 43 | J90: 315.89 | K90: BDI 1 | L90: 399.66 | M90: 13583.27 | N90: 17185.38
A91: 7 | B91: 1 | D91: 7.1.5 | E91: FIXAÇÃO (ENCUNHAMENTO) DE ALVENARIA DE VEDAÇÃO COM TIJOLO MACIÇO. AF_03/2024 | F91: 93202 | G91: SINAPI | H91: M | I91: 539.2 | J91: 25.4 | K91: BDI 1 | L91: 32.13 | M91: 13695.68 | N91: 17324.5
A92: 7 | B92: 2 | D92: 7.2.1 | E92: DIVISÓRIA EM GRANITO CINZA ANDORINHA, ESP. 3CM, INCLUSIVE INSTALAÇÃO, FERRAGENS EM LATÃO CROMADO E ACESSÓRIOS | F92: ED-48533 | G92: SETOP | H92: m2 | I92: 8.04 | J92: 655.72 | K92: BDI 1 | L92: 829.61 | M92: 5271.98 | N92: 6670.06
A93: 7 | B93: 3 | D93: 7.3.1 | E93: INSTALAÇÃO DE VIDRO LAMINADO, E = 8 MM (4+4), ENCAIXADO EM PERFIL U. AF_01/2021_PS | F93: 102176 | G93: SINAPI | H93: M2 | I93: 17.05 | J93: 703.34 | K93: BDI 1 | L93: 889.86 | M93: 11991.94 | N93: 15172.11
A94: 7 | B94: 4 | D94: 7.4.1 | E94: CHAPIM (RUFO CAPA) EM AÇO GALVANIZADO, CORTE 33. AF_11/2020 | F94: 101979 | G94: SINAPI | H94: M | I94: 95 | J94: 42.76 | K94: BDI 1 | L94: 54.09 | M94: 4062.2 | N94: 5138.55
A95: 7 | B95: 5 | D95: 7.5.1 | E95: CORRIMÃO DUPLO EM TUBO DE AÇO INOX D = 1 1/2" FIXADO EM PISO | F95: ALV-001 | G95: CPU | H95: M | I95: 5.52 | J95: 430.38 | K95: BDI 1 | L95: 544.51 | M95: 2375.69 | N95: 3005.7
A96: 7 | B96: 5 | D96: 7.5.2 | E96: CORRIMÃO DUPLO EM TUBO DE AÇO INOX D = 1 1/2" FIXADO EM ALVENARIA | F96: ED-50943 | G96: SETOP | H96: m | I96: 6 | J96: 435.86 | K96: BDI 1 | L96: 551.45 | M96: 2615.16 | N96: 3308.7
A97: 7 | B97: 5 | D97: 7.5.3 | E97: INSTALAÇÃO DE CONCERTINA SIMPLES, ESPIRAL DE 300 MM. AF_03/2024 | F97: 105126 | G97: SINAPI | H97: M | I97: 95 | J97: 30.02 | K97: BDI 1 | L97: 37.98 | M97: 2851.9 | N97: 3608.1
A98: 8 | B98: 1 | D98: 8.1.1 | E98: KIT DE PORTA DE MADEIRA PARA PINTURA, SEMI-OCA (LEVE OU MÉDIA), PADRÃO MÉDIO, 80X210CM, ESPESSURA DE 3,5CM, ITENS INCLUSOS: DOBRADIÇAS, MONTAGEM E INSTALAÇÃO DO BATENTE, FECHADURA COM EXECUÇÃO DO FURO - FORNECIMENTO E INSTALAÇÃO. AF_12/2019 | F98: 90843 | G98: SINAPI | H98: UN | I98: 5 | J98: 1014.9 | K98: BDI 1 | L98: 1284.05 | M98: 5074.5 | N98: 6420.25
A99: 8 | B99: 1 | D99: 8.1.2 | E99: KIT DE PORTA DE MADEIRA PARA PINTURA, SEMI-OCA (LEVE OU MÉDIA), PADRÃO MÉDIO, 90X210CM, ESPESSURA DE 3,5CM, ITENS INCLUSOS: DOBRADIÇAS, MONTAGEM E INSTALAÇÃO DO BATENTE, FECHADURA COM EXECUÇÃO DO FURO - FORNECIMENTO E INSTALAÇÃO. AF_12/2019 | F99: 90844 | G99: SINAPI | H99: UN | I99: 25 | J99: 1090.18 | K99: BDI 1 | L99: 1379.29 | M99: 27254.5 | N99: 34482.25
A100: 8 | B100: 2 | D100: 8.2.1 | E100: PORTA DE ALUMÍNIO DE ABRIR COM LAMBRI, FIXAÇÃO COM PARAFUSOS - FORNECIMENTO E INSTALAÇÃO. | F100: ARQ-001 | G100: CPU | H100: M2 | I100: 7.6 | J100: 651.58 | K100: BDI 1 | L100: 824.37 | M100: 4952 | N100: 6265.21
A101: 8 | B101: 2 | D101: 8.2.2 | E101: PORTÃO EM TUBO DE AÇO GALVANIZADO COM COSTURA, DIÂMETRO DE 1.1/2" (38,1MM), ESP. 2MM, COM TELA QUADRICULADA ONDULADA, TRAMA DE 1/2" (12,70MM), FIO 12 (2,77MM), EXCLUSIVE CADEADO E PINTURA | F101: ED-50986 | G101: SETOP | H101: m2 | I101: 4.2 | J101: 539.83 | K101: BDI 1 | L101: 682.99 | M101: 2267.28 | N101: 2868.56
A102: 8 | B102: 2 | D102: 8.2.3 | E102: PORTÃO PARA GRADIL, TIPO CORRER - FORNECIMENTO E INSTALAÇÃO | F102: ARQ-002 | G102: CPU | H102: M2 | I102: 3.9 | J102: 310.02 | K102: BDI 1 | L102: 392.23 | M102: 1209.07 | N102: 1529.7
A103: 8 | B103: 2 | D103: 8.2.4 | E103: ALÇAPÃO (80X80)CM COM QUADRO DE CANTONEIRA METÁLICA 1"X 1/8", TAMPA EM CANTONEIRA 7/8"X 1/8" E CHAPA METÁLICA Nº18 VINCADA, INCLUSIVE FERROLHO, CADEADO E PINTURA ANTICORROSIVA | F103: ED-50924 | G103: SETOP | H103: un | I103: 1 | J103: 442 | K103: BDI 1 | L103: 559.21 | M103: 442 | N103: 559.21
A104: 8 | B104: 3 | D104: 8.3.1 | E104: PORTAS VAI E VEM EM ABS, 150 X 210 CM, COM VISOR - FORNECIMENTO E INSTALAÇÃO | F104: COT-ARQ-001 | G104: COTAÇÃO | H104: UN | I104: 1 | J104: 4631.25 | K104: BDI 1 | L104: 5859.45 | M104: 4631.25 | N104: 5859.45
A105: 8 | B105: 4 | D105: 8.4.1 | E105: PORTA EM ALUMÍNIO COMPLETA, DIMENSÃO (2,20 X 2,10 M), COM DUAS FOLHAS MÓVEIS, LINHA 25/SUPREMA, ACABAMENTO ANODIZADO PRETO, INCLUSIVE PERFIS, VIDRO FUME LAMINADO 6MM, FERRAGENS E INSTALAÇÃO | F105: ARQ-003 | G105: CPU | H105: UN | I105: 1 | J105: 4388.78 | K105: BDI 1 | L105: 5552.68 | M105: 4388.78 | N105: 5552.68
A106: 8 | B106: 4 | D106: 8.4.2 | E106: PORTA PIVOTANTE DE VIDRO JATEADO, 2 FOLHAS DE 70X210 CM, ESPESSURA DE 6MM, INCLUSIVE ACESSÓRIOS. | F106: ARQ-004 | G106: CPU | H106: UN | I106: 1 | J106: 1347.96 | K106: BDI 1 | L106: 1705.43 | M106: 1347.96 | N106: 1705.43
A107: 8 | B107: 5 | D107: 8.5.1 | E107: JANELA ESQUADRIA MAXIM-AR 0,40 X 1,00 M - PINTURA PRETA E VIDRO TEMPERADO FUME 6MM | F107: COT-ARQ-002 | G107: COTAÇÃO | H107: UN | I107: 1 | J107: 545.88 | K107: BDI 1 | L107: 690.64 | M107: 545.88 | N107: 690.64
A108: 8 | B108: 5 | D108: 8.5.2 | E108: JANELA ESQUADRIA MAXIM-AR 0,70 X 0,70 M - PINTURA PRETA E VIDRO TEMPERADO FUME 6MM | F108: COT-ARQ-003 | G108: COTAÇÃO | H108: UN | I108: 12 | J108: 583 | K108: BDI 1 | L108: 737.61 | M108: 6996 | N108: 8851.32
A109: 8 | B109: 5 | D109: 8.5.3 | E109: JANELA ESQUADRIA MAXIM-AR 0,70 X 0,90 M - PINTURA PRETA E VIDRO TEMPERADO FUME 6MM | F109: COT-ARQ-004 | G109: COTAÇÃO | H109: UN | I109: 4 | J109: 1468 | K109: BDI 1 | L109: 1857.31 | M109: 5872 | N109: 7429.24
A110: 8 | B110: 5 | D110: 8.5.4 | E110: JANELA ESQUADRIA TIPO GUILHOTINA 1,00 X 1,00 M - PINTURA PRETA E VIDRO TEMPERADO FUME 6MM | F110: COT-ARQ-005 | G110: COTAÇÃO | H110: UN | I110: 1 | J110: 1074 | K110: BDI 1 | L110: 1358.82 | M110: 1074 | N110: 1358.82
A111: 8 | B111: 5 | D111: 8.5.5 | E111: JANELA ESQUADRIA MAXIM-AR 1,60 X 0,60 M - PINTURA PRETA E VIDRO TEMPERADO FUME 6MM | F111: COT-ARQ-006 | G111: COTAÇÃO | H111: UN | I111: 2 | J111: 1015.06 | K111: BDI 1 | L111: 1284.25 | M111: 2030.12 | N111: 2568.5
A112: 8 | B112: 5 | D112: 8.5.6 | E112: JANELA ESQUADRIA MAXIM-AR 1,60 X 0,70 M - PINTURA PRETA E VIDRO TEMPERADO FUME 6MM | F112: COT-ARQ-007 | G112: COTAÇÃO | H112: UN | I112: 2 | J112: 1092.47 | K112: BDI 1 | L112: 1382.19 | M112: 2184.94 | N112: 2764.38
A113: 8 | B113: 5 | D113: 8.5.7 | E113: JANELA ESQUADRIA MAXIM-AR 2,00 X 1,00 M - PINTURA PRETA E VIDRO TEMPERADO FUME 6MM | F113: COT-ARQ-008 | G113: COTAÇÃO | H113: UN | I113: 11 | J113: 1725.76 | K113: BDI 1 | L113: 2183.43 | M113: 18983.36 | N113: 24017.73
A114: 8 | B114: 5 | D114: 8.5.8 | E114: JANELA ESQUADRIA MAXIM-AR 2,20 X 1,20 M - PINTURA PRETA E VIDRO TEMPERADO FUME 6MM | F114: COT-ARQ-009 | G114: COTAÇÃO | H114: UN | I114: 2 | J114: 2143.59 | K114: BDI 1 | L114: 2712.07 | M114: 4287.18 | N114: 5424.14
A115: 8 | B115: 5 | D115: 8.5.9 | E115: JANELA ESQUADRIA MAXIM-AR 2,50 X 1,00 M - PINTURA PRETA E VIDRO TEMPERADO FUME 6MM | F115: COT-ARQ-010 | G115: COTAÇÃO | H115: UN | I115: 4 | J115: 2243 | K115: BDI 1 | L115: 2837.84 | M115: 8972 | N115: 11351.36
A116: 8 | B116: 5 | D116: 8.5.9 | E116: ASSENTAMENTO DE ESQUADRIA DE ALUMÍNIO, INCLUSIVE FIXAÇÃO DO CONTRAMARCO, EXCLUSIVE FORNECIMENTO DA ESQUADRIA | F116: ED-29455 | G116: SETOP | H116: m² | I116: 51.24 | J116: 76.93 | K116: BDI 1 | L116: 97.33 | M116: 3941.89 | N116: 4987.19
A117: 8 | B117: 6 | D117: 8.6.1 | E117: VERGA MOLDADA IN LOCO COM UTILIZAÇÃO DE BLOCOS CANALETA, ESPESSURA DE *15* CM. AF_03/2024 | F117: 105025 | G117: SINAPI | H117: M | I117: 161.4 | J117: 57.81 | K117: BDI 1 | L117: 73.14 | M117: 9330.53 | N117: 11804.8
A118: 8 | B118: 6 | D118: 8.6.2 | E118: CONTRAVERGA MOLDADA IN LOCO COM UTILIZAÇÃO DE BLOCOS CANALETA, ESPESSURA DE *15* CM. AF_03/2024 | F118: 105031 | G118: SINAPI | H118: M | I118: 92.8 | J118: 46.71 | K118: BDI 1 | L118: 59.09 | M118: 4334.68 | N118: 5483.55
A119: 8 | B119: 7 | D119: 8.7.1 | E119: PINTURA ESMALTE BASE SOLVENTE EM ESTRUTURA METÁLICA, DUAS (2) DEMÃOS, INCLUSIVE UMA (1) DEMÃO FUNDO ANTICORROSIVO | F119: ED-50497 | G119: SETOP | H119: m2 | I119: 22.96 | J119: 37.3 | K119: BDI 1 | L119: 47.19 | M119: 856.4 | N119: 1083.48
A120: 8 | B120: 7 | D120: 8.7.2 | E120: PINTURA ESMALTE BASE SOLVENTE EM ESQUADRIA DE MADEIRA, DUAS (2) DEMÃOS, INCLUSIVE UMA (1) DEMÃO DE FUNDO NIVELADOR, EXCLUSIVE MASSA A ÓLEO | F120: ED-50493 | G120: SETOP | H120: m2 | I120: 111.3 | J120: 29.84 | K120: BDI 1 | L120: 37.75 | M120: 3321.19 | N120: 4201.58
A121: 8 | B121: 7 | D121: 8.7.3 | E121: PEITORIL DE GRANITO, NA COR CINZA ANDORINHA, COM PINGADEIRA, ESP. 3CM, ACABAMENTO POLIDO, ASSENTAMENTO COM ARGAMASSA INDUSTRIALIZADA, INCLUSIVE REJUNTAMENTO | F121: ED-50998 | G121: SETOP | H121: m2 | I121: 13.018 | J121: 382.12 | K121: BDI 1 | L121: 483.45 | M121: 4974.43 | N121: 6294.52
A122: 8 | B122: 7 | D122: 8.7.4 | E122: LETREIRO - FORNECIMENTO E INSTALAÇÃO | F122: COT-ARQ-011 | G122: COTAÇÃO | H122: UN | I122: 1 | J122: 3900 | K122: BDI 1 | L122: 4934.28 | M122: 3900 | N122: 4934.28
A123: 9 | D123: 9.1 | E123: FORNECIMENTO DE ESTRUTURA METÁLICA EM PERFIL LAMINADO, INCLUSIVE FABRICAÇÃO, TRANSPORTE, MONTAGEM E APLICAÇÃO DE FUNDO PREPARADOR ANTICORROSIVO EM SUPERFÍCIE METÁLICA, UMA (1) DEMÃO | F123: ED-49664 | G123: SETOP | H123: Kg | I123: 3615.7 | J123: 22.38 | K123: BDI 1 | L123: 28.31 | M123: 80919.36 | N123: 102360.47
A124: 9 | D124: 9.2 | E124: COBERTURA EM TELHA METÁLICA GALVANIZADA TRAPEZOIDAL, TIPO SIMPLES, ESP. 0,50MM, ACABAMENTO NATURAL, INCLUSIVE ACESSÓRIOS PARA FIXAÇÃO, FORNECIMENTO E INSTALAÇÃO | F124: ED-48428 | G124: SETOP | H124: m2 | I124: 318.35 | J124: 92.03 | K124: BDI 1 | L124: 116.43 | M124: 29297.75 | N124: 37065.49
A125: 9 | D125: 9.3 | E125: PINTURA ESMALTE BASE SOLVENTE EM ESTRUTURA METÁLICA, DUAS (2) DEMÃOS, INCLUSIVE UMA (1) DEMÃO FUNDO ANTICORROSIVO | F125: ED-50497 | G125: SETOP | H125: m2 | I125: 461.8 | J125: 37.3 | K125: BDI 1 | L125: 47.19 | M125: 17225.14 | N125: 21792.34
A126: 9 | D126: 9.4 | E126: CUMEEIRA GALVANIZADA TRAPEZOIDAL, TIPO SIMPLES, ESP. 0,50MM, ACABAMENTO NATURAL, INCLUSIVE ACESSÓRIOS PARA FIXAÇÃO, FORNECIMENTO, INSTALAÇÃO E IÇAMENTO MANUAL VERTICAL | F126: ED-48402 | G126: SETOP | H126: m | I126: 14 | J126: 72.13 | K126: BDI 1 | L126: 91.25 | M126: 1009.82 | N126: 1277.5
A127: 10 | B127: 1 | D127: 10.1.1 | E127: CHAPISCO APLICADO EM ALVENARIAS E ESTRUTURAS DE CONCRETO INTERNAS, COM COLHER DE PEDREIRO. ARGAMASSA TRAÇO 1:3 COM PREPARO EM BETONEIRA 400L. AF_10/2022 | F127: 87879 | G127: SINAPI | H127: M2 | I127: 1190.08 | J127: 4.23 | K127: BDI 1 | L127: 5.35 | M127: 5034.03 | N127: 6366.93
A128: 10 | B128: 1 | D128: 10.1.2 | E128: MASSA ÚNICA, EM ARGAMASSA TRAÇO 1:2:8, PREPARO MECÂNICO, APLICADA MANUALMENTE EM PAREDES INTERNAS DE AMBIENTES COM ÁREA ENTRE 5M² E 10M², E = 17,5MM, COM TALISCAS. AF_03/2024 | F128: 87529 | G128: SINAPI | H128: M2 | I128: 1190.08 | J128: 34.78 | K128: BDI 1 | L128: 44 | M128: 41390.98 | N128: 52363.52
A129: 10 | B129: 1 | D129: 10.1.3 | E129: IMPERMEABILIZAÇÃO DE SUPERFÍCIE COM ARGAMASSA DE CIMENTO E AREIA, COM ADITIVO IMPERMEABILIZANTE, E = 1,5CM. AF_09/2023 | F129: 98562 | G129: SINAPI | H129: M2 | I129: 175.17 | J129: 46.13 | K129: BDI 1 | L129: 58.36 | M129: 8080.59 | N129: 10222.92
A130: 10 | B130: 1 | D130: 10.1.4 | E130: EMASSAMENTO EM PAREDE COM MASSA CORRIDA (PVA), DUAS (2) DEMÃOS, INCLUSIVE LIXAMENTO PARA PINTURA | F130: ED-50478 | G130: SETOP | H130: m2 | I130: 888.45 | J130: 17.37 | K130: BDI 1 | L130: 21.97 | M130: 15432.37 | N130: 19519.25
A131: 10 | B131: 1 | D131: 10.1.5 | E131: REVESTIMENTO COM CERÂMICA APLICADO EM PAREDE, ACABAMENTO ESMALTADO, AMBIENTE INTERNO/EXTERNO, PADRÃO EXTRA, DIMENSÃO DA PEÇA ATÉ 2025 CM2, PEI III, ASSENTAMENTO COM ARGAMASSA INDUSTRIALIZADA, INCLUSIVE REJUNTAMENTO | F131: ED-9081 | G131: SETOP | H131: m2 | I131: 296.48 | J131: 65.09 | K131: BDI 1 | L131: 82.35 | M131: 19297.88 | N131: 24415.13
A132: 10 | B132: 1 | D132: 10.1.5 | E132: REVESTIMENTO CERÂMICO PARA PAREDES EXTERNAS EM PASTILHAS DE PORCELANA 5 X 5 CM (PLACAS DE 30 X 30 CM), ALINHADAS A PRUMO. AF_02/2023 | F132: 87244 | G132: SINAPI | H132: M2 | I132: 5.15 | J132: 252.58 | K132: BDI 1 | L132: 319.56 | M132: 1300.78 | N132: 1645.73
A133: 10 | B133: 1 | D133: 10.1.6 | E133: APLICAÇÃO MANUAL DE GESSO DESEMPENADO (SEM TALISCAS) EM TETO DE AMBIENTES DE ÁREA ENTRE 5M² E 10M², ESPESSURA DE 1,0CM. AF_03/2023 | F133: 87415 | G133: SINAPI | H133: M2 | I133: 17.12 | J133: 33.21 | K133: BDI 1 | L133: 42.01 | M133: 568.55 | N133: 719.21
A134: 10 | B134: 1 | D134: 10.1.7 | E134: FORRO EM PLACAS DE GESSO, PARA AMBIENTES COMERCIAIS. AF_08/2023_PS | F134: 96113 | G134: SINAPI | H134: M2 | I134: 332.1 | J134: 43.98 | K134: BDI 1 | L134: 55.64 | M134: 14605.75 | N134: 18478.04
A135: 10 | B135: 2 | D135: 10.2.1 | E135: CHAPISCO APLICADO EM ALVENARIA (COM PRESENÇA DE VÃOS) E ESTRUTURAS DE CONCRETO DE FACHADA, COM COLHER DE PEDREIRO. ARGAMASSA TRAÇO 1:3 COM PREPARO EM BETONEIRA 400L. AF_10/2022 | F135: 87905 | G135: SINAPI | H135: M2 | I135: 218.29 | J135: 7.46 | K135: BDI 1 | L135: 9.43 | M135: 1628.44 | N135: 2058.47
A136: 10 | B136: 2 | D136: 10.2.2 | E136: CHAPISCO APLICADO EM ALVENARIA (SEM PRESENÇA DE VÃOS) E ESTRUTURAS DE CONCRETO DE FACHADA, COM COLHER DE PEDREIRO. ARGAMASSA TRAÇO 1:3 COM PREPARO EM BETONEIRA 400L. AF_10/2022 | F136: 87894 | G136: SINAPI | H136: M2 | I136: 1201.46 | J136: 6.43 | K136: BDI 1 | L136: 8.13 | M136: 7725.38 | N136: 9767.87
A137: 10 | B137: 2 | D137: 10.2.3 | E137: EMBOÇO OU MASSA ÚNICA EM ARGAMASSA TRAÇO 1:2:8, PREPARO MECÂNICO COM BETONEIRA 400 L, APLICADA MANUALMENTE EM PANOS DE FACHADA COM PRESENÇA DE VÃOS, ESPESSURA DE 35 MM. AF_08/2022 | F137: 87779 | G137: SINAPI | H137: M2 | I137: 218.29 | J137: 66.49 | K137: BDI 1 | L137: 84.12 | M137: 14514.1 | N137: 18362.55
A138: 10 | B138: 2 | D138: 10.2.4 | E138: EMBOÇO OU MASSA ÚNICA EM ARGAMASSA TRAÇO 1:2:8, PREPARO MECÂNICO COM BETONEIRA 400 L, APLICADA MANUALMENTE EM PANOS CEGOS DE FACHADA (SEM PRESENÇA DE VÃOS), ESPESSURA DE 35 MM. AF_08/2022 | F138: 87797 | G138: SINAPI | H138: M2 | I138: 1201.46 | J138: 53.35 | K138: BDI 1 | L138: 67.49 | M138: 64097.89 | N138: 81086.54
A139: 10 | B139: 2 | D139: 10.2.5 | E139: REVESTIMENTO COM CERÂMICA APLICADO EM PAREDE, ACABAMENTO ESMALTADO, AMBIENTE INTERNO/EXTERNO, PADRÃO EXTRA, DIMENSÃO DA PEÇA ATÉ 2025 CM2, PEI III, ASSENTAMENTO COM ARGAMASSA INDUSTRIALIZADA, INCLUSIVE REJUNTAMENTO | F139: ED-9081 | G139: SETOP | H139: m2 | I139: 26.57 | J139: 65.09 | K139: BDI 1 | L139: 82.35 | M139: 1729.44 | N139: 2188.04
A140: 10 | B140: 2 | D140: 10.2.6 | E140: REVESTIMENTO CERÂMICO PARA PAREDES EXTERNAS EM PASTILHAS DE PORCELANA 5 X 5 CM (PLACAS DE 30 X 30 CM), ALINHADAS A PRUMO. AF_02/2023 | F140: 87244 | G140: SINAPI | H140: M2 | I140: 49.55 | J140: 252.58 | K140: BDI 1 | L140: 319.56 | M140: 12515.33 | N140: 15834.2
A141: 10 | B141: 2 | D141: 10.2.7 | E141: APLICAÇÃO MANUAL DE MASSA ACRÍLICA EM PAREDES EXTERNAS DE CASAS, UMA DEMÃO. AF_03/2024 | F141: 96130 | G141: SINAPI | H141: M2 | I141: 1343.63 | J141: 17.87 | K141: BDI 1 | L141: 22.6 | M141: 24010.66 | N141: 30366.04
A142: 10 | B142: 2 | D142: 10.2.8 | E142: IMPERMEABILIZAÇÃO DE SUPERFÍCIE COM ARGAMASSA DE CIMENTO E AREIA, COM ADITIVO IMPERMEABILIZANTE, E = 1,5CM. AF_09/2023 | F142: 98562 | G142: SINAPI | H142: M2 | I142: 630.81 | J142: 46.13 | K142: BDI 1 | L142: 58.36 | M142: 29099.26 | N142: 36814.07
A143: 10 | B143: 2 | D143: 10.2.9 | E143: CAMADA DE REGULARIZAÇÃO COM ARGAMASSA, TRAÇO 1:3 (CIMENTO E AREIA), ESP. 20MM, APLICAÇÃO MANUAL, INCLUSIVE ARGAMASSA COM PREPARO MECANIZADO | F143: ED-13287 | G143: SETOP | H143: m2 | I143: 71.7 | J143: 35.06 | K143: BDI 1 | L143: 44.35 | M143: 2513.8 | N143: 3179.9
A144: 10 | B144: 2 | D144: 10.2.10 | E144: IMPERMEABILIZAÇÃO DE SUPERFÍCIE COM MANTA ASFÁLTICA, UMA CAMADA, INCLUSIVE APLICAÇÃO DE PRIMER ASFÁLTICO, E=4MM. AF_09/2023 | F144: 98546 | G144: SINAPI | H144: M2 | I144: 71.7 | J144: 108.89 | K144: BDI 1 | L144: 137.76 | M144: 7807.41 | N144: 9877.39
A145: 10 | B145: 2 | D145: 10.2.11 | E145: APLICAÇÃO MANUAL DE GESSO DESEMPENADO (SEM TALISCAS) EM TETO DE AMBIENTES DE ÁREA MAIOR QUE 10M², ESPESSURA DE 1,0CM. AF_03/2023 | F145: 87414 | G145: SINAPI | H145: M2 | I145: 54.82 | J145: 25.65 | K145: BDI 1 | L145: 32.45 | M145: 1406.13 | N145: 1778.91
A146: 11 | B146: 1 | D146: 11.1.1 | E146: LASTRO COM MATERIAL GRANULAR, APLICADO EM PISOS OU LAJES SOBRE SOLO, ESPESSURA DE *5 CM*. AF_01/2024 | F146: 96622 | G146: SINAPI | H146: M3 | I146: 4.5685 | J146: 240.88 | K146: BDI 1 | L146: 304.76 | M146: 1100.46 | N146: 1392.75
A147: 11 | B147: 1 | D147: 11.1.2 | E147: COMPACTAÇÃO MECÂNICA DE SOLO PARA EXECUÇÃO DE RADIER, PISO DE CONCRETO OU LAJE SOBRE SOLO, COM COMPACTADOR DE SOLOS TIPO PLACA VIBRATÓRIA. AF_09/2021 | F147: 97084 | G147: SINAPI | H147: M2 | I147: 91.37 | J147: 0.61 | K147: BDI 1 | L147: 0.77 | M147: 55.73 | N147: 70.35
A148: 11 | B148: 1 | D148: 11.1.3 | E148: EXECUÇÃO DE PASSEIO (CALÇADA) OU PISO DE CONCRETO COM CONCRETO MOLDADO IN LOCO, USINADO, ACABAMENTO CONVENCIONAL, ESPESSURA 8 CM, ARMADO. AF_08/2022 | F148: 94995 | G148: SINAPI | H148: M2 | I148: 91.37 | J148: 100.55 | K148: BDI 1 | L148: 127.21 | M148: 9187.25 | N148: 11623.18
A149: 11 | B149: 1 | D149: 11.1.4 | E149: CONTRAPISO EM ARGAMASSA TRAÇO 1:4 (CIMENTO E AREIA), PREPARO MECÂNICO COM BETONEIRA 400 L, APLICADO EM ÁREAS SECAS SOBRE LAJE, ADERIDO, ACABAMENTO NÃO REFORÇADO, ESPESSURA 3CM. AF_07/2021 | F149: 87630 | G149: SINAPI | H149: M2 | I149: 282.68 | J149: 39.62 | K149: BDI 1 | L149: 50.12 | M149: 11199.78 | N149: 14167.92
A150: 11 | B150: 1 | D150: 11.1.5 | E150: CONTRAPISO EM ARGAMASSA TRAÇO 1:4 (CIMENTO E AREIA), PREPARO MECÂNICO COM BETONEIRA 400 L, APLICADO EM ÁREAS MOLHADAS SOBRE LAJE, ADERIDO, ACABAMENTO NÃO REFORÇADO, ESPESSURA 3CM. AF_07/2021 | F150: 87745 | G150: SINAPI | H150: M2 | I150: 64.51 | J150: 50.55 | K150: BDI 1 | L150: 63.95 | M150: 3260.98 | N150: 4125.41
A151: 11 | B151: 1 | D151: 11.1.6 | E151: IMPERMEABILIZAÇÃO DE SUPERFÍCIE COM ARGAMASSA DE CIMENTO E AREIA, COM ADITIVO IMPERMEABILIZANTE, E = 1,5CM. AF_09/2023 | F151: 98562 | G151: SINAPI | H151: M2 | I151: 64.51 | J151: 46.13 | K151: BDI 1 | L151: 58.36 | M151: 2975.84 | N151: 3764.8
A152: 11 | B152: 1 | D152: 11.1.7 | E152: REVESTIMENTO COM PORCELANATO APLICADO EM PISO, ACABAMENTO POLÍDO, AMBIENTE INTERNO, PADRÃO EXTRA, BORDA RETIFICADA, DIMENSÃO DA PEÇA (60X60)CM, ASSENTAMENTO COM ARGAMASSA INDUSTRIALIZADA, INCLUSIVE REJUNTAMENTO | F152: ED-50754 | G152: SETOP | H152: m2 | I152: 347.19 | J152: 95.83 | K152: BDI 1 | L152: 121.24 | M152: 33271.21 | N152: 42093.32
A153: 11 | B153: 1 | D153: 11.1.8 | E153: RODAPÉ COM REVESTIMENTO EM PORCELANATO 60X60 COM BORDA RETIFICADA E ACABAMENTO POLIDO, ALTURA 10 CM. | F153: ARQ-007 | G153: CPU | H153: M | I153: 337.1 | J153: 21.68 | K153: BDI 1 | L153: 27.42 | M153: 7308.32 | N153: 9243.28
A154: 11 | B154: 1 | D154: 11.1.9 | E154: SOLEIRA DE GRANITO, NA COR CINZA ANDORINHA, ESP. 3CM, ACABAMENTO POLIDO, ASSENTAMENTO COM ARGAMASSA INDUSTRIALIZADA, INCLUSIVE REJUNTAMENTO | F154: ED-51003 | G154: SETOP | H154: m2 | I154: 7.87 | J154: 342.3 | K154: BDI 1 | L154: 433.07 | M154: 2693.9 | N154: 3408.26
A155: 11 | B155: 2 | D155: 11.2.1 | E155: LASTRO COM MATERIAL GRANULAR, APLICADO EM PISOS OU LAJES SOBRE SOLO, ESPESSURA DE *5 CM*. AF_01/2024 | F155: 96622 | G155: SINAPI | H155: M3 | I155: 1.93 | J155: 240.88 | K155: BDI 1 | L155: 304.76 | M155: 464.89 | N155: 588.19
A156: 11 | B156: 2 | D156: 11.2.2 | E156: COMPACTAÇÃO MECÂNICA DE SOLO PARA EXECUÇÃO DE RADIER, PISO DE CONCRETO OU LAJE SOBRE SOLO, COM COMPACTADOR DE SOLOS TIPO PLACA VIBRATÓRIA. AF_09/2021 | F156: 97084 | G156: SINAPI | H156: M2 | I156: 38.6 | J156: 0.61 | K156: BDI 1 | L156: 0.77 | M156: 23.54 | N156: 29.72
A157: 11 | B157: 2 | D157: 11.2.3 | E157: EXECUÇÃO DE PASSEIO (CALÇADA) OU PISO DE CONCRETO COM CONCRETO MOLDADO IN LOCO, USINADO, ACABAMENTO CONVENCIONAL, ESPESSURA 8 CM, ARMADO. AF_08/2022 | F157: 94995 | G157: SINAPI | H157: M2 | I157: 38.6 | J157: 100.55 | K157: BDI 1 | L157: 127.21 | M157: 3881.23 | N157: 4910.31
A158: 11 | B158: 2 | D158: 11.2.4 | E158: PISO EM CONCRETO, USINADO CONVENCIONAL, ACABAMENTO POLIDO EM NÍVEL ZERO, ESP. 5CM, INCLUSIVE FORNECIMENTO, LANÇAMENTO, ADENSAMENTO | F158: ARQ-008 | G158: CPU | H158: M2 | I158: 232.9 | J158: 100.78 | K158: BDI 1 | L158: 127.5 | M158: 23471.66 | N158: 29694.75
A159: 11 | B159: 2 | D159: 11.2.5 | E159: PISO CIMENTADO, TRAÇO 1:3 (CIMENTO E AREIA), ACABAMENTO LISO, ESPESSURA 3,0 CM, PREPARO MECÂNICO DA ARGAMASSA. AF_09/2020 | F159: 98680 | G159: SINAPI | H159: M2 | I159: 68.18 | J159: 48.83 | K159: BDI 1 | L159: 61.77 | M159: 3329.22 | N159: 4211.48
A160: 11 | B160: 2 | D160: 11.2.6 | E160: GRAMA AMENDOIM - ARACHIS REPENS | F160: 21.30.08 | G160: SUDECAP | H160: M2 | I160: 4.76 | J160: 50.28 | K160: BDI 1 | L160: 63.61 | M160: 239.33 | N160: 302.78
A161: 12 | D161: 12.1 | E161: FUNDO SELADOR ACRÍLICO, APLICAÇÃO MANUAL EM PAREDE, UMA DEMÃO. AF_04/2023 | F161: 88485 | G161: SINAPI | H161: M2 | I161: 888.45 | J161: 4.13 | K161: BDI 1 | L161: 5.22 | M161: 3669.29 | N161: 4637.71
A162: 12 | D162: 12.2 | E162: PINTURA EPÓXI EM PAREDE, DUAS (2) DEMÃOS, EXCLUSIVE SELADOR ACRÍLICO E MASSA ACRÍLICA/CORRIDA (PVA) | F162: ED-9917 | G162: SETOP | H162: m2 | I162: 888.45 | J162: 24.36 | K162: BDI 1 | L162: 30.82 | M162: 21642.64 | N162: 27382.03
A163: 12 | D163: 12.3 | E163: APLICAÇÃO MANUAL DE FUNDO SELADOR ACRÍLICO EM PAREDES EXTERNAS DE CASAS. AF_03/2024 | F163: 88415 | G163: SINAPI | H163: M2 | I163: 1343.63 | J163: 5.11 | K163: BDI 1 | L163: 6.46 | M163: 6865.94 | N163: 8679.85
A164: 12 | D164: 12.4 | E164: APLICAÇÃO MANUAL DE TINTA LÁTEX ACRÍLICA EM PAREDE EXTERNAS DE CASAS, DUAS DEMÃOS. AF_03/2024 | F164: 95626 | G164: SINAPI | H164: M2 | I164: 1343.63 | J164: 15 | K164: BDI 1 | L164: 18.97 | M164: 20154.45 | N164: 25488.66
A165: 12 | D165: 12.5 | E165: FUNDO SELADOR ACRÍLICO, APLICAÇÃO MANUAL EM TETO, UMA DEMÃO. AF_04/2023 | F165: 88484 | G165: SINAPI | H165: M2 | I165: 404.04 | J165: 4.99 | K165: BDI 1 | L165: 6.31 | M165: 2016.15 | N165: 2549.49
A166: 12 | D166: 12.6 | E166: PINTURA LÁTEX ACRÍLICA PREMIUM, APLICAÇÃO MANUAL EM TETO, DUAS DEMÃOS. AF_04/2023 | F166: 88488 | G166: SINAPI | H166: M2 | I166: 404.04 | J166: 14.64 | K166: BDI 1 | L166: 18.52 | M166: 5915.14 | N166: 7482.82
A167: 13 | B167: 1 | D167: 13.1.1 | E167: HIDRÔMETRO DN 3/4", 5,0 M3/H - FORNECIMENTO E INSTALAÇÃO. AF_03/2024 | F167: 95675 | G167: SINAPI | H167: UN | I167: 1 | J167: 217.36 | K167: BDI 1 | L167: 275 | M167: 217.36 | N167: 275
A168: 13 | B168: 1 | D168: 13.1.2 | E168: KIT CAVALETE PARA MEDIÇÃO DE ÁGUA - ENTRADA PRINCIPAL, EM AÇO GALVANIZADO DN 32 MM (1 1/4") - FORNECIMENTO E INSTALAÇÃO (EXCLUSIVE HIDRÔMETRO). AF_03/2024 | F168: 95637 | G168: SINAPI | H168: UN | I168: 1 | J168: 532.71 | K168: BDI 1 | L168: 673.98 | M168: 532.71 | N168: 673.98
A169: 13 | B169: 1 | D169: 13.1.3 | E169: REGISTRO DE GAVETA BRUTO, LATÃO, ROSCÁVEL, 3/4", COM ACABAMENTO E CANOPLA CROMADOS - FORNECIMENTO E INSTALAÇÃO. AF_08/2021 | F169: 89987 | G169: SINAPI | H169: UN | I169: 31 | J169: 129.59 | K169: BDI 1 | L169: 163.95 | M169: 4017.29 | N169: 5082.45
A170: 13 | B170: 1 | D170: 13.1.4 | E170: REGISTRO DE ESFERA, PVC, SOLDÁVEL, COM VOLANTE, DN 25 MM - FORNECIMENTO E INSTALAÇÃO. AF_08/2021 | F170: 94489 | G170: SINAPI | H170: UN | I170: 2 | J170: 20.24 | K170: BDI 1 | L170: 25.6 | M170: 40.48 | N170: 51.2
A171: 13 | B171: 1 | D171: 13.1.5 | E171: REGISTRO DE ESFERA, PVC, SOLDÁVEL, COM VOLANTE, DN 32 MM - FORNECIMENTO E INSTALAÇÃO. AF_08/2021 | F171: 94490 | G171: SINAPI | H171: UN | I171: 1 | J171: 29.19 | K171: BDI 1 | L171: 36.93 | M171: 29.19 | N171: 36.93
A172: 13 | B172: 1 | D172: 13.1.6 | E172: REGISTRO DE ESFERA, PVC, SOLDÁVEL, COM VOLANTE, DN 50 MM - FORNECIMENTO E INSTALAÇÃO. AF_08/2021 | F172: 94492 | G172: SINAPI | H172: UN | I172: 2 | J172: 41.15 | K172: BDI 1 | L172: 52.06 | M172: 82.3 | N172: 104.12
A173: 13 | B173: 2 | D173: 13.2.1 | E173: ADAPTADOR COM FLANGE E ANEL DE VEDAÇÃO, PVC, SOLDÁVEL, DN 25 MM X 3/4", INSTALADO EM RESERVAÇÃO PREDIAL DE ÁGUA - FORNECIMENTO E INSTALAÇÃO. AF_04/2024 | F173: 94703 | G173: SINAPI | H173: UN | I173: 1 | J173: 18.53 | K173: BDI 1 | L173: 23.44 | M173: 18.53 | N173: 23.44
A174: 13 | B174: 2 | D174: 13.2.2 | E174: ADAPTADOR COM FLANGE E ANEL DE VEDAÇÃO, PVC, SOLDÁVEL, DN 32 MM X 1", INSTALADO EM RESERVAÇÃO PREDIAL DE ÁGUA - FORNECIMENTO E INSTALAÇÃO. AF_04/2024 | F174: 94704 | G174: SINAPI | H174: UN | I174: 2 | J174: 25 | K174: BDI 1 | L174: 31.63 | M174: 50 | N174: 63.26
A175: 13 | B175: 2 | D175: 13.2.3 | E175: ADAPTADOR COM FLANGE E ANEL DE VEDAÇÃO, PVC, SOLDÁVEL, DN 50 MM X 1 1/2", INSTALADO EM RESERVAÇÃO PREDIAL DE ÁGUA - FORNECIMENTO E INSTALAÇÃO. AF_04/2024 | F175: 94706 | G175: SINAPI | H175: UN | I175: 4 | J175: 33.59 | K175: BDI 1 | L175: 42.49 | M175: 134.36 | N175: 169.96
A176: 13 | B176: 2 | D176: 13.2.4 | E176: ADAPTADOR CURTO COM BOLSA E ROSCA PARA REGISTRO, PVC, SOLDÁVEL, DN 25 MM X 3/4", INSTALADO EM RESERVAÇÃO PREDIAL DE ÁGUA - FORNECIMENTO E INSTALAÇÃO. AF_04/2024 | F176: 94656 | G176: SINAPI | H176: UN | I176: 62 | J176: 3.14 | K176: BDI 1 | L176: 3.97 | M176: 194.68 | N176: 246.14
A177: 13 | B177: 2 | D177: 13.2.5 | E177: ADAPTADOR CURTO COM BOLSA E ROSCA PARA REGISTRO, PVC, SOLDÁVEL, DN 50 MM X 1 1/2", INSTALADO EM RESERVAÇÃO PREDIAL DE ÁGUA - FORNECIMENTO E INSTALAÇÃO. AF_04/2024 | F177: 94662 | G177: SINAPI | H177: UN | I177: 1 | J177: 9.95 | K177: BDI 1 | L177: 12.58 | M177: 9.95 | N177: 12.58
A178: 13 | B178: 2 | D178: 13.2.6 | E178: BUCHA DE REDUÇÃO, LONGA, PVC, SOLDÁVEL, DN 50 X 25 MM, INSTALADO EM RAMAL DE DISTRIBUIÇÃO DE ÁGUA - FORNECIMENTO E INSTALAÇÃO. AF_06/2022 | F178: 103999 | G178: SINAPI | H178: UN | I178: 34 | J178: 11.46 | K178: BDI 1 | L178: 14.49 | M178: 389.64 | N178: 492.66
A179: 13 | B179: 2 | D179: 13.2.7 | E179: JOELHO PVC, SOLDÁVEL, 45 GRAUS, DN 25 MM, INSTALADO EM RESERVAÇÃO PREDIAL DE ÁGUA - FORNECIMENTO E INSTALAÇÃO. AF_04/2024 | F179: 105170 | G179: SINAPI | H179: UN | I179: 80 | J179: 5.02 | K179: BDI 1 | L179: 6.35 | M179: 401.6 | N179: 508
A180: 13 | B180: 2 | D180: 13.2.8 | E180: JOELHO 45 GRAUS, PVC, SOLDÁVEL, DN 32MM, INSTALADO EM RAMAL OU SUB-RAMAL DE ÁGUA - FORNECIMENTO E INSTALAÇÃO. AF_06/2022 | F180: 89368 | G180: SINAPI | H180: UN | I180: 1 | J180: 13.58 | K180: BDI 1 | L180: 17.18 | M180: 13.58 | N180: 17.18
A181: 13 | B181: 2 | D181: 13.2.9 | E181: JOELHO PVC, SOLDÁVEL, 45 GRAUS, DN 50 MM, INSTALADO EM RESERVAÇÃO PREDIAL DE ÁGUA - FORNECIMENTO E INSTALAÇÃO. AF_04/2024 | F181: 105181 | G181: SINAPI | H181: UN | I181: 10 | J181: 16.17 | K181: BDI 1 | L181: 20.45 | M181: 161.7 | N181: 204.5
A182: 13 | B182: 2 | D182: 13.2.10 | E182: JOELHO 90 GRAUS, PVC, SOLDÁVEL, DN 25MM, INSTALADO EM RAMAL OU SUB-RAMAL DE ÁGUA - FORNECIMENTO E INSTALAÇÃO. AF_06/2022 | F182: 89362 | G182: SINAPI | H182: UN | I182: 67 | J182: 8.55 | K182: BDI 1 | L182: 10.81 | M182: 572.85 | N182: 724.27
A183: 13 | B183: 2 | D183: 13.2.11 | E183: JOELHO 90 GRAUS, PVC, SOLDÁVEL, DN 32 MM INSTALADO EM RESERVAÇÃO PREDIAL DE ÁGUA - FORNECIMENTO E INSTALAÇÃO. AF_04/2024 | F183: 94674 | G183: SINAPI | H183: UN | I183: 3 | J183: 7.07 | K183: BDI 1 | L183: 8.94 | M183: 21.21 | N183: 26.82
A184: 13 | B184: 2 | D184: 13.2.12 | E184: JOELHO 90 GRAUS, PVC, SOLDÁVEL, DN 50 MM INSTALADO EM RESERVAÇÃO PREDIAL DE ÁGUA - FORNECIMENTO E INSTALAÇÃO. AF_04/2024 | F184: 94678 | G184: SINAPI | H184: UN | I184: 40 | J184: 13.72 | K184: BDI 1 | L184: 17.35 | M184: 548.8 | N184: 694
A185: 13 | B185: 2 | D185: 13.2.13 | E185: LUVA PVC, SOLDÁVEL, DN 25 MM, INSTALADO EM RESERVAÇÃO PREDIAL DE ÁGUA - FORNECIMENTO E INSTALAÇÃO. AF_04/2024 | F185: 94657 | G185: SINAPI | H185: UN | I185: 39 | J185: 3.5 | K185: BDI 1 | L185: 4.42 | M185: 136.5 | N185: 172.38
A186: 13 | B186: 2 | D186: 13.2.14 | E186: LUVA, PVC, SOLDÁVEL, DN 32MM, INSTALADO EM PRUMADA DE ÁGUA - FORNECIMENTO E INSTALAÇÃO. AF_06/2022 | F186: 89541 | G186: SINAPI | H186: UN | I186: 1 | J186: 5.88 | K186: BDI 1 | L186: 7.43 | M186: 5.88 | N186: 7.43
A187: 13 | B187: 2 | D187: 13.2.15 | E187: LUVA, PVC, SOLDÁVEL, DN 50MM, INSTALADO EM PRUMADA DE ÁGUA - FORNECIMENTO E INSTALAÇÃO. AF_06/2022 | F187: 89575 | G187: SINAPI | H187: UN | I187: 1 | J187: 10.64 | K187: BDI 1 | L187: 13.46 | M187: 10.64 | N187: 13.46
A188: 13 | B188: 2 | D188: 13.2.16 | E188: REGISTRO DE PRESSÃO BRUTO, LATÃO, ROSCÁVEL, 3/4", COM ACABAMENTO E CANOPLA CROMADOS - FORNECIMENTO E INSTALAÇÃO. AF_08/2021 | F188: 89985 | G188: SINAPI | H188: UN | I188: 3 | J188: 122.79 | K188: BDI 1 | L188: 155.35 | M188: 368.37 | N188: 466.05
A189: 13 | B189: 2 | D189: 13.2.17 | E189: TORNEIRA DE BOIA PARA CAIXA D'ÁGUA, ROSCÁVEL, 3/4" - FORNECIMENTO E INSTALAÇÃO. AF_08/2021 | F189: 94796 | G189: SINAPI | H189: UN | I189: 1 | J189: 36.99 | K189: BDI 1 | L189: 46.79 | M189: 36.99 | N189: 46.79
A190: 13 | B190: 2 | D190: 13.2.18 | E190: TUBO, PVC, SOLDÁVEL, DE 25MM, INSTALADO EM RAMAL OU SUB-RAMAL DE ÁGUA - FORNECIMENTO E INSTALAÇÃO. AF_06/2022 | F190: 89356 | G190: SINAPI | H190: M | I190: 191.41 | J190: 21.46 | K190: BDI 1 | L190: 27.15 | M190: 4107.65 | N190: 5196.78
A191: 13 | B191: 2 | D191: 13.2.19 | E191: TUBO, PVC, SOLDÁVEL, DE 32MM, INSTALADO EM RESERVAÇÃO PREDIAL DE ÁGUA - FORNECIMENTO E INSTALAÇÃO. AF_04/2024 | F191: 94649 | G191: SINAPI | H191: M | I191: 6.77 | J191: 11.93 | K191: BDI 1 | L191: 15.09 | M191: 80.76 | N191: 102.16
A192: 13 | B192: 2 | D192: 13.2.20 | E192: TUBO, PVC, SOLDÁVEL, DE 50MM, INSTALADO EM RESERVAÇÃO PREDIAL DE ÁGUA - FORNECIMENTO E INSTALAÇÃO. AF_04/2024 | F192: 94651 | G192: SINAPI | H192: M | I192: 124.35 | J192: 20.95 | K192: BDI 1 | L192: 26.5 | M192: 2605.13 | N192: 3295.27
A193: 13 | B193: 2 | D193: 13.2.21 | E193: TÊ, PVC, SOLDÁVEL, DN 25 MM INSTALADO EM RESERVAÇÃO PREDIAL DE ÁGUA - FORNECIMENTO E INSTALAÇÃO. AF_04/2024 | F193: 94688 | G193: SINAPI | H193: UN | I193: 20 | J193: 6.09 | K193: BDI 1 | L193: 7.7 | M193: 121.8 | N193: 154
A194: 13 | B194: 2 | D194: 13.2.22 | E194: TÊ, PVC, SOLDÁVEL, DN 32 MM INSTALADO EM RESERVAÇÃO PREDIAL DE ÁGUA - FORNECIMENTO E INSTALAÇÃO. AF_04/2024 | F194: 94690 | G194: SINAPI | H194: UN | I194: 1 | J194: 10.21 | K194: BDI 1 | L194: 12.91 | M194: 10.21 | N194: 12.91
A195: 13 | B195: 2 | D195: 13.2.23 | E195: TÊ, PVC, SOLDÁVEL, DN 50 MM INSTALADO EM RESERVAÇÃO PREDIAL DE ÁGUA - FORNECIMENTO E INSTALAÇÃO. AF_04/2024 | F195: 94694 | G195: SINAPI | H195: UN | I195: 35 | J195: 21.66 | K195: BDI 1 | L195: 27.4 | M195: 758.1 | N195: 959
A196: 13 | B196: 2 | D196: 13.2.24 | E196: TE DE REDUÇÃO, PVC, SOLDÁVEL, 90 GRAUS, DN 50 MM X 25 MM, INSTALADO EM RESERVAÇÃO PREDIAL DE ÁGUA - FORNECIMENTO E INSTALAÇÃO. AF_04/2024 | F196: 105189 | G196: SINAPI | H196: UN | I196: 4 | J196: 19.77 | K196: BDI 1 | L196: 25.01 | M196: 79.08 | N196: 100.04
A197: 13 | B197: 3 | D197: 13.3.1 | E197: LUVA SOLDÁVEL E COM ROSCA, PVC, SOLDÁVEL, DN 25MM X 3/4 , INSTALADO EM RAMAL OU SUB-RAMAL DE ÁGUA - FORNECIMENTO E INSTALAÇÃO. AF_06/2022 | F197: 89385 | G197: SINAPI | H197: UN | I197: 2 | J197: 6.61 | K197: BDI 1 | L197: 8.36 | M197: 13.22 | N197: 16.72
A198: 13 | B198: 4 | D198: 13.4.1 | E198: JOELHO 90 GRAUS COM BUCHA DE LATÃO, PVC, SOLDÁVEL, DN 25MM, X 3/4 INSTALADO EM RAMAL OU SUB-RAMAL DE ÁGUA - FORNECIMENTO E INSTALAÇÃO. AF_06/2022 | F198: 89366 | G198: SINAPI | H198: UN | I198: 22 | J198: 15.16 | K198: BDI 1 | L198: 19.18 | M198: 333.52 | N198: 421.96
A199: 13 | B199: 4 | D199: 13.4.2 | E199: JOELHO 90 GRAUS COM BUCHA DE LATÃO, PVC, SOLDÁVEL, DN 25MM, X 1/2 INSTALADO EM RAMAL OU SUB-RAMAL DE ÁGUA - FORNECIMENTO E INSTALAÇÃO. AF_06/2022 | F199: 90373 | G199: SINAPI | H199: UN | I199: 34 | J199: 12.02 | K199: BDI 1 | L199: 15.2 | M199: 408.68 | N199: 516.8
A200: 13 | B200: 5 | D200: 13.5.1 | E200: CAIXA D´ÁGUA EM POLIETILENO, 3000 LITROS - FORNECIMENTO E INSTALAÇÃO. AF_06/2021 | F200: 102610 | G200: SINAPI | H200: UN | I200: 1 | J200: 2183.4 | K200: BDI 1 | L200: 2762.43 | M200: 2183.4 | N200: 2762.43
... 225 more rows

Sheet CPU
A2: COMPOSIÇÕES DE CUSTO | L2: Revisão: | M2: =DADOS!D6 -> R00
L3: Data: | M3: =DADOS!D2 -> 2025-01-27
A4: Projeto: | D4: Responsável: | H4: Cliente: | L4: Bancos:
A5: =DADOS!D8 -> CONSTRUÇÃO DA UBS CRISTAIS | L5: =DADOS!D14 -> SINAPI: 12/2024 Minas Gerais SETOP: 10/2024 Minas Gerais SICRO : 10/2024 Minas Gerais SUDECAP: 10/2024 Minas Gerais
L8: BDI 1: | M8: =DADOS!D10 -> 0.2652
L9: BDI 2: | M9: =DADOS!D12 -> -
A18: COMPOSIÇÃO DE PREÇO UNITÁRIO
A20: PREFEITURA: | B20: PREFEITURA MUNICIPAL DE POUSO ALEGRE
A21: OBRA: CONSTRUÇÃO DA UBS CRISTAIS | L21: FOLHA Nº: 4
A22: LOCAL: RUA ROBERTO SCODELER, BAIRRO BELLA ITÁLIA | L22: DATA:27/01/2025
A23: REGIÃO/MÊS DE REFERÊNCIA: SINAPI: 12/2024 Minas Gerais SETOP: 10/2024 Minas Gerais SICRO : 10/2024 Minas Gerais SUDECAP: 10/2024 Minas Gerais | J23: FORMA DE EXECUÇÃO
A24: PRAZO DE EXECUÇÃO: 12 MESES | J24: ( ) DIRETA | L24: (X) | M24: INDIRETA
L25: BDI 1: | M25: =DADOS!D10 -> 0.2652
A27: CÓDIGO | B27: DESCRIÇÃO | I27: Banco | J27: Unid. | K27: Coeficiente | L27: Preço Unit. | M27: Total
A29: 6 | B29: =VLOOKUP(A29,[1]ORC!$D$46:$N$2472,2,0) -> ESTRUTURA
A30: EST-001 | B30: ESTACA HÉLICE CONTÍNUA, DIÂMETRO DE 30 CM, INCLUSO CONCRETO FCK=30MPA E ARMADURA MÍNIMA (EXCLUSIVE BOMBEAMENTO, MOBILIZAÇÃO E DESMOBILIZAÇÃO). | I30: CPU | J30: M | M30: =SUM(M31:M38) -> 128.154826
B31: 100973 | C31: =IF(I31="SINAPI",VLOOKUP(B31,DADOS_SINAPI,2,0),IF(I31="SETOP",VLOOKUP(B31,DADOS_SETOP,2,0),IF(I31="SICRO",VLOOKUP(B31,DADOS_SICRO,2,0),IF(I31="SUDECAP",VLOOKUP(B31,DADOS_SUDECAP,2,0),IF(I31="COTAÇÃO",VLOOKUP(B31,DADOS_COTACAO,2,0),VLOOKUP(B31,DADOS_COMPOSICAO,2,0)))))) -> CARGA, MANOBRA E DESCARGA DE SOLOS E MATERIAIS GRANULARES EM CAMINHÃO BASCULANTE 6 M³ - CARGA COM PÁ CARREGADEIRA (CAÇAMBA DE 1,7 A 2,8 M³ / 128 HP) E DESCARGA LIVRE (UNIDADE: M3). AF_07/2020 | I31: SINAPI | J31: =IF(I31="SINAPI",VLOOKUP(B31,DADOS_SINAPI,3,0),IF(I31="SETOP",VLOOKUP(B31,DADOS_SETOP,3,0),IF(I31="SICRO",VLOOKUP(B31,DADOS_SICRO,3,0),IF(I31="SUDECAP",VLOOKUP(B31,DADOS_SUDECAP,3,0),IF(I31="COTAÇÃO",VLOOKUP(B31,DADOS_COTACAO,9,0),VLOOKUP(B31,DADOS_COMPOSICAO,10,0)))))) -> M3 | K31: 0.0966 | L31: =IF(I31="SINAPI",VLOOKUP(B31,DADOS_SINAPI,4,0),IF(I31="SETOP",VLOOKUP(B31,DADOS_SETOP,4,0),IF(I31="SICRO",VLOOKUP(B31,DADOS_SICRO,4,0),IF(I31="SUDECAP",VLOOKUP(B31,DADOS_SUDECAP,4,0),IF(I31="COTAÇÃO",VLOOKUP(B31,DADOS_COTACAO,12,0),VLOOKUP(B31,DADOS_COMPOSICAO,13,0)))))) -> 8.86 | M31: =K31*L31 -> 0.855876
B32: 90776 | C32: ENCARREGADO GERAL COM ENCARGOS COMPLEMENTARES | I32: SINAPI | J32: H | K32: 0.0836 | L32: 49.93 | M32: 4.174148
B33: 90778 | C33: ENGENHEIRO CIVIL DE OBRA PLENO COM ENCARGOS COMPLEMENTARES | I33: SINAPI | J33: H | K33: 0.0157 | L33: 106.43 | M33: 1.670951
B34: 90675 | C34: PERFURATRIZ COM TORRE METÁLICA PARA EXECUÇÃO DE ESTACA HÉLICE CONTÍNUA, PROFUNDIDADE MÁXIMA DE 30 M, DIÂMETRO MÁXIMO DE 800 MM, POTÊNCIA INSTALADA DE 268 HP, MESA ROTATIVA COM TORQUE MÁXIMO DE 170 KNM - CHI DIURNO. AF_06/2015 | I34: SINAPI | J34: CHI | K34: 0.0594 | L34: 320.15 | M34: 19.01691
B35: 90674 | C35: PERFURATRIZ COM TORRE METÁLICA PARA EXECUÇÃO DE ESTACA HÉLICE CONTÍNUA, PROFUNDIDADE MÁXIMA DE 30 M, DIÂMETRO MÁXIMO DE 800 MM, POTÊNCIA INSTALADA DE 268 HP, MESA ROTATIVA COM TORQUE MÁXIMO DE 170 KNM - CHP DIURNO. AF_06/2015 | I35: SINAPI | J35: CHP | K35: 0.0242 | L35: 723.52 | M35: 17.509184
B36: 88316 | C36: =IF(I36="SINAPI",VLOOKUP(B36,DADOS_SINAPI,2,0),IF(I36="SETOP",VLOOKUP(B36,DADOS_SETOP,2,0),IF(I36="SICRO",VLOOKUP(B36,DADOS_SICRO,2,0),IF(I36="SUDECAP",VLOOKUP(B36,DADOS_SUDECAP,2,0),IF(I36="COTAÇÃO",VLOOKUP(B36,DADOS_COTACAO,2,0),VLOOKUP(B36,DADOS_COMPOSICAO,2,0)))))) -> SERVENTE COM ENCARGOS COMPLEMENTARES | I36: SINAPI | J36: =IF(I36="SINAPI",VLOOKUP(B36,DADOS_SINAPI,3,0),IF(I36="SETOP",VLOOKUP(B36,DADOS_SETOP,3,0),IF(I36="SICRO",VLOOKUP(B36,DADOS_SICRO,3,0),IF(I36="SUDECAP",VLOOKUP(B36,DADOS_SUDECAP,3,0),IF(I36="COTAÇÃO",VLOOKUP(B36,DADOS_COTACAO,9,0),VLOOKUP(B36,DADOS_COMPOSICAO,10,0)))))) -> H | K36: 0.2509 | L36: =IF(I36="SINAPI",VLOOKUP(B36,DADOS_SINAPI,4,0),IF(I36="SETOP",VLOOKUP(B36,DADOS_SETOP,4,0),IF(I36="SICRO",VLOOKUP(B36,DADOS_SICRO,4,0),IF(I36="SUDECAP",VLOOKUP(B36,DADOS_SUDECAP,4,0),IF(I36="COTAÇÃO",VLOOKUP(B36,DADOS_COTACAO,12,0),VLOOKUP(B36,DADOS_COMPOSICAO,13,0)))))) -> 18.75 | M36: 4.704375
B37: 97913 | C37: TRANSPORTE COM CAMINHÃO BASCULANTE DE 6 M³, EM VIA URBANA EM REVESTIMENTO PRIMÁRIO (UNIDADE: M3XKM). AF_07/2020 | I37: SINAPI | J37: M3XKM | K37: 0.029 | L37: 3.21 | M37: 0.09309
B38: 43360 | C38: =IF(I38="SINAPI",VLOOKUP(B38,DADOS_SINAPI,2,0),IF(I38="SETOP",VLOOKUP(B38,DADOS_SETOP,2,0),IF(I38="SICRO",VLOOKUP(B38,DADOS_SICRO,2,0),IF(I38="SUDECAP",VLOOKUP(B38,DADOS_SUDECAP,2,0),IF(I38="COTAÇÃO",VLOOKUP(B38,DADOS_COTACAO,2,0),VLOOKUP(B38,DADOS_COMPOSICAO,2,0)))))) -> CONCRETO USINADO BOMBEAVEL, CLASSE DE RESISTENCIA C30, COM BRITA 0 E 1, SLUMP = 220 +/- 30 MM, EXCLUI SERVICO DE BOMBEAMENTO (NBR 8953) | I38: SINAPI | J38: =IF(I38="SINAPI",VLOOKUP(B38,DADOS_SINAPI,3,0),IF(I38="SETOP",VLOOKUP(B38,DADOS_SETOP,3,0),IF(I38="SICRO",VLOOKUP(B38,DADOS_SICRO,3,0),IF(I38="SUDECAP",VLOOKUP(B38,DADOS_SUDECAP,3,0),IF(I38="COTAÇÃO",VLOOKUP(B38,DADOS_COTACAO,9,0),VLOOKUP(B38,DADOS_COMPOSICAO,10,0)))))) -> M3 | K38: 0.1133 | L38: =IF(I38="SINAPI",VLOOKUP(B38,DADOS_SINAPI,4,0),IF(I38="SETOP",VLOOKUP(B38,DADOS_SETOP,4,0),IF(I38="SICRO",VLOOKUP(B38,DADOS_SICRO,4,0),IF(I38="SUDECAP",VLOOKUP(B38,DADOS_SUDECAP,4,0),IF(I38="COTAÇÃO",VLOOKUP(B38,DADOS_COTACAO,12,0),VLOOKUP(B38,DADOS_COMPOSICAO,13,0)))))) -> 707.24 | M38: 80.130292
A40: EST-002 | B40: ESTACA BROCA DE CONCRETO, DIÂMETRO DE 20CM, ESCAVAÇÃO MANUAL COM TRADO CONCHA, EXCETO ARMADURA | I40: CPU | J40: M | M40: =SUM(M41:M43) -> 46.00573
B41: 94970 | C41: =IF(I41="SINAPI",VLOOKUP(B41,DADOS_SINAPI,2,0),IF(I41="SETOP",VLOOKUP(B41,DADOS_SETOP,2,0),IF(I41="SICRO",VLOOKUP(B41,DADOS_SICRO,2,0),IF(I41="SUDECAP",VLOOKUP(B41,DADOS_SUDECAP,2,0),IF(I41="COTAÇÃO",VLOOKUP(B41,DADOS_COTACAO,2,0),VLOOKUP(B41,DADOS_COMPOSICAO,2,0)))))) -> CONCRETO FCK = 20MPA, TRAÇO 1:2,7:3 (EM MASSA SECA DE CIMENTO/ AREIA MÉDIA/ BRITA 1) - PREPARO MECÂNICO COM BETONEIRA 600 L. AF_05/2021 | I41: SINAPI | J41: =IF(I41="SINAPI",VLOOKUP(B41,DADOS_SINAPI,3,0),IF(I41="SETOP",VLOOKUP(B41,DADOS_SETOP,3,0),IF(I41="SICRO",VLOOKUP(B41,DADOS_SICRO,3,0),IF(I41="SUDECAP",VLOOKUP(B41,DADOS_SUDECAP,3,0),IF(I41="COTAÇÃO",VLOOKUP(B41,DADOS_COTACAO,9,0),VLOOKUP(B41,DADOS_COMPOSICAO,10,0)))))) -> M3 | K41: 0.043 | L41: =IF(I41="SINAPI",VLOOKUP(B41,DADOS_SINAPI,4,0),IF(I41="SETOP",VLOOKUP(B41,DADOS_SETOP,4,0),IF(I41="SICRO",VLOOKUP(B41,DADOS_SICRO,4,0),IF(I41="SUDECAP",VLOOKUP(B41,DADOS_SUDECAP,4,0),IF(I41="COTAÇÃO",VLOOKUP(B41,DADOS_COTACAO,12,0),VLOOKUP(B41,DADOS_COMPOSICAO,13,0)))))) -> 494.32 | M41: =K41*L41 -> 21.25576
B42: 88309 | C42: PEDREIRO COM ENCARGOS COMPLEMENTARES | I42: SINAPI | J42: H | K42: 0.486 | L42: 25.27 | M42: 12.28122
B43: 88316 | C43: SERVENTE COM ENCARGOS COMPLEMENTARES | I43: SINAPI | J43: H | K43: 0.665 | L43: 18.75 | M43: 12.46875
A45: EST-003 | B45: CONCRETAGEM DE PILARES, FCK = 30 MPA, COM USO DE BOMBA - LANÇAMENTO, ADENSAMENTO E ACABAMENTO. | I45: CPU | J45: M3 | M45: =SUM(M46:M51) -> 758.50537
B46: 88262 | C46: =IF(I46="SINAPI",VLOOKUP(B46,DADOS_SINAPI,2,0),IF(I46="SETOP",VLOOKUP(B46,DADOS_SETOP,2,0),IF(I46="SICRO",VLOOKUP(B46,DADOS_SICRO,2,0),IF(I46="SUDECAP",VLOOKUP(B46,DADOS_SUDECAP,2,0),IF(I46="COTAÇÃO",VLOOKUP(B46,DADOS_COTACAO,2,0),VLOOKUP(B46,DADOS_COMPOSICAO,2,0)))))) -> CARPINTEIRO DE FORMAS COM ENCARGOS COMPLEMENTARES | I46: SINAPI | J46: =IF(I46="SINAPI",VLOOKUP(B46,DADOS_SINAPI,3,0),IF(I46="SETOP",VLOOKUP(B46,DADOS_SETOP,3,0),IF(I46="SICRO",VLOOKUP(B46,DADOS_SICRO,3,0),IF(I46="SUDECAP",VLOOKUP(B46,DADOS_SUDECAP,3,0),IF(I46="COTAÇÃO",VLOOKUP(B46,DADOS_COTACAO,9,0),VLOOKUP(B46,DADOS_COMPOSICAO,10,0)))))) -> H | K46: 0.224 | L46: =IF(I46="SINAPI",VLOOKUP(B46,DADOS_SINAPI,4,0),IF(I46="SETOP",VLOOKUP(B46,DADOS_SETOP,4,0),IF(I46="SICRO",VLOOKUP(B46,DADOS_SICRO,4,0),IF(I46="SUDECAP",VLOOKUP(B46,DADOS_SUDECAP,4,0),IF(I46="COTAÇÃO",VLOOKUP(B46,DADOS_COTACAO,12,0),VLOOKUP(B46,DADOS_COMPOSICAO,13,0)))))) -> 24.92 | M46: =K46*L46 -> 5.58208
B47: 88309 | C47: PEDREIRO COM ENCARGOS COMPLEMENTARES | I47: SINAPI | J47: H | K47: 0.224 | L47: 25.27 | M47: 5.66048
B48: 88316 | C48: SERVENTE COM ENCARGOS COMPLEMENTARES | I48: SINAPI | J48: H | K48: 1.345 | L48: 18.75 | M48: 25.21875
B49: 90587 | C49: VIBRADOR DE IMERSÃO, DIÂMETRO DE PONTEIRA 45MM, MOTOR ELÉTRICO TRIFÁSICO POTÊNCIA DE 2 CV - CHI DIURNO. AF_06/2015 | I49: SINAPI | J49: CHI | K49: 0.13 | L49: 0.53 | M49: 0.0689
B50: 90586 | C50: VIBRADOR DE IMERSÃO, DIÂMETRO DE PONTEIRA 45MM, MOTOR ELÉTRICO TRIFÁSICO POTÊNCIA DE 2 CV - CHP DIURNO. AF_06/2015 | I50: SINAPI | J50: CHP | K50: 0.094 | L50: 1.36 | M50: 0.12784
B51: 1525 | C51: CONCRETO USINADO BOMBEAVEL, CLASSE DE RESISTENCIA C30, BRITA 0 E 1, SLUMP = 100 +/- 20 MM, COM BOMBEAMENTO (DISPONIBILIZACAO DE BOMBA), SEM O LANCAMENTO (NBR 8953) | I51: SINAPI | J51: M3 | K51: 1.103 | L51: 654.44 | M51: 721.84732
A53: EST-004 | B53: LAJE TRELIÇADA H=13 CM - INCLUSO MONTAGEM E FORNECIMENTO DOS MATERIAIS, EXCETO CONCRETAGEM | I53: CPU | J53: M2 | M53: =SUM(M54:M59) -> 101.5624204
B54: 88262 | C54: =IF(I54="SINAPI",VLOOKUP(B54,DADOS_SINAPI,2,0),IF(I54="SETOP",VLOOKUP(B54,DADOS_SETOP,2,0),IF(I54="SICRO",VLOOKUP(B54,DADOS_SICRO,2,0),IF(I54="SUDECAP",VLOOKUP(B54,DADOS_SUDECAP,2,0),IF(I54="COTAÇÃO",VLOOKUP(B54,DADOS_COTACAO,2,0),VLOOKUP(B54,DADOS_COMPOSICAO,2,0)))))) -> CARPINTEIRO DE FORMAS COM ENCARGOS COMPLEMENTARES | I54: SINAPI | J54: =IF(I54="SINAPI",VLOOKUP(B54,DADOS_SINAPI,3,0),IF(I54="SETOP",VLOOKUP(B54,DADOS_SETOP,3,0),IF(I54="SICRO",VLOOKUP(B54,DADOS_SICRO,3,0),IF(I54="SUDECAP",VLOOKUP(B54,DADOS_SUDECAP,3,0),IF(I54="COTAÇÃO",VLOOKUP(B54,DADOS_COTACAO,9,0),VLOOKUP(B54,DADOS_COMPOSICAO,10,0)))))) -> H | K54: 0.55882 | L54: =IF(I54="SINAPI",VLOOKUP(B54,DADOS_SINAPI,4,0),IF(I54="SETOP",VLOOKUP(B54,DADOS_SETOP,4,0),IF(I54="SICRO",VLOOKUP(B54,DADOS_SICRO,4,0),IF(I54="SUDECAP",VLOOKUP(B54,DADOS_SUDECAP,4,0),IF(I54="COTAÇÃO",VLOOKUP(B54,DADOS_COTACAO,12,0),VLOOKUP(B54,DADOS_COMPOSICAO,13,0)))))) -> 24.92 | M54: =K54*L54 -> 13.9257944
B55: 88316 | C55: SERVENTE COM ENCARGOS COMPLEMENTARES | I55: SINAPI | J55: H | K55: 0.34237 | L55: 18.75 | M55: 6.4194375
B56: 71.01.09 | C56: TÁBUA DE PINUS 2,5CM X 20 CM REF 6193 | I56: SUDECAP | J56: M | K56: 0.4675 | L56: 7.5 | M56: 3.50625
B57: 71.30.04 | C57: MADEIRA ROLICA D= 6 A 10 CM COMPRIMENTO 6 METROS | I57: SUDECAP | J57: M | K57: 1.2707 | L57: 13.83 | M57: 17.573781
B58: 76.08.03 | C58: LAJE PRÉ-MOLDADA TRELIÇADA, UNIDIRECIONAL, BI-APOIADA, C/TRELIÇA METÁLICA TR08 E ENCHIMENTO EM EPS, SC=300Kgf/m², VÃO ATÉ 4 METROS, SEM COLOCAÇÃO | I58: SUDECAP | J58: M2 | K58: 1 | L58: 59 | M58: 59
B59: 5075 | C59: PREGO DE ACO POLIDO COM CABECA 18 X 30 (2 3/4 X 10) | I59: SINAPI | J59: KG | K59: 0.06231 | L59: 18.25 | M59: 1.1371575
A61: EST-005 | B61: LAJE TRELIÇADA H=17 CM - INCLUSO MONTAGEM E FORNECIMENTO DOS MATERIAIS, EXCETO CONCRETAGEM | I61: CPU | J61: M2 | M61: =SUM(M62:M67) -> 116.5624204
B62: 88262 | C62: =IF(I62="SINAPI",VLOOKUP(B62,DADOS_SINAPI,2,0),IF(I62="SETOP",VLOOKUP(B62,DADOS_SETOP,2,0),IF(I62="SICRO",VLOOKUP(B62,DADOS_SICRO,2,0),IF(I62="SUDECAP",VLOOKUP(B62,DADOS_SUDECAP,2,0),IF(I62="COTAÇÃO",VLOOKUP(B62,DADOS_COTACAO,2,0),VLOOKUP(B62,DADOS_COMPOSICAO,2,0)))))) -> CARPINTEIRO DE FORMAS COM ENCARGOS COMPLEMENTARES | I62: SINAPI | J62: =IF(I62="SINAPI",VLOOKUP(B62,DADOS_SINAPI,3,0),IF(I62="SETOP",VLOOKUP(B62,DADOS_SETOP,3,0),IF(I62="SICRO",VLOOKUP(B62,DADOS_SICRO,3,0),IF(I62="SUDECAP",VLOOKUP(B62,DADOS_SUDECAP,3,0),IF(I62="COTAÇÃO",VLOOKUP(B62,DADOS_COTACAO,9,0),VLOOKUP(B62,DADOS_COMPOSICAO,10,0)))))) -> H | K62: 0.55882 | L62: =IF(I62="SINAPI",VLOOKUP(B62,DADOS_SINAPI,4,0),IF(I62="SETOP",VLOOKUP(B62,DADOS_SETOP,4,0),IF(I62="SICRO",VLOOKUP(B62,DADOS_SICRO,4,0),IF(I62="SUDECAP",VLOOKUP(B62,DADOS_SUDECAP,4,0),IF(I62="COTAÇÃO",VLOOKUP(B62,DADOS_COTACAO,12,0),VLOOKUP(B62,DADOS_COMPOSICAO,13,0)))))) -> 24.92 | M62: =K62*L62 -> 13.9257944
B63: 88316 | C63: SERVENTE COM ENCARGOS COMPLEMENTARES | I63: SINAPI | J63: H | K63: 0.34237 | L63: 18.75 | M63: 6.4194375
B64: 71.01.09 | C64: TÁBUA DE PINUS 2,5CM X 20 CM REF 6193 | I64: SUDECAP | J64: M | K64: 0.4675 | L64: 7.5 | M64: 3.50625
B65: 71.30.04 | C65: MADEIRA ROLICA D= 6 A 10 CM COMPRIMENTO 6 METROS | I65: SUDECAP | J65: M | K65: 1.2707 | L65: 13.83 | M65: 17.573781
B66: 76.08.13 | C66: LAJE PRÉ-MOLDADA TRELIÇADA, UNIDIRECIONAL, BI-APOIADA, C/TRELIÇA METÁLICA TR12 E ENCHIMENTO EM EPS, SC=300Kgf/m², VÃO ATÉ 5 METROS, SEM COLOCAÇÃO | I66: SUDECAP | J66: M2 | K66: 1 | L66: 74 | M66: 74
B67: 5075 | C67: PREGO DE ACO POLIDO COM CABECA 18 X 30 (2 3/4 X 10) | I67: SINAPI | J67: KG | K67: 0.06231 | L67: 18.25 | M67: 1.1371575
A69: EST-006 | B69: LAJE TRELIÇADA H=21 CM - INCLUSO MONTAGEM E FORNECIMENTO DOS MATERIAIS, EXCETO CONCRETAGEM | I69: CPU | J69: M2 | M69: =SUM(M70:M75) -> 177.5624204
B70: 88262 | C70: =IF(I70="SINAPI",VLOOKUP(B70,DADOS_SINAPI,2,0),IF(I70="SETOP",VLOOKUP(B70,DADOS_SETOP,2,0),IF(I70="SICRO",VLOOKUP(B70,DADOS_SICRO,2,0),IF(I70="SUDECAP",VLOOKUP(B70,DADOS_SUDECAP,2,0),IF(I70="COTAÇÃO",VLOOKUP(B70,DADOS_COTACAO,2,0),VLOOKUP(B70,DADOS_COMPOSICAO,2,0)))))) -> CARPINTEIRO DE FORMAS COM ENCARGOS COMPLEMENTARES | I70: SINAPI | J70: =IF(I70="SINAPI",VLOOKUP(B70,DADOS_SINAPI,3,0),IF(I70="SETOP",VLOOKUP(B70,DADOS_SETOP,3,0),IF(I70="SICRO",VLOOKUP(B70,DADOS_SICRO,3,0),IF(I70="SUDECAP",VLOOKUP(B70,DADOS_SUDECAP,3,0),IF(I70="COTAÇÃO",VLOOKUP(B70,DADOS_COTACAO,9,0),VLOOKUP(B70,DADOS_COMPOSICAO,10,0)))))) -> H | K70: 0.55882 | L70: =IF(I70="SINAPI",VLOOKUP(B70,DADOS_SINAPI,4,0),IF(I70="SETOP",VLOOKUP(B70,DADOS_SETOP,4,0),IF(I70="SICRO",VLOOKUP(B70,DADOS_SICRO,4,0),IF(I70="SUDECAP",VLOOKUP(B70,DADOS_SUDECAP,4,0),IF(I70="COTAÇÃO",VLOOKUP(B70,DADOS_COTACAO,12,0),VLOOKUP(B70,DADOS_COMPOSICAO,13,0)))))) -> 24.92 | M70: =K70*L70 -> 13.9257944
B71: 88316 | C71: SERVENTE COM ENCARGOS COMPLEMENTARES | I71: SINAPI | J71: H | K71: 0.34237 | L71: 18.75 | M71: 6.4194375
B72: 71.01.09 | C72: TÁBUA DE PINUS 2,5CM X 20 CM REF 6193 | I72: SUDECAP | J72: M | K72: 0.4675 | L72: 7.5 | M72: 3.50625
B73: 71.30.04 | C73: MADEIRA ROLICA D= 6 A 10 CM COMPRIMENTO 6 METROS | I73: SUDECAP | J73: M | K73: 1.2707 | L73: 13.83 | M73: 17.573781
B74: 76.08.23 | C74: LAJE PRÉ-MOLDADA TRELIÇADA, UNIDIRECIONAL, BI-APOIADA, C/TRELIÇA METÁLICA TR16 E ENCHIMENTO EM EPS, SC=300Kgf/m², VÃO ATÉ 6 METROS, SEM COLOCAÇÃO | I74: SUDECAP | J74: M2 | K74: 1 | L74: 135 | M74: 135
B75: 5075 | C75: PREGO DE ACO POLIDO COM CABECA 18 X 30 (2 3/4 X 10) | I75: SINAPI | J75: KG | K75: 0.06231 | L75: 18.25 | M75: 1.1371575
A77: EST-007 | B77: CONCRETAGEM DE VIGAS E LAJES, FCK=30 MPA, PARA LAJES PREMOLDADAS COM USO DE BOMBA - LANÇAMENTO, ADENSAMENTO E ACABAMENTO. | I77: CPU | J77: M3 | M77: =SUM(M78:M83) -> 777.46828
B78: 88262 | C78: =IF(I78="SINAPI",VLOOKUP(B78,DADOS_SINAPI,2,0),IF(I78="SETOP",VLOOKUP(B78,DADOS_SETOP,2,0),IF(I78="SICRO",VLOOKUP(B78,DADOS_SICRO,2,0),IF(I78="SUDECAP",VLOOKUP(B78,DADOS_SUDECAP,2,0),IF(I78="COTAÇÃO",VLOOKUP(B78,DADOS_COTACAO,2,0),VLOOKUP(B78,DADOS_COMPOSICAO,2,0)))))) -> CARPINTEIRO DE FORMAS COM ENCARGOS COMPLEMENTARES | I78: SINAPI | J78: =IF(I78="SINAPI",VLOOKUP(B78,DADOS_SINAPI,3,0),IF(I78="SETOP",VLOOKUP(B78,DADOS_SETOP,3,0),IF(I78="SICRO",VLOOKUP(B78,DADOS_SICRO,3,0),IF(I78="SUDECAP",VLOOKUP(B78,DADOS_SUDECAP,3,0),IF(I78="COTAÇÃO",VLOOKUP(B78,DADOS_COTACAO,9,0),VLOOKUP(B78,DADOS_COMPOSICAO,10,0)))))) -> H | K78: 0.186 | L78: =IF(I78="SINAPI",VLOOKUP(B78,DADOS_SINAPI,4,0),IF(I78="SETOP",VLOOKUP(B78,DADOS_SETOP,4,0),IF(I78="SICRO",VLOOKUP(B78,DADOS_SICRO,4,0),IF(I78="SUDECAP",VLOOKUP(B78,DADOS_SUDECAP,4,0),IF(I78="COTAÇÃO",VLOOKUP(B78,DADOS_COTACAO,12,0),VLOOKUP(B78,DADOS_COMPOSICAO,13,0)))))) -> 24.92 | M78: =K78*L78 -> 4.63512
B79: 88309 | C79: PEDREIRO COM ENCARGOS COMPLEMENTARES | I79: SINAPI | J79: H | K79: 1.119 | L79: 25.27 | M79: 28.27713
B80: 88316 | C80: SERVENTE COM ENCARGOS COMPLEMENTARES | I80: SINAPI | J80: H | K80: 1.192 | L80: 18.75 | M80: 22.35
B81: 90587 | C81: VIBRADOR DE IMERSÃO, DIÂMETRO DE PONTEIRA 45MM, MOTOR ELÉTRICO TRIFÁSICO POTÊNCIA DE 2 CV - CHI DIURNO. AF_06/2015 | I81: SINAPI | J81: CHI | K81: 0.179 | L81: 0.53 | M81: 0.09487
B82: 90586 | C82: VIBRADOR DE IMERSÃO, DIÂMETRO DE PONTEIRA 45MM, MOTOR ELÉTRICO TRIFÁSICO POTÊNCIA DE 2 CV - CHP DIURNO. AF_06/2015 | I82: SINAPI | J82: CHP | K82: 0.194 | L82: 1.36 | M82: 0.26384
B83: 1525 | C83: CONCRETO USINADO BOMBEAVEL, CLASSE DE RESISTENCIA C30, BRITA 0 E 1, SLUMP = 100 +/- 20 MM, COM BOMBEAMENTO (DISPONIBILIZACAO DE BOMBA), SEM O LANCAMENTO (NBR 8953) | I83: SINAPI | J83: M3 | K83: 1.103 | L83: 654.44 | M83: 721.84732
A85: EST-008 | B85: ALVENARIA DE BLOCOS DE CONCRETO ESTRUTURAL 19 X 19 X 39 CM (ESPESSURA 19 CM), FBK = 14 MPA, UTILIZANDO PALHETA. | I85: CPU | J85: M2 | M85: =SUM(M86:M89) -> 133.899281
B86: 88626 | C86: =IF(I86="SINAPI",VLOOKUP(B86,DADOS_SINAPI,2,0),IF(I86="SETOP",VLOOKUP(B86,DADOS_SETOP,2,0),IF(I86="SICRO",VLOOKUP(B86,DADOS_SICRO,2,0),IF(I86="SUDECAP",VLOOKUP(B86,DADOS_SUDECAP,2,0),IF(I86="COTAÇÃO",VLOOKUP(B86,DADOS_COTACAO,2,0),VLOOKUP(B86,DADOS_COMPOSICAO,2,0)))))) -> ARGAMASSA TRAÇO 1:0,5:4,5 (EM VOLUME DE CIMENTO, CAL E AREIA MÉDIA ÚMIDA), PREPARO MECÂNICO COM BETONEIRA 400 L. AF_08/2019 | I86: SINAPI | J86: =IF(I86="SINAPI",VLOOKUP(B86,DADOS_SINAPI,3,0),IF(I86="SETOP",VLOOKUP(B86,DADOS_SETOP,3,0),IF(I86="SICRO",VLOOKUP(B86,DADOS_SICRO,3,0),IF(I86="SUDECAP",VLOOKUP(B86,DADOS_SUDECAP,3,0),IF(I86="COTAÇÃO",VLOOKUP(B86,DADOS_COTACAO,9,0),VLOOKUP(B86,DADOS_COMPOSICAO,10,0)))))) -> M3 | K86: 0.0113 | L86: =IF(I86="SINAPI",VLOOKUP(B86,DADOS_SINAPI,4,0),IF(I86="SETOP",VLOOKUP(B86,DADOS_SETOP,4,0),IF(I86="SICRO",VLOOKUP(B86,DADOS_SICRO,4,0),IF(I86="SUDECAP",VLOOKUP(B86,DADOS_SUDECAP,4,0),IF(I86="COTAÇÃO",VLOOKUP(B86,DADOS_COTACAO,12,0),VLOOKUP(B86,DADOS_COMPOSICAO,13,0)))))) -> 584.37 | M86: =K86*L86 -> 6.603381
B87: 88309 | C87: =IF(I87="SINAPI",VLOOKUP(B87,DADOS_SINAPI,2,0),IF(I87="SETOP",VLOOKUP(B87,DADOS_SETOP,2,0),IF(I87="SICRO",VLOOKUP(B87,DADOS_SICRO,2,0),IF(I87="SUDECAP",VLOOKUP(B87,DADOS_SUDECAP,2,0),IF(I87="COTAÇÃO",VLOOKUP(B87,DADOS_COTACAO,2,0),VLOOKUP(B87,DADOS_COMPOSICAO,2,0)))))) -> PEDREIRO COM ENCARGOS COMPLEMENTARES | I87: SINAPI | J87: =IF(I87="SINAPI",VLOOKUP(B87,DADOS_SINAPI,3,0),IF(I87="SETOP",VLOOKUP(B87,DADOS_SETOP,3,0),IF(I87="SICRO",VLOOKUP(B87,DADOS_SICRO,3,0),IF(I87="SUDECAP",VLOOKUP(B87,DADOS_SUDECAP,3,0),IF(I87="COTAÇÃO",VLOOKUP(B87,DADOS_COTACAO,9,0),VLOOKUP(B87,DADOS_COMPOSICAO,10,0)))))) -> H | K87: 0.48 | L87: =IF(I87="SINAPI",VLOOKUP(B87,DADOS_SINAPI,4,0),IF(I87="SETOP",VLOOKUP(B87,DADOS_SETOP,4,0),IF(I87="SICRO",VLOOKUP(B87,DADOS_SICRO,4,0),IF(I87="SUDECAP",VLOOKUP(B87,DADOS_SUDECAP,4,0),IF(I87="COTAÇÃO",VLOOKUP(B87,DADOS_COTACAO,12,0),VLOOKUP(B87,DADOS_COMPOSICAO,13,0)))))) -> 25.27 | M87: 12.1296
B88: 88316 | C88: =IF(I88="SINAPI",VLOOKUP(B88,DADOS_SINAPI,2,0),IF(I88="SETOP",VLOOKUP(B88,DADOS_SETOP,2,0),IF(I88="SICRO",VLOOKUP(B88,DADOS_SICRO,2,0),IF(I88="SUDECAP",VLOOKUP(B88,DADOS_SUDECAP,2,0),IF(I88="COTAÇÃO",VLOOKUP(B88,DADOS_COTACAO,2,0),VLOOKUP(B88,DADOS_COMPOSICAO,2,0)))))) -> SERVENTE COM ENCARGOS COMPLEMENTARES | I88: SINAPI | J88: =IF(I88="SINAPI",VLOOKUP(B88,DADOS_SINAPI,3,0),IF(I88="SETOP",VLOOKUP(B88,DADOS_SETOP,3,0),IF(I88="SICRO",VLOOKUP(B88,DADOS_SICRO,3,0),IF(I88="SUDECAP",VLOOKUP(B88,DADOS_SUDECAP,3,0),IF(I88="COTAÇÃO",VLOOKUP(B88,DADOS_COTACAO,9,0),VLOOKUP(B88,DADOS_COMPOSICAO,10,0)))))) -> H | K88: 0.48 | L88: =IF(I88="SINAPI",VLOOKUP(B88,DADOS_SINAPI,4,0),IF(I88="SETOP",VLOOKUP(B88,DADOS_SETOP,4,0),IF(I88="SICRO",VLOOKUP(B88,DADOS_SICRO,4,0),IF(I88="SUDECAP",VLOOKUP(B88,DADOS_SUDECAP,4,0),IF(I88="COTAÇÃO",VLOOKUP(B88,DADOS_COTACAO,12,0),VLOOKUP(B88,DADOS_COMPOSICAO,13,0)))))) -> 18.75 | M88: 9
B89: 34578 | C89: =IF(I89="SINAPI",VLOOKUP(B89,DADOS_SINAPI,2,0),IF(I89="SETOP",VLOOKUP(B89,DADOS_SETOP,2,0),IF(I89="SICRO",VLOOKUP(B89,DADOS_SICRO,2,0),IF(I89="SUDECAP",VLOOKUP(B89,DADOS_SUDECAP,2,0),IF(I89="COTAÇÃO",VLOOKUP(B89,DADOS_COTACAO,2,0),VLOOKUP(B89,DADOS_COMPOSICAO,2,0)))))) -> BLOCO DE CONCRETO ESTRUTURAL 19 X 19 X 39 CM, FBK 14 MPA (NBR 6136) | I89: SINAPI | J89: =IF(I89="SINAPI",VLOOKUP(B89,DADOS_SINAPI,3,0),IF(I89="SETOP",VLOOKUP(B89,DADOS_SETOP,3,0),IF(I89="SICRO",VLOOKUP(B89,DADOS_SICRO,3,0),IF(I89="SUDECAP",VLOOKUP(B89,DADOS_SUDECAP,3,0),IF(I89="COTAÇÃO",VLOOKUP(B89,DADOS_COTACAO,9,0),VLOOKUP(B89,DADOS_COMPOSICAO,10,0)))))) -> UN | K89: 13.49 | L89: =IF(I89="SINAPI",VLOOKUP(B89,DADOS_SINAPI,4,0),IF(I89="SETOP",VLOOKUP(B89,DADOS_SETOP,4,0),IF(I89="SICRO",VLOOKUP(B89,DADOS_SICRO,4,0),IF(I89="SUDECAP",VLOOKUP(B89,DADOS_SUDECAP,4,0),IF(I89="COTAÇÃO",VLOOKUP(B89,DADOS_COTACAO,12,0),VLOOKUP(B89,DADOS_COMPOSICAO,13,0)))))) -> 7.87 | M89: 106.1663
A91: 7 | B91: =VLOOKUP(A91,[1]ORC!$D$46:$N$2472,2,0) -> SISTEMA VERTICAL
A92: ALV-001 | B92: CORRIMÃO DUPLO EM TUBO DE AÇO INOX D = 1 1/2" FIXADO EM PISO | I92: CPU | J92: M | M92: =SUM(M93:XFD96) -> 430.3869
B93: MATED-12684 | C93: =IF(I93="SINAPI",VLOOKUP(B93,DADOS_SINAPI,2,0),IF(I93="SETOP",VLOOKUP(B93,DADOS_SETOP,2,0),IF(I93="SICRO",VLOOKUP(B93,DADOS_SICRO,2,0),IF(I93="SUDECAP",VLOOKUP(B93,DADOS_SUDECAP,2,0),IF(I93="COTAÇÃO",VLOOKUP(B93,DADOS_COTACAO,2,0),VLOOKUP(B93,DADOS_COMPOSICAO,2,0)))))) -> CORRIMÃO (MATERIAL: AÇO INOX|TIPO: DUPLO|DIÂMETRO DO TUBO: 1.1/2") - IPRM | I93: SETOP | J93: =IF(I93="SINAPI",VLOOKUP(B93,DADOS_SINAPI,3,0),IF(I93="SETOP",VLOOKUP(B93,DADOS_SETOP,3,0),IF(I93="SICRO",VLOOKUP(B93,DADOS_SICRO,3,0),IF(I93="SUDECAP",VLOOKUP(B93,DADOS_SUDECAP,3,0),IF(I93="COTAÇÃO",VLOOKUP(B93,DADOS_COTACAO,9,0),VLOOKUP(B93,DADOS_COMPOSICAO,10,0)))))) -> m | K93: 1 | L93: =IF(I93="SINAPI",VLOOKUP(B93,DADOS_SINAPI,4,0),IF(I93="SETOP",VLOOKUP(B93,DADOS_SETOP,4,0),IF(I93="SICRO",VLOOKUP(B93,DADOS_SICRO,4,0),IF(I93="SUDECAP",VLOOKUP(B93,DADOS_SUDECAP,4,0),IF(I93="COTAÇÃO",VLOOKUP(B93,DADOS_COTACAO,12,0),VLOOKUP(B93,DADOS_COMPOSICAO,13,0)))))) -> 403.09 | M93: =K93*L93 -> 403.09
B94: ED-50381 | C94: PEDREIRO COM ENCARGOS COMPLEMENTARES | I94: SETOP | J94: hora | K94: 0.4 | L94: 25.29 | M94: 10.116
B95: ED-50367 | C95: SERVENTE COM ENCARGOS COMPLEMENTARES | I95: SETOP | J95: hora | K95: 0.4 | L95: 18.53 | M95: 7.412
B96: ED-48302 | C96: ARGAMASSA, TRAÇO 1:3 (CIMENTO E AREIA), COM PREPARO MECANIZADO | I96: SETOP | J96: m3 | K96: 0.015 | L96: 651.26 | M96: 9.7689
A98: 8 | B98: =VLOOKUP(A98,[1]ORC!$D$46:$N$2472,2,0) -> ESQUADRIAS
A99: ARQ-001 | B99: PORTA DE ALUMÍNIO DE ABRIR COM LAMBRI, FIXAÇÃO COM PARAFUSOS - FORNECIMENTO E INSTALAÇÃO. | I99: CPU | J99: M2 | M99: =SUM(M100:XFD104) -> 651.586799
B100: 88309 | C100: =IF(I100="SINAPI",VLOOKUP(B100,DADOS_SINAPI,2,0),IF(I100="SETOP",VLOOKUP(B100,DADOS_SETOP,2,0),IF(I100="SICRO",VLOOKUP(B100,DADOS_SICRO,2,0),IF(I100="SUDECAP",VLOOKUP(B100,DADOS_SUDECAP,2,0),IF(I100="COTAÇÃO",VLOOKUP(B100,DADOS_COTACAO,2,0),VLOOKUP(B100,DADOS_COMPOSICAO,2,0)))))) -> PEDREIRO COM ENCARGOS COMPLEMENTARES | I100: SINAPI | J100: =IF(I100="SINAPI",VLOOKUP(B100,DADOS_SINAPI,3,0),IF(I100="SETOP",VLOOKUP(B100,DADOS_SETOP,3,0),IF(I100="SICRO",VLOOKUP(B100,DADOS_SICRO,3,0),IF(I100="SUDECAP",VLOOKUP(B100,DADOS_SUDECAP,3,0),IF(I100="COTAÇÃO",VLOOKUP(B100,DADOS_COTACAO,9,0),VLOOKUP(B100,DADOS_COMPOSICAO,10,0)))))) -> H | K100: 0.3563 | L100: =IF(I100="SINAPI",VLOOKUP(B100,DADOS_SINAPI,4,0),IF(I100="SETOP",VLOOKUP(B100,DADOS_SETOP,4,0),IF(I100="SICRO",VLOOKUP(B100,DADOS_SICRO,4,0),IF(I100="SUDECAP",VLOOKUP(B100,DADOS_SUDECAP,4,0),IF(I100="COTAÇÃO",VLOOKUP(B100,DADOS_COTACAO,12,0),VLOOKUP(B100,DADOS_COMPOSICAO,13,0)))))) -> 25.27 | M100: =K100*L100 -> 9.003701
B101: 88316 | C101: =IF(I101="SINAPI",VLOOKUP(B101,DADOS_SINAPI,2,0),IF(I101="SETOP",VLOOKUP(B101,DADOS_SETOP,2,0),IF(I101="SICRO",VLOOKUP(B101,DADOS_SICRO,2,0),IF(I101="SUDECAP",VLOOKUP(B101,DADOS_SUDECAP,2,0),IF(I101="COTAÇÃO",VLOOKUP(B101,DADOS_COTACAO,2,0),VLOOKUP(B101,DADOS_COMPOSICAO,2,0)))))) -> SERVENTE COM ENCARGOS COMPLEMENTARES | I101: SINAPI | J101: =IF(I101="SINAPI",VLOOKUP(B101,DADOS_SINAPI,3,0),IF(I101="SETOP",VLOOKUP(B101,DADOS_SETOP,3,0),IF(I101="SICRO",VLOOKUP(B101,DADOS_SICRO,3,0),IF(I101="SUDECAP",VLOOKUP(B101,DADOS_SUDECAP,3,0),IF(I101="COTAÇÃO",VLOOKUP(B101,DADOS_COTACAO,9,0),VLOOKUP(B101,DADOS_COMPOSICAO,10,0)))))) -> H | K101: 0.1779 | L101: =IF(I101="SINAPI",VLOOKUP(B101,DADOS_SINAPI,4,0),IF(I101="SETOP",VLOOKUP(B101,DADOS_SETOP,4,0),IF(I101="SICRO",VLOOKUP(B101,DADOS_SICRO,4,0),IF(I101="SUDECAP",VLOOKUP(B101,DADOS_SUDECAP,4,0),IF(I101="COTAÇÃO",VLOOKUP(B101,DADOS_COTACAO,12,0),VLOOKUP(B101,DADOS_COMPOSICAO,13,0)))))) -> 18.75 | M101: 3.335625
B102: 7568 | C102: BUCHA DE NYLON SEM ABA S10, COM PARAFUSO DE 6,10 X 65 MM EM ACO ZINCADO COM ROSCA SOBERBA, CABECA CHATA E FENDA PHILLIPS | I102: SINAPI | J102: UN | K102: 4.8166 | L102: 0.92 | M102: 4.431272
B103: 4914 | C103: PORTA DE ABRIR EM ALUMINIO COM LAMBRI HORIZONTAL/LAMINADA, ACABAMENTO ANODIZADO NATURAL, SEM GUARNICAO/ALIZAR/VISTA | I103: SINAPI | J103: M2 | K103: 1 | L103: 607.72 | M103: 607.72
B104: 142 | C104: SELANTE ELASTICO MONOCOMPONENTE A BASE DE POLIURETANO (PU) PARA JUNTAS DIVERSAS | I104: SINAPI | J104: 310ML | K104: 0.8829 | L104: 30.69 | M104: 27.096201
A106: ARQ-002 | B106: PORTÃO PARA GRADIL, TIPO CORRER - FORNECIMENTO E INSTALAÇÃO | I106: CPU | J106: M2 | M106: =SUM(M107:XFD110) -> 310.025
B107: 88315 | C107: =IF(I107="SINAPI",VLOOKUP(B107,DADOS_SINAPI,2,0),IF(I107="SETOP",VLOOKUP(B107,DADOS_SETOP,2,0),IF(I107="SICRO",VLOOKUP(B107,DADOS_SICRO,2,0),IF(I107="SUDECAP",VLOOKUP(B107,DADOS_SUDECAP,2,0),IF(I107="COTAÇÃO",VLOOKUP(B107,DADOS_COTACAO,2,0),VLOOKUP(B107,DADOS_COMPOSICAO,2,0)))))) -> SERRALHEIRO COM ENCARGOS COMPLEMENTARES | I107: SINAPI | J107: =IF(I107="SINAPI",VLOOKUP(B107,DADOS_SINAPI,3,0),IF(I107="SETOP",VLOOKUP(B107,DADOS_SETOP,3,0),IF(I107="SICRO",VLOOKUP(B107,DADOS_SICRO,3,0),IF(I107="SUDECAP",VLOOKUP(B107,DADOS_SUDECAP,3,0),IF(I107="COTAÇÃO",VLOOKUP(B107,DADOS_COTACAO,9,0),VLOOKUP(B107,DADOS_COMPOSICAO,10,0)))))) -> H | K107: 1.5 | L107: =IF(I107="SINAPI",VLOOKUP(B107,DADOS_SINAPI,4,0),IF(I107="SETOP",VLOOKUP(B107,DADOS_SETOP,4,0),IF(I107="SICRO",VLOOKUP(B107,DADOS_SICRO,4,0),IF(I107="SUDECAP",VLOOKUP(B107,DADOS_SUDECAP,4,0),IF(I107="COTAÇÃO",VLOOKUP(B107,DADOS_COTACAO,12,0),VLOOKUP(B107,DADOS_COMPOSICAO,13,0)))))) -> 25.06 | M107: =K107*L107 -> 37.59
B108: 88251 | C108: AUXILIAR DE SERRALHEIRO COM ENCARGOS COMPLEMENTARES | I108: SINAPI | J108: H | K108: 1.5 | L108: 20.67 | M108: 31.005
B109: 78.13.01 | C109: GRADIL NYLOFOR 3D H= 2.03 M OU EQUIVALENTE | I109: SUDECAP | J109: UN | K109: 0.4 | L109: 464.9 | M109: 185.96
B110: 76.46.03 | C110: POSTE PARA GRADIL NYLOFOR 3D H= 2.60 M OU EQUIVALENTE | I110: SUDECAP | J110: UN | K110: 0.3 | L110: 184.9 | M110: 55.47
A112: ARQ-003 | B112: PORTA EM ALUMÍNIO COMPLETA, DIMENSÃO (2,20 X 2,10 M), COM DUAS FOLHAS MÓVEIS, LINHA 25/SUPREMA, ACABAMENTO ANODIZADO PRETO, INCLUSIVE PERFIS, VIDRO FUME LAMINADO 6MM, FERRAGENS E INSTALAÇÃO | I112: CPU | J112: UN | M112: =SUM(M113:XFD116) -> 4388.7854
B113: ED-29454 | C113: =IF(I113="SINAPI",VLOOKUP(B113,DADOS_SINAPI,2,0),IF(I113="SETOP",VLOOKUP(B113,DADOS_SETOP,2,0),IF(I113="SICRO",VLOOKUP(B113,DADOS_SICRO,2,0),IF(I113="SUDECAP",VLOOKUP(B113,DADOS_SUDECAP,2,0),IF(I113="COTAÇÃO",VLOOKUP(B113,DADOS_COTACAO,2,0),VLOOKUP(B113,DADOS_COMPOSICAO,2,0)))))) -> FERRAGENS PARA PORTA DE ALUMÍNIO PARA CONJUNTO DE DUAS (2) FOLHAS DE CORRER, INCLUSIVE ROLDANAS E ACESSÓRIOS, FORNECIMENTO E INSTALAÇÃO, EXCLUSIVE PORTA | I113: SETOP | J113: =IF(I113="SINAPI",VLOOKUP(B113,DADOS_SINAPI,3,0),IF(I113="SETOP",VLOOKUP(B113,DADOS_SETOP,3,0),IF(I113="SICRO",VLOOKUP(B113,DADOS_SICRO,3,0),IF(I113="SUDECAP",VLOOKUP(B113,DADOS_SUDECAP,3,0),IF(I113="COTAÇÃO",VLOOKUP(B113,DADOS_COTACAO,9,0),VLOOKUP(B113,DADOS_COMPOSICAO,10,0)))))) -> un | K113: 1 | L113: =IF(I113="SINAPI",VLOOKUP(B113,DADOS_SINAPI,4,0),IF(I113="SETOP",VLOOKUP(B113,DADOS_SETOP,4,0),IF(I113="SICRO",VLOOKUP(B113,DADOS_SICRO,4,0),IF(I113="SUDECAP",VLOOKUP(B113,DADOS_SUDECAP,4,0),IF(I113="COTAÇÃO",VLOOKUP(B113,DADOS_COTACAO,12,0),VLOOKUP(B113,DADOS_COMPOSICAO,13,0)))))) -> 175.42 | M113: =K113*L113 -> 175.42
B114: ED-29455 | C114: ASSENTAMENTO DE ESQUADRIA DE ALUMÍNIO, INCLUSIVE FIXAÇÃO DO CONTRAMARCO, EXCLUSIVE FORNECIMENTO DA ESQUADRIA | I114: SETOP | J114: m² | K114: =2.2*2.1 -> 4.62 | L114: 76.93 | M114: 355.4166
B115: ED-29521 | C115: PORTA EM ALUMÍNIO DE CORRER COM DUAS (2) FOLHAS (120X210)CM COMPLETA, LINHA 25/SUPREMA, ACABAMENTO ANODIZADO, INCLUSIVE PERFIS, EXCLUSIVE VIDRO E ACESSÓRIOS (FORNECIMENTO/FABRICAÇÃO) | I115: SETOP | J115: m2 | K115: 2 | L115: 1112.99 | M115: 2225.98
B116: 102167 | C116: INSTALAÇÃO DE VIDRO LISO FUME, E = 6 MM, EM ESQUADRIA DE ALUMÍNIO OU PVC, FIXADO COM BAGUETE. AF_01/2021_PS | I116: SINAPI | J116: M2 | K116: =K114 -> 4.62 | L116: 353.24 | M116: 1631.9688
A118: ARQ-004 | B118: PORTA PIVOTANTE DE VIDRO JATEADO, 2 FOLHAS DE 70X210 CM, ESPESSURA DE 6MM, INCLUSIVE ACESSÓRIOS. | I118: CPU | J118: UN | M118: =SUM(M119:XFD122) -> 1347.961919
B119: 88316 | C119: =IF(I119="SINAPI",VLOOKUP(B119,DADOS_SINAPI,2,0),IF(I119="SETOP",VLOOKUP(B119,DADOS_SETOP,2,0),IF(I119="SICRO",VLOOKUP(B119,DADOS_SICRO,2,0),IF(I119="SUDECAP",VLOOKUP(B119,DADOS_SUDECAP,2,0),IF(I119="COTAÇÃO",VLOOKUP(B119,DADOS_COTACAO,2,0),VLOOKUP(B119,DADOS_COMPOSICAO,2,0)))))) -> SERVENTE COM ENCARGOS COMPLEMENTARES | I119: SINAPI | J119: =IF(I119="SINAPI",VLOOKUP(B119,DADOS_SINAPI,3,0),IF(I119="SETOP",VLOOKUP(B119,DADOS_SETOP,3,0),IF(I119="SICRO",VLOOKUP(B119,DADOS_SICRO,3,0),IF(I119="SUDECAP",VLOOKUP(B119,DADOS_SUDECAP,3,0),IF(I119="COTAÇÃO",VLOOKUP(B119,DADOS_COTACAO,9,0),VLOOKUP(B119,DADOS_COMPOSICAO,10,0)))))) -> H | K119: =3.988 -> 3.988 | L119: =IF(I119="SINAPI",VLOOKUP(B119,DADOS_SINAPI,4,0),IF(I119="SETOP",VLOOKUP(B119,DADOS_SETOP,4,0),IF(I119="SICRO",VLOOKUP(B119,DADOS_SICRO,4,0),IF(I119="SUDECAP",VLOOKUP(B119,DADOS_SUDECAP,4,0),IF(I119="COTAÇÃO",VLOOKUP(B119,DADOS_COTACAO,12,0),VLOOKUP(B119,DADOS_COMPOSICAO,13,0)))))) -> 18.75 | M119: =K119*L119 -> 74.775
B120: 88325 | C120: VIDRACEIRO COM ENCARGOS COMPLEMENTARES | I120: SINAPI | J120: H | K120: 4.1 | L120: 20.44 | M120: 83.804
B121: 3104 | C121: CONJ. DE FERRAGENS PARA PORTA DE VIDRO TEMPERADO, EM ZAMAC CROMADO, CONTEMPLANDO DOBRADICA INF., DOBRADICA SUP., PIVO PARA DOBRADICA INF., PIVO PARA DOBRADICA SUP., FECHADURA CENTRAL EM ZAMC. CROMADO, CONTRA FECHADURA DE PRESSAO | I121: SINAPI | J121: CJ | K121: 2 | L121: 146.24 | M121: 292.48
B122: ARQ-005 | C122: INSTALAÇÃO DE VIDRO JATEADO BRANCO, E=6MM, ENCAIXADO EM PERFIL U. | I122: CPU | J122: UN | K122: =0.7*2.1*2 -> 2.94 | L122: 305.06902 | M122: 896.9029188
A124: ARQ-005 | B124: INSTALAÇÃO DE VIDRO JATEADO BRANCO, E=6MM, ENCAIXADO EM PERFIL U. | I124: CPU | J124: UN | M124: =SUM(M125:XFD131) -> 305.06902
B125: 88316 | C125: =IF(I125="SINAPI",VLOOKUP(B125,DADOS_SINAPI,2,0),IF(I125="SETOP",VLOOKUP(B125,DADOS_SETOP,2,0),IF(I125="SICRO",VLOOKUP(B125,DADOS_SICRO,2,0),IF(I125="SUDECAP",VLOOKUP(B125,DADOS_SUDECAP,2,0),IF(I125="COTAÇÃO",VLOOKUP(B125,DADOS_COTACAO,2,0),VLOOKUP(B125,DADOS_COMPOSICAO,2,0)))))) -> SERVENTE COM ENCARGOS COMPLEMENTARES | I125: SINAPI | J125: =IF(I125="SINAPI",VLOOKUP(B125,DADOS_SINAPI,3,0),IF(I125="SETOP",VLOOKUP(B125,DADOS_SETOP,3,0),IF(I125="SICRO",VLOOKUP(B125,DADOS_SICRO,3,0),IF(I125="SUDECAP",VLOOKUP(B125,DADOS_SUDECAP,3,0),IF(I125="COTAÇÃO",VLOOKUP(B125,DADOS_COTACAO,9,0),VLOOKUP(B125,DADOS_COMPOSICAO,10,0)))))) -> H | K125: 1.542 | L125: =IF(I125="SINAPI",VLOOKUP(B125,DADOS_SINAPI,4,0),IF(I125="SETOP",VLOOKUP(B125,DADOS_SETOP,4,0),IF(I125="SICRO",VLOOKUP(B125,DADOS_SICRO,4,0),IF(I125="SUDECAP",VLOOKUP(B125,DADOS_SUDECAP,4,0),IF(I125="COTAÇÃO",VLOOKUP(B125,DADOS_COTACAO,12,0),VLOOKUP(B125,DADOS_COMPOSICAO,13,0)))))) -> 18.75 | M125: =K125*L125 -> 28.9125
B126: 88325 | C126: VIDRACEIRO COM ENCARGOS COMPLEMENTARES | I126: SINAPI | J126: H | K126: 1.586 | L126: 20.44 | M126: 32.41784
B127: 11950 | C127: BUCHA DE NYLON SEM ABA S6, COM PARAFUSO DE 4,20 X 40 MM EM ACO ZINCADO COM ROSCA SOBERBA, CABECA CHATA E FENDA PHILLIPS | I127: SINAPI | J127: UN | K127: 2.196 | L127: 0.31 | M127: 0.68076
B128: 39432 | C128: =IF(I128="SINAPI",VLOOKUP(B128,DADOS_SINAPI,2,0),IF(I128="SETOP",VLOOKUP(B128,DADOS_SETOP,2,0),IF(I128="SICRO",VLOOKUP(B128,DADOS_SICRO,2,0),IF(I128="SUDECAP",VLOOKUP(B128,DADOS_SUDECAP,2,0),IF(I128="COTAÇÃO",VLOOKUP(B128,DADOS_COTACAO,2,0),VLOOKUP(B128,DADOS_COMPOSICAO,2,0)))))) -> FITA DE PAPEL REFORCADA COM LAMINA DE METAL PARA REFORCO DE CANTOS DE CHAPA DE GESSO PARA DRYWALL | I128: SINAPI | J128: =IF(I128="SINAPI",VLOOKUP(B128,DADOS_SINAPI,3,0),IF(I128="SETOP",VLOOKUP(B128,DADOS_SETOP,3,0),IF(I128="SICRO",VLOOKUP(B128,DADOS_SICRO,3,0),IF(I128="SUDECAP",VLOOKUP(B128,DADOS_SUDECAP,3,0),IF(I128="COTAÇÃO",VLOOKUP(B128,DADOS_COTACAO,9,0),VLOOKUP(B128,DADOS_COMPOSICAO,10,0)))))) -> M | K128: 2.992 | L128: =IF(I128="SINAPI",VLOOKUP(B128,DADOS_SINAPI,4,0),IF(I128="SETOP",VLOOKUP(B128,DADOS_SETOP,4,0),IF(I128="SICRO",VLOOKUP(B128,DADOS_SICRO,4,0),IF(I128="SUDECAP",VLOOKUP(B128,DADOS_SUDECAP,4,0),IF(I128="COTAÇÃO",VLOOKUP(B128,DADOS_COTACAO,12,0),VLOOKUP(B128,DADOS_COMPOSICAO,13,0)))))) -> 2.91 | M128: 8.70672
B129: 34360 | C129: PERFIL DE ALUMINIO ANODIZADO | I129: SINAPI | J129: KG | K129: 0.964 | L129: 63.61 | M129: 61.32004
B130: 39961 | C130: SILICONE ACETICO USO GERAL INCOLOR 280 G | I130: SINAPI | J130: UN | K130: 0.397 | L130: 20.28 | M130: 8.05116
B131: 34388 | C131: VIDRO CRISTAL COLORIDO, 6 MM, PINTADO NA COR BRANCA | I131: SINAPI | J131: M2 | K131: 1 | L131: 164.98 | M131: 164.98
A134: ARQ-006 | B134: JANELA TIPO MAXIM-AR AÇO GALVANIZADO COM PINTURA ANTICORROSIVA, VIDRO FUME 6MM, BATENTE E FERRAGENS. FORNECIMENTO E INSTALAÇÃO. | I134: CPU | J134: UN | M134: =SUM(M135:XFD140) -> 1236.799682
B135: 88309 | C135: =IF(I135="SINAPI",VLOOKUP(B135,DADOS_SINAPI,2,0),IF(I135="SETOP",VLOOKUP(B135,DADOS_SETOP,2,0),IF(I135="SICRO",VLOOKUP(B135,DADOS_SICRO,2,0),IF(I135="SUDECAP",VLOOKUP(B135,DADOS_SUDECAP,2,0),IF(I135="COTAÇÃO",VLOOKUP(B135,DADOS_COTACAO,2,0),VLOOKUP(B135,DADOS_COMPOSICAO,2,0)))))) -> PEDREIRO COM ENCARGOS COMPLEMENTARES | I135: SINAPI | J135: =IF(I135="SINAPI",VLOOKUP(B135,DADOS_SINAPI,3,0),IF(I135="SETOP",VLOOKUP(B135,DADOS_SETOP,3,0),IF(I135="SICRO",VLOOKUP(B135,DADOS_SICRO,3,0),IF(I135="SUDECAP",VLOOKUP(B135,DADOS_SUDECAP,3,0),IF(I135="COTAÇÃO",VLOOKUP(B135,DADOS_COTACAO,9,0),VLOOKUP(B135,DADOS_COMPOSICAO,10,0)))))) -> H | K135: 1.707 | L135: =IF(I135="SINAPI",VLOOKUP(B135,DADOS_SINAPI,4,0),IF(I135="SETOP",VLOOKUP(B135,DADOS_SETOP,4,0),IF(I135="SICRO",VLOOKUP(B135,DADOS_SICRO,4,0),IF(I135="SUDECAP",VLOOKUP(B135,DADOS_SUDECAP,4,0),IF(I135="COTAÇÃO",VLOOKUP(B135,DADOS_COTACAO,12,0),VLOOKUP(B135,DADOS_COMPOSICAO,13,0)))))) -> 25.27 | M135: =K135*L135 -> 43.13589
B136: 88316 | C136: SERVENTE COM ENCARGOS COMPLEMENTARES | I136: SINAPI | J136: H | K136: 0.853 | L136: 18.75 | M136: 15.99375
B137: 34797 | C137: JANELA MAXIM-AR, ACO GALVANIZADO PINT. ANTICORROSIVA, COM BATENTE/REQUADRO DE 6 A 14 CM, SEM VIDRO, COM GRADE, 1 FL, 60 X 80 CM (A X L) | I137: SINAPI | J137: UN | K137: 2.0833 | L137: 381.02 | M137: 793.778966
B138: 4377 | C138: PARAFUSO DE ACO ZINCADO COM ROSCA SOBERBA, CABECA CHATA E FENDA SIMPLES, DIAMETRO 4,2 MM, COMPRIMENTO * 32 * MM | I138: SINAPI | J138: UN | K138: 24.4 | L138: 0.22 | M138: 5.368
B139: 39961 | C139: SILICONE ACETICO USO GERAL INCOLOR 280 G | I139: SINAPI | J139: UN | K139: 1.2467 | L139: 20.28 | M139: 25.283076
B140: 102167 | C140: INSTALAÇÃO DE VIDRO LISO FUME, E = 6 MM, EM ESQUADRIA DE ALUMÍNIO OU PVC, FIXADO COM BAGUETE. AF_01/2021_PS | I140: SINAPI | J140: M2 | K140: 1 | L140: 353.24 | M140: 353.24
A143: 11 | B143: =VLOOKUP(A143,[1]ORC!$D$46:$N$2472,2,0) -> SISTEMA DE PISOS
A144: ARQ-007 | B144: RODAPÉ COM REVESTIMENTO EM PORCELANATO 60X60 COM BORDA RETIFICADA E ACABAMENTO POLIDO, ALTURA 10 CM. | I144: CPU | J144: M | M144: =SUM(M145:XFD149) -> 21.68808429
B145: 88256 | C145: =IF(I145="SINAPI",VLOOKUP(B145,DADOS_SINAPI,2,0),IF(I145="SETOP",VLOOKUP(B145,DADOS_SETOP,2,0),IF(I145="SICRO",VLOOKUP(B145,DADOS_SICRO,2,0),IF(I145="SUDECAP",VLOOKUP(B145,DADOS_SUDECAP,2,0),IF(I145="COTAÇÃO",VLOOKUP(B145,DADOS_COTACAO,2,0),VLOOKUP(B145,DADOS_COMPOSICAO,2,0)))))) -> AZULEJISTA OU LADRILHISTA COM ENCARGOS COMPLEMENTARES | I145: SINAPI | J145: =IF(I145="SINAPI",VLOOKUP(B145,DADOS_SINAPI,3,0),IF(I145="SETOP",VLOOKUP(B145,DADOS_SETOP,3,0),IF(I145="SICRO",VLOOKUP(B145,DADOS_SICRO,3,0),IF(I145="SUDECAP",VLOOKUP(B145,DADOS_SUDECAP,3,0),IF(I145="COTAÇÃO",VLOOKUP(B145,DADOS_COTACAO,9,0),VLOOKUP(B145,DADOS_COMPOSICAO,10,0)))))) -> H | K145: =0.0871*10/7 -> 0.1244285714 | L145: =IF(I145="SINAPI",VLOOKUP(B145,DADOS_SINAPI,4,0),IF(I145="SETOP",VLOOKUP(B145,DADOS_SETOP,4,0),IF(I145="SICRO",VLOOKUP(B145,DADOS_SICRO,4,0),IF(I145="SUDECAP",VLOOKUP(B145,DADOS_SUDECAP,4,0),IF(I145="COTAÇÃO",VLOOKUP(B145,DADOS_COTACAO,12,0),VLOOKUP(B145,DADOS_COMPOSICAO,13,0)))))) -> 26.74 | M145: =K145*L145 -> 3.32722
B146: 88316 | C146: SERVENTE COM ENCARGOS COMPLEMENTARES | I146: SINAPI | J146: H | K146: =0.0326*10/7 -> 0.04657142857 | L146: 18.75 | M146: 0.8732142857
B147: 1381 | C147: ARGAMASSA COLANTE AC I PARA CERAMICAS | I147: SINAPI | J147: KG | K147: =0.6392*10/7 -> 0.9131428571 | L147: 0.7 | M147: 0.6392
B148: 45190 | C148: PISO EM PORCELANATO, RETIFICADO, LISO, MONOCOLOR, ACETINADO OU POLIDO, FORMATO MAIOR QUE 2500 ATE 6400 CM2 | I148: SINAPI | J148: M2 | K148: =0.1875*10/7 -> 0.2678571429 | L148: 60.95 | M148: 16.32589286
B149: 34357 | C149: REJUNTE CIMENTICIO, QUALQUER COR | I149: SINAPI | J149: KG | K149: =0.089*10/7 -> 0.1271428571 | L149: 4.11 | M149: 0.5225571429
A151: ARQ-008 | B151: PISO EM CONCRETO, USINADO CONVENCIONAL, ACABAMENTO POLIDO EM NÍVEL ZERO, ESP. 5CM, INCLUSIVE FORNECIMENTO, LANÇAMENTO, ADENSAMENTO | I151: CPU | J151: M2 | M151: =SUM(M152:XFD156) -> 100.7877986
B152: 34492 | C152: =IF(I152="SINAPI",VLOOKUP(B152,DADOS_SINAPI,2,0),IF(I152="SETOP",VLOOKUP(B152,DADOS_SETOP,2,0),IF(I152="SICRO",VLOOKUP(B152,DADOS_SICRO,2,0),IF(I152="SUDECAP",VLOOKUP(B152,DADOS_SUDECAP,2,0),IF(I152="COTAÇÃO",VLOOKUP(B152,DADOS_COTACAO,2,0),VLOOKUP(B152,DADOS_COMPOSICAO,2,0)))))) -> CONCRETO USINADO BOMBEAVEL, CLASSE DE RESISTENCIA C20, COM BRITA 0 E 1, SLUMP = 100 +/- 20 MM, EXCLUI SERVICO DE BOMBEAMENTO (NBR 8953) | I152: SINAPI | J152: =IF(I152="SINAPI",VLOOKUP(B152,DADOS_SINAPI,3,0),IF(I152="SETOP",VLOOKUP(B152,DADOS_SETOP,3,0),IF(I152="SICRO",VLOOKUP(B152,DADOS_SICRO,3,0),IF(I152="SUDECAP",VLOOKUP(B152,DADOS_SUDECAP,3,0),IF(I152="COTAÇÃO",VLOOKUP(B152,DADOS_COTACAO,9,0),VLOOKUP(B152,DADOS_COMPOSICAO,10,0)))))) -> M3 | K152: =0.0871*10/7 -> 0.1244285714 | L152: =IF(I152="SINAPI",VLOOKUP(B152,DADOS_SINAPI,4,0),IF(I152="SETOP",VLOOKUP(B152,DADOS_SETOP,4,0),IF(I152="SICRO",VLOOKUP(B152,DADOS_SICRO,4,0),IF(I152="SUDECAP",VLOOKUP(B152,DADOS_SUDECAP,4,0),IF(I152="COTAÇÃO",VLOOKUP(B152,DADOS_COTACAO,12,0),VLOOKUP(B152,DADOS_COMPOSICAO,13,0)))))) -> 570 | M152: =K152*L152 -> 70.92428571
B153: ED-48324 | C153: TRANSPORTE, LANÇAMENTO E ADENSAMENTO DE CONCRETO EM RADIER, PISO OU ELEMENTO PRÉ-MOLDADO, INCLUSIVE ACABAMENTO | I153: SETOP | J153: m3 | K153: =0.0326*10/7 -> 0.04657142857 | L153: 98.28 | M153: 4.57704
B154: ED-50367 | C154: SERVENTE COM ENCARGOS COMPLEMENTARES | I154: SETOP | J154: hora | K154: =0.6392*10/7 -> 0.9131428571 | L154: 18.53 | M154: 16.92053714
B155: ED-50381 | C155: PEDREIRO COM ENCARGOS COMPLEMENTARES | I155: SETOP | J155: hora | K155: =0.1875*10/7 -> 0.2678571429 | L155: 25.29 | M155: 6.774107143
B156: ED-50619 | C156: POLIMENTO MECANIZADO DE SUPERFÍCIE EM CONCRETO, INCLUSIVE ACABAMENTO DE CONCRETAGEM EM NIVELAMENTO A LASER (NÍVEL ZERO) | I156: SETOP | J156: m2 | K156: =0.089*10/7 -> 0.1271428571 | L156: 12.52 | M156: 1.591828571
A159: 14 | B159: =VLOOKUP(A159,[1]ORC!$D$46:$N$2472,2,0) -> INSTALAÇÕES SANITÁRIAS
A160: SAN-001 | B160: JOELHO PVC, COM BOLSA E ANEL, 90 GRAUS, DN 40 X *38* MM, SERIE NORMAL, PARA ESGOTO PREDIAL - FORNECIMENTO E INSTALAÇÃO | I160: CPU | J160: UN | M160: =SUM(M161:XFD164) -> 17.179034
B161: 88248 | C161: =IF(I161="SINAPI",VLOOKUP(B161,DADOS_SINAPI,2,0),IF(I161="SETOP",VLOOKUP(B161,DADOS_SETOP,2,0),IF(I161="SICRO",VLOOKUP(B161,DADOS_SICRO,2,0),IF(I161="SUDECAP",VLOOKUP(B161,DADOS_SUDECAP,2,0),IF(I161="COTAÇÃO",VLOOKUP(B161,DADOS_COTACAO,2,0),VLOOKUP(B161,DADOS_COMPOSICAO,2,0)))))) -> AUXILIAR DE ENCANADOR OU BOMBEIRO HIDRÁULICO COM ENCARGOS COMPLEMENTARES | I161: SINAPI | J161: =IF(I161="SINAPI",VLOOKUP(B161,DADOS_SINAPI,3,0),IF(I161="SETOP",VLOOKUP(B161,DADOS_SETOP,3,0),IF(I161="SICRO",VLOOKUP(B161,DADOS_SICRO,3,0),IF(I161="SUDECAP",VLOOKUP(B161,DADOS_SUDECAP,3,0),IF(I161="COTAÇÃO",VLOOKUP(B161,DADOS_COTACAO,9,0),VLOOKUP(B161,DADOS_COMPOSICAO,10,0)))))) -> H | K161: 0.1926 | L161: =IF(I161="SINAPI",VLOOKUP(B161,DADOS_SINAPI,4,0),IF(I161="SETOP",VLOOKUP(B161,DADOS_SETOP,4,0),IF(I161="SICRO",VLOOKUP(B161,DADOS_SICRO,4,0),IF(I161="SUDECAP",VLOOKUP(B161,DADOS_SUDECAP,4,0),IF(I161="COTAÇÃO",VLOOKUP(B161,DADOS_COTACAO,12,0),VLOOKUP(B161,DADOS_COMPOSICAO,13,0)))))) -> 20.08 | M161: =K161*L161 -> 3.867408
B162: 88267 | C162: ENCANADOR OU BOMBEIRO HIDRÁULICO COM ENCARGOS COMPLEMENTARES | I162: SINAPI | J162: H | K162: 0.1926 | L162: 24.51 | M162: 4.720626
B163: 10835 | C163: JOELHO PVC, COM BOLSA E ANEL, 90 GRAUS, DN 40 X *38* MM, SERIE NORMAL, PARA ESGOTO PREDIAL | I163: SINAPI | J163: UN | K163: 1 | L163: 5.67 | M163: 5.67
B164: 20078 | C164: PASTA LUBRIFICANTE PARA TUBOS E CONEXOES COM JUNTA ELASTICA, EMBALAGEM DE *400* GR (USO EM PVC, ACO, POLIETILENO E OUTROS) | I164: SINAPI | J164: UN | K164: 0.115 | L164: 25.4 | M164: 2.921
A166: SAN-002 | B166: JUNÇÃO SIMPLES, PVC, SERIE NORMAL, ESGOTO PREDIAL, DN 100 X 50 MM, JUNTA ELÁSTICA, FORNECIDO E INSTALADO | I166: CPU | J166: UN | M166: =SUM(M167:M172) -> 43.504764
B167: 88248 | C167: =IF(I167="SINAPI",VLOOKUP(B167,DADOS_SINAPI,2,0),IF(I167="SETOP",VLOOKUP(B167,DADOS_SETOP,2,0),IF(I167="SICRO",VLOOKUP(B167,DADOS_SICRO,2,0),IF(I167="SUDECAP",VLOOKUP(B167,DADOS_SUDECAP,2,0),IF(I167="COTAÇÃO",VLOOKUP(B167,DADOS_COTACAO,2,0),VLOOKUP(B167,DADOS_COMPOSICAO,2,0)))))) -> AUXILIAR DE ENCANADOR OU BOMBEIRO HIDRÁULICO COM ENCARGOS COMPLEMENTARES | I167: SINAPI | J167: =IF(I167="SINAPI",VLOOKUP(B167,DADOS_SINAPI,3,0),IF(I167="SETOP",VLOOKUP(B167,DADOS_SETOP,3,0),IF(I167="SICRO",VLOOKUP(B167,DADOS_SICRO,3,0),IF(I167="SUDECAP",VLOOKUP(B167,DADOS_SUDECAP,3,0),IF(I167="COTAÇÃO",VLOOKUP(B167,DADOS_COTACAO,9,0),VLOOKUP(B167,DADOS_COMPOSICAO,10,0)))))) -> H | K167: 0.2896 | L167: =IF(I167="SINAPI",VLOOKUP(B167,DADOS_SINAPI,4,0),IF(I167="SETOP",VLOOKUP(B167,DADOS_SETOP,4,0),IF(I167="SICRO",VLOOKUP(B167,DADOS_SICRO,4,0),IF(I167="SUDECAP",VLOOKUP(B167,DADOS_SUDECAP,4,0),IF(I167="COTAÇÃO",VLOOKUP(B167,DADOS_COTACAO,12,0),VLOOKUP(B167,DADOS_COMPOSICAO,13,0)))))) -> 20.08 | M167: =K167*L167 -> 5.815168
B168: 88267 | C168: ENCANADOR OU BOMBEIRO HIDRÁULICO COM ENCARGOS COMPLEMENTARES | I168: SINAPI | J168: H | K168: 0.2896 | L168: 24.51 | M168: 7.098096
B169: 301 | C169: ANEL BORRACHA PARA TUBO ESGOTO PREDIAL, DN 100 MM (NBR 5688) | I169: SINAPI | J169: UN | K169: 2 | L169: 2.92 | M169: 5.84
B170: 296 | C170: ANEL BORRACHA PARA TUBO ESGOTO PREDIAL, DN 50 MM (NBR 5688) | I170: SINAPI | J170: UN | K170: 1 | L170: 1.65 | M170: 1.65
B171: 3659 | C171: JUNCAO SIMPLES DE REDUCAO, PVC, DN 100 X 50 MM, SERIE NORMAL PARA ESGOTO PREDIAL | I171: SINAPI | J171: UN | K171: 1 | L171: 18.72 | M171: 18.72
B172: 20078 | C172: PASTA LUBRIFICANTE PARA TUBOS E CONEXOES COM JUNTA ELASTICA, EMBALAGEM DE *400* GR (USO EM PVC, ACO, POLIETILENO E OUTROS) | I172: SINAPI | J172: UN | K172: 0.1725 | L172: 25.4 | M172: 4.3815
A174: SAN-003 | B174: REDUÇÃO EXCÊNTRICA, PVC, SERIE NORMAL, ESGOTO PREDIAL, DN 100 X 50 MM, JUNTA ELÁSTICA, FORNECIDO E INSTALADO | I174: CPU | J174: UN | M174: =SUM(M175:M180) -> 17.438344
B175: 88248 | C175: =IF(I175="SINAPI",VLOOKUP(B175,DADOS_SINAPI,2,0),IF(I175="SETOP",VLOOKUP(B175,DADOS_SETOP,2,0),IF(I175="SICRO",VLOOKUP(B175,DADOS_SICRO,2,0),IF(I175="SUDECAP",VLOOKUP(B175,DADOS_SUDECAP,2,0),IF(I175="COTAÇÃO",VLOOKUP(B175,DADOS_COTACAO,2,0),VLOOKUP(B175,DADOS_COMPOSICAO,2,0)))))) -> AUXILIAR DE ENCANADOR OU BOMBEIRO HIDRÁULICO COM ENCARGOS COMPLEMENTARES | I175: SINAPI | J175: =IF(I175="SINAPI",VLOOKUP(B175,DADOS_SINAPI,3,0),IF(I175="SETOP",VLOOKUP(B175,DADOS_SETOP,3,0),IF(I175="SICRO",VLOOKUP(B175,DADOS_SICRO,3,0),IF(I175="SUDECAP",VLOOKUP(B175,DADOS_SUDECAP,3,0),IF(I175="COTAÇÃO",VLOOKUP(B175,DADOS_COTACAO,9,0),VLOOKUP(B175,DADOS_COMPOSICAO,10,0)))))) -> H | K175: 0.0516 | L175: =IF(I175="SINAPI",VLOOKUP(B175,DADOS_SINAPI,4,0),IF(I175="SETOP",VLOOKUP(B175,DADOS_SETOP,4,0),IF(I175="SICRO",VLOOKUP(B175,DADOS_SICRO,4,0),IF(I175="SUDECAP",VLOOKUP(B175,DADOS_SUDECAP,4,0),IF(I175="COTAÇÃO",VLOOKUP(B175,DADOS_COTACAO,12,0),VLOOKUP(B175,DADOS_COMPOSICAO,13,0)))))) -> 20.08 | M175: =K175*L175 -> 1.036128
B176: 88267 | C176: ENCANADOR OU BOMBEIRO HIDRÁULICO COM ENCARGOS COMPLEMENTARES | I176: SINAPI | J176: H | K176: 0.0516 | L176: 24.51 | M176: 1.264716
B177: 301 | C177: ANEL BORRACHA PARA TUBO ESGOTO PREDIAL, DN 100 MM (NBR 5688) | I177: SINAPI | J177: UN | K177: 1 | L177: 2.92 | M177: 2.92
B178: 296 | C178: ANEL BORRACHA PARA TUBO ESGOTO PREDIAL, DN 50 MM (NBR 5688) | I178: SINAPI | J178: UN | K178: 1 | L178: 1.65 | M178: 1.65
B179: 20043 | C179: REDUCAO EXCENTRICA PVC, DN 100 X 50 MM, PARA ESGOTO PREDIAL | I179: SINAPI | J179: UN | K179: 1 | L179: 8.98 | M179: 8.98
B180: 20078 | C180: PASTA LUBRIFICANTE PARA TUBOS E CONEXOES COM JUNTA ELASTICA, EMBALAGEM DE *400* GR (USO EM PVC, ACO, POLIETILENO E OUTROS) | I180: SINAPI | J180: UN | K180: 0.0625 | L180: 25.4 | M180: 1.5875
A182: SAN-004 | B182: ABRAÇADEIRA PARA FIXAÇÃO DE TUBOS | I182: CPU | J182: UN | M182: =SUM(M183:M186) -> 19.0312
B183: 88248 | C183: =IF(I183="SINAPI",VLOOKUP(B183,DADOS_SINAPI,2,0),IF(I183="SETOP",VLOOKUP(B183,DADOS_SETOP,2,0),IF(I183="SICRO",VLOOKUP(B183,DADOS_SICRO,2,0),IF(I183="SUDECAP",VLOOKUP(B183,DADOS_SUDECAP,2,0),IF(I183="COTAÇÃO",VLOOKUP(B183,DADOS_COTACAO,2,0),VLOOKUP(B183,DADOS_COMPOSICAO,2,0)))))) -> AUXILIAR DE ENCANADOR OU BOMBEIRO HIDRÁULICO COM ENCARGOS COMPLEMENTARES | I183: SINAPI | J183: =IF(I183="SINAPI",VLOOKUP(B183,DADOS_SINAPI,3,0),IF(I183="SETOP",VLOOKUP(B183,DADOS_SETOP,3,0),IF(I183="SICRO",VLOOKUP(B183,DADOS_SICRO,3,0),IF(I183="SUDECAP",VLOOKUP(B183,DADOS_SUDECAP,3,0),IF(I183="COTAÇÃO",VLOOKUP(B183,DADOS_COTACAO,9,0),VLOOKUP(B183,DADOS_COMPOSICAO,10,0)))))) -> H | K183: 0.09 | L183: =IF(I183="SINAPI",VLOOKUP(B183,DADOS_SINAPI,4,0),IF(I183="SETOP",VLOOKUP(B183,DADOS_SETOP,4,0),IF(I183="SICRO",VLOOKUP(B183,DADOS_SICRO,4,0),IF(I183="SUDECAP",VLOOKUP(B183,DADOS_SUDECAP,4,0),IF(I183="COTAÇÃO",VLOOKUP(B183,DADOS_COTACAO,12,0),VLOOKUP(B183,DADOS_COMPOSICAO,13,0)))))) -> 20.08 | M183: =K183*L183 -> 1.8072
B184: 88267 | C184: ENCANADOR OU BOMBEIRO HIDRÁULICO COM ENCARGOS COMPLEMENTARES | I184: SINAPI | J184: H | K184: 0.4 | L184: 24.51 | M184: 9.804
B185: 399 | C185: ABRACADEIRA EM ACO PARA AMARRACAO DE ELETRODUTOS, TIPO D, COM 4" E PARAFUSO DE FIXACAO | I185: SINAPI | J185: UN | K185: 1 | L185: 6.66 | M185: 6.66
B186: 4350 | C186: BUCHA DE NYLON, DIAMETRO DO FURO 8 MM, COMPRIMENTO 40 MM, COM PARAFUSO DE ROSCA SOBERBA, CABECA CHATA, FENDA SIMPLES, 4,8 X 50 MM | I186: SINAPI | J186: UN | K186: 1 | L186: 0.76 | M186: 0.76
A188: 15 | B188: =VLOOKUP(A188,[1]ORC!$D$46:$N$2472,2,0) -> LOUÇAS E ACESSÓRIOS
A189: LOU-001 | B189: TORNEIRA ELÉTRICA 5550W, FORNECIMENTO E INSTALAÇÃO | I189: CPU | J189: UN | M189: =SUM(M190:M192) -> 232.26
B190: 11777 | C190: =IF(I190="SINAPI",VLOOKUP(B190,DADOS_SINAPI,2,0),IF(I190="SETOP",VLOOKUP(B190,DADOS_SETOP,2,0),IF(I190="SICRO",VLOOKUP(B190,DADOS_SICRO,2,0),IF(I190="SUDECAP",VLOOKUP(B190,DADOS_SUDECAP,2,0),IF(I190="COTAÇÃO",VLOOKUP(B190,DADOS_COTACAO,2,0),VLOOKUP(B190,DADOS_COMPOSICAO,2,0)))))) -> TORNEIRA ELETRICA DE PAREDE, PLASTICA, BICA ALTA, PARA COZINHA, 5500 W (110/220 V) | I190: SINAPI | J190: =IF(I190="SINAPI",VLOOKUP(B190,DADOS_SINAPI,3,0),IF(I190="SETOP",VLOOKUP(B190,DADOS_SETOP,3,0),IF(I190="SICRO",VLOOKUP(B190,DADOS_SICRO,3,0),IF(I190="SUDECAP",VLOOKUP(B190,DADOS_SUDECAP,3,0),IF(I190="COTAÇÃO",VLOOKUP(B190,DADOS_COTACAO,9,0),VLOOKUP(B190,DADOS_COMPOSICAO,10,0)))))) -> UN | K190: 1 | L190: =IF(I190="SINAPI",VLOOKUP(B190,DADOS_SINAPI,4,0),IF(I190="SETOP",VLOOKUP(B190,DADOS_SETOP,4,0),IF(I190="SICRO",VLOOKUP(B190,DADOS_SICRO,4,0),IF(I190="SUDECAP",VLOOKUP(B190,DADOS_SUDECAP,4,0),IF(I190="COTAÇÃO",VLOOKUP(B190,DADOS_COTACAO,12,0),VLOOKUP(B190,DADOS_COMPOSICAO,13,0)))))) -> 182.14 | M190: =K190*L190 -> 182.14
B191: 88267 | C191: ENCANADOR OU BOMBEIRO HIDRÁULICO COM ENCARGOS COMPLEMENTARES | I191: SINAPI | J191: H | K191: 1 | L191: 24.51 | M191: 24.51
B192: 88264 | C192: ELETRICISTA COM ENCARGOS COMPLEMENTARES | I192: SINAPI | J192: H | K192: 1 | L192: 25.61 | M192: 25.61
A194: LOU-002 | B194: BANCADA EM AÇO INOX COM RODABANCA | I194: CPU | J194: M2 | M194: =SUM(M195:M197) -> 1944.2755
B195: 88309 | C195: =IF(I195="SINAPI",VLOOKUP(B195,DADOS_SINAPI,2,0),IF(I195="SETOP",VLOOKUP(B195,DADOS_SETOP,2,0),IF(I195="SICRO",VLOOKUP(B195,DADOS_SICRO,2,0),IF(I195="SUDECAP",VLOOKUP(B195,DADOS_SUDECAP,2,0),IF(I195="COTAÇÃO",VLOOKUP(B195,DADOS_COTACAO,2,0),VLOOKUP(B195,DADOS_COMPOSICAO,2,0)))))) -> PEDREIRO COM ENCARGOS COMPLEMENTARES | I195: SINAPI | J195: =IF(I195="SINAPI",VLOOKUP(B195,DADOS_SINAPI,3,0),IF(I195="SETOP",VLOOKUP(B195,DADOS_SETOP,3,0),IF(I195="SICRO",VLOOKUP(B195,DADOS_SICRO,3,0),IF(I195="SUDECAP",VLOOKUP(B195,DADOS_SUDECAP,3,0),IF(I195="COTAÇÃO",VLOOKUP(B195,DADOS_COTACAO,9,0),VLOOKUP(B195,DADOS_COMPOSICAO,10,0)))))) -> H | K195: 6 | L195: =IF(I195="SINAPI",VLOOKUP(B195,DADOS_SINAPI,4,0),IF(I195="SETOP",VLOOKUP(B195,DADOS_SETOP,4,0),IF(I195="SICRO",VLOOKUP(B195,DADOS_SICRO,4,0),IF(I195="SUDECAP",VLOOKUP(B195,DADOS_SUDECAP,4,0),IF(I195="COTAÇÃO",VLOOKUP(B195,DADOS_COTACAO,12,0),VLOOKUP(B195,DADOS_COMPOSICAO,13,0)))))) -> 25.27 | M195: =K195*L195 -> 151.62
B196: 88316 | C196: =IF(I196="SINAPI",VLOOKUP(B196,DADOS_SINAPI,2,0),IF(I196="SETOP",VLOOKUP(B196,DADOS_SETOP,2,0),IF(I196="SICRO",VLOOKUP(B196,DADOS_SICRO,2,0),IF(I196="SUDECAP",VLOOKUP(B196,DADOS_SUDECAP,2,0),IF(I196="COTAÇÃO",VLOOKUP(B196,DADOS_COTACAO,2,0),VLOOKUP(B196,DADOS_COMPOSICAO,2,0)))))) -> SERVENTE COM ENCARGOS COMPLEMENTARES | I196: SINAPI | J196: =IF(I196="SINAPI",VLOOKUP(B196,DADOS_SINAPI,3,0),IF(I196="SETOP",VLOOKUP(B196,DADOS_SETOP,3,0),IF(I196="SICRO",VLOOKUP(B196,DADOS_SICRO,3,0),IF(I196="SUDECAP",VLOOKUP(B196,DADOS_SUDECAP,3,0),IF(I196="COTAÇÃO",VLOOKUP(B196,DADOS_COTACAO,9,0),VLOOKUP(B196,DADOS_COMPOSICAO,10,0)))))) -> H | K196: 3.5 | L196: =IF(I196="SINAPI",VLOOKUP(B196,DADOS_SINAPI,4,0),IF(I196="SETOP",VLOOKUP(B196,DADOS_SETOP,4,0),IF(I196="SICRO",VLOOKUP(B196,DADOS_SICRO,4,0),IF(I196="SUDECAP",VLOOKUP(B196,DADOS_SUDECAP,4,0),IF(I196="COTAÇÃO",VLOOKUP(B196,DADOS_COTACAO,12,0),VLOOKUP(B196,DADOS_COMPOSICAO,13,0)))))) -> 18.75 | M196: 65.625
B197: 11687 | C197: =IF(I197="SINAPI",VLOOKUP(B197,DADOS_SINAPI,2,0),IF(I197="SETOP",VLOOKUP(B197,DADOS_SETOP,2,0),IF(I197="SICRO",VLOOKUP(B197,DADOS_SICRO,2,0),IF(I197="SUDECAP",VLOOKUP(B197,DADOS_SUDECAP,2,0),IF(I197="COTAÇÃO",VLOOKUP(B197,DADOS_COTACAO,2,0),VLOOKUP(B197,DADOS_COMPOSICAO,2,0)))))) -> BANCADA/TAMPO ACO INOX (AISI 304), LARGURA 60 CM, COM RODABANCA (NAO INCLUI PES DE APOIO) | I197: SINAPI | J197: =IF(I197="SINAPI",VLOOKUP(B197,DADOS_SINAPI,3,0),IF(I197="SETOP",VLOOKUP(B197,DADOS_SETOP,3,0),IF(I197="SICRO",VLOOKUP(B197,DADOS_SICRO,3,0),IF(I197="SUDECAP",VLOOKUP(B197,DADOS_SUDECAP,3,0),IF(I197="COTAÇÃO",VLOOKUP(B197,DADOS_COTACAO,9,0),VLOOKUP(B197,DADOS_COMPOSICAO,10,0)))))) -> M | K197: 1.67 | L197: =IF(I197="SINAPI",VLOOKUP(B197,DADOS_SINAPI,4,0),IF(I197="SETOP",VLOOKUP(B197,DADOS_SETOP,4,0),IF(I197="SICRO",VLOOKUP(B197,DADOS_SICRO,4,0),IF(I197="SUDECAP",VLOOKUP(B197,DADOS_SUDECAP,4,0),IF(I197="COTAÇÃO",VLOOKUP(B197,DADOS_COTACAO,12,0),VLOOKUP(B197,DADOS_COMPOSICAO,13,0)))))) -> 1034.15 | M197: 1727.0305
A199: LOU-003 | B199: EXPURGO HOSPITALAR COM SIFÃO, TRITURADOR - FORNECIMENTO E INSTALAÇÃO | I199: CPU | J199: UN | M199: =SUM(M200:M202) -> 9014.025
B200: 88248 | C200: =IF(I200="SINAPI",VLOOKUP(B200,DADOS_SINAPI,2,0),IF(I200="SETOP",VLOOKUP(B200,DADOS_SETOP,2,0),IF(I200="SICRO",VLOOKUP(B200,DADOS_SICRO,2,0),IF(I200="SUDECAP",VLOOKUP(B200,DADOS_SUDECAP,2,0),IF(I200="COTAÇÃO",VLOOKUP(B200,DADOS_COTACAO,2,0),VLOOKUP(B200,DADOS_COMPOSICAO,2,0)))))) -> AUXILIAR DE ENCANADOR OU BOMBEIRO HIDRÁULICO COM ENCARGOS COMPLEMENTARES | I200: SINAPI | J200: =IF(I200="SINAPI",VLOOKUP(B200,DADOS_SINAPI,3,0),IF(I200="SETOP",VLOOKUP(B200,DADOS_SETOP,3,0),IF(I200="SICRO",VLOOKUP(B200,DADOS_SICRO,3,0),IF(I200="SUDECAP",VLOOKUP(B200,DADOS_SUDECAP,3,0),IF(I200="COTAÇÃO",VLOOKUP(B200,DADOS_COTACAO,9,0),VLOOKUP(B200,DADOS_COMPOSICAO,10,0)))))) -> H | K200: 2.5 | L200: =IF(I200="SINAPI",VLOOKUP(B200,DADOS_SINAPI,4,0),IF(I200="SETOP",VLOOKUP(B200,DADOS_SETOP,4,0),IF(I200="SICRO",VLOOKUP(B200,DADOS_SICRO,4,0),IF(I200="SUDECAP",VLOOKUP(B200,DADOS_SUDECAP,4,0),IF(I200="COTAÇÃO",VLOOKUP(B200,DADOS_COTACAO,12,0),VLOOKUP(B200,DADOS_COMPOSICAO,13,0)))))) -> 20.08 | M200: =K200*L200 -> 50.2
B201: 88267 | C201: =IF(I201="SINAPI",VLOOKUP(B201,DADOS_SINAPI,2,0),IF(I201="SETOP",VLOOKUP(B201,DADOS_SETOP,2,0),IF(I201="SICRO",VLOOKUP(B201,DADOS_SICRO,2,0),IF(I201="SUDECAP",VLOOKUP(B201,DADOS_SUDECAP,2,0),IF(I201="COTAÇÃO",VLOOKUP(B201,DADOS_COTACAO,2,0),VLOOKUP(B201,DADOS_COMPOSICAO,2,0)))))) -> ENCANADOR OU BOMBEIRO HIDRÁULICO COM ENCARGOS COMPLEMENTARES | I201: SINAPI | J201: =IF(I201="SINAPI",VLOOKUP(B201,DADOS_SINAPI,3,0),IF(I201="SETOP",VLOOKUP(B201,DADOS_SETOP,3,0),IF(I201="SICRO",VLOOKUP(B201,DADOS_SICRO,3,0),IF(I201="SUDECAP",VLOOKUP(B201,DADOS_SUDECAP,3,0),IF(I201="COTAÇÃO",VLOOKUP(B201,DADOS_COTACAO,9,0),VLOOKUP(B201,DADOS_COMPOSICAO,10,0)))))) -> H | K201: 2.5 | L201: =IF(I201="SINAPI",VLOOKUP(B201,DADOS_SINAPI,4,0),IF(I201="SETOP",VLOOKUP(B201,DADOS_SETOP,4,0),IF(I201="SICRO",VLOOKUP(B201,DADOS_SICRO,4,0),IF(I201="SUDECAP",VLOOKUP(B201,DADOS_SUDECAP,4,0),IF(I201="COTAÇÃO",VLOOKUP(B201,DADOS_COTACAO,12,0),VLOOKUP(B201,DADOS_COMPOSICAO,13,0)))))) -> 24.51 | M201: 61.275
B202: COT-LOU-001 | C202: =IF(I202="SINAPI",VLOOKUP(B202,DADOS_SINAPI,2,0),IF(I202="SETOP",VLOOKUP(B202,DADOS_SETOP,2,0),IF(I202="SICRO",VLOOKUP(B202,DADOS_SICRO,2,0),IF(I202="SUDECAP",VLOOKUP(B202,DADOS_SUDECAP,2,0),IF(I202="COTAÇÃO",VLOOKUP(B202,DADOS_COTACAO,2,0),VLOOKUP(B202,DADOS_COMPOSICAO,2,0)))))) -> EXPURGO HOSPITALAR COM SIFÃO, TRITURADOR E CONJUNTO DE INTALAÇÃO | I202: COTAÇÃO | J202: =IF(I202="SINAPI",VLOOKUP(B202,DADOS_SINAPI,3,0),IF(I202="SETOP",VLOOKUP(B202,DADOS_SETOP,3,0),IF(I202="SICRO",VLOOKUP(B202,DADOS_SICRO,3,0),IF(I202="SUDECAP",VLOOKUP(B202,DADOS_SUDECAP,3,0),IF(I202="COTAÇÃO",VLOOKUP(B202,DADOS_COTACAO,9,0),VLOOKUP(B202,DADOS_COMPOSICAO,10,0)))))) -> UN | K202: 1 | L202: =IF(I202="SINAPI",VLOOKUP(B202,DADOS_SINAPI,4,0),IF(I202="SETOP",VLOOKUP(B202,DADOS_SETOP,4,0),IF(I202="SICRO",VLOOKUP(B202,DADOS_SICRO,4,0),IF(I202="SUDECAP",VLOOKUP(B202,DADOS_SUDECAP,4,0),IF(I202="COTAÇÃO",VLOOKUP(B202,DADOS_COTACAO,12,0),VLOOKUP(B202,DADOS_COMPOSICAO,13,0)))))) -> 8902.55 | M202: 8902.55
A204: 16 | B204: =VLOOKUP(A204,[1]ORC!$D$46:$N$2472,2,0) -> ACESSIBILIDADE
A205: ACE-001 | B205: PLACA DE SINALIZACAO EM CHAPA DE ALUMINIO COM PINTURA REFLETIVA, E = 2 MM - FORNECIMENTO E INSTALAÇÃO | I205: CPU | J205: M2 | M205: =SUM(M206:M207) -> 1281.91
B206: 34721 | C206: =IF(I206="SINAPI",VLOOKUP(B206,DADOS_SINAPI,2,0),IF(I206="SETOP",VLOOKUP(B206,DADOS_SETOP,2,0),IF(I206="SICRO",VLOOKUP(B206,DADOS_SICRO,2,0),IF(I206="SUDECAP",VLOOKUP(B206,DADOS_SUDECAP,2,0),IF(I206="COTAÇÃO",VLOOKUP(B206,DADOS_COTACAO,2,0),VLOOKUP(B206,DADOS_COMPOSICAO,2,0)))))) -> PLACA DE SINALIZACAO EM CHAPA DE ALUMINIO COM PINTURA REFLETIVA, E = 2 MM | I206: SINAPI | J206: =IF(I206="SINAPI",VLOOKUP(B206,DADOS_SINAPI,3,0),IF(I206="SETOP",VLOOKUP(B206,DADOS_SETOP,3,0),IF(I206="SICRO",VLOOKUP(B206,DADOS_SICRO,3,0),IF(I206="SUDECAP",VLOOKUP(B206,DADOS_SUDECAP,3,0),IF(I206="COTAÇÃO",VLOOKUP(B206,DADOS_COTACAO,9,0),VLOOKUP(B206,DADOS_COMPOSICAO,10,0)))))) -> M2 | K206: 1 | L206: =IF(I206="SINAPI",VLOOKUP(B206,DADOS_SINAPI,4,0),IF(I206="SETOP",VLOOKUP(B206,DADOS_SETOP,4,0),IF(I206="SICRO",VLOOKUP(B206,DADOS_SICRO,4,0),IF(I206="SUDECAP",VLOOKUP(B206,DADOS_SUDECAP,4,0),IF(I206="COTAÇÃO",VLOOKUP(B206,DADOS_COTACAO,12,0),VLOOKUP(B206,DADOS_COMPOSICAO,13,0)))))) -> 1274.41 | M206: =K206*L206 -> 1274.41
B207: 88316 | C207: =IF(I207="SINAPI",VLOOKUP(B207,DADOS_SINAPI,2,0),IF(I207="SETOP",VLOOKUP(B207,DADOS_SETOP,2,0),IF(I207="SICRO",VLOOKUP(B207,DADOS_SICRO,2,0),IF(I207="SUDECAP",VLOOKUP(B207,DADOS_SUDECAP,2,0),IF(I207="COTAÇÃO",VLOOKUP(B207,DADOS_COTACAO,2,0),VLOOKUP(B207,DADOS_COMPOSICAO,2,0)))))) -> SERVENTE COM ENCARGOS COMPLEMENTARES | I207: SINAPI | J207: =IF(I207="SINAPI",VLOOKUP(B207,DADOS_SINAPI,3,0),IF(I207="SETOP",VLOOKUP(B207,DADOS_SETOP,3,0),IF(I207="SICRO",VLOOKUP(B207,DADOS_SICRO,3,0),IF(I207="SUDECAP",VLOOKUP(B207,DADOS_SUDECAP,3,0),IF(I207="COTAÇÃO",VLOOKUP(B207,DADOS_COTACAO,9,0),VLOOKUP(B207,DADOS_COMPOSICAO,10,0)))))) -> H | K207: 0.4 | L207: =IF(I207="SINAPI",VLOOKUP(B207,DADOS_SINAPI,4,0),IF(I207="SETOP",VLOOKUP(B207,DADOS_SETOP,4,0),IF(I207="SICRO",VLOOKUP(B207,DADOS_SICRO,4,0),IF(I207="SUDECAP",VLOOKUP(B207,DADOS_SUDECAP,4,0),IF(I207="COTAÇÃO",VLOOKUP(B207,DADOS_COTACAO,12,0),VLOOKUP(B207,DADOS_COMPOSICAO,13,0)))))) -> 18.75 | M207: 7.5
A209: ACE-002 | B209: INSTALAÇÃO CHAPA DE PROTEÇÃO IMPACTO PARA PORTA 40X80 | I209: CPU | J209: UN | M209: =SUM(M210:M210) -> 3.75
B210: 88316 | C210: =IF(I210="SINAPI",VLOOKUP(B210,DADOS_SINAPI,2,0),IF(I210="SETOP",VLOOKUP(B210,DADOS_SETOP,2,0),IF(I210="SICRO",VLOOKUP(B210,DADOS_SICRO,2,0),IF(I210="SUDECAP",VLOOKUP(B210,DADOS_SUDECAP,2,0),IF(I210="COTAÇÃO",VLOOKUP(B210,DADOS_COTACAO,2,0),VLOOKUP(B210,DADOS_COMPOSICAO,2,0)))))) -> SERVENTE COM ENCARGOS COMPLEMENTARES | I210: SINAPI | J210: =IF(I210="SINAPI",VLOOKUP(B210,DADOS_SINAPI,3,0),IF(I210="SETOP",VLOOKUP(B210,DADOS_SETOP,3,0),IF(I210="SICRO",VLOOKUP(B210,DADOS_SICRO,3,0),IF(I210="SUDECAP",VLOOKUP(B210,DADOS_SUDECAP,3,0),IF(I210="COTAÇÃO",VLOOKUP(B210,DADOS_COTACAO,9,0),VLOOKUP(B210,DADOS_COMPOSICAO,10,0)))))) -> H | K210: 0.2 | L210: =IF(I210="SINAPI",VLOOKUP(B210,DADOS_SINAPI,4,0),IF(I210="SETOP",VLOOKUP(B210,DADOS_SETOP,4,0),IF(I210="SICRO",VLOOKUP(B210,DADOS_SICRO,4,0),IF(I210="SUDECAP",VLOOKUP(B210,DADOS_SUDECAP,4,0),IF(I210="COTAÇÃO",VLOOKUP(B210,DADOS_COTACAO,12,0),VLOOKUP(B210,DADOS_COMPOSICAO,13,0)))))) -> 18.75 | M210: 3.75
A212: ACE-003 | B212: PISO TATIL ALERTA OU DIRECIONAL, DE BORRACHA, COLORIDO, 25 X 25 CM, E = 5 MM, PARA COLA - FORNECIMENTO E INSTALAÇÃO | I212: CPU | J212: M2 | M212: =SUM(M213:M216) -> 256.367
B213: 88316 | C213: =IF(I213="SINAPI",VLOOKUP(B213,DADOS_SINAPI,2,0),IF(I213="SETOP",VLOOKUP(B213,DADOS_SETOP,2,0),IF(I213="SICRO",VLOOKUP(B213,DADOS_SICRO,2,0),IF(I213="SUDECAP",VLOOKUP(B213,DADOS_SUDECAP,2,0),IF(I213="COTAÇÃO",VLOOKUP(B213,DADOS_COTACAO,2,0),VLOOKUP(B213,DADOS_COMPOSICAO,2,0)))))) -> SERVENTE COM ENCARGOS COMPLEMENTARES | I213: SINAPI | J213: =IF(I213="SINAPI",VLOOKUP(B213,DADOS_SINAPI,3,0),IF(I213="SETOP",VLOOKUP(B213,DADOS_SETOP,3,0),IF(I213="SICRO",VLOOKUP(B213,DADOS_SICRO,3,0),IF(I213="SUDECAP",VLOOKUP(B213,DADOS_SUDECAP,3,0),IF(I213="COTAÇÃO",VLOOKUP(B213,DADOS_COTACAO,9,0),VLOOKUP(B213,DADOS_COMPOSICAO,10,0)))))) -> H | K213: 0.4 | L213: =IF(I213="SINAPI",VLOOKUP(B213,DADOS_SINAPI,4,0),IF(I213="SETOP",VLOOKUP(B213,DADOS_SETOP,4,0),IF(I213="SICRO",VLOOKUP(B213,DADOS_SICRO,4,0),IF(I213="SUDECAP",VLOOKUP(B213,DADOS_SUDECAP,4,0),IF(I213="COTAÇÃO",VLOOKUP(B213,DADOS_COTACAO,12,0),VLOOKUP(B213,DADOS_COMPOSICAO,13,0)))))) -> 18.75 | M213: =K213*L213 -> 7.5
B214: 38181 | C214: =IF(I214="SINAPI",VLOOKUP(B214,DADOS_SINAPI,2,0),IF(I214="SETOP",VLOOKUP(B214,DADOS_SETOP,2,0),IF(I214="SICRO",VLOOKUP(B214,DADOS_SICRO,2,0),IF(I214="SUDECAP",VLOOKUP(B214,DADOS_SUDECAP,2,0),IF(I214="COTAÇÃO",VLOOKUP(B214,DADOS_COTACAO,2,0),VLOOKUP(B214,DADOS_COMPOSICAO,2,0)))))) -> PISO TATIL ALERTA OU DIRECIONAL, DE BORRACHA, COLORIDO, 25 X 25 CM, E = 5 MM, PARA COLA | I214: SINAPI | J214: =IF(I214="SINAPI",VLOOKUP(B214,DADOS_SINAPI,3,0),IF(I214="SETOP",VLOOKUP(B214,DADOS_SETOP,3,0),IF(I214="SICRO",VLOOKUP(B214,DADOS_SICRO,3,0),IF(I214="SUDECAP",VLOOKUP(B214,DADOS_SUDECAP,3,0),IF(I214="COTAÇÃO",VLOOKUP(B214,DADOS_COTACAO,9,0),VLOOKUP(B214,DADOS_COMPOSICAO,10,0)))))) -> M2 | K214: 1 | L214: =IF(I214="SINAPI",VLOOKUP(B214,DADOS_SINAPI,4,0),IF(I214="SETOP",VLOOKUP(B214,DADOS_SETOP,4,0),IF(I214="SICRO",VLOOKUP(B214,DADOS_SICRO,4,0),IF(I214="SUDECAP",VLOOKUP(B214,DADOS_SUDECAP,4,0),IF(I214="COTAÇÃO",VLOOKUP(B214,DADOS_COTACAO,12,0),VLOOKUP(B214,DADOS_COMPOSICAO,13,0)))))) -> 223.28 | M214: 223.28
B215: 3767 | C215: =IF(I215="SINAPI",VLOOKUP(B215,DADOS_SINAPI,2,0),IF(I215="SETOP",VLOOKUP(B215,DADOS_SETOP,2,0),IF(I215="SICRO",VLOOKUP(B215,DADOS_SICRO,2,0),IF(I215="SUDECAP",VLOOKUP(B215,DADOS_SUDECAP,2,0),IF(I215="COTAÇÃO",VLOOKUP(B215,DADOS_COTACAO,2,0),VLOOKUP(B215,DADOS_COMPOSICAO,2,0)))))) -> LIXA EM FOLHA PARA PAREDE OU MADEIRA, NUMERO 120, COR VERMELHA | I215: SINAPI | J215: =IF(I215="SINAPI",VLOOKUP(B215,DADOS_SINAPI,3,0),IF(I215="SETOP",VLOOKUP(B215,DADOS_SETOP,3,0),IF(I215="SICRO",VLOOKUP(B215,DADOS_SICRO,3,0),IF(I215="SUDECAP",VLOOKUP(B215,DADOS_SUDECAP,3,0),IF(I215="COTAÇÃO",VLOOKUP(B215,DADOS_COTACAO,9,0),VLOOKUP(B215,DADOS_COMPOSICAO,10,0)))))) -> UN | K215: 0.4 | L215: =IF(I215="SINAPI",VLOOKUP(B215,DADOS_SINAPI,4,0),IF(I215="SETOP",VLOOKUP(B215,DADOS_SETOP,4,0),IF(I215="SICRO",VLOOKUP(B215,DADOS_SICRO,4,0),IF(I215="SUDECAP",VLOOKUP(B215,DADOS_SUDECAP,4,0),IF(I215="COTAÇÃO",VLOOKUP(B215,DADOS_COTACAO,12,0),VLOOKUP(B215,DADOS_COMPOSICAO,13,0)))))) -> 1.23 | M215: 0.492
B216: 4791 | C216: =IF(I216="SINAPI",VLOOKUP(B216,DADOS_SINAPI,2,0),IF(I216="SETOP",VLOOKUP(B216,DADOS_SETOP,2,0),IF(I216="SICRO",VLOOKUP(B216,DADOS_SICRO,2,0),IF(I216="SUDECAP",VLOOKUP(B216,DADOS_SUDECAP,2,0),IF(I216="COTAÇÃO",VLOOKUP(B216,DADOS_COTACAO,2,0),VLOOKUP(B216,DADOS_COMPOSICAO,2,0)))))) -> ADESIVO ACRILICO DE BASE AQUOSA / COLA DE CONTATO | I216: SINAPI | J216: =IF(I216="SINAPI",VLOOKUP(B216,DADOS_SINAPI,3,0),IF(I216="SETOP",VLOOKUP(B216,DADOS_SETOP,3,0),IF(I216="SICRO",VLOOKUP(B216,DADOS_SICRO,3,0),IF(I216="SUDECAP",VLOOKUP(B216,DADOS_SUDECAP,3,0),IF(I216="COTAÇÃO",VLOOKUP(B216,DADOS_COTACAO,9,0),VLOOKUP(B216,DADOS_COMPOSICAO,10,0)))))) -> KG | K216: 0.5 | L216: =IF(I216="SINAPI",VLOOKUP(B216,DADOS_SINAPI,4,0),IF(I216="SETOP",VLOOKUP(B216,DADOS_SETOP,4,0),IF(I216="SICRO",VLOOKUP(B216,DADOS_SICRO,4,0),IF(I216="SUDECAP",VLOOKUP(B216,DADOS_SUDECAP,4,0),IF(I216="COTAÇÃO",VLOOKUP(B216,DADOS_COTACAO,12,0),VLOOKUP(B216,DADOS_COMPOSICAO,13,0)))))) -> 50.19 | M216: 25.095
A218: ACE-004 | B218: PISO TATIL DE ALERTA OU DIRECIONAL, DE BORRACHA, PRETO, 25 X 25 CM, E = 12 MM, PARA ARGAMASSA - FORNECIMENTO E INSTALAÇÃO | I218: CPU | J218: M2 | M218: =SUM(M219:M222) -> 518.2175
B219: 88316 | C219: =IF(I219="SINAPI",VLOOKUP(B219,DADOS_SINAPI,2,0),IF(I219="SETOP",VLOOKUP(B219,DADOS_SETOP,2,0),IF(I219="SICRO",VLOOKUP(B219,DADOS_SICRO,2,0),IF(I219="SUDECAP",VLOOKUP(B219,DADOS_SUDECAP,2,0),IF(I219="COTAÇÃO",VLOOKUP(B219,DADOS_COTACAO,2,0),VLOOKUP(B219,DADOS_COMPOSICAO,2,0)))))) -> SERVENTE COM ENCARGOS COMPLEMENTARES | I219: SINAPI | J219: =IF(I219="SINAPI",VLOOKUP(B219,DADOS_SINAPI,3,0),IF(I219="SETOP",VLOOKUP(B219,DADOS_SETOP,3,0),IF(I219="SICRO",VLOOKUP(B219,DADOS_SICRO,3,0),IF(I219="SUDECAP",VLOOKUP(B219,DADOS_SUDECAP,3,0),IF(I219="COTAÇÃO",VLOOKUP(B219,DADOS_COTACAO,9,0),VLOOKUP(B219,DADOS_COMPOSICAO,10,0)))))) -> H | K219: 0.4 | L219: =IF(I219="SINAPI",VLOOKUP(B219,DADOS_SINAPI,4,0),IF(I219="SETOP",VLOOKUP(B219,DADOS_SETOP,4,0),IF(I219="SICRO",VLOOKUP(B219,DADOS_SICRO,4,0),IF(I219="SUDECAP",VLOOKUP(B219,DADOS_SUDECAP,4,0),IF(I219="COTAÇÃO",VLOOKUP(B219,DADOS_COTACAO,12,0),VLOOKUP(B219,DADOS_COMPOSICAO,13,0)))))) -> 18.75 | M219: =K219*L219 -> 7.5
B220: 38185 | C220: =IF(I220="SINAPI",VLOOKUP(B220,DADOS_SINAPI,2,0),IF(I220="SETOP",VLOOKUP(B220,DADOS_SETOP,2,0),IF(I220="SICRO",VLOOKUP(B220,DADOS_SICRO,2,0),IF(I220="SUDECAP",VLOOKUP(B220,DADOS_SUDECAP,2,0),IF(I220="COTAÇÃO",VLOOKUP(B220,DADOS_COTACAO,2,0),VLOOKUP(B220,DADOS_COMPOSICAO,2,0)))))) -> PISO TATIL DE ALERTA OU DIRECIONAL, DE BORRACHA, PRETO, 25 X 25 CM, E = 12 MM, PARA ARGAMASSA | I220: SINAPI | J220: =IF(I220="SINAPI",VLOOKUP(B220,DADOS_SINAPI,3,0),IF(I220="SETOP",VLOOKUP(B220,DADOS_SETOP,3,0),IF(I220="SICRO",VLOOKUP(B220,DADOS_SICRO,3,0),IF(I220="SUDECAP",VLOOKUP(B220,DADOS_SUDECAP,3,0),IF(I220="COTAÇÃO",VLOOKUP(B220,DADOS_COTACAO,9,0),VLOOKUP(B220,DADOS_COMPOSICAO,10,0)))))) -> M2 | K220: 1 | L220: =IF(I220="SINAPI",VLOOKUP(B220,DADOS_SINAPI,4,0),IF(I220="SETOP",VLOOKUP(B220,DADOS_SETOP,4,0),IF(I220="SICRO",VLOOKUP(B220,DADOS_SICRO,4,0),IF(I220="SUDECAP",VLOOKUP(B220,DADOS_SUDECAP,4,0),IF(I220="COTAÇÃO",VLOOKUP(B220,DADOS_COTACAO,12,0),VLOOKUP(B220,DADOS_COMPOSICAO,13,0)))))) -> 492.22 | M220: 492.22
B221: 88309 | C221: =IF(I221="SINAPI",VLOOKUP(B221,DADOS_SINAPI,2,0),IF(I221="SETOP",VLOOKUP(B221,DADOS_SETOP,2,0),IF(I221="SICRO",VLOOKUP(B221,DADOS_SICRO,2,0),IF(I221="SUDECAP",VLOOKUP(B221,DADOS_SUDECAP,2,0),IF(I221="COTAÇÃO",VLOOKUP(B221,DADOS_COTACAO,2,0),VLOOKUP(B221,DADOS_COMPOSICAO,2,0)))))) -> PEDREIRO COM ENCARGOS COMPLEMENTARES | I221: SINAPI | J221: =IF(I221="SINAPI",VLOOKUP(B221,DADOS_SINAPI,3,0),IF(I221="SETOP",VLOOKUP(B221,DADOS_SETOP,3,0),IF(I221="SICRO",VLOOKUP(B221,DADOS_SICRO,3,0),IF(I221="SUDECAP",VLOOKUP(B221,DADOS_SUDECAP,3,0),IF(I221="COTAÇÃO",VLOOKUP(B221,DADOS_COTACAO,9,0),VLOOKUP(B221,DADOS_COMPOSICAO,10,0)))))) -> H | K221: 0.4 | L221: =IF(I221="SINAPI",VLOOKUP(B221,DADOS_SINAPI,4,0),IF(I221="SETOP",VLOOKUP(B221,DADOS_SETOP,4,0),IF(I221="SICRO",VLOOKUP(B221,DADOS_SICRO,4,0),IF(I221="SUDECAP",VLOOKUP(B221,DADOS_SUDECAP,4,0),IF(I221="COTAÇÃO",VLOOKUP(B221,DADOS_COTACAO,12,0),VLOOKUP(B221,DADOS_COMPOSICAO,13,0)))))) -> 25.27 | M221: 10.108
B222: ED-48303 | C222: =IF(I222="SINAPI",VLOOKUP(B222,DADOS_SINAPI,2,0),IF(I222="SETOP",VLOOKUP(B222,DADOS_SETOP,2,0),IF(I222="SICRO",VLOOKUP(B222,DADOS_SICRO,2,0),IF(I222="SUDECAP",VLOOKUP(B222,DADOS_SUDECAP,2,0),IF(I222="COTAÇÃO",VLOOKUP(B222,DADOS_COTACAO,2,0),VLOOKUP(B222,DADOS_COMPOSICAO,2,0)))))) -> ARGAMASSA, TRAÇO 1:4 (CIMENTO E AREIA), COM PREPARO MECANIZADO | I222: SETOP | J222: =IF(I222="SINAPI",VLOOKUP(B222,DADOS_SINAPI,3,0),IF(I222="SETOP",VLOOKUP(B222,DADOS_SETOP,3,0),IF(I222="SICRO",VLOOKUP(B222,DADOS_SICRO,3,0),IF(I222="SUDECAP",VLOOKUP(B222,DADOS_SUDECAP,3,0),IF(I222="COTAÇÃO",VLOOKUP(B222,DADOS_COTACAO,9,0),VLOOKUP(B222,DADOS_COMPOSICAO,10,0)))))) -> m3 | K222: 0.015 | L222: =IF(I222="SINAPI",VLOOKUP(B222,DADOS_SINAPI,4,0),IF(I222="SETOP",VLOOKUP(B222,DADOS_SETOP,4,0),IF(I222="SICRO",VLOOKUP(B222,DADOS_SICRO,4,0),IF(I222="SUDECAP",VLOOKUP(B222,DADOS_SUDECAP,4,0),IF(I222="COTAÇÃO",VLOOKUP(B222,DADOS_COTACAO,12,0),VLOOKUP(B222,DADOS_COMPOSICAO,13,0)))))) -> 559.3 | M222: 8.3895
A224: ACE-005 | B224: PLACA TÁTIL BRAILLE EM ACRÍLICO 30X10 CM (ATÉ 3 PALAVRAS) - FORNECIMENTO E INSTALAÇÃO | I224: CPU | J224: UN | M224: =SUM(M225:XFD226) -> 48.75
B225: 88316 | C225: =IF(I225="SINAPI",VLOOKUP(B225,DADOS_SINAPI,2,0),IF(I225="SETOP",VLOOKUP(B225,DADOS_SETOP,2,0),IF(I225="SICRO",VLOOKUP(B225,DADOS_SICRO,2,0),IF(I225="SUDECAP",VLOOKUP(B225,DADOS_SUDECAP,2,0),IF(I225="COTAÇÃO",VLOOKUP(B225,DADOS_COTACAO,2,0),VLOOKUP(B225,DADOS_COMPOSICAO,2,0)))))) -> SERVENTE COM ENCARGOS COMPLEMENTARES | I225: SINAPI | J225: =IF(I225="SINAPI",VLOOKUP(B225,DADOS_SINAPI,3,0),IF(I225="SETOP",VLOOKUP(B225,DADOS_SETOP,3,0),IF(I225="SICRO",VLOOKUP(B225,DADOS_SICRO,3,0),IF(I225="SUDECAP",VLOOKUP(B225,DADOS_SUDECAP,3,0),IF(I225="COTAÇÃO",VLOOKUP(B225,DADOS_COTACAO,9,0),VLOOKUP(B225,DADOS_COMPOSICAO,10,0)))))) -> H | K225: 0.2 | L225: =IF(I225="SINAPI",VLOOKUP(B225,DADOS_SINAPI,4,0),IF(I225="SETOP",VLOOKUP(B225,DADOS_SETOP,4,0),IF(I225="SICRO",VLOOKUP(B225,DADOS_SICRO,4,0),IF(I225="SUDECAP",VLOOKUP(B225,DADOS_SUDECAP,4,0),IF(I225="COTAÇÃO",VLOOKUP(B225,DADOS_COTACAO,12,0),VLOOKUP(B225,DADOS_COMPOSICAO,13,0)))))) -> 18.75 | M225: =K225*L225 -> 3.75
B226: 83.17.52 | C226: =IF(I226="SINAPI",VLOOKUP(B226,DADOS_SINAPI,2,0),IF(I226="SETOP",VLOOKUP(B226,DADOS_SETOP,2,0),IF(I226="SICRO",VLOOKUP(B226,DADOS_SICRO,2,0),IF(I226="SUDECAP",VLOOKUP(B226,DADOS_SUDECAP,2,0),IF(I226="COTAÇÃO",VLOOKUP(B226,DADOS_COTACAO,2,0),VLOOKUP(B226,DADOS_COMPOSICAO,2,0)))))) -> PLACA TÁTIL BRAILLE EM ACRÍLICO 30X10 CM (ATÉ 3 PALAVRAS) | I226: SUDECAP | J226: =IF(I226="SINAPI",VLOOKUP(B226,DADOS_SINAPI,3,0),IF(I226="SETOP",VLOOKUP(B226,DADOS_SETOP,3,0),IF(I226="SICRO",VLOOKUP(B226,DADOS_SICRO,3,0),IF(I226="SUDECAP",VLOOKUP(B226,DADOS_SUDECAP,3,0),IF(I226="COTAÇÃO",VLOOKUP(B226,DADOS_COTACAO,9,0),VLOOKUP(B226,DADOS_COMPOSICAO,10,0)))))) -> UN | K226: 1 | L226: =IF(I226="SINAPI",VLOOKUP(B226,DADOS_SINAPI,4,0),IF(I226="SETOP",VLOOKUP(B226,DADOS_SETOP,4,0),IF(I226="SICRO",VLOOKUP(B226,DADOS_SICRO,4,0),IF(I226="SUDECAP",VLOOKUP(B226,DADOS_SUDECAP,4,0),IF(I226="COTAÇÃO",VLOOKUP(B226,DADOS_COTACAO,12,0),VLOOKUP(B226,DADOS_COMPOSICAO,13,0)))))) -> 45 | M226: 45
A228: 17 | B228: =VLOOKUP(A228,[1]ORC!$D$46:$N$2472,2,0) -> DRENAGEM PLUVIAL
A229: PLU-001 | B229: RALO LINEAR COM GRELHA 90 CM - FORNECIMENTO E INSTALAÇÃO | I229: CPU | J229: UN | M229: =SUM(M230:M235) -> 178.874165
B230: COT-PLU-001 | C230: =IF(I230="SINAPI",VLOOKUP(B230,DADOS_SINAPI,2,0),IF(I230="SETOP",VLOOKUP(B230,DADOS_SETOP,2,0),IF(I230="SICRO",VLOOKUP(B230,DADOS_SICRO,2,0),IF(I230="SUDECAP",VLOOKUP(B230,DADOS_SUDECAP,2,0),IF(I230="COTAÇÃO",VLOOKUP(B230,DADOS_COTACAO,2,0),VLOOKUP(B230,DADOS_COMPOSICAO,2,0)))))) -> RALO LINEAR 90 CM COM GRELHA BRANCA | I230: COTAÇÃO | J230: =IF(I230="SINAPI",VLOOKUP(B230,DADOS_SINAPI,3,0),IF(I230="SETOP",VLOOKUP(B230,DADOS_SETOP,3,0),IF(I230="SICRO",VLOOKUP(B230,DADOS_SICRO,3,0),IF(I230="SUDECAP",VLOOKUP(B230,DADOS_SUDECAP,3,0),IF(I230="COTAÇÃO",VLOOKUP(B230,DADOS_COTACAO,9,0),VLOOKUP(B230,DADOS_COMPOSICAO,10,0)))))) -> UN | K230: 1 | L230: =IF(I230="SINAPI",VLOOKUP(B230,DADOS_SINAPI,4,0),IF(I230="SETOP",VLOOKUP(B230,DADOS_SETOP,4,0),IF(I230="SICRO",VLOOKUP(B230,DADOS_SICRO,4,0),IF(I230="SUDECAP",VLOOKUP(B230,DADOS_SUDECAP,4,0),IF(I230="COTAÇÃO",VLOOKUP(B230,DADOS_COTACAO,12,0),VLOOKUP(B230,DADOS_COMPOSICAO,13,0)))))) -> 169.03 | M230: =K230*L230 -> 169.03
B231: 88248 | C231: AUXILIAR DE ENCANADOR OU BOMBEIRO HIDRÁULICO COM ENCARGOS COMPLEMENTARES | I231: SINAPI | J231: H | K231: 0.2 | L231: 20.08 | M231: 4.016
B232: 88267 | C232: ENCANADOR OU BOMBEIRO HIDRÁULICO COM ENCARGOS COMPLEMENTARES | I232: SINAPI | J232: H | K232: 0.2 | L232: 24.51 | M232: 4.902
B233: 122 | C233: ADESIVO PLASTICO PARA PVC, FRASCO COM *850* GR | I233: SINAPI | J233: UN | K233: 0.0049 | L233: 61.55 | M233: 0.301595
B234: 38383 | C234: LIXA D'AGUA EM FOLHA, COR PRETA, GRAO 100 | I234: SINAPI | J234: UN | K234: 0.036 | L234: 2.82 | M234: 0.10152
B235: 20083 | C235: SOLUCAO PREPARADORA / LIMPADORA PARA PVC, FRASCO COM 1000 CM3 | I235: SINAPI | J235: UN | K235: 0.0075 | L235: 69.74 | M235: 0.52305
A237: 18 | B237: =VLOOKUP(A237,[1]ORC!$D$46:$N$2472,2,0) -> CLIMATIZAÇÃO
A238: CLI-001 | B238: INSTALAÇÃO DE CABOS PP | I238: CPU | J238: UN | M238: =SUM(M239:M240) -> 9.34
B239: 88247 | C239: =IF(I239="SINAPI",VLOOKUP(B239,DADOS_SINAPI,2,0),IF(I239="SETOP",VLOOKUP(B239,DADOS_SETOP,2,0),IF(I239="SICRO",VLOOKUP(B239,DADOS_SICRO,2,0),IF(I239="SUDECAP",VLOOKUP(B239,DADOS_SUDECAP,2,0),IF(I239="COTAÇÃO",VLOOKUP(B239,DADOS_COTACAO,2,0),VLOOKUP(B239,DADOS_COMPOSICAO,2,0)))))) -> AUXILIAR DE ELETRICISTA COM ENCARGOS COMPLEMENTARES | I239: SINAPI | J239: =IF(I239="SINAPI",VLOOKUP(B239,DADOS_SINAPI,3,0),IF(I239="SETOP",VLOOKUP(B239,DADOS_SETOP,3,0),IF(I239="SICRO",VLOOKUP(B239,DADOS_SICRO,3,0),IF(I239="SUDECAP",VLOOKUP(B239,DADOS_SUDECAP,3,0),IF(I239="COTAÇÃO",VLOOKUP(B239,DADOS_COTACAO,9,0),VLOOKUP(B239,DADOS_COMPOSICAO,10,0)))))) -> H | K239: 0.2 | L239: =IF(I239="SINAPI",VLOOKUP(B239,DADOS_SINAPI,4,0),IF(I239="SETOP",VLOOKUP(B239,DADOS_SETOP,4,0),IF(I239="SICRO",VLOOKUP(B239,DADOS_SICRO,4,0),IF(I239="SUDECAP",VLOOKUP(B239,DADOS_SUDECAP,4,0),IF(I239="COTAÇÃO",VLOOKUP(B239,DADOS_COTACAO,12,0),VLOOKUP(B239,DADOS_COMPOSICAO,13,0)))))) -> 21.09 | M239: =K239*L239 -> 4.218
B240: 88264 | C240: ELETRICISTA COM ENCARGOS COMPLEMENTARES | I240: SINAPI | J240: H | K240: 0.2 | L240: 25.61 | M240: 5.122
A242: 19 | B242: =VLOOKUP(A242,[1]ORC!$D$46:$N$2472,2,0) -> EXAUSTÃO
A243: EXA-001 | B243: INSTALAÇÃO EXAUSTOR | I243: CPU | J243: UN | M243: =SUM(M244:M246) -> 65.45
B244: 88264 | C244: =IF(I244="SINAPI",VLOOKUP(B244,DADOS_SINAPI,2,0),IF(I244="SETOP",VLOOKUP(B244,DADOS_SETOP,2,0),IF(I244="SICRO",VLOOKUP(B244,DADOS_SICRO,2,0),IF(I244="SUDECAP",VLOOKUP(B244,DADOS_SUDECAP,2,0),IF(I244="COTAÇÃO",VLOOKUP(B244,DADOS_COTACAO,2,0),VLOOKUP(B244,DADOS_COMPOSICAO,2,0)))))) -> ELETRICISTA COM ENCARGOS COMPLEMENTARES | I244: SINAPI | J244: =IF(I244="SINAPI",VLOOKUP(B244,DADOS_SINAPI,3,0),IF(I244="SETOP",VLOOKUP(B244,DADOS_SETOP,3,0),IF(I244="SICRO",VLOOKUP(B244,DADOS_SICRO,3,0),IF(I244="SUDECAP",VLOOKUP(B244,DADOS_SUDECAP,3,0),IF(I244="COTAÇÃO",VLOOKUP(B244,DADOS_COTACAO,9,0),VLOOKUP(B244,DADOS_COMPOSICAO,10,0)))))) -> H | K244: 1 | L244: =IF(I244="SINAPI",VLOOKUP(B244,DADOS_SINAPI,4,0),IF(I244="SETOP",VLOOKUP(B244,DADOS_SETOP,4,0),IF(I244="SICRO",VLOOKUP(B244,DADOS_SICRO,4,0),IF(I244="SUDECAP",VLOOKUP(B244,DADOS_SUDECAP,4,0),IF(I244="COTAÇÃO",VLOOKUP(B244,DADOS_COTACAO,12,0),VLOOKUP(B244,DADOS_COMPOSICAO,13,0)))))) -> 25.61 | M244: =K244*L244 -> 25.61
B245: 88247 | C245: =IF(I245="SINAPI",VLOOKUP(B245,DADOS_SINAPI,2,0),IF(I245="SETOP",VLOOKUP(B245,DADOS_SETOP,2,0),IF(I245="SICRO",VLOOKUP(B245,DADOS_SICRO,2,0),IF(I245="SUDECAP",VLOOKUP(B245,DADOS_SUDECAP,2,0),IF(I245="COTAÇÃO",VLOOKUP(B245,DADOS_COTACAO,2,0),VLOOKUP(B245,DADOS_COMPOSICAO,2,0)))))) -> AUXILIAR DE ELETRICISTA COM ENCARGOS COMPLEMENTARES | I245: SINAPI | J245: =IF(I245="SINAPI",VLOOKUP(B245,DADOS_SINAPI,3,0),IF(I245="SETOP",VLOOKUP(B245,DADOS_SETOP,3,0),IF(I245="SICRO",VLOOKUP(B245,DADOS_SICRO,3,0),IF(I245="SUDECAP",VLOOKUP(B245,DADOS_SUDECAP,3,0),IF(I245="COTAÇÃO",VLOOKUP(B245,DADOS_COTACAO,9,0),VLOOKUP(B245,DADOS_COMPOSICAO,10,0)))))) -> H | K245: 1 | L245: =IF(I245="SINAPI",VLOOKUP(B245,DADOS_SINAPI,4,0),IF(I245="SETOP",VLOOKUP(B245,DADOS_SETOP,4,0),IF(I245="SICRO",VLOOKUP(B245,DADOS_SICRO,4,0),IF(I245="SUDECAP",VLOOKUP(B245,DADOS_SUDECAP,4,0),IF(I245="COTAÇÃO",VLOOKUP(B245,DADOS_COTACAO,12,0),VLOOKUP(B245,DADOS_COMPOSICAO,13,0)))))) -> 21.09 | M245: 21.09
B246: 88316 | C246: =IF(I246="SINAPI",VLOOKUP(B246,DADOS_SINAPI,2,0),IF(I246="SETOP",VLOOKUP(B246,DADOS_SETOP,2,0),IF(I246="SICRO",VLOOKUP(B246,DADOS_SICRO,2,0),IF(I246="SUDECAP",VLOOKUP(B246,DADOS_SUDECAP,2,0),IF(I246="COTAÇÃO",VLOOKUP(B246,DADOS_COTACAO,2,0),VLOOKUP(B246,DADOS_COMPOSICAO,2,0)))))) -> SERVENTE COM ENCARGOS COMPLEMENTARES | I246: SINAPI | J246: =IF(I246="SINAPI",VLOOKUP(B246,DADOS_SINAPI,3,0),IF(I246="SETOP",VLOOKUP(B246,DADOS_SETOP,3,0),IF(I246="SICRO",VLOOKUP(B246,DADOS_SICRO,3,0),IF(I246="SUDECAP",VLOOKUP(B246,DADOS_SUDECAP,3,0),IF(I246="COTAÇÃO",VLOOKUP(B246,DADOS_COTACAO,9,0),VLOOKUP(B246,DADOS_COMPOSICAO,10,0)))))) -> H | K246: 1 | L246: =IF(I246="SINAPI",VLOOKUP(B246,DADOS_SINAPI,4,0),IF(I246="SETOP",VLOOKUP(B246,DADOS_SETOP,4,0),IF(I246="SICRO",VLOOKUP(B246,DADOS_SICRO,4,0),IF(I246="SUDECAP",VLOOKUP(B246,DADOS_SUDECAP,4,0),IF(I246="COTAÇÃO",VLOOKUP(B246,DADOS_COTACAO,12,0),VLOOKUP(B246,DADOS_COMPOSICAO,13,0)))))) -> 18.75 | M246: 18.75
A248: 20 | B248: =VLOOKUP(A248,[1]ORC!$D$46:$N$2472,2,0) -> INSTALAÇÕES ELÉTRICAS
A249: ELE-001 | B249: INSTALAÇÃO DE QUADRO DE TRANSFERÊNCIA | I249: CPU | J249: UN | M249: =SUM(M250:XFD251) -> 700.5
... 29 more rows

Sheet COT
A2: PLANILHA DE COTAÇÕES | K2: Revisão: | L2: =DADOS!D6 -> R00
K3: Data: | L3: =DADOS!D2 -> 2025-01-27
A4: Projeto: | D4: Responsável: | G4: Cliente: | K4: Bancos:
A5: =DADOS!D8 -> CONSTRUÇÃO DA UBS CRISTAIS | K5: =DADOS!D14 -> SINAPI: 12/2024 Minas Gerais SETOP: 10/2024 Minas Gerais SICRO : 10/2024 Minas Gerais SUDECAP: 10/2024 Minas Gerais
K8: BDI 1: | L8: =DADOS!D10 -> 0.2652
K9: BDI 2: | L9: =DADOS!D12 -> -
A17: COTAÇÕES
A19: PREFEITURA: | B19: PREFEITURA MUNICIPAL DE POUSO ALEGRE
A20: OBRA: CONSTRUÇÃO DA UBS CRISTAIS | K20: FOLHA Nº: 5
A21: LOCAL: RUA ROBERTO SCODELER, BAIRRO BELLA ITÁLIA | K21: DATA:27/01/2025
A22: REGIÃO/MÊS DE REFERÊNCIA: SINAPI: 12/2024 Minas Gerais SETOP: 10/2024 Minas Gerais SICRO : 10/2024 Minas Gerais SUDECAP: 10/2024 Minas Gerais | I22: FORMA DE EXECUÇÃO
A23: PRAZO DE EXECUÇÃO: 12 MESES | K23: (X) | L23: INDIRETA
K24: BDI 1: | L24: =DADOS!D10 -> 0.2652
A26: COT-ARQ-001 | B26: PORTAS VAI E VEM EM ABS, 150 X 210 CM, COM VISOR - FORNECIMENTO E INSTALAÇÃO | I26: UN | L26: =MEDIAN(L28:XFD29) -> 4631.25
A27: EMPRESA | B27: CIDADE | C27: LOCAL / LINK | G27: CNPJ | H27: CONTATO | I27: UN | J27: VALOR | K27: FRETE | L27: TOTAL
A28: ANDER FLEX | C28: PROPOSTA COMERCIAL | G28: 27.831.538/0001-02 | H28: (11) 4642-0606 | I28: UN | J28: 4550 | K28: 0 | L28: =J28+K28 -> 4550
A29: MULTIFLEX | C29: PROPOSTA COMERCIAL | G29: 14.592.447/0001-01 | H29: (11) 4755-9555 | I29: UN | J29: 4712.5 | K29: 0 | L29: =J29+K29 -> 4712.5
A31: COT-ARQ-002 | B31: JANELA ESQUADRIA MAXIM-AR 0,40 X 1,00 M - PINTURA PRETA E VIDRO TEMPERADO FUME 6MM | I31: UN | L31: =MEDIAN(L33:XFD35) -> 545.88
A32: EMPRESA | B32: CIDADE | C32: LOCAL / LINK | G32: CNPJ | H32: CONTATO | I32: UN | J32: VALOR | K32: FRETE | L32: TOTAL
A33: ALUVIMAX | C33: PROPOSTA COMERCIAL | G33: 21.238.335/0001-12 | H33: (35) 3622-8305 | I33: UN | J33: 545.88 | K33: 0 | L33: =J33+K33 -> 545.88
A34: ATUAL ESQUADRIAS | C34: PROPOSTA COMERCIAL | G34: 39.800.746/0001-15 | H34: (35) 99895-8134 | I34: UN | J34: 652 | K34: 0 | L34: =J34+K34 -> 652
A35: ALUMIVIDROS | C35: PROPOSTA COMERCIAL | G35: 36.399.289/0001-00 | H35: (35) 3022-7774 | I35: UN | J35: 510.16 | K35: 0 | L35: =J35+K35 -> 510.16
A37: COT-ARQ-003 | B37: JANELA ESQUADRIA MAXIM-AR 0,70 X 0,70 M - PINTURA PRETA E VIDRO TEMPERADO FUME 6MM | I37: UN | L37: =MEDIAN(L39:XFD41) -> 583
A38: EMPRESA | B38: CIDADE | C38: LOCAL / LINK | G38: CNPJ | H38: CONTATO | I38: UN | J38: VALOR | K38: FRETE | L38: TOTAL
A39: ALUVIMAX | C39: PROPOSTA COMERCIAL | G39: 21.238.335/0001-12 | H39: (35) 3622-8305 | I39: UN | J39: 668.7 | K39: 0 | L39: =J39+K39 -> 668.7
A40: ATUAL ESQUADRIAS | C40: PROPOSTA COMERCIAL | G40: 39.800.746/0001-15 | H40: (35) 99895-8134 | I40: UN | J40: 583 | K40: 0 | L40: =J40+K40 -> 583
A41: ALUMIVIDROS | C41: PROPOSTA COMERCIAL | G41: 36.399.289/0001-00 | H41: (35) 3022-7774 | I41: UN | J41: 526.43 | K41: 0 | L41: =J41+K41 -> 526.43
A43: COT-ARQ-004 | B43: JANELA ESQUADRIA MAXIM-AR 0,70 X 0,90 M - PINTURA PRETA E VIDRO TEMPERADO FUME 6MM | I43: UN | L43: =MEDIAN(L45:XFD47) -> 1468
A44: EMPRESA | B44: CIDADE | C44: LOCAL / LINK | G44: CNPJ | H44: CONTATO | I44: UN | J44: VALOR | K44: FRETE | L44: TOTAL
A45: ALUVIMAX | C45: PROPOSTA COMERCIAL | G45: 21.238.335/0001-12 | H45: (35) 3622-8305 | I45: UN | J45: 859.76 | K45: 0 | L45: =J45+K45 -> 859.76
A46: ATUAL ESQUADRIAS | C46: PROPOSTA COMERCIAL | G46: 39.800.746/0001-15 | H46: (35) 99895-8134 | I46: UN | J46: 1468 | K46: 0 | L46: =J46+K46 -> 1468
A47: ALUMIVIDROS | C47: PROPOSTA COMERCIAL | G47: 36.399.289/0001-00 | H47: (35) 3022-7774 | I47: UN | J47: 1862.16 | K47: 0 | L47: =J47+K47 -> 1862.16
A49: COT-ARQ-005 | B49: JANELA ESQUADRIA TIPO GUILHOTINA 1,00 X 1,00 M - PINTURA PRETA E VIDRO TEMPERADO FUME 6MM | I49: UN | L49: =MEDIAN(L51:XFD53) -> 1074
A50: EMPRESA | B50: CIDADE | C50: LOCAL / LINK | G50: CNPJ | H50: CONTATO | I50: UN | J50: VALOR | K50: FRETE | L50: TOTAL
A51: ALUVIMAX | C51: PROPOSTA COMERCIAL | G51: 21.238.335/0001-12 | H51: (35) 3622-8305 | I51: UN | J51: 834.7 | K51: 0 | L51: =J51+K51 -> 834.7
A52: ATUAL ESQUADRIAS | C52: PROPOSTA COMERCIAL | G52: 39.800.746/0001-15 | H52: (35) 99895-8134 | I52: UN | J52: 1074 | K52: 0 | L52: =J52+K52 -> 1074
A53: ALUMIVIDROS | C53: PROPOSTA COMERCIAL | G53: 36.399.289/0001-00 | H53: (35) 3022-7774 | I53: UN | J53: 1361.86 | K53: 0 | L53: =J53+K53 -> 1361.86
A55: COT-ARQ-006 | B55: JANELA ESQUADRIA MAXIM-AR 1,60 X 0,60 M - PINTURA PRETA E VIDRO TEMPERADO FUME 6MM | I55: UN | L55: =MEDIAN(L57:XFD58) -> 1015.065
A56: EMPRESA | B56: CIDADE | C56: LOCAL / LINK | G56: CNPJ | H56: CONTATO | I56: UN | J56: VALOR | K56: FRETE | L56: TOTAL
A57: ATUAL ESQUADRIAS | C57: PROPOSTA COMERCIAL | G57: 39.800.746/0001-15 | H57: (35) 99895-8134 | I57: UN | J57: 1026 | K57: 0 | L57: =J57+K57 -> 1026
A58: ALUMIVIDROS | C58: PROPOSTA COMERCIAL | G58: 36.399.289/0001-00 | H58: (35) 3022-7774 | I58: UN | J58: 1004.13 | K58: 0 | L58: =J58+K58 -> 1004.13
A60: COT-ARQ-007 | B60: JANELA ESQUADRIA MAXIM-AR 1,60 X 0,70 M - PINTURA PRETA E VIDRO TEMPERADO FUME 6MM | I60: UN | L60: =MEDIAN(L62:XFD64) -> 1092.47
A61: EMPRESA | B61: CIDADE | C61: LOCAL / LINK | G61: CNPJ | H61: CONTATO | I61: UN | J61: VALOR | K61: FRETE | L61: TOTAL
A62: ALUVIMAX | C62: PROPOSTA COMERCIAL | G62: 21.238.335/0001-12 | H62: (35) 3622-8305 | I62: UN | J62: 1528.46 | K62: 0 | L62: =J62+K62 -> 1528.46
A63: ATUAL ESQUADRIAS | C63: PROPOSTA COMERCIAL | G63: 39.800.746/0001-15 | H63: (35) 99895-8134 | I63: UN | J63: 1090 | K63: 0 | L63: =J63+K63 -> 1090
A64: ALUMIVIDROS | C64: PROPOSTA COMERCIAL | G64: 36.399.289/0001-00 | H64: (35) 3022-7774 | I64: UN | J64: 1092.47 | K64: 0 | L64: =J64+K64 -> 1092.47
A66: COT-ARQ-008 | B66: JANELA ESQUADRIA MAXIM-AR 2,00 X 1,00 M - PINTURA PRETA E VIDRO TEMPERADO FUME 6MM | I66: UN | L66: =MEDIAN(L68:XFD70) -> 1725.76
A67: EMPRESA | B67: CIDADE | C67: LOCAL / LINK | G67: CNPJ | H67: CONTATO | I67: UN | J67: VALOR | K67: FRETE | L67: TOTAL
A68: ALUVIMAX | C68: PROPOSTA COMERCIAL | G68: 21.238.335/0001-12 | H68: (35) 3622-8305 | I68: UN | J68: 2729.4 | K68: 0 | L68: =J68+K68 -> 2729.4
A69: ATUAL ESQUADRIAS | C69: PROPOSTA COMERCIAL | G69: 39.800.746/0001-15 | H69: (35) 99895-8134 | I69: UN | J69: 1633 | K69: 0 | L69: =J69+K69 -> 1633
A70: ALUMIVIDROS | C70: PROPOSTA COMERCIAL | G70: 36.399.289/0001-00 | H70: (35) 3022-7774 | I70: UN | J70: 1725.76 | K70: 0 | L70: =J70+K70 -> 1725.76
A72: COT-ARQ-009 | B72: JANELA ESQUADRIA MAXIM-AR 2,20 X 1,20 M - PINTURA PRETA E VIDRO TEMPERADO FUME 6MM | I72: UN | L72: =MEDIAN(L74:XFD76) -> 2143.59
A73: EMPRESA | B73: CIDADE | C73: LOCAL / LINK | G73: CNPJ | H73: CONTATO | I73: UN | J73: VALOR | K73: FRETE | L73: TOTAL
A74: ALUVIMAX | C74: PROPOSTA COMERCIAL | G74: 21.238.335/0001-12 | H74: (35) 3622-8305 | I74: UN | J74: 1801.4 | K74: 0 | L74: =J74+K74 -> 1801.4
A75: ATUAL ESQUADRIAS | C75: PROPOSTA COMERCIAL | G75: 39.800.746/0001-15 | H75: (35) 99895-8134 | I75: UN | J75: 2242 | K75: 0 | L75: =J75+K75 -> 2242
A76: ALUMIVIDROS | C76: PROPOSTA COMERCIAL | G76: 36.399.289/0001-00 | H76: (35) 3022-7774 | I76: UN | J76: 2143.59 | K76: 0 | L76: =J76+K76 -> 2143.59
A78: COT-ARQ-010 | B78: JANELA ESQUADRIA MAXIM-AR 2,50 X 1,00 M - PINTURA PRETA E VIDRO TEMPERADO FUME 6MM | I78: UN | L78: =MEDIAN(L80:XFD82) -> 2243
A79: EMPRESA | B79: CIDADE | C79: LOCAL / LINK | G79: CNPJ | H79: CONTATO | I79: UN | J79: VALOR | K79: FRETE | L79: TOTAL
A80: ALUVIMAX | C80: PROPOSTA COMERCIAL | G80: 21.238.335/0001-12 | H80: (35) 3622-8305 | I80: UN | J80: 3411.75 | K80: 0 | L80: =J80+K80 -> 3411.75
A81: ATUAL ESQUADRIAS | C81: PROPOSTA COMERCIAL | G81: 39.800.746/0001-15 | H81: (35) 99895-8134 | I81: UN | J81: 2243 | K81: 0 | L81: =J81+K81 -> 2243
A82: ALUMIVIDROS | C82: PROPOSTA COMERCIAL | G82: 36.399.289/0001-00 | H82: (35) 3022-7774 | I82: UN | J82: 2232.36 | K82: 0 | L82: =J82+K82 -> 2232.36
A84: COT-ARQ-011 | B84: LETREIRO - FORNECIMENTO E INSTALAÇÃO | I84: UN | L84: =MEDIAN(L86:XFD86) -> 3900
A85: EMPRESA | B85: CIDADE | C85: LOCAL / LINK | G85: CNPJ | H85: CONTATO | I85: UN | J85: VALOR | K85: FRETE | L85: TOTAL
A86: IMPRIMAX | C86: PROPOSTA COMERCIAL | G86: 24.414.141/0001-19 | H86: (35) 3622-5210 | I86: UN | J86: 3900 | K86: 0 | L86: =J86+K86 -> 3900
A88: COT-LOU-001 | B88: EXPURGO HOSPITALAR COM SIFÃO, TRITURADOR E CONJUNTO DE INTALAÇÃO | I88: UN | L88: =MEDIAN(L90:XFD90) -> 8902.55
A89: EMPRESA | B89: CIDADE | C89: LOCAL / LINK | G89: CNPJ | H89: CONTATO | I89: UN | J89: VALOR | K89: FRETE | L89: TOTAL
A90: PALMETAL | C90: https://www.palmetal.com.br/expurgo-palmetal-modelo-em | G90: 39.139.985/0001-76 | H90: (21) 2481-6453 | I90: UN | J90: =2890+1155+31+4826.55 -> 8902.55 | K90: 0 | L90: =J90+K90 -> 8902.55
A92: COT-PLU-001 | B92: RALO LINEAR 90 CM COM GRELHA BRANCA | I92: UN | L92: =MEDIAN(L94:XFD96) -> 169.03
A93: EMPRESA | B93: CIDADE | C93: LOCAL / LINK | G93: CNPJ | H93: CONTATO | I93: UN | J93: VALOR | K93: FRETE | L93: TOTAL
A94: LOJA DO PEDRÃO | C94: https://www.lojadopedrao.com.br/ralo-linear-com-grelha-90cm-branco--tigre-41365/p?idsku=41365 | G94: 60.344.348/0001-28 | H94: (16) 3434-3535 | I94: UN | J94: 149.8 | K94: 19.23 | L94: =J94+K94 -> 169.03
A95: MAGAZINE LUIZA | C95: https://www.magazineluiza.com.br/ralo-linear-0-90cm-grelha-branca-tigre/p/gfc40eh227/cj/ragl/?seller_id=ferrajao&srsltid=AfmBOooGhtW8z_JiKYTjSFwlZcd1_bAjBJCSRKTDjTA3kE-lladY25HJiQE | G95: 47.960.950/1088-36 | H95: 0800 773 3838 | I95: UN | J95: 125 | K95: 0 | L95: =J95+K95 -> 125
A96: BERNAL | C96: https://www.bernalonline.com.br/ralo-linear-sifonado-com-grelha-branca-90cm-amanco-7309-p29478?tsid=27 | G96: 01.438.458/0001-90 | H96: (21) 96463-8299 | I96: UN | J96: 129.99 | K96: 46.56 | L96: =J96+K96 -> 176.55
A98: COT-CLI-001 | B98: CABO PP TETRAPOLAR, 4X2,5MM², 1KV | I98: M | L98: =MEDIAN(L100:XFD102) -> 30.49
A99: EMPRESA | B99: CIDADE | C99: LOCAL / LINK | G99: CNPJ | H99: CONTATO | I99: UN | J99: VALOR | K99: FRETE | L99: TOTAL
